Workbook

Sheet Brændstofpriser
C1: Personbiler, varebiler og lastbiler
E2: Dollarskurs | F2: 6.6
C4: Batteripriser
B6: År | C6: Pris per kwh batteri
B7: 2014 | C7: =137*$F$2 -> 904.2
B8: 2015 | C8: =137*$F$2 -> 904.2
B9: 2016 | C9: 904.2
B10: 2017 | C10: 904.2
B11: 2018 | C11: 904.2
B12: 2019 | C12: 904.2
B13: 2020 | C13: 904.2
B14: 2021 | C14: 904.2
B15: 2022 | C15: 904.2
B16: 2023 | C16: 904.2
B17: 2024 | C17: 904.2
B18: 2025 | C18: 904.2
B19: 2026 | C19: 904.2
B20: 2027 | C20: 904.2
B21: 2028 | C21: =137*$F$2 -> 904.2
B22: 2029 | C22: 904.2
B23: 2030 | C23: 904.2
B24: 2031 | C24: 904.2
B25: 2032 | C25: 904.2
B26: 2033 | C26: 904.2
B27: 2034 | C27: 904.2
B28: 2035 | C28: 904.2
B29: 2036 | C29: 904.2
B30: 2037 | C30: 904.2
B31: 2038 | C31: 904.2
B32: 2039 | C32: 904.2
B33: 2040 | C33: 904.2
B34: 2041 | C34: 904.2
B35: 2042 | C35: 904.2
B36: 2043 | C36: 904.2
B37: 2044 | C37: 904.2
B38: 2045 | C38: 904.2
B39: 2046 | C39: 904.2
B40: 2047 | C40: 904.2
B41: 2048 | C41: 904.2
B42: 2049 | C42: 904.2
B43: 2050 | C43: 904.2
B44: 2051 | C44: 904.2
B45: 2052 | C45: 904.2
B46: 2053 | C46: 904.2
B47: 2054 | C47: 904.2
B48: 2055 | C48: 904.2
B49: 2056 | C49: 904.2
B50: 2057 | C50: 904.2
B51: 2058 | C51: 904.2
B52: 2059 | C52: 904.2
B53: 2060 | C53: 904.2
B54: 2061 | C54: 904.2
B55: 2062 | C55: 904.2
B56: 2063 | C56: 904.2
B57: 2064 | C57: 904.2
B58: 2065 | C58: 904.2
B59: 2066 | C59: 904.2
B60: 2067 | C60: 904.2
B61: 2068 | C61: 904.2
B62: 2069 | C62: 904.2
B63: 2070 | C63: 904.2
B64: 2071 | C64: 904.2
B65: 2072 | C65: 904.2
C66: kilde: https://www.lydogbillede.dk/nyheter/bil/billigere-batterier-giver-billigere-elbiler/
C68: Personbiler | D68: benzin
C71: Benzinpris ekskl. afgifter og moms [2015-kr. per liter] | D71: Benzinpris inkl. afgifter og moms [2015-kr. per liter] | E71: Årlig vækst i reel invers brændstof-effektivitet
B72: 2014 | C72: 5.652761071 | D72: 12.7140344 | E72: 0.010829727
B73: 2015 | C73: 4.707880435 | D73: 11.59485054 | E73: 0.006976360111
B74: 2016 | C74: 4.016883482 | D74: 10.6841212 | E74: 0.008966401801
B75: 2017 | C75: 4.312162923 | D75: 10.95859403 | E75: 0.01011172525
B76: 2018 | C76: 4.399773306 | D76: 11.06810701 | E76: 0.01306457642
B77: 2019 | C77: 4.441956083 | D77: 11.12083548
B78: 2020 | C78: 4.58472856 | D78: 11.29930108 | E78: -0.01428862198
B79: 2021 | C79: 4.763194156 | D79: 11.52238308 | E79: -0.01703961908
B80: 2022 | C80: 4.880008001 | D80: 11.66840038 | E80: -0.01838866309
B81: 2023 | C81: 4.993577016 | D81: 11.81036165 | E81: -0.0150811707
B82: 2024 | C82: 5.100656374 | D82: 11.94421085 | E82: -0.01248265855
B83: 2025 | C83: 5.204490902 | D83: 12.07400401 | E83: -0.007940964525
B84: 2026 | C84: 5.301835773 | D84: 12.1956851 | E84: -0.007629134112
B85: 2027 | C85: 5.392690985 | D85: 12.30925411 | E85: -0.004206950886
B86: 2028 | C86: 5.480301369 | D86: 12.41876709 | E86: -0.003677554979
B87: 2029 | C87: 5.564666923 | D87: 12.52422403 | E87: -0.003984631125
B88: 2030 | C88: 5.64254282 | D88: 12.6215689 | E88: -0.004209257978
B89: 2031 | C89: 5.710684229 | D89: 12.70674567 | E89: 0
B90: 2032 | C90: 5.769091151 | D90: 12.77975432 | E90: 0
B91: 2033 | C91: 5.821008416 | D91: 12.8446509 | E91: 0
B92: 2034 | C92: 5.869680851 | D92: 12.90549144 | E92: 0
B93: 2035 | C93: 5.918353286 | D93: 12.96633199 | E93: 0
B94: 2036 | C94: 5.918353286 | D94: 12.96633199 | E94: 0
B95: 2037 | C95: 5.918353286 | D95: 12.96633199 | E95: 0
B96: 2038 | C96: 5.918353286 | D96: 12.96633199 | E96: 0
B97: 2039 | C97: 5.918353286 | D97: 12.96633199 | E97: 0
B98: 2040 | C98: 5.918353286 | D98: 12.96633199 | E98: 0
B99: 2041 | C99: 5.918353286 | D99: 12.96633199 | E99: 0
B100: 2042 | C100: 5.918353286 | D100: 12.96633199 | E100: 0
B101: 2043 | C101: 5.918353286 | D101: 12.96633199 | E101: 0
B102: 2044 | C102: 5.918353286 | D102: 12.96633199 | E102: 0
C103: Kilde: 2010-2015: Oliebranchens fællesråd | D103: Kilde: 2010-2015: Oliebranchens fællesråd | E103: Kilde til 2030: ENS, 2015
C105: Personbiler | D105: diesel
C108: Dieselpris ekskl. afgifter og moms [2015-kr. per liter] | D108: Dieselpris inkl. afgifter og moms [2015-kr. per liter] | E108: Årlig vækst i invers brændstof-effektivitet
B109: 2014 | C109: 5.973504783 | D109: 11.33169004 | E109: 0.010829727
B110: 2015 | C110: 4.829111111 | D110: 9.945138889 | E110: 0.006976360111
B111: 2016 | C111: 4.46568408 | D111: 9.449230093 | E111: 0.008966401801
B112: 2017 | C112: 4.788091477 | D112: 9.779761576 | E112: 0.01011172525
B113: 2018 | C113: 4.883750814 | D113: 9.899335748 | E113: 0.01306457642
B114: 2019 | C114: 4.929809014 | D114: 9.956908497
B115: 2020 | C115: 5.085698304 | D115: 10.15177011 | E115: -0.01428862198
B116: 2021 | C116: 5.280559917 | D116: 10.39534713 | E116: -0.01703961908
B117: 2022 | C117: 5.408105701 | D117: 10.55477936 | E117: -0.01838866309
B118: 2023 | C118: 5.532108545 | D118: 10.70978291 | E118: -0.0150811707
B119: 2024 | C119: 5.649025513 | D119: 10.85592912 | E119: -0.01248265855
B120: 2025 | C120: 5.758856604 | D120: 10.99321799 | E120: -0.007940964525
B121: 2026 | C121: 5.865144757 | D121: 11.12607818 | E121: -0.007629134112
B122: 2027 | C122: 5.967889971 | D122: 11.25450969 | E122: -0.004206950886
B123: 2028 | C123: 6.063549309 | D123: 11.37408387 | E123: -0.003677554979
B124: 2029 | C124: 6.152122769 | D124: 11.48480069 | E124: -0.003984631125
B125: 2030 | C125: 6.24069623 | D125: 11.59551752 | E125: -0.004209257978
B126: 2031 | C126: 6.315097937 | D126: 11.68851965 | E126: 0
B127: 2032 | C127: 6.37532789 | D127: 11.76380709 | E127: 0
B128: 2033 | C128: 6.435557843 | D128: 11.83909453 | E128: 0
B129: 2034 | C129: 6.488701919 | D129: 11.90552463 | E129: 0
B130: 2035 | C130: 6.541845996 | D130: 11.97195473 | E130: 0
B131: 2036 | C131: 6.541845996 | D131: 11.97195473 | E131: 0
B132: 2037 | C132: 6.541845996 | D132: 11.97195473 | E132: 0
B133: 2038 | C133: 6.541845996 | D133: 11.97195473 | E133: 0
B134: 2039 | C134: 6.541845996 | D134: 11.97195473 | E134: 0
B135: 2040 | C135: 6.541845996 | D135: 11.97195473 | E135: 0
B136: 2041 | C136: 6.541845996 | D136: 11.97195473 | E136: 0
B137: 2042 | C137: 6.541845996 | D137: 11.97195473 | E137: 0
B138: 2043 | C138: 6.541845996 | D138: 11.97195473 | E138: 0
B139: 2044 | C139: 6.541845996 | D139: 11.97195473 | E139: 0
C140: Kilde: 2010-2015: Oliebranchens fællesråd | D140: Kilde: 2010-2015: Oliebranchens fællesråd | E140: Kilde til 2030: ENS, 2015
C142: Personbiler | D142: hybrid
C145: Benzinpris ekskl. afgifter og moms [2015-kr. per liter] | D145: Benzinpris inkl. afgifter og moms [2015-kr. per liter] | E145: Årlig vækst i invers brændstof-effektivitet
B146: 2014 | C146: 5.652761071 | D146: 12.7140344 | E146: 0.010829727
B147: 2015 | C147: 4.707880435 | D147: 11.59485054 | E147: 0.006976360111
B148: 2016 | C148: 4.016883482 | D148: 10.6841212 | E148: 0.008966401801
B149: 2017 | C149: 4.312162923 | D149: 10.95859403 | E149: 0.01011172525
B150: 2018 | C150: 4.399773306 | D150: 11.06810701 | E150: 0.01306457642
B151: 2019 | C151: 4.441956083 | D151: 11.12083548
B152: 2020 | C152: 4.58472856 | D152: 11.29930108 | E152: -0.01428862198
B153: 2021 | C153: 4.763194156 | D153: 11.52238308 | E153: -0.01703961908
B154: 2022 | C154: 4.880008001 | D154: 11.66840038 | E154: -0.01838866309
B155: 2023 | C155: 4.993577016 | D155: 11.81036165 | E155: -0.0150811707
B156: 2024 | C156: 5.100656374 | D156: 11.94421085 | E156: -0.01248265855
B157: 2025 | C157: 5.204490902 | D157: 12.07400401 | E157: -0.007940964525
B158: 2026 | C158: 5.301835773 | D158: 12.1956851 | E158: -0.007629134112
B159: 2027 | C159: 5.392690985 | D159: 12.30925411 | E159: -0.004206950886
B160: 2028 | C160: 5.480301369 | D160: 12.41876709 | E160: -0.003677554979
B161: 2029 | C161: 5.564666923 | D161: 12.52422403 | E161: -0.003984631125
B162: 2030 | C162: 5.64254282 | D162: 12.6215689 | E162: -0.004209257978
B163: 2031 | C163: 5.710684229 | D163: 12.70674567 | E163: 0
B164: 2032 | C164: 5.769091151 | D164: 12.77975432 | E164: 0
B165: 2033 | C165: 5.821008416 | D165: 12.8446509 | E165: 0
B166: 2034 | C166: 5.869680851 | D166: 12.90549144 | E166: 0
B167: 2035 | C167: 5.918353286 | D167: 12.96633199 | E167: 0
B168: 2036 | C168: 5.918353286 | D168: 12.96633199 | E168: 0
B169: 2037 | C169: 5.918353286 | D169: 12.96633199 | E169: 0
B170: 2038 | C170: 5.918353286 | D170: 12.96633199 | E170: 0
B171: 2039 | C171: 5.918353286 | D171: 12.96633199 | E171: 0
B172: 2040 | C172: 5.918353286 | D172: 12.96633199 | E172: 0
B173: 2041 | C173: 5.918353286 | D173: 12.96633199 | E173: 0
B174: 2042 | C174: 5.918353286 | D174: 12.96633199 | E174: 0
B175: 2043 | C175: 5.918353286 | D175: 12.96633199 | E175: 0
B176: 2044 | C176: 5.918353286 | D176: 12.96633199 | E176: 0
C177: Kilde: 2010-2015: Oliebranchens fællesråd | D177: Kilde: 2010-2015: Oliebranchens fællesråd | E177: Kilde til 2030: ENS, 2015
C179: Personbiler | D179: elektricitet
C182: Elpris ekskl. afgifter og moms [2015-kr. per liter] | D182: Elpris inkl. afgifter og moms [2015-kr. per liter] | E182: Årlig vækst i invers brændstof-effektivitet
B183: 2014 | C183: 0.7785774734 | D183: 2.021540289 | E183: 0
B184: 2015 | C184: 0.74012 | D184: 2.02265 | E184: 0
B185: 2016 | C185: 0.5324087793 | D185: 1.763010974 | E185: 0
B186: 2017 | C186: 0.5314210079 | D186: 1.78677626 | E186: 0
B187: 2018 | C187: 0.5383354077 | D187: 1.79541926 | E187: 0
B188: 2019 | C188: 0.5580908355 | D188: 1.820113544
B189: 2020 | C189: 0.5768584919 | D189: 1.843573115 | E189: 0
B190: 2021 | C190: 0.6222959758 | D190: 1.90036997 | E190: 0
B191: 2022 | C191: 0.6469902606 | D191: 1.931237826 | E191: 0
B192: 2023 | C192: 0.6637823742 | D192: 1.952227968 | E192: 0
B193: 2024 | C193: 0.6716845453 | D193: 1.962105682 | E193: 0
B194: 2025 | C194: 0.6855133448 | D194: 1.979391681 | E194: 0
B195: 2026 | C195: 0.7072443154 | D195: 2.006555394 | E195: 0
B196: 2027 | C196: 0.728975286 | D196: 2.033719107 | E196: 0
B197: 2028 | C197: 0.7507062565 | D197: 2.060882821 | E197: 0
B198: 2029 | C198: 0.7724372271 | D198: 2.088046534 | E198: 0
B199: 2030 | C199: 0.7951559691 | D199: 2.116444961 | E199: 0
B200: 2031 | C200: 0.8168869397 | D200: 2.143608675 | E200: 0
B201: 2032 | C201: 0.8386179103 | D201: 2.170772388 | E201: 0
B202: 2033 | C202: 0.8603488809 | D202: 2.197936101 | E202: 0
B203: 2034 | C203: 0.8830676228 | D203: 2.226334529 | E203: 0
B204: 2035 | C204: 0.9047985934 | D204: 2.253498242 | E204: 0
B205: 2036 | C205: 0.9047985934 | D205: 2.253498242 | E205: 0
B206: 2037 | C206: 0.9047985934 | D206: 2.253498242 | E206: 0
B207: 2038 | C207: 0.9047985934 | D207: 2.253498242 | E207: 0
B208: 2039 | C208: 0.9047985934 | D208: 2.253498242 | E208: 0
B209: 2040 | C209: 0.9047985934 | D209: 2.253498242 | E209: 0
B210: 2041 | C210: 0.9047985934 | D210: 2.253498242 | E210: 0
B211: 2042 | C211: 0.9047985934 | D211: 2.253498242 | E211: 0
B212: 2043 | C212: 0.9047985934 | D212: 2.253498242 | E212: 0
B213: 2044 | C213: 0.9047985934 | D213: 2.253498242 | E213: 0
C214: Kilde: ENS … | D214: Kilde: ENS … | E214: Kilde til 2030: ENS, 2015
... 102 more rows

Sheet Sml_VarebilOgLastbil
B3: Varebil | G3: Varebil | T3: Lastbil | Y3: Lastbil
B4: Km afhængige | G4: Tids afhængige | T4: Km afhængige | Y4: Tids afhængige
B6: Kr. per km | C6: 2021 | D6: 2016 | G6: Kr. per time | H6: 2021 | I6: 2016
B7: Drivmiddel | C7: =+$C$16*C18+$C$27*C29+$C$38*C40+$C$49*C51 -> 0.3712810044 | D7: 0.3485519633 | G7: Afskrivninger | H7: =+$C$16*H18+$C$27*H29+$C$38*H40+$C$49*H51 -> 8.048403708 | I7: 4.803779436
B8: Batterier | C8: =+$C$16*C19+$C$27*C30+$C$38*C41+$C$49*C52 -> 0 | D8: 0 | G8: Løn | H8: =+$C$16*H19+$C$27*H30+$C$38*H41+$C$49*H52 -> 260.82 | I8: 270.0259621
B9: Dæk | C9: 0.09209554378 | D9: 0.09662042024 | G9: Reparation | H9: 3.904056435 | I9: 10.55681859
B10: Reparation og vedligehold | C10: 0.1912358226 | D10: 0.4658778308 | G10: Kapacitet | H10: 42.2 | I10: 40
B11: Afskrivninger | C11: 0.1838053159 | D11: 0.1272791705 | G11: Vejafgifter | H11: 5.000794946 | I11: 1.408295573
B12: Afgifter (ikke refunderbare) | C12: 0.2791053294 | D12: 0.2253949932 | G12: Registreringsafgift | H12: 2.178686992 | I12: 0.9363055799
B13: I alt | C13: =SUM(C7:C12) -> 1.117523016 | D13: 1.263724378 | G13: I alt | H13: =SUM(H7:H12) -> 322.1519421 | I13: =SUM(I7:I12) -> 327.7311613
B16: Benzin | C16: =+'Resultat - niveau I'!F27/'Resultat - niveau I'!F26 -> 0.04852245666 | G16: Benzin
B17: Kr. per km | C17: 2021 | H17: 2021 | I17: 2016 | T17: Kr. per km | U17: 2021 | V17: 2016 | Z17: 2021 | AA17: 2016
B18: Drivmiddel | C18: ='Resultat - niveau I'!N27 -> 0.3260619904 | G18: Afskrivninger | H18: ='Resultat - niveau I'!X27 -> 6.306164261 | I18: 4.803779436 | T18: Drivmiddel | U18: =+'Resultat - niveau I'!O40 -> 1.506650749 | V18: 0.4626046428 | Y18: Afskrivninger | Z18: 98.13672946 | AA18: 7.563631271
B19: Batterier | C19: ='Resultat - niveau I'!O27 -> 0 | G19: Løn | H19: ='Resultat - niveau I'!Y27 -> 260.82 | I19: 270.0259621 | T19: Dæk | U19: =+'Resultat - niveau I'!Q40 -> 0.2805316138 | V19: 0.09364998653 | Y19: Løn | Z19: 216.949182 | AA19: 350.8729839
B20: Dæk | C20: ='Resultat - niveau I'!P27 -> 0.09608598495 | G20: Reparation | H20: ='Resultat - niveau I'!Z27 -> 1.959997209 | I20: 10.55681859 | T20: Reparation og vedligehold | U20: =+'Resultat - niveau I'!R40 -> 0.594935035 | V20: 0.6849944443 | W20: Service kontrakter | Y20: Reparation | Z20: 9.741967517 | AA20: 11.26998118
B21: Reparation og vedligehold | C21: ='Resultat - niveau I'!Q27 -> 0.1057635262 | G21: Kapacitet | H21: ='Resultat - niveau I'!AA27 -> 42.2 | I21: 40 | T21: Afskrivninger | U21: =+'Resultat - niveau I'!N40 -> 0.3682144854 | V21: 0.1455584675 | Y21: Kapacitet | Z21: 55.09614517 | AA21: 40
B22: Afskrivninger | C22: ='Resultat - niveau I'!M27 -> 0.07162192669 | G22: Vejafgifter | H22: ='Resultat - niveau I'!V27 -> 2.600412779 | I22: 1.408295573 | T22: Afgifter (ikke refunderbare) | U22: =+'Resultat - niveau I'!J40 -> 0.9911648295 | V22: 0.2997831329 | Y22: Vejafgifter | Z22: 7.278730279 | AA22: 3.686904324
B23: Afgifter (ikke refunderbare) | C23: ='Resultat - niveau I'!I27 -> 0.3518925647 | G23: Registreringsafgift | H23: ='Resultat - niveau I'!U27 -> 2.550604032 | I23: 0.9363055799 | T23: I alt | U23: =SUM(U18:U22) -> 3.741496713 | V23: =SUM(V18:V22) -> 1.686590674 | Y23: Registreringsafgift | Z23: 0 | AA23: 0
B24: I alt | C24: =SUM(C18:C23) -> 0.9514259929 | G24: I alt | H24: =SUM(H18:H23) -> 316.4371783 | I24: 327.7311613 | Y24: I alt | Z24: =SUM(Z18:Z23) -> 387.2027544 | AA24: 413.3935007
B27: Diesel | C27: =+'Resultat - niveau I'!F28/'Resultat - niveau I'!F26 -> 0.9475486975 | G27: Diesel
B28: Kr. per km | C28: 2021 | H28: 2021 | I28: 2016
B29: Drivmiddel | C29: ='Resultat - niveau I'!N28 -> 0.3743496336 | G29: Afskrivninger | H29: ='Resultat - niveau I'!X28 -> 8.097503099 | I29: 4.803779436
B30: Batterier | C30: ='Resultat - niveau I'!O28 -> 0 | G30: Løn | H30: ='Resultat - niveau I'!Y28 -> 260.82 | I30: 270.0259621
B31: Dæk | C31: ='Resultat - niveau I'!P28 -> 0.09194372105 | G31: Reparation | H31: ='Resultat - niveau I'!Z28 -> 4.012966147 | I31: 10.55681859
B32: Reparation og vedligehold | C32: ='Resultat - niveau I'!Q28 -> 0.1961443189 | G32: Kapacitet | H32: ='Resultat - niveau I'!AA28 -> 42.2 | I32: 40
B33: Afskrivninger | C33: ='Resultat - niveau I'!M28 -> 0.1885672515 | G33: Vejafgifter | H33: ='Resultat - niveau I'!V28 -> 5.120963314 | I33: 1.408295573
B34: Afgifter (ikke refunderbare) | C34: ='Resultat - niveau I'!I28 -> 0.2755746681 | G34: Registreringsafgift | H34: ='Resultat - niveau I'!U28 -> 2.166340535 | I34: 0.9363055799
B35: I alt | C35: =SUM(C29:C34) -> 1.126579593 | G35: I alt | H35: =SUM(H29:H34) -> 322.4177731 | I35: 327.7311613
B38: El | C38: =+'Resultat - niveau I'!F29/'Resultat - niveau I'!F26 -> 0.001560155074 | G38: El
B39: Kr. per km | C39: 2021 | H39: 2021 | I39: 2016
B40: Drivmiddel | C40: ='Resultat - niveau I'!N29 -> 0.2033109465 | G40: Afskrivninger | H40: ='Resultat - niveau I'!X29 -> 18.1590932 | I40: 4.803779436
B41: Batterier | C41: ='Resultat - niveau I'!O29 -> 0 | G41: Løn | H41: ='Resultat - niveau I'!Y29 -> 260.82 | I41: 270.0259621
B42: Dæk | C42: ='Resultat - niveau I'!P29 -> 0.07942857143 | G42: Reparation | H42: ='Resultat - niveau I'!Z29 -> 0.4870979271 | I42: 10.55681859
B43: Reparation og vedligehold | C43: ='Resultat - niveau I'!Q29 -> 0.0330435598 | G43: Kapacitet | H43: ='Resultat - niveau I'!AA29 -> 42.2 | I43: 40
B44: Afskrivninger | C44: ='Resultat - niveau I'!M29 -> 0.4312037773 | G44: Vejafgifter | H44: ='Resultat - niveau I'!V29 -> 13.63969081 | I44: 1.408295573
B45: Afgifter (ikke refunderbare) | C45: ='Resultat - niveau I'!I29 -> 0.2933864866 | G45: Registreringsafgift | H45: ='Resultat - niveau I'!U29 -> 0 | I45: 0.9363055799
B46: I alt | C46: =SUM(C40:C45) -> 1.040373342 | G46: I alt | H46: =SUM(H40:H45) -> 335.3058819 | I46: 327.7311613
B49: Pluginhybrid | C49: =+'Resultat - niveau I'!F30/'Resultat - niveau I'!F26 -> 0.002368690813 | G49: Pluginhybrid
B50: Kr. per km | C50: 2021 | H50: 2021 | I50: 2016
B51: Drivmiddel | C51: ='Resultat - niveau I'!N30 -> 0.1806784002 | G51: Afskrivninger | H51: ='Resultat - niveau I'!X30 -> 17.43731577 | I51: 4.803779436
B52: Batterier | C52: ='Resultat - niveau I'!O30 -> 0 | G52: Løn | H52: ='Resultat - niveau I'!Y30 -> 260.82 | I52: 270.0259621
B53: Dæk | C53: ='Resultat - niveau I'!P30 -> 0.07942857143 | G53: Reparation | H53: ='Resultat - niveau I'!Z30 -> 2.411358075 | I53: 10.55681859
B54: Reparation og vedligehold | C54: ='Resultat - niveau I'!Q30 -> 0.08277546416 | G54: Kapacitet | H54: ='Resultat - niveau I'!AA30 -> 42.2 | I54: 40
B55: Afskrivninger | C55: ='Resultat - niveau I'!M30 -> 0.4140032753 | G55: Vejafgifter | H55: ='Resultat - niveau I'!V30 -> 0.4113575851 | I55: 1.408295573
B56: Afgifter (ikke refunderbare) | C56: ='Resultat - niveau I'!I30 -> 0.1910301971 | G56: Registreringsafgift | H56: ='Resultat - niveau I'!U30 -> 0.9339615993 | I56: 0.9363055799
B57: I alt | C57: =SUM(C51:C56) -> 0.9479159082 | G57: I alt | H57: =SUM(H51:H56) -> 324.213993 | I57: 327.7311613

Sheet Sml_Personbil
C1: Sammenligning af kørselsomkostnigner med tidligere resultater
E19: Vægtet gennemsnit
E20: kr. per km | F20: Gennemsnit | G20: Gennemsnit | H20: Marginal | I20: Marginal | L20: Gnsn. ekskl. afg. | N20: Gnsn. inkl. afg. | P20: Marginal. ekskl afg. | R20: Marginal inkl. afg.
F21: ekskl. afgift | G21: inkl. afgift | H21: ekskl. afgift | I21: inkl. afgift | L21: 2021 | M21: 2016 | N21: 2021 | O21: 2016 | P21: 2021 | Q21: 2016 | R21: 2021 | S21: 2016
E22: Brændstof | F22: =$F$31*F34+$F$42*F45+$F$53*F56+$F$64*F67 -> 0.3159353028 | G22: 0.7051146132 | H22: 0.3159353028 | I22: 0.7051146132 | K22: Brændstof | L22: =F22 -> 0.3159353028 | M22: 0.3414131163 | N22: =G22 -> 0.7051146132 | O22: 0.7685809991 | P22: =H22 -> 0.3159353028 | Q22: 0.3414131163 | R22: =I22 -> 0.7051146132 | S22: 0.7685809991
E23: Batteri | F23: 0 | G23: 0 | H23: 0 | I23: 0 | K23: Batteri | L23: =F23 -> 0 | M23: 7.25413635e-05 | N23: =G23 -> 0 | O23: 9.067670437e-05 | P23: =H23 -> 0 | Q23: 2.384324778e-05 | R23: =I23 -> 0 | S23: 2.980405973e-05
E24: Dæk | F24: 0.0696513012 | G24: 0.0870641265 | H24: 0.0696513012 | I24: 0.0870641265 | K24: Dæk | L24: =F24 -> 0.0696513012 | M24: 0.07137656033 | N24: =G24 -> 0.0870641265 | O24: 0.08922070041 | P24: =H24 -> 0.0696513012 | Q24: 0.07137656033 | R24: =I24 -> 0.0870641265 | S24: 0.08922070041
E25: Reparation og vedligeholdelse | F25: 0.3786820334 | G25: 0.487553118 | H25: 0.1295075019 | I25: 0.1667409087 | K25: Reparation og vedligeholdelse | L25: =F25+F26 -> 0.3786820334 | M25: 0.8490385753 | N25: =G25+G26 -> 0.6815805342 | O25: 1.286861659 | P25: =H25+H26 -> 0.1295075019 | Q25: 0.3460727342 | R25: =I25+I26 -> 0.1667409087 | S25: 0.5088613561
E26: Ejerafgift | F26: 0 | G26: 0.1940274162 | H26: 0 | I26: 0 | K26: Afskrivninger | L26: =F27 -> 0.4070670144 | M26: 0.3454433897 | N26: =G27 -> 0.9035436233 | O26: 0.8437804769 | P26: =H27 -> 0.1058157536 | Q26: 0.09009485325 | R26: =I27 -> 0.2317982547 | S26: 0.2163686245
E27: Afskrivninger | F27: 0.4070670144 | G27: 0.9035436233 | H27: 0.1058157536 | I27: 0.2317982547 | K27: I alt | L27: =SUM(L22:L26) -> 1.171335652 | M27: 1.607344183 | N27: =SUM(N22:N26) -> 2.377302897 | O27: 2.988534512 | P27: =SUM(P22:P26) -> 0.6209098594 | Q27: 0.8489811074 | R27: =SUM(R22:R26) -> 1.190717903 | S27: 1.583061484
E28: I alt | F28: =SUM(F22:F27) -> 1.171335652 | G28: =SUM(G22:G27) -> 2.377302897 | H28: =SUM(H22:H27) -> 0.6209098594 | I28: =SUM(I22:I27) -> 1.190717903
E31: Benzin | F31: =+'Resultat - niveau I'!F13/'Resultat - niveau I'!F12 -> 0.5114883093
E32: kr. per km | F32: Gennemsnit | G32: Gennemsnit | H32: Marginal | I32: Marginal
F33: ekskl. afgift | G33: inkl. afgift | H33: ekskl. afgift | I33: inkl. afgift
E34: Brændstof | F34: ='Resultat - niveau I'!O13 -> 0.341706709 | G34: ='Resultat - niveau I'!H13 -> 0.8266040543 | H34: ='Resultat - niveau I'!AA13 -> 0.341706709 | I34: ='Resultat - niveau I'!U13 -> 0.8266040543
E35: Batteri | F35: ='Resultat - niveau I'!P13 -> 0 | G35: ='Resultat - niveau I'!I13 -> 0 | H35: ='Resultat - niveau I'!AB13 -> 0 | I35: ='Resultat - niveau I'!V13 -> 0
E36: Dæk | F36: ='Resultat - niveau I'!S13 -> 0.06271617464 | G36: ='Resultat - niveau I'!M13 -> 0.0783952183 | H36: ='Resultat - niveau I'!AE13 -> 0.06271617464 | I36: ='Resultat - niveau I'!Y13 -> 0.0783952183
E37: Reparation og vedligeholdelse | F37: ='Resultat - niveau I'!R13 -> 0.3222454722 | G37: ='Resultat - niveau I'!K13 -> 0.4148910455 | H37: ='Resultat - niveau I'!AD13 -> 0.07259822288 | I37: ='Resultat - niveau I'!X13 -> 0.09347021196
E38: Ejerafgift | F38: 0 | G38: ='Resultat - niveau I'!L13 -> 0.1808536261 | H38: 0 | I38: 0
E39: Afskrivninger | F39: ='Resultat - niveau I'!Q13 -> 0.3861467255 | G39: ='Resultat - niveau I'!J13 -> 0.8904561871 | H39: ='Resultat - niveau I'!AC13 -> 0.06493989763 | I39: ='Resultat - niveau I'!W13 -> 0.1475825665
E40: I alt
E42: Diesel | F42: =+'Resultat - niveau I'!F14/'Resultat - niveau I'!F12 -> 0.4228972754
E43: kr. per km | F43: Gennemsnit | G43: Gennemsnit | H43: Marginal | I43: Marginal
F44: ekskl. afgift | G44: inkl. afgift | H44: ekskl. afgift | I44: inkl. afgift
E45: Brændstof | F45: ='Resultat - niveau I'!O14 -> 0.3165501615 | G45: ='Resultat - niveau I'!H14 -> 0.6231628583 | H45: ='Resultat - niveau I'!AA14 -> 0.3165501615 | I45: ='Resultat - niveau I'!U14 -> 0.6231628583
E46: Batteri | F46: ='Resultat - niveau I'!P14 -> 0 | G46: ='Resultat - niveau I'!I14 -> 0 | H46: ='Resultat - niveau I'!AB14 -> 0 | I46: ='Resultat - niveau I'!V14 -> 0
E47: Dæk | F47: ='Resultat - niveau I'!S14 -> 0.07865980823 | G47: ='Resultat - niveau I'!M14 -> 0.09832476029 | H47: ='Resultat - niveau I'!AE14 -> 0.07865980823 | I47: ='Resultat - niveau I'!Y14 -> 0.09832476029
E48: Reparation og vedligeholdelse | F48: ='Resultat - niveau I'!R14 -> 0.4773282245 | G48: ='Resultat - niveau I'!K14 -> 0.6145600891 | H48: ='Resultat - niveau I'!AD14 -> 0.2088350294 | I48: ='Resultat - niveau I'!X14 -> 0.2688751004
E49: Ejerafgift | F49: 0 | G49: ='Resultat - niveau I'!L14 -> 0.234969369 | H49: 0 | I49: 0
E50: Afskrivninger | F50: ='Resultat - niveau I'!Q14 -> 0.3371996261 | G50: ='Resultat - niveau I'!J14 -> 0.8334306977 | H50: ='Resultat - niveau I'!AC14 -> 0.1291181847 | I50: ='Resultat - niveau I'!W14 -> 0.3087459458
E51: I alt
E53: Pluginhybrid | F53: =+'Resultat - niveau I'!F15/'Resultat - niveau I'!F12 -> 0.01919352318
E54: kr. per km | F54: Gennemsnit | G54: Gennemsnit | H54: Marginal | I54: Marginal
F55: ekskl. afgift | G55: inkl. afgift | H55: ekskl. afgift | I55: inkl. afgift
E56: Brændstof | F56: ='Resultat - niveau I'!O15 -> 0.09456803922 | G56: ='Resultat - niveau I'!H15 -> 0.288792261 | H56: ='Resultat - niveau I'!AA15 -> 0.09456803922 | I56: ='Resultat - niveau I'!U15 -> 0.288792261
E57: Batteri | F57: ='Resultat - niveau I'!P15 -> 0 | G57: ='Resultat - niveau I'!I15 -> 0 | H57: ='Resultat - niveau I'!AB15 -> 0 | I57: ='Resultat - niveau I'!V15 -> 0
E58: Dæk | F58: ='Resultat - niveau I'!S15 -> 0.08310761536 | G58: ='Resultat - niveau I'!M15 -> 0.1038845192 | H58: ='Resultat - niveau I'!AE15 -> 0.08310761536 | I58: ='Resultat - niveau I'!Y15 -> 0.1038845192
E59: Reparation og vedligeholdelse | F59: ='Resultat - niveau I'!R15 -> 0.1076848329 | G59: ='Resultat - niveau I'!K15 -> 0.1386442224 | H59: ='Resultat - niveau I'!AD15 -> 0.03543107229 | I59: ='Resultat - niveau I'!X15 -> 0.04561750557
E60: Ejerafgift | F60: 0 | G60: ='Resultat - niveau I'!L15 -> 0.03922251247 | H60: 0 | I60: 0
E61: Afskrivninger | F61: ='Resultat - niveau I'!Q15 -> 1.104703168 | G61: ='Resultat - niveau I'!J15 -> 1.353120571 | H61: ='Resultat - niveau I'!AC15 -> 0.290097659 | I61: ='Resultat - niveau I'!W15 -> 0.3539574291
E62: I alt
E64: PluginHybrid | F64: =+'Resultat - niveau I'!F16/'Resultat - niveau I'!F12 -> 0.04642089207
E65: kr. per km | F65: Gennemsnit | G65: Gennemsnit | H65: Marginal | I65: Marginal
F66: ekskl. afgift | G66: inkl. afgift | H66: ekskl. afgift | I66: inkl. afgift
E67: Brændstof | F67: ='Resultat - niveau I'!O16 -> 0.1178999589 | G67: ='Resultat - niveau I'!H16 -> 0.2852053574 | H67: ='Resultat - niveau I'!AA16 -> 0.1178999589 | I67: ='Resultat - niveau I'!U16 -> 0.2852053574
E68: Batteri | F68: ='Resultat - niveau I'!P16 -> 0 | G68: ='Resultat - niveau I'!I16 -> 0 | H68: ='Resultat - niveau I'!AB16 -> 0 | I68: ='Resultat - niveau I'!V16 -> 0
E69: Dæk | F69: ='Resultat - niveau I'!S16 -> 0.05843413209 | G69: ='Resultat - niveau I'!M16 -> 0.07304266511 | H69: ='Resultat - niveau I'!AE16 -> 0.05843413209 | I69: ='Resultat - niveau I'!Y16 -> 0.07304266511
E70: Reparation og vedligeholdelse | F70: ='Resultat - niveau I'!R16 -> 0.2139033569 | G70: ='Resultat - niveau I'!K16 -> 0.275400572 | H70: ='Resultat - niveau I'!AD16 -> 0.07278075392 | I70: ='Resultat - niveau I'!X16 -> 0.09370522067
E71: Ejerafgift | F71: 0 | G71: ='Resultat - niveau I'!L16 -> 0.03020572274 | H71: 0 | I71: 0
E72: Afskrivninger | F72: ='Resultat - niveau I'!Q16 -> 0.9856236618 | G72: ='Resultat - niveau I'!J16 -> 1.500595275 | H72: ='Resultat - niveau I'!AC16 -> 0.2677249377 | I72: ='Resultat - niveau I'!W16 -> 0.4082211071
E73: I alt

Sheet Tidsserie
C1: Tidserie personbiler
B3: 2021
B4: 2022
B5: 2023
B6: 2024 | I6: Ændring i andel | K6: Andel 2021 | L6: Andel 2030 | N6: Ejerafgift
B7: 2025 | I7: Benzin | J7: Mini | K7: =G157/SUM($G$157:$G$160) -> 0.1771699596 | L7: =G193/(SUM($G$193:$G$196)) -> 0.1272246988 | N7: stiger | AH7: Sub OpdaterTeresaTabel()
B8: 2026 | I8: Benzin | J8: Lille | K8: =G158/SUM($G$157:$G$160) -> 0.4976512462 | L8: =G194/(SUM($G$193:$G$196)) -> 0.5115375154 | N8: Falder | AH8: '
B9: 2027 | I9: Benzin | J9: Mellem | K9: 0.2731722742 | L9: 0.333580252 | N9: Falder | AH9: ' OpdaterTeresaTabel Makro
B10: 2028 | I10: Benzin | J10: Stor | K10: 0.05200652003 | L10: 0.02765753379 | AH10: ' Makro indspillet 13-03-2009 af Thomas C. Jensen
B11: 2029 | I11: Diesel | J11: Lille | K11: =G251/SUM($G$251:$G$253) -> 0.05804621289 | L11: =G278/SUM($G$278:$G$280) -> 0.01556540055 | AH11: '
B12: 2030 | I12: Diesel | J12: Mellem | K12: =G252/SUM($G$251:$G$253) -> 0.7914166331 | L12: =G279/SUM($G$278:$G$280) -> 0.8804618135
B13: 2031 | I13: Diesel | J13: Stor | K13: 0.150537154 | L13: 0.1039727859 | AH13: ' Først gemmes det aktuelle år:
B14: 2032
B15: 2033 | AH15: Sheets("Katalog - enhedspriser").Select
B16: 2034 | I16: El | J16: Lille | AH16: Range("C4").Select
B17: 2035 | I17: El | J17: Mellem | AH17: Application.CutCopyMode = False
B18: 2036 | I18: El | J18: Stor | AH18: Selection.Copy
B19: 2037 | AH19: Sheets("Katalog - enhedspriser").Cells(4, 30).PasteSpecial Paste:=xlPasteValues, Operation:=xlNone, SkipBlanks _
B20: 2038 | AH20: :=False, Transpose:=False
B21: 2039
B22: 2040 | AH22: ' Så løbes alle år fra 2008 til 2090 igennem, og der kopieres værdier ind i Teresa-arket
B23: 2041
B24: 2042 | AH24: Dim i As Integer
B25: 2043 | AH25: For i = 13 To 93
B26: 2044
B27: 2045 | AH27: Sheets("Katalog - enhedspriser").Select
B28: 2046 | AH28: Range("c4").Select
B29: 2047 | AH29: ActiveCell.FormulaR1C1 = i
B30: 2048 | AH30: Sheets("TERESA").Select
AH31: Range("cm30:cm410").Select
C32: Alle | AH32: Application.CutCopyMode = False
B33: År | C33: Køretøjskategori | D33: Drivmiddel | E33: Brændstof-effektivitet [liter/km] / [kWh/km] | F33: Trafikarbejde, i alt for kategori [mio. km. per år] | G33: Gennemsnitlige omkostninger inkl.. afgifter og moms, i alt | H33: Brændstof, inkl. afgifter og moms [kr. per km.] | I33: Batteri, inkl. afgifter og moms [kr. per km.] | J33: Afskrivninger, inkl. afgifter og moms [kr. per km.] | K33: Reparation og vedligeholdelse, inkl. afgifter og moms [kr. per km.] | L33: Ejerafgift [kr. per km.] | M33: Dæk, inkl. afgifter og moms [kr. per km.] | N33: Gennemsnitlige omkostninger ekskl.. afgifter og moms, i alt [kr. per km.] | O33: Brændstof, ekskl. afgifter og moms [kr. per km.] | P33: Batteri, ekskl. afgifter og moms [kr. per km.] | Q33: Afskrivninger, ekskl. afgifter og moms [kr. per km.] | R33: Reparation og vedligeholdelse, ekskl. afgifter og moms [kr. per km.] | S33: Dæk, ekskl. afgifter og moms [kr. per km.] | T33: Marginale omkostninger inkl.. afgifter og moms, i alt | U33: Brændstof, inkl. afgifter og moms [kr. per km.] | V33: Batteri, inkl. afgifter og moms [kr. per km.] | W33: Afskrivninger, inkl. afgifter og moms [kr. per km.] | X33: Reparation og vedligeholdelse, inkl. afgifter og moms [kr. per km.] | Y33: Dæk, inkl. afgifter og moms [kr. per km.] | Z33: Marginale omkostninger ekskl.. afgifter og moms, i alt [kr. per km.] | AA33: Brændstof, ekskl. afgifter og moms [kr. per km.] | AB33: Batteri, ekskl. afgifter og moms [kr. per km.] | AC33: Afskrivninger, ekskl. afgifter og moms [kr. per km.] | AD33: Reparation og vedligeholdelse, ekskl. afgifter og moms [kr. per km.] | AE33: Dæk, ekskl. afgifter og moms [kr. per km.] | AH33: Selection.Copy
A34: =MATCH(input_år,$B$3:$B$30,0) -> 1 | B34: ='Resultat - niveau I'!B12 -> 2021 | C34: ='Resultat - niveau I'!C12 -> Personbil | D34: ='Resultat - niveau I'!D12 -> Vægtet gnst. | E34: ='Resultat - niveau I'!E12 -> 0 | F34: ='Resultat - niveau I'!F12 -> 48879.26994 | G34: ='Resultat - niveau I'!G12 -> 2.377302897 | H34: ='Resultat - niveau I'!H12 -> 0.7051146132 | I34: ='Resultat - niveau I'!I12 -> 0 | J34: ='Resultat - niveau I'!J12 -> 0.9035436233 | K34: ='Resultat - niveau I'!K12 -> 0.487553118 | L34: ='Resultat - niveau I'!L12 -> 0.1940274162 | M34: ='Resultat - niveau I'!M12 -> 0.0870641265 | N34: ='Resultat - niveau I'!N12 -> 1.171335652 | O34: ='Resultat - niveau I'!O12 -> 0.3159353028 | P34: ='Resultat - niveau I'!P12 -> 0 | Q34: ='Resultat - niveau I'!Q12 -> 0.4070670144 | R34: ='Resultat - niveau I'!R12 -> 0.3786820334 | S34: ='Resultat - niveau I'!S12 -> 0.0696513012 | T34: ='Resultat - niveau I'!T12 -> 1.190717903 | U34: ='Resultat - niveau I'!U12 -> 0.7051146132 | V34: ='Resultat - niveau I'!V12 -> 0 | W34: ='Resultat - niveau I'!W12 -> 0.2317982547 | X34: ='Resultat - niveau I'!X12 -> 0.1667409087 | Y34: ='Resultat - niveau I'!Y12 -> 0.0870641265 | Z34: ='Resultat - niveau I'!Z12 -> 0.6209098594 | AA34: ='Resultat - niveau I'!AA12 -> 0.3159353028 | AB34: ='Resultat - niveau I'!AB12 -> 0 | AC34: ='Resultat - niveau I'!AC12 -> 0.1058157536 | AD34: ='Resultat - niveau I'!AD12 -> 0.1295075019 | AE34: ='Resultat - niveau I'!AE12 -> 0.0696513012 | AH34: Sheets("TERESA").Cells(30, i - 8).PasteSpecial Paste:=xlPasteValues, Operation:=xlNone, SkipBlanks _
A35: =MATCH(input_år,$B$3:$B$30,0) -> 1 | B35: ='Resultat - niveau I'!B13 -> 2021 | C35: ='Resultat - niveau I'!C13 -> Personbil | D35: ='Resultat - niveau I'!D13 -> Benzin | E35: ='Resultat - niveau I'!E13 -> 0.07173898393 | F35: ='Resultat - niveau I'!F13 -> 25001.17514 | G35: ='Resultat - niveau I'!G13 -> 2.391200131 | H35: ='Resultat - niveau I'!H13 -> 0.8266040543 | I35: ='Resultat - niveau I'!I13 -> 0 | J35: ='Resultat - niveau I'!J13 -> 0.8904561871 | K35: ='Resultat - niveau I'!K13 -> 0.4148910455 | L35: ='Resultat - niveau I'!L13 -> 0.1808536261 | M35: ='Resultat - niveau I'!M13 -> 0.0783952183 | N35: ='Resultat - niveau I'!N13 -> 1.112815081 | O35: ='Resultat - niveau I'!O13 -> 0.341706709 | P35: ='Resultat - niveau I'!P13 -> 0 | Q35: ='Resultat - niveau I'!Q13 -> 0.3861467255 | R35: ='Resultat - niveau I'!R13 -> 0.3222454722 | S35: ='Resultat - niveau I'!S13 -> 0.06271617464 | T35: ='Resultat - niveau I'!T13 -> 1.146052051 | U35: ='Resultat - niveau I'!U13 -> 0.8266040543 | V35: ='Resultat - niveau I'!V13 -> 0 | W35: ='Resultat - niveau I'!W13 -> 0.1475825665 | X35: ='Resultat - niveau I'!X13 -> 0.09347021196 | Y35: ='Resultat - niveau I'!Y13 -> 0.0783952183 | Z35: ='Resultat - niveau I'!Z13 -> 0.5419610042 | AA35: ='Resultat - niveau I'!AA13 -> 0.341706709 | AB35: ='Resultat - niveau I'!AB13 -> 0 | AC35: ='Resultat - niveau I'!AC13 -> 0.06493989763 | AD35: ='Resultat - niveau I'!AD13 -> 0.07259822288 | AE35: ='Resultat - niveau I'!AE13 -> 0.06271617464 | AH35: :=False, Transpose:=False
A36: =MATCH(input_år,$B$3:$B$30,0) -> 1 | B36: ='Resultat - niveau I'!B14 -> 2021 | C36: ='Resultat - niveau I'!C14 -> Personbil | D36: ='Resultat - niveau I'!D14 -> Diesel | E36: ='Resultat - niveau I'!E14 -> 0.05994632509 | F36: ='Resultat - niveau I'!F14 -> 20670.91008 | G36: ='Resultat - niveau I'!G14 -> 2.404447774 | H36: ='Resultat - niveau I'!H14 -> 0.6231628583 | I36: ='Resultat - niveau I'!I14 -> 0 | J36: ='Resultat - niveau I'!J14 -> 0.8334306977 | K36: ='Resultat - niveau I'!K14 -> 0.6145600891 | L36: ='Resultat - niveau I'!L14 -> 0.234969369 | M36: ='Resultat - niveau I'!M14 -> 0.09832476029 | N36: ='Resultat - niveau I'!N14 -> 1.20973782 | O36: ='Resultat - niveau I'!O14 -> 0.3165501615 | P36: ='Resultat - niveau I'!P14 -> 0 | Q36: ='Resultat - niveau I'!Q14 -> 0.3371996261 | R36: ='Resultat - niveau I'!R14 -> 0.4773282245 | S36: ='Resultat - niveau I'!S14 -> 0.07865980823 | T36: ='Resultat - niveau I'!T14 -> 1.299108665 | U36: ='Resultat - niveau I'!U14 -> 0.6231628583 | V36: ='Resultat - niveau I'!V14 -> 0 | W36: ='Resultat - niveau I'!W14 -> 0.3087459458 | X36: ='Resultat - niveau I'!X14 -> 0.2688751004 | Y36: ='Resultat - niveau I'!Y14 -> 0.09832476029 | Z36: ='Resultat - niveau I'!Z14 -> 0.7331631838 | AA36: ='Resultat - niveau I'!AA14 -> 0.3165501615 | AB36: ='Resultat - niveau I'!AB14 -> 0 | AC36: ='Resultat - niveau I'!AC14 -> 0.1291181847 | AD36: ='Resultat - niveau I'!AD14 -> 0.2088350294 | AE36: ='Resultat - niveau I'!AE14 -> 0.07865980823
A37: =MATCH(input_år,$B$3:$B$30,0) -> 1 | B37: ='Resultat - niveau I'!B15 -> 2021 | C37: ='Resultat - niveau I'!C15 -> Personbil | D37: ='Resultat - niveau I'!D15 -> Elektricitet | E37: ='Resultat - niveau I'!E15 -> 0.1519663358 | F37: ='Resultat - niveau I'!F15 -> 938.1654009 | G37: ='Resultat - niveau I'!G15 -> 1.923664086 | H37: ='Resultat - niveau I'!H15 -> 0.288792261 | I37: ='Resultat - niveau I'!I15 -> 0 | J37: ='Resultat - niveau I'!J15 -> 1.353120571 | K37: ='Resultat - niveau I'!K15 -> 0.1386442224 | L37: ='Resultat - niveau I'!L15 -> 0.03922251247 | M37: ='Resultat - niveau I'!M15 -> 0.1038845192 | N37: ='Resultat - niveau I'!N15 -> 1.390063656 | O37: ='Resultat - niveau I'!O15 -> 0.09456803922 | P37: ='Resultat - niveau I'!P15 -> 0 | Q37: ='Resultat - niveau I'!Q15 -> 1.104703168 | R37: ='Resultat - niveau I'!R15 -> 0.1076848329 | S37: ='Resultat - niveau I'!S15 -> 0.08310761536 | T37: ='Resultat - niveau I'!T15 -> 0.7922517148 | U37: ='Resultat - niveau I'!U15 -> 0.288792261 | V37: ='Resultat - niveau I'!V15 -> 0 | W37: ='Resultat - niveau I'!W15 -> 0.3539574291 | X37: ='Resultat - niveau I'!X15 -> 0.04561750557 | Y37: ='Resultat - niveau I'!Y15 -> 0.1038845192 | Z37: ='Resultat - niveau I'!Z15 -> 0.5032043859 | AA37: ='Resultat - niveau I'!AA15 -> 0.09456803922 | AB37: ='Resultat - niveau I'!AB15 -> 0 | AC37: ='Resultat - niveau I'!AC15 -> 0.290097659 | AD37: ='Resultat - niveau I'!AD15 -> 0.03543107229 | AE37: ='Resultat - niveau I'!AE15 -> 0.08310761536 | AH37: Next i
A38: =MATCH(input_år,$B$3:$B$30,0) -> 1 | B38: ='Resultat - niveau I'!B16 -> 2021 | C38: ='Resultat - niveau I'!C16 -> Personbil | D38: ='Resultat - niveau I'!D16 -> Hybrid | E38: ='Resultat - niveau I'!E16 -> 0.02475228913 | F38: ='Resultat - niveau I'!F16 -> 2269.019315 | G38: ='Resultat - niveau I'!G16 -> 2.164449592 | H38: ='Resultat - niveau I'!H16 -> 0.2852053574 | I38: ='Resultat - niveau I'!I16 -> 0 | J38: ='Resultat - niveau I'!J16 -> 1.500595275 | K38: ='Resultat - niveau I'!K16 -> 0.275400572 | L38: ='Resultat - niveau I'!L16 -> 0.03020572274 | M38: ='Resultat - niveau I'!M16 -> 0.07304266511 | N38: ='Resultat - niveau I'!N16 -> 1.37586111 | O38: ='Resultat - niveau I'!O16 -> 0.1178999589 | P38: ='Resultat - niveau I'!P16 -> 0 | Q38: ='Resultat - niveau I'!Q16 -> 0.9856236618 | R38: ='Resultat - niveau I'!R16 -> 0.2139033569 | S38: ='Resultat - niveau I'!S16 -> 0.05843413209 | T38: ='Resultat - niveau I'!T16 -> 0.8601743502 | U38: ='Resultat - niveau I'!U16 -> 0.2852053574 | V38: ='Resultat - niveau I'!V16 -> 0 | W38: ='Resultat - niveau I'!W16 -> 0.4082211071 | X38: ='Resultat - niveau I'!X16 -> 0.09370522067 | Y38: ='Resultat - niveau I'!Y16 -> 0.07304266511 | Z38: ='Resultat - niveau I'!Z16 -> 0.5168397827 | AA38: ='Resultat - niveau I'!AA16 -> 0.1178999589 | AB38: ='Resultat - niveau I'!AB16 -> 0 | AC38: ='Resultat - niveau I'!AC16 -> 0.2677249377 | AD38: ='Resultat - niveau I'!AD16 -> 0.07278075392 | AE38: ='Resultat - niveau I'!AE16 -> 0.05843413209
A39: 1 | B39: 2021 | C39: Personbil | D39: Vægtet gnst. | E39: 0 | F39: 48879.26994 | G39: 2.382589485 | H39: 0.7051146132 | I39: 0.005286587396 | J39: 0.9035436233 | K39: 0.487553118 | L39: 0.1940274162 | M39: 0.0870641265 | N39: 1.175564922 | O39: 0.3159353028 | P39: 0.004229269917 | Q39: 0.4070670144 | R39: 0.3786820334 | S39: 0.0696513012 | T39: 1.192537081 | U39: 0.7051146132 | V39: 0.001819177767 | W39: 0.2317982547 | X39: 0.1667409087 | Y39: 0.0870641265 | Z39: 0.6223652017 | AA39: 0.3159353028 | AB39: 0.001455342214 | AC39: 0.1058157536 | AD39: 0.1295075019 | AE39: 0.0696513012 | AH39: Range("b14").Select
A40: 1 | B40: 2021 | C40: Personbil | D40: Benzin | E40: 0.07173898393 | F40: 25001.17514 | G40: 2.391200131 | H40: 0.8266040543 | I40: 0 | J40: 0.8904561871 | K40: 0.4148910455 | L40: 0.1808536261 | M40: 0.0783952183 | N40: 1.112815081 | O40: 0.341706709 | P40: 0 | Q40: 0.3861467255 | R40: 0.3222454722 | S40: 0.06271617464 | T40: 1.146052051 | U40: 0.8266040543 | V40: 0 | W40: 0.1475825665 | X40: 0.09347021196 | Y40: 0.0783952183 | Z40: 0.5419610042 | AA40: 0.341706709 | AB40: 0 | AC40: 0.06493989763 | AD40: 0.07259822288 | AE40: 0.06271617464
A41: 1 | B41: 2021 | C41: Personbil | D41: Diesel | E41: 0.05994632509 | F41: 20670.91008 | G41: 2.404447774 | H41: 0.6231628583 | I41: 0 | J41: 0.8334306977 | K41: 0.6145600891 | L41: 0.234969369 | M41: 0.09832476029 | N41: 1.20973782 | O41: 0.3165501615 | P41: 0 | Q41: 0.3371996261 | R41: 0.4773282245 | S41: 0.07865980823 | T41: 1.299108665 | U41: 0.6231628583 | V41: 0 | W41: 0.3087459458 | X41: 0.2688751004 | Y41: 0.09832476029 | Z41: 0.7331631838 | AA41: 0.3165501615 | AB41: 0 | AC41: 0.1291181847 | AD41: 0.2088350294 | AE41: 0.07865980823 | AH41: ' Sidst sættes det valgte år tilbage, og vi ender i Arket Teresa, hvorfra makroen blev startet
A42: 1 | B42: 2021 | C42: Personbil | D42: Elektricitet | E42: 0.1519663358 | F42: 938.1654009 | G42: 2.199100094 | H42: 0.288792261 | I42: 0.2754360075 | J42: 1.353120571 | K42: 0.1386442224 | L42: 0.03922251247 | M42: 0.1038845192 | N42: 1.610412462 | O42: 0.09456803922 | P42: 0.220348806 | Q42: 1.104703168 | R42: 0.1076848329 | S42: 0.08310761536 | T42: 0.8870325297 | U42: 0.288792261 | V42: 0.09478081485 | W42: 0.3539574291 | X42: 0.04561750557 | Y42: 0.1038845192 | Z42: 0.5790290378 | AA42: 0.09456803922 | AB42: 0.07582465188 | AC42: 0.290097659 | AD42: 0.03543107229 | AE42: 0.08310761536
A43: 1 | B43: 2021 | C43: Personbil | D43: Hybrid | E43: 0.02475228913 | F43: 2269.019315 | G43: 2.164449592 | H43: 0.2852053574 | I43: 0 | J43: 1.500595275 | K43: 0.275400572 | L43: 0.03020572274 | M43: 0.07304266511 | N43: 1.37586111 | O43: 0.1178999589 | P43: 0 | Q43: 0.9856236618 | R43: 0.2139033569 | S43: 0.05843413209 | T43: 0.8601743502 | U43: 0.2852053574 | V43: 0 | W43: 0.4082211071 | X43: 0.09370522067 | Y43: 0.07304266511 | Z43: 0.5168397827 | AA43: 0.1178999589 | AB43: 0 | AC43: 0.2677249377 | AD43: 0.07278075392 | AE43: 0.05843413209 | AH43: Sheets("Katalog - enhedspriser").Select
A44: 2 | B44: 2022 | C44: Personbil | D44: Vægtet gnst. | E44: 0 | F44: 49371.51517 | G44: 2.402747353 | H44: 0.691790665 | I44: 0.00689714307 | J44: 0.9312507267 | K44: 0.4991328576 | L44: 0.1868390005 | M44: 0.08683696017 | N44: 1.207039698 | O44: 0.3126057868 | P44: 0.005517714456 | Q44: 0.4317706228 | R44: 0.3876760059 | S44: 0.06946956814 | T44: 1.179126882 | U44: 0.691790665 | V44: 0.002341644883 | W44: 0.2313830867 | X44: 0.1667745255 | Y44: 0.08683696017 | Z44: 0.6223046971 | AA44: 0.3126057868 | AB44: 0.001873315907 | AC44: 0.1088224141 | AD44: 0.1295336121 | AE44: 0.06946956814 | AH44: Range("ad4").Select
A45: 2 | B45: 2022 | C45: Personbil | D45: Benzin | E45: 0.06968974131 | F45: 25021.54893 | G45: 2.388914182 | H45: 0.813167804 | I45: 0 | J45: 0.8980935727 | K45: 0.4237945254 | L45: 0.1753566889 | M45: 0.07850159099 | N45: 1.126424363 | O45: 0.3400864951 | P45: 0 | Q45: 0.3943757989 | R45: 0.3291607964 | S45: 0.06280127279 | T45: 1.132297879 | U45: 0.813167804 | V45: 0 | W45: 0.146860556 | X45: 0.09376792782 | Y45: 0.07850159099 | Z45: 0.5412620195 | AA45: 0.3400864951 | AB45: 0 | AC45: 0.06554479304 | AD45: 0.0728294585 | AE45: 0.06280127279 | AH45: Application.CutCopyMode = False
A46: 2 | B46: 2022 | C46: Personbil | D46: Diesel | E46: 0.05957905019 | F46: 19924.89161 | G46: 2.461824895 | H46: 0.628843729 | I46: 0 | J46: 0.8511490399 | K46: 0.6480650036 | L46: 0.2354815043 | M46: 0.0982856177 | N46: 1.25147396 | O46: 0.322209801 | P46: 0 | Q46: 0.3472842058 | R46: 0.5033514591 | S46: 0.07862849416 | T46: 1.306797287 | U46: 0.628843729 | V46: 0 | W46: 0.3028628805 | X46: 0.2768050602 | Y46: 0.0982856177 | Z46: 0.7437406533 | AA46: 0.322209801 | AB46: 0 | AC46: 0.1279081367 | AD46: 0.2149942215 | AE46: 0.07862849416 | AH46: Selection.Copy
A47: 2 | B47: 2022 | C47: Personbil | D47: Elektricitet | E47: 0.1490069842 | F47: 1266.190126 | G47: 2.218135443 | H47: 0.2877679241 | I47: 0.2689346543 | J47: 1.370492042 | K47: 0.1468106779 | L47: 0.03938105038 | M47: 0.1047490941 | N47: 1.615523636 | O47: 0.09640606751 | P47: 0.2151477234 | Q47: 1.106142859 | R47: 0.114027711 | S47: 0.08379927529 | T47: 0.8834160266 | U47: 0.2877679241 | V47: 0.09130584225 | W47: 0.3518686369 | X47: 0.04772452929 | Y47: 0.1047490941 | Z47: 0.5745985892 | AA47: 0.09640606751 | AB47: 0.0730446738 | AC47: 0.2842809771 | AD47: 0.03706759556 | AE47: 0.08379927529 | AH47: Sheets("Katalog - enhedspriser").Cells(4, 3).PasteSpecial Paste:=xlPasteValues, Operation:=xlNone, SkipBlanks _
A48: 2 | B48: 2022 | C48: Personbil | D48: Hybrid | E48: 0.02479774469 | F48: 3158.884507 | G48: 2.213682996 | H48: 0.2893500136 | I48: 0 | J48: 1.523072857 | K48: 0.2977110469 | L48: 0.03008062782 | M48: 0.07346844996 | N48: 1.401587603 | O48: 0.1210131925 | P48: 0 | Q48: 0.9905677694 | R48: 0.2312318811 | S48: 0.05877475996 | T48: 0.8633006419 | U48: 0.2893500136 | V48: 0 | W48: 0.4017279902 | X48: 0.09875418814 | Y48: 0.07346844996 | Z48: 0.5174005963 | AA48: 0.1210131925 | AB48: 0 | AC48: 0.2609103618 | AD48: 0.07670228205 | AE48: 0.05877475996 | AH48: :=False, Transpose:=False
A49: 3 | B49: 2023 | C49: Personbil | D49: Vægtet gnst. | E49: 0 | F49: 49703.38224 | G49: 2.434535792 | H49: 0.6842038127 | I49: 0.008441506311 | J49: 0.9598470211 | K49: 0.5093861663 | L49: 0.1860224304 | M49: 0.08663485511 | N49: 1.238720305 | O49: 0.3114201947 | P49: 0.006753205049 | Q49: 0.4555992808 | R49: 0.3956397409 | S49: 0.06930788408 | T49: 1.171609816 | U49: 0.6842038127 | V49: 0.002793062321 | W49: 0.2315839358 | X49: 0.1663941505 | Y49: 0.08663485511 | Z49: 0.6236877525 | AA49: 0.3114201947 | AB49: 0.002234449857 | AC49: 0.1114870487 | AD49: 0.1292381751 | AE49: 0.06930788408 | AH49: Range("ad4").Select
A50: 3 | B50: 2023 | C50: Personbil | D50: Benzin | E50: 0.06861840245 | F50: 24972.16323 | G50: 2.403415427 | H50: 0.8104081488 | I50: 0 | J50: 0.9063320254 | K50: 0.4321612253 | L50: 0.1758693564 | M50: 0.07864467076 | N50: 1.143803059 | O50: 0.3426512774 | P50: 0 | Q50: 0.4025768409 | R50: 0.3356592041 | S50: 0.06291573661 | T50: 1.129098937 | U50: 0.8104081488 | V50: 0 | W50: 0.1461074647 | X50: 0.09393865322 | Y50: 0.07864467076 | Z50: 0.5445863724 | AA50: 0.3426512774 | AB50: 0 | AC50: 0.06605729765 | AD50: 0.07296206076 | AE50: 0.06291573661 | AH50: Selection.ClearContents
A51: 3 | B51: 2023 | C51: Personbil | D51: Diesel | E51: 0.05923730441 | F51: 19130.04486 | G51: 2.525170217 | H51: 0.6344186705 | I51: 0 | J51: 0.8702180414 | K51: 0.6785676627 | L51: 0.2437255425 | M51: 0.09824030041 | N51: 1.29129806 | O51: 0.3277071979 | P51: 0 | Q51: 0.3579557773 | R51: 0.5270428448 | S51: 0.07859224032 | T51: 1.315743489 | U51: 0.6344186705 | V51: 0 | W51: 0.2992167636 | X51: 0.2838677547 | Y51: 0.09824030041 | Z51: 0.754291566 | AA51: 0.3277071979 | AB51: 0 | AC51: 0.1275123183 | AD51: 0.2204798095 | AE51: 0.07859224032 | AH51: Range("c4").Select
A52: 3 | B52: 2023 | C52: Personbil | D52: Elektricitet | E52: 0.1472704139 | F52: 1582.562689 | G52: 2.238616689 | H52: 0.2875054208 | I52: 0.2651215132 | J52: 1.382183579 | K52: 0.1572438694 | L52: 0.04130488892 | M52: 0.1052574179 | N52: 1.623215707 | O52: 0.09775550497 | P52: 0.2120972106 | Q52: 1.107025897 | R52: 0.1221311607 | S52: 0.08420593432 | T52: 0.8753633211 | U52: 0.2875054208 | V52: 0.08772141864 | W52: 0.3452044853 | X52: 0.04967457848 | Y52: 0.1052574179 | Z52: 0.5670133138 | AA52: 0.09775550497 | AB52: 0.07017713492 | AC52: 0.2762925427 | AD52: 0.03858219688 | AE52: 0.08420593432
A53: 3 | B53: 2023 | C53: Personbil | D53: Hybrid | E53: 0.02482332353 | F53: 4018.611467 | G53: 2.273623614 | H53: 0.2931724283 | I53: 0 | J53: 1.552742739 | K53: 0.3225832058 | L53: 0.03141820292 | M53: 0.07370703789 | N53: 1.426841525 | O53: 0.1239571779 | P53: 0 | Q53: 0.9933686537 | R53: 0.2505500628 | S53: 0.05896563031 | T53: 0.8663137263 | U53: 0.2931724283 | V53: 0 | W53: 0.3960441539 | X53: 0.1033901062 | Y53: 0.07370703789 | Z53: 0.5158312488 | AA53: 0.1239571779 | AB53: 0 | AC53: 0.2526054455 | AD53: 0.0803029951 | AE53: 0.05896563031 | AH53: Sheets("TERESA").Select
A54: 4 | B54: 2024 | C54: Personbil | D54: Vægtet gnst. | E54: 0 | F54: 49894.6295 | G54: 2.463460519 | H54: 0.6745055357 | I54: 0.009918873898 | J54: 0.9892281768 | K54: 0.5182397487 | L54: 0.1851137878 | M54: 0.08645439597 | N54: 1.267155536 | O54: 0.3090217018 | P54: 0.007935099118 | Q54: 0.4785189084 | R54: 0.4025163097 | S54: 0.06916351678 | T54: 1.162484067 | U54: 0.6745055357 | V54: 0.003182123563 | W54: 0.2325312013 | X54: 0.1658108102 | Y54: 0.08645439597 | Z54: 0.6234160459 | AA54: 0.3090217018 | AB54: 0.00254569885 | AC54: 0.1139000332 | AD54: 0.1287850953 | AE54: 0.06916351678
A55: 4 | B55: 2024 | C55: Personbil | D55: Benzin | E55: 0.06724085605 | F55: 24864.8176 | G55: 2.413222799 | H55: 0.8031389623 | I55: 0 | J55: 0.9149916318 | K55: 0.4399026261 | L55: 0.1763725255 | M55: 0.07881705328 | N55: 1.158390419 | O55: 0.342972501 | P55: 0 | Q55: 0.4106923328 | R55: 0.3416719426 | S55: 0.06305364263 | T55: 1.12155619 | U55: 0.8031389623 | V55: 0 | W55: 0.1453952825 | X55: 0.09420489241 | Y55: 0.07881705328 | Z55: 0.545710718 | AA55: 0.342972501 | AB55: 0 | AC55: 0.06651572593 | AD55: 0.07316884847 | AE55: 0.06305364263 | AH55: End Sub
A56: 4 | B56: 2024 | C56: Personbil | D56: Diesel | E56: 0.05891833897 | F56: 18304.40052 | G56: 2.585885137 | H56: 0.6396133119 | I56: 0 | J56: 0.890669724 | K56: 0.7056255565 | L56: 0.2517877036 | M56: 0.09818884075 | N56: 1.328678903 | O56: 0.3328312001 | P56: 0 | Q56: 0.3692379452 | R56: 0.5480586847 | S56: 0.0785510726 | T56: 1.326432406 | U56: 0.6396133119 | V56: 0 | W56: 0.2982871314 | X56: 0.2903431222 | Y56: 0.09818884075 | Z56: 0.765001978 | AA56: 0.3328312001 | AB56: 0 | AC56: 0.1281104842 | AD56: 0.2255092212 | AE56: 0.0785510726
A57: 4 | B57: 2024 | C57: Personbil | D57: Elektricitet | E57: 0.1461217922 | F57: 1884.600497 | G57: 2.258204773 | H57: 0.2867063986 | I57: 0.2626012988 | J57: 1.391203145 | K57: 0.1685715826 | L57: 0.04352707695 | M57: 0.1055952712 | N57: 1.631280765 | O57: 0.09814774953 | P57: 0.210081039 | Q57: 1.107646375 | R57: 0.1309293846 | S57: 0.08447621698 | T57: 0.8644028161 | U57: 0.2867063986 | V57: 0.08424643655 | W57: 0.3365587451 | X57: 0.05129596457 | Y57: 0.1055952712 | Z57: 0.5573083894 | AA57: 0.09814774953 | AB57: 0.06739714924 | AC57: 0.2674457478 | AD57: 0.03984152588 | AE57: 0.08447621698
A58: 4 | B58: 2024 | C58: Personbil | D58: Hybrid | E58: 0.02483990037 | F58: 4840.810888 | G58: 2.338495419 | H58: 0.2966930074 | I58: 0 | J58: 1.58672504 | K58: 0.3481934835 | L58: 0.03302319815 | M58: 0.07386069034 | N58: 1.451431657 | O58: 0.1266997961 | P58: 0 | Q58: 0.9952017678 | R58: 0.2704415406 | S58: 0.05908855227 | T58: 0.8688250392 | U58: 0.2966930074 | V58: 0 | W58: 0.3909644687 | X58: 0.1073068729 | Y58: 0.07386069034 | Z58: 0.5129117745 | AA58: 0.1266997961 | AB58: 0 | AC58: 0.2437782822 | AD58: 0.08334514396 | AE58: 0.05908855227
A59: 5 | B59: 2025 | C59: Personbil | D59: Vægtet gnst. | E59: 0 | F59: 49960.68337 | G59: 2.49212304 | H59: 0.6653741818 | I59: 0.01132823714 | J59: 1.019347444 | K59: 0.5255912792 | L59: 0.1841908999 | M59: 0.08629099805 | N59: 1.29344997 | O59: 0.3066608692 | P59: 0.009062589711 | Q59: 0.5004674769 | R59: 0.4082262362 | S59: 0.06903279844 | T59: 1.154278019 | U59: 0.6653741818 | V59: 0.003523067016 | W59: 0.2340505229 | X59: 0.1650392497 | Y59: 0.08629099805 | Z59: 0.6227092702 | AA59: 0.3066608692 | AB59: 0.002818453613 | AC59: 0.116011324 | AD59: 0.128185825 | AE59: 0.06903279844
A60: 5 | B60: 2025 | C60: Personbil | D60: Benzin | E60: 0.06596271615 | F60: 24704.71975 | G60: 2.42272807 | H60: 0.7964340992 | I60: 0 | J60: 0.923737027 | K60: 0.4466866769 | L60: 0.176866505 | M60: 0.07900376197 | N60: 1.172078112 | O60: 0.3433023561 | P60: 0 | Q60: 0.4186316381 | R60: 0.3469411082 | S60: 0.06320300958 | T60: 1.114652811 | U60: 0.7964340992 | V60: 0 | W60: 0.1446802223 | X60: 0.09453472705 | Y60: 0.07900376197 | Z60: 0.5468531034 | AA60: 0.3433023561 | AB60: 0 | AC60: 0.06692270696 | AD60: 0.07342503072 | AE60: 0.06320300958
A61: 5 | B61: 2025 | C61: Personbil | D61: Diesel | E61: 0.05862345389 | F61: 17466.82987 | G61: 2.643849452 | H61: 0.6444604077 | I61: 0 | J61: 0.9125475366 | K61: 0.7289470788 | L61: 0.2597607123 | M61: 0.09813371629 | N61: 1.363425422 | O61: 0.3376040646 | P61: 0 | Q61: 0.381141896 | R61: 0.5661724884 | S61: 0.07850697303 | T61: 1.338454532 | U61: 0.6444604077 | V61: 0 | W61: 0.2997642993 | X61: 0.2960961082 | Y61: 0.09813371629 | Z61: 0.7756298597 | AA61: 0.3376040646 | AB61: 0 | AC61: 0.1295412622 | AD61: 0.2299775598 | AE61: 0.07850697303
A62: 5 | B62: 2025 | C62: Personbil | D62: Elektricitet | E62: 0.1453034697 | F62: 2170.056964 | G62: 2.280123125 | H62: 0.2876124792 | I62: 0.2608071946 | J62: 1.399648655 | K62: 0.1802024588 | L62: 0.04601523159 | M62: 0.1058371061 | N62: 1.641008417 | O62: 0.09960746753 | P62: 0.2086457557 | Q62: 1.108122434 | R62: 0.1399630748 | S62: 0.08466968486 | T62: 0.8545141412 | U62: 0.2876124792 | V62: 0.08111069829 | W62: 0.3272572386 | X62: 0.05269661906 | Y62: 0.1058371061 | Z62: 0.5483850425 | AA62: 0.09960746753 | AB62: 0.06488855864 | AC62: 0.2582899186 | AD62: 0.04092941286 | AE62: 0.08466968486
A63: 5 | B63: 2025 | C63: Personbil | D63: Hybrid | E63: 0.02485161626 | F63: 5619.076777 | G63: 2.407457133 | H63: 0.3000585144 | I63: 0 | J63: 1.624822191 | K63: 0.3737599927 | L63: 0.03484806354 | M63: 0.07396837101 | N63: 1.475328036 | O63: 0.1293400107 | P63: 0 | Q63: 0.9965143047 | R63: 0.2902990235 | S63: 0.05917469681 | T63: 0.8717502141 | U63: 0.3000585144 | V63: 0 | W63: 0.3867078064 | X63: 0.1110155223 | Y63: 0.07396837101 | Z63: 0.5095688396 | AA63: 0.1293400107 | AB63: 0 | AC63: 0.2348284836 | AD63: 0.08622564838 | AE63: 0.05917469681
A64: 6 | B64: 2026 | C64: Personbil | D64: Vægtet gnst. | E64: 0 | F64: 49860.89576 | G64: 2.523977405 | H64: 0.6561321224 | I64: 0.01268185123 | J64: 1.049548721 | K64: 0.5306153275 | L64: 0.188864917 | M64: 0.0861344659 | N64: 1.31677926 | O64: 0.3040700273 | P64: 0.01014548098 | Q64: 0.5215277691 | R64: 0.4121284097 | S64: 0.06890757272 | T64: 1.146144403 | U64: 0.6561321224 | V64: 0.003837812306 | W64: 0.2361460523 | X64: 0.1638939498 | Y64: 0.0861344659 | Z64: 0.6213340912 | AA64: 0.3040700273 | AB64: 0.003070249844 | AC64: 0.1179899696 | AD64: 0.1272962717 | AE64: 0.06890757272
A65: 6 | B65: 2026 | C65: Personbil | D65: Benzin | E65: 0.06469751705 | F65: 24454.14311 | G65: 2.433716354 | H65: 0.7890305444 | I65: 0 | J65: 0.9319864828 | K65: 0.4510492372 | L65: 0.18247716 | M65: 0.07917293001 | N65: 1.183039298 | O65: 0.3430156103 | P65: 0 | Q65: 0.4263558389 | R65: 0.3503295046 | S65: 0.063338344 | T65: 1.107269436 | U65: 0.7890305444 | V65: 0 | W65: 0.1443324542 | X65: 0.09473350709 | Y65: 0.07917293001 | Z65: 0.547385859 | AA65: 0.3430156103 | AB65: 0 | AC65: 0.06745248172 | AD65: 0.07357942299 | AE65: 0.063338344
A66: 6 | B66: 2026 | C66: Personbil | D66: Diesel | E66: 0.05833490216 | F66: 16621.55467 | G66: 2.706747962 | H66: 0.6490386819 | I66: 0 | J66: 0.9357978151 | K66: 0.7476754622 | L66: 0.276159049 | M66: 0.0980769535 | N66: 1.395017702 | O66: 0.3421426456 | P66: 0 | Q66: 0.3936946877 | R66: 0.5807188056 | S66: 0.0784615628 | T66: 1.351258146 | U66: 0.6490386819 | V66: 0 | W66: 0.3035262256 | X66: 0.3006162847 | Y66: 0.0980769535 | Z66: 0.7859830576 | AA66: 0.3421426456 | AB66: 0 | AC66: 0.1318904728 | AD66: 0.2334883765 | AE66: 0.0784615628
A67: 6 | B67: 2026 | C67: Personbil | D67: Elektricitet | E67: 0.1446901841 | F67: 2437.056613 | G67: 2.312888491 | H67: 0.2903288693 | I67: 0.2594640021 | J67: 1.414911198 | K67: 0.1918115551 | L67: 0.05035321453 | M67: 0.1060196514 | N67: 1.652208972 | O67: 0.1023313102 | P67: 0.2075712017 | Q67: 1.108510891 | R67: 0.1489798486 | S67: 0.08481572112 | T67: 0.8487035596 | U67: 0.2903288693 | V67: 0.07851962007 | W67: 0.3197163931 | X67: 0.05411902575 | Y67: 0.1060196514 | Z67: 0.5410365788 | AA67: 0.1023313102 | AB67: 0.06281569605 | AC67: 0.2490396567 | AD67: 0.04203419475 | AE67: 0.08481572112
A68: 6 | B68: 2026 | C68: Personbil | D68: Hybrid | E68: 0.02486038939 | F68: 6348.141362 | G68: 2.474161485 | H68: 0.3031894803 | I68: 0 | J68: 1.659993802 | K68: 0.3988488283 | L68: 0.03808122362 | M68: 0.07404815059 | N68: 1.498342708 | O68: 0.1318057018 | P68: 0 | Q68: 0.9975129879 | R68: 0.3097854977 | S68: 0.05923852048 | T68: 0.8730290113 | U68: 0.3031894803 | V68: 0 | W68: 0.3813214557 | X68: 0.1144699246 | Y68: 0.07404815059 | Z68: 0.5059158105 | AA68: 0.1318057018 | AB68: 0 | AC68: 0.225962909 | AD68: 0.08890867932 | AE68: 0.05923852048
A69: 7 | B69: 2027 | C69: Personbil | D69: Vægtet gnst. | E69: 0 | F69: 49447.03551 | G69: 2.530550124 | H69: 0.6450051617 | I69: 0.0140282478 | J69: 1.080313854 | K69: 0.5309612058 | L69: 0.1742710593 | M69: 0.08597059504 | N69: 1.335154418 | O69: 0.3004432255 | P69: 0.01122259824 | Q69: 0.5423150651 | R69: 0.412397053 | S69: 0.06877647603 | T69: 1.136666 | U69: 0.6450051617 | V69: 0.004142982205 | W69: 0.2395339638 | X69: 0.1620132972 | Y69: 0.08597059504 | Z69: 0.6185803776 | AA69: 0.3004432255 | AB69: 0.003314385764 | AC69: 0.1202107196 | AD69: 0.1258355706 | AE69: 0.06877647603
A70: 7 | B70: 2027 | C70: Personbil | D70: Benzin | E70: 0.0632523653 | F70: 24005.93426 | G70: 2.415518146 | H70: 0.7785894376 | I70: 0 | J70: 0.9393613157 | K70: 0.4496861592 | L70: 0.1685969996 | M70: 0.07928423361 | N70: 1.187941286 | O70: 0.3411004601 | P70: 0 | Q70: 0.4341426361 | R70: 0.3492708033 | S70: 0.06342738689 | T70: 1.097193242 | U70: 0.7785894376 | V70: 0 | W70: 0.1449233296 | X70: 0.09439624077 | Y70: 0.07928423361 | Z70: 0.5462306726 | AA70: 0.3411004601 | AB70: 0 | AC70: 0.068385357 | AD70: 0.07331746856 | AE70: 0.06342738689
A71: 7 | B71: 2027 | C71: Personbil | D71: Diesel | E71: 0.05797575132 | F71: 15732.92929 | G71: 2.734938955 | H71: 0.6524886553 | I71: 0 | J71: 0.9604064388 | K71: 0.7590158369 | L71: 0.265004705 | M71: 0.09802331938 | N71: 1.421074711 | O71: 0.3459929049 | P71: 0 | Q71: 0.4071362871 | R71: 0.5895268636 | S71: 0.0784186555 | T71: 1.3641538 | U71: 0.6524886553 | V71: 0 | W71: 0.3104432374 | X71: 0.3031985884 | Y71: 0.09802331938 | Z71: 0.7954521883 | AA71: 0.3459929049 | AB71: 0 | AC71: 0.1355465787 | AD71: 0.2354940492 | AE71: 0.0784186555
A72: 7 | B72: 2027 | C72: Personbil | D72: Elektricitet | E72: 0.1442140405 | F72: 2684.191713 | G72: 2.350139107 | H72: 0.2932908498 | I72: 0.2584224009 | J72: 1.438937901 | K72: 0.2031957498 | L72: 0.05012953537 | M72: 0.1061626703 | N72: 1.663460168 | O72: 0.1051284714 | P72: 0.2067379208 | Q72: 1.108841698 | R72: 0.1578219416 | S72: 0.08493013622 | T72: 0.8457928834 | U72: 0.2932908498 | V72: 0.0763202521 | W72: 0.3145335723 | X72: 0.05548553897 | Y72: 0.1061626703 | Z72: 0.5339691679 | AA72: 0.1051284714 | AB72: 0.06105620168 | AC72: 0.2397587943 | AD72: 0.04309556425 | AE72: 0.08493013622
A73: 7 | B73: 2027 | C73: Personbil | D73: Hybrid | E73: 0.02486722861 | F73: 7023.980243 | G73: 2.534831577 | H73: 0.306097036 | I73: 0 | J73: 1.693581038 | K73: 0.4231735108 | L73: 0.03787043702 | M73: 0.07410955543 | N73: 1.520373516 | O73: 0.1341012795 | P73: 0 | Q73: 0.9983061373 | R73: 0.328678455 | S73: 0.05928764434 | T73: 0.8731815137 | U73: 0.306097036 | V73: 0 | W73: 0.3753960705 | X73: 0.1175788518 | Y73: 0.07410955543 | Z73: 0.5020116096 | AA73: 0.1341012795 | AB73: 0 | AC73: 0.2172993057 | AD73: 0.09132338004 | AE73: 0.05928764434
A74: 8 | B74: 2028 | C74: Personbil | D74: Vægtet gnst. | E74: 0 | F74: 49050.16684 | G74: 2.540080615 | H74: 0.6355642168 | I74: 0.01528514282 | J74: 1.111691447 | K74: 0.5306509626 | L74: 0.1610587338 | M74: 0.08583011205 | N74: 1.35231286 | O74: 0.2973249535 | P74: 0.01222811425 | Q74: 0.5619396148 | R74: 0.4121560874 | S74: 0.06866408964 | T74: 1.128564222 | U74: 0.6355642168 | V74: 0.004417078993 | W74: 0.2430523418 | X74: 0.1597004728 | Y74: 0.08583011205 | Z74: 0.6156608106 | AA74: 0.2973249535 | AB74: 0.003533663194 | AC74: 0.1220989021 | AD74: 0.1240392022 | AE74: 0.06866408964
A75: 8 | B75: 2028 | C75: Personbil | D75: Benzin | E75: 0.06205663062 | F75: 23643.96255 | G75: 2.404140602 | H75: 0.7706668421 | I75: 0 | J75: 0.9471875981 | K75: 0.4500164739 | L75: 0.1568173486 | M75: 0.07945233903 | N75: 1.194731959 | O75: 0.3400890377 | P75: 0 | Q75: 0.4415536919 | R75: 0.3495273583 | S75: 0.06356187123 | T75: 1.089606404 | U75: 0.7706668421 | V75: 0 | W75: 0.1452018687 | X75: 0.09428535469 | Y75: 0.07945233903 | Z75: 0.5459787234 | AA75: 0.3400890377 | AB75: 0 | AC75: 0.06909647106 | AD75: 0.07323134345 | AE75: 0.06356187123
A76: 8 | B76: 2028 | C76: Personbil | D76: Diesel | E76: 0.05759367847 | F76: 14851.80114 | G76: 2.757153825 | H76: 0.6550753291 | I76: 0 | J76: 0.9866878195 | K76: 0.7643319815 | L76: 0.2530750522 | M76: 0.09798364311 | N76: 1.442702046 | O76: 0.3492221093 | P76: 0 | Q76: 0.4214371147 | R76: 0.5936559079 | S76: 0.07838691448 | T76: 1.37745779 | U76: 0.6550753291 | V76: 0 | W76: 0.3201462759 | X76: 0.3042525423 | Y76: 0.09798364311 | Z76: 0.8042650489 | AA76: 0.3492221093 | AB76: 0 | AC76: 0.1403433709 | AD76: 0.2363126542 | AE76: 0.07838691448
A77: 8 | B77: 2028 | C77: Personbil | D77: Elektricitet | E77: 0.1438350802 | F77: 2910.53882 | G77: 2.396031237 | H77: 0.2964272457 | I77: 0.2575945046 | J77: 1.471568162 | K77: 0.2142138316 | L77: 0.04994983937 | M77: 0.1062776539 | N77: 1.674586993 | O77: 0.1079778946 | P77: 0.2060756037 | Q77: 1.109131697 | R77: 0.166379675 | S77: 0.08502212309 | T77: 0.8466267434 | U77: 0.2964272457 | V77: 0.07443929629 | W77: 0.3127024453 | X77: 0.05678010219 | Y77: 0.1062776539 | Z77: 0.5280178595 | AA77: 0.1079778946 | AB77: 0.05955143703 | AC77: 0.2313653546 | AD77: 0.04410105024 | AE77: 0.08502212309
A78: 8 | B78: 2028 | C78: Personbil | D78: Hybrid | E78: 0.02487271449 | F78: 7643.864329 | G78: 2.593652173 | H78: 0.3088884481 | I78: 0 | J78: 1.726382721 | K78: 0.4465230122 | L78: 0.03769990377 | M78: 0.07415808852 | N78: 1.54140613 | O78: 0.1363099712 | P78: 0 | Q78: 0.9989556981 | R78: 0.34681399 | S78: 0.05932647082 | T78: 0.8728283113 | U78: 0.3088884481 | V78: 0 | W78: 0.36941118 | X78: 0.1203705947 | Y78: 0.07415808852 | Z78: 0.4981202929 | AA78: 0.1363099712 | AB78: 0 | AC78: 0.2089921268 | AD78: 0.09349172403 | AE78: 0.05932647082
A79: 9 | B79: 2029 | C79: Personbil | D79: Vægtet gnst. | E79: 0 | F79: 48720.529 | G79: 2.554727446 | H79: 0.6283090735 | I79: 0.0164301046 | J79: 1.143590779 | K79: 0.530896926 | L79: 0.1497632753 | M79: 0.08573728757 | N79: 1.369247802 | O79: 0.2950625271 | P79: 0.01314408368 | Q79: 0.5801042341 | R79: 0.412347127 | S79: 0.06858983005 | T79: 1.122581516 | U79: 0.6283090735 | V79: 0.004653355503 | W79: 0.2464755083 | X79: 0.1574062913 | Y79: 0.08573728757 | Z79: 0.6131516109 | AA79: 0.2950625271 | AB79: 0.003722684402 | AC79: 0.1235192557 | AD79: 0.1222573136 | AE79: 0.06858983005
A80: 9 | B80: 2029 | C80: Personbil | D80: Benzin | E80: 0.0611300759 | F80: 23358.57625 | G80: 2.400636854 | H80: 0.7656067658 | I80: 0 | J80: 0.9558099074 | K80: 0.4522795951 | L80: 0.1472464996 | M80: 0.07969408651 | N80: 1.203833668 | O80: 0.3401685114 | P80: 0 | Q80: 0.448624765 | R80: 0.3512851224 | S80: 0.06375526921 | T80: 1.085020983 | U80: 0.7656067658 | V80: 0 | W80: 0.1452763184 | X80: 0.09444381202 | Y80: 0.07969408651 | Z80: 0.5468612033 | AA80: 0.3401685114 | AB80: 0 | AC80: 0.06958300559 | AD80: 0.07335441711 | AE80: 0.06375526921
A81: 9 | B81: 2029 | C81: Personbil | D81: Diesel | E81: 0.05728816545 | F81: 14039.96088 | G81: 2.77821119 | H81: 0.6579431622 | I81: 0 | J81: 1.014629126 | K81: 0.7659649189 | L81: 0.2417163648 | M81: 0.09795761808 | N81: 1.461991977 | O81: 0.3524438271 | P81: 0 | Q81: 0.4362578464 | R81: 0.5949242089 | S81: 0.07836609447 | T81: 1.392080396 | U81: 0.6579431622 | V81: 0 | W81: 0.3316286627 | X81: 0.3045509527 | Y81: 0.09795761808 | Z81: 0.8131423725 | AA81: 0.3524438271 | AB81: 0 | AC81: 0.1457880217 | AD81: 0.2365444293 | AE81: 0.07836609447
A82: 9 | B82: 2029 | C82: Personbil | D82: Elektricitet | E82: 0.1435280146 | F82: 3115.633555 | G82: 2.449408567 | H82: 0.2996931733 | I82: 0.2569247549 | J82: 1.511856661 | K82: 0.2247593196 | L82: 0.04980270868 | M82: 0.1063719489 | N82: 1.685465009 | O82: 0.1108663816 | P82: 0.205539804 | Q82: 1.109390919 | R82: 0.1745703453 | S82: 0.08509755911 | T82: 0.8497386319 | U82: 0.2996931733 | V82: 0.07276656182 | W82: 0.3129986924 | X82: 0.05790825549 | Y82: 0.1063719489 | Z82: 0.522409861 | AA82: 0.1108663816 | AB82: 0.05821324946 | AC82: 0.223255385 | AD82: 0.04497728582 | AE82: 0.08509755911
A83: 9 | B83: 2029 | C83: Personbil | D83: Hybrid | E83: 0.02487720459 | F83: 8206.358312 | G83: 2.650966096 | H83: 0.3115676836 | I83: 0 | J83: 1.758909858 | K83: 0.4687324571 | L83: 0.03755893876 | M83: 0.07419715866 | N83: 1.56135459 | O83: 0.1384333575 | P83: 0 | Q83: 0.999499461 | R83: 0.3640640443 | S83: 0.05935772693 | T83: 0.8720057289 | U83: 0.3115676836 | V83: 0 | W83: 0.3635871598 | X83: 0.1226537269 | Y83: 0.07419715866 | Z83: 0.4941347647 | AA83: 0.1384333575 | AB83: 0 | AC83: 0.2010786497 | AD83: 0.09526503058 | AE83: 0.05935772693
A84: 10 | B84: 2030 | C84: Personbil | D84: Vægtet gnst. | E84: 0 | F84: 48474.94791 | G84: 2.575181588 | H84: 0.623653159 | I84: 0.01745005888 | J84: 1.175677143 | K84: 0.5318207951 | L84: 0.1409120255 | M84: 0.0856684061 | N84: 1.386050284 | O84: 0.2939760476 | P84: 0.01396004711 | Q84: 0.5965147689 | R84: 0.4130646952 | S84: 0.06853472488 | T84: 1.119531716 | U84: 0.623653159 | V84: 0.004848100322 | W84: 0.2499093288 | X84: 0.1554527214 | Y84: 0.0856684061 | Z84: 0.6116958125 | AA84: 0.2939760476 | AB84: 0.003878480258 | AC84: 0.1245665819 | AD84: 0.1207399777 | AE84: 0.06853472488
A85: 10 | B85: 2030 | C85: Personbil | D85: Benzin | E85: 0.06044826305 | F85: 23126.98577 | G85: 2.402994174 | H85: 0.7629519173 | I85: 0 | J85: 0.9649555253 | K85: 0.4553769593 | L85: 0.1397564537 | M85: 0.07995331849 | N85: 1.213983096 | O85: 0.3410819126 | P85: 0 | Q85: 0.4552476869 | R85: 0.3536908422 | S85: 0.06396265479 | T85: 1.083081863 | U85: 0.7629519173 | V85: 0 | W85: 0.1454059848 | X85: 0.09477064195 | Y85: 0.07995331849 | Z85: 0.5486193104 | AA85: 0.3410819126 | AB85: 0 | AC85: 0.06996647735 | AD85: 0.07360826559 | AE85: 0.06396265479
A86: 10 | B86: 2030 | C86: Personbil | D86: Diesel | E86: 0.05722905631 | F86: 13337.27297 | G86: 2.803927567 | H86: 0.663600525 | I86: 0 | J86: 1.043953614 | K86: 0.7653969862 | L86: 0.2330675802 | M86: 0.09790886127 | N86: 1.480985483 | O86: 0.3571491559 | P86: 0 | Q86: 0.4510261417 | R86: 0.5944830961 | S86: 0.07832708902 | T86: 1.410648768 | U86: 0.663600525 | V86: 0 | W86: 0.3442790868 | X86: 0.3048602945 | Y86: 0.09790886127 | Z86: 0.82390083 | AA86: 0.3571491559 | AB86: 0 | AC86: 0.1516398903 | AD86: 0.2367846948 | AE86: 0.07832708902
A87: 10 | B87: 2030 | C87: Personbil | D87: Elektricitet | E87: 0.1432756048 | F87: 3299.420573 | G87: 2.509728896 | H87: 0.3032349319 | I87: 0.2563755291 | J87: 1.559240145 | K87: 0.2347470792 | L87: 0.04968030753 | M87: 0.1064509027 | N87: 1.696141196 | O87: 0.1139264524 | P87: 0.2051004233 | Q87: 1.10962577 | R87: 0.1823278285 | S87: 0.08516072216 | T87: 0.8549306238 | U87: 0.3032349319 | V87: 0.07122808546 | W87: 0.3152227922 | X87: 0.05879391145 | Y87: 0.1064509027 | Z87: 0.517260927 | AA87: 0.1139264524 | AB87: 0.05698246837 | AC87: 0.2155261101 | AD87: 0.04566517394 | AE87: 0.08516072216
A88: 10 | B88: 2030 | C88: Personbil | D88: Hybrid | E88: 0.02488093142 | F88: 8711.268593 | G88: 2.706882758 | H88: 0.3140363904 | I88: 0 | J88: 1.791506263 | K88: 0.4896704716 | L88: 0.03744063351 | M88: 0.07422899999 | N88: 1.580063173 | O88: 0.140391721 | P88: 0 | Q88: 0.9999616723 | R88: 0.3803265799 | S88: 0.05938319999 | T88: 0.8708076582 | U88: 0.3140363904 | V88: 0 | W88: 0.3581272687 | X88: 0.1244149991 | Y88: 0.07422899999 | Z88: 0.4900273707 | AA88: 0.140391721 | AB88: 0 | AC88: 0.1936194407 | AD88: 0.09663300901 | AE88: 0.05938319999
A89: 11 | B89: 2031 | C89: Personbil | D89: Vægtet gnst. | E89: 0 | F89: 48148.76163 | G89: 2.593774302 | H89: 0.6188970791 | I89: 0.01840364563 | J89: 1.207472986 | K89: 0.5307948284 | L89: 0.1326029534 | M89: 0.08560280919 | N89: 1.399944803 | O89: 0.2925849708 | P89: 0.0147229165 | Q89: 0.6118868406 | R89: 0.4122678279 | S89: 0.06848224735 | T89: 1.11655199 | U89: 0.6188970791 | V89: 0.005021569791 | W89: 0.2538931008 | X89: 0.1531374309 | Y89: 0.08560280919 | Z89: 0.6096523476 | AA89: 0.2925849708 | AB89: 0.004017255833 | AC89: 0.1256261797 | AD89: 0.1189416939 | AE89: 0.06848224735
A90: 11 | B90: 2031 | C90: Personbil | D90: Benzin | E90: 0.05981992437 | F90: 22878.99982 | G90: 2.403861468 | H90: 0.7601165647 | I90: 0 | J90: 0.9735143237 | K90: 0.4572961178 | L90: 0.1327308079 | M90: 0.08020365368 | N90: 1.222401627 | O90: 0.3416126987 | P90: 0 | Q90: 0.4614445544 | R90: 0.3551814507 | S90: 0.06416292295 | T90: 1.081440607 | U90: 0.7601165647 | V90: 0 | W90: 0.1460401955 | X90: 0.09508019326 | Y90: 0.08020365368 | Z90: 0.5501055376 | AA90: 0.3416126987 | AB90: 0 | AC90: 0.07048122217 | AD90: 0.0738486938 | AE90: 0.06416292295
A91: 11 | B91: 2031 | C91: Personbil | D91: Diesel | E91: 0.05716111693 | F91: 12647.79758 | G91: 2.822316264 | H91: 0.6681288385 | I91: 0 | J91: 1.074393009 | K91: 0.7578426318 | L91: 0.2240895055 | M91: 0.09786227881 | N91: 1.494260932 | O91: 0.3609780516 | P91: 0 | Q91: 0.4663774205 | R91: 0.5886156363 | S91: 0.07828982305 | T91: 1.429661916 | U91: 0.6681288385 | V91: 0 | W91: 0.3600138447 | X91: 0.3036569544 | Y91: 0.09786227881 | Z91: 0.8339060577 | AA91: 0.3609780516 | AB91: 0 | AC91: 0.1587881214 | AD91: 0.2358500617 | AE91: 0.07828982305
A92: 11 | B92: 2031 | C92: Personbil | D92: Elektricitet | E92: 0.1430675255 | F92: 3462.41784 | G92: 2.569435366 | H92: 0.3066807887 | I92: 0.2559231114 | J92: 1.606616887 | K92: 0.2441199446 | L92: 0.04957828652 | M92: 0.1065163482 | N92: 1.70626817 | O92: 0.1168699931 | P92: 0.2047384891 | Q92: 1.109838885 | R92: 0.189607724 | S92: 0.08521307858 | T92: 0.8594444677 | U92: 0.3066807887 | V92: 0.06983049938 | W92: 0.3169476213 | X92: 0.05946921012 | Y92: 0.1065163482 | Z92: 0.5121672073 | AA92: 0.1168699931 | AB92: 0.05586439951 | AC92: 0.2080300584 | AD92: 0.04618967777 | AE92: 0.08521307858
A93: 11 | B93: 2031 | C93: Personbil | D93: Hybrid | E93: 0.02488405327 | F93: 9159.546392 | G93: 2.761766769 | H93: 0.316195336 | I93: 0 | J93: 1.824742183 | K93: 0.5092337781 | L93: 0.03734032222 | M93: 0.07425514869 | N93: 1.597389025 | O93: 0.1421049705 | P93: 0 | Q93: 1.000358554 | R93: 0.3955213811 | S93: 0.05940411895 | T93: 0.8690917022 | U93: 0.316195336 | V93: 0 | W93: 0.3529211286 | X93: 0.1257200889 | Y93: 0.07425514869 | Z93: 0.4855840001 | AA93: 0.1421049705 | AB93: 0 | AC93: 0.1864282396 | AD93: 0.09764667101 | AE93: 0.05940411895
A94: 12 | B94: 2032 | C94: Personbil | D94: Vægtet gnst. | E94: 0 | F94: 47823.03201 | G94: 2.611436242 | H94: 0.6143451456 | I94: 0.01926380301 | J94: 1.238248825 | K94: 0.5289817625 | L94: 0.1250538589 | M94: 0.08554284678 | N94: 1.411578067 | O94: 0.2910899485 | P94: 0.01541104241 | Q94: 0.6257831771 | R94: 0.4108596214 | S94: 0.06843427742 | T94: 1.114116348 | U94: 0.6143451456 | V94: 0.005171677731 | W94: 0.2581803812 | X94: 0.1508762965 | Y94: 0.08554284678 | Z94: 0.6074896829 | AA94: 0.2910899485 | AB94: 0.004137342184 | AC94: 0.1266426417 | AD94: 0.117185473 | AE94: 0.06843427742
A95: 12 | B95: 2032 | C95: Personbil | D95: Benzin | E95: 0.059262078 | F95: 22644.08145 | G95: 2.403951365 | H95: 0.7573547973 | I95: 0 | J95: 0.9812455454 | K95: 0.4585968214 | L95: 0.1263158209 | M95: 0.08043837979 | N95: 1.22949752 | O95: 0.3418883298 | P95: 0 | Q95: 0.4670667805 | R95: 0.3561917059 | S95: 0.06435070383 | T95: 1.080434687 | U95: 0.7573547973 | V95: 0 | W95: 0.1471681629 | X95: 0.09547334728 | Y95: 0.08043837979 | Z95: 0.5515166597 | AA95: 0.3418883298 | AB95: 0 | AC95: 0.07112356997 | AD95: 0.07415405614 | AE95: 0.06435070383
A96: 12 | B96: 2032 | C96: Personbil | D96: Diesel | E96: 0.05709411469 | F96: 12020.74147 | G96: 2.834741182 | H96: 0.6716441513 | I96: 0 | J96: 1.104482769 | K96: 0.7456955947 | L96: 0.2151141008 | M96: 0.09780456588 | N96: 1.502998827 | O96: 0.3639937017 | P96: 0 | Q96: 0.481580428 | R96: 0.5791810444 | S96: 0.0782436527 | T96: 1.448103707 | U96: 0.6716441513 | V96: 0 | W96: 0.3770565887 | X96: 0.301598401 | Y96: 0.09780456588 | Z96: 0.84295307 | AA96: 0.3639937017 | AB96: 0 | AC96: 0.1664645304 | AD96: 0.2342511852 | AE96: 0.0782436527
A97: 12 | B97: 2032 | C97: Personbil | D97: Elektricitet | E97: 0.1428927821 | F97: 3605.06116 | G97: 2.628913954 | H97: 0.3101877058 | I97: 0.2555444768 | J97: 1.654307632 | K97: 0.2528092789 | L97: 0.0494910004 | M97: 0.1065738603 | N97: 1.715920187 | O97: 0.1198324463 | P97: 0.2044355814 | Q97: 1.110036349 | R97: 0.1963567215 | S97: 0.08525908827 | T97: 0.8638617345 | U97: 0.3101877058 | V97: 0.06860502462 | W97: 0.3184848469 | X97: 0.06001029687 | Y97: 0.1065738603 | Z97: 0.5074905793 | AA97: 0.1198324463 | AB97: 0.0548840197 | AC97: 0.2009050857 | AD97: 0.04660993932 | AE97: 0.08525908827
A98: 12 | B98: 2032 | C98: Personbil | D98: Hybrid | E98: 0.02488668238 | F98: 9553.147932 | G98: 2.815662673 | H98: 0.3180456867 | I98: 0 | J98: 1.858740938 | K98: 0.5273446148 | L98: 0.03725472347 | M98: 0.07427670918 | N98: 1.613284297 | O98: 0.1435735391 | P98: 0 | Q98: 1.00070134 | R98: 0.4095880503 | S98: 0.05942136734 | T98: 0.8681343673 | U98: 0.3180456867 | V98: 0 | W98: 0.3489764491 | X98: 0.1268355223 | Y98: 0.07427670918 | Z98: 0.4816166271 | AA98: 0.1435735391 | AB98: 0 | AC98: 0.1801086935 | AD98: 0.09851302706 | AE98: 0.05942136734
A99: 13 | B99: 2033 | C99: Personbil | D99: Vægtet gnst. | E99: 0 | F99: 47532.24453 | G99: 2.630057505 | H99: 0.6106291839 | I99: 0.02002032586 | J99: 1.267855389 | K99: 0.5274909277 | L99: 0.1185470595 | M99: 0.08551461882 | N99: 1.422145322 | O99: 0.289982737 | P99: 0.01601626069 | Q99: 0.6380329375 | R99: 0.4097016914 | S99: 0.06841169506 | T99: 1.112414818 | U99: 0.6106291839 | V99: 0.005301685853 | W99: 0.2619689609 | X99: 0.1490003682 | Y99: 0.08551461882 | Z99: 0.6056606262 | AA99: 0.289982737 | AB99: 0.004241348682 | AC99: 0.1272964041 | AD99: 0.1157284413 | AE99: 0.06841169506
A100: 13 | B100: 2033 | C100: Personbil | D100: Benzin | E100: 0.05878907148 | F100: 22411.10572 | G100: 2.404632851 | H100: 0.7551250999 | I100: 0 | J100: 0.988663388 | K100: 0.4594688596 | L100: 0.1206897343 | M100: 0.08068576894 | N100: 1.235889809 | O100: 0.3422116798 | P100: 0 | Q100: 0.4722604973 | R100: 0.3568690171 | S100: 0.06454861515 | T100: 1.080127428 | U100: 0.7551250999 | V100: 0 | W100: 0.1484207348 | X100: 0.09589582434 | Y100: 0.08068576894 | Z100: 0.5529892968 | AA100: 0.3422116798 | AB100: 0 | AC100: 0.07174680819 | AD100: 0.07448219366 | AE100: 0.06454861515
A101: 13 | B101: 2033 | C101: Personbil | D101: Diesel | E101: 0.05706805399 | F101: 11497.78297 | G101: 2.845190376 | H101: 0.6756340861 | I101: 0 | J101: 1.132602339 | K101: 0.7324054761 | L101: 0.2068105708 | M101: 0.09773790335 | N101: 1.509981278 | O101: 0.3672647625 | P101: 0 | Q101: 0.4956675706 | R101: 0.5688586222 | S101: 0.07819032268 | T101: 1.464953084 | U101: 0.6756340861 | V101: 0 | W101: 0.3921297922 | X101: 0.2994513027 | Y101: 0.09773790335 | Z101: 0.8512725802 | AA101: 0.3672647625 | AB101: 0 | AC101: 0.173233959 | AD101: 0.2325835361 | AE101: 0.07819032268
A102: 13 | B102: 2033 | C102: Personbil | D102: Elektricitet | E102: 0.142747256 | F102: 3728.513301 | G102: 2.688290923 | H102: 0.3137493473 | I102: 0.2552253265 | J102: 1.702499792 | K102: 0.260777553 | L102: 0.04941650895 | M102: 0.1066223943 | N102: 1.72505448 | O102: 0.122812442 | P102: 0.2041802612 | Q102: 1.110218189 | R102: 0.2025456722 | S102: 0.08529791547 | T102: 0.869152644 | U102: 0.3137493473 | V102: 0.06758753639 | W102: 0.3206623451 | X102: 0.06053102081 | Y102: 0.1066223943 | Z102: 0.5039038829 | AA102: 0.122812442 | AB102: 0.05407002911 | AC102: 0.1947091112 | AD102: 0.04701438509 | AE102: 0.08529791547
A103: 13 | B103: 2033 | C103: Personbil | D103: Hybrid | E103: 0.02488889944 | F103: 9894.842539 | G103: 2.868701082 | H103: 0.3196892245 | I103: 0 | J103: 1.893588866 | K103: 0.5439470884 | L103: 0.0371814159 | M103: 0.07429448783 | N103: 1.627795122 | O103: 0.1448784931 | P103: 0 | Q103: 1.000997863 | R103: 0.4224831754 | S103: 0.05943559026 | T103: 0.8675593676 | U103: 0.3196892245 | V103: 0 | W103: 0.3457844681 | X103: 0.1277911872 | Y103: 0.07429448783 | Z103: 0.4779002465 | AA103: 0.1448784931 | AB103: 0 | AC103: 0.1743308721 | AD103: 0.09925529101 | AE103: 0.05943559026
A104: 14 | B104: 2034 | C104: Personbil | D104: Vægtet gnst. | E104: 0 | F104: 47280.49193 | G104: 2.649941388 | H104: 0.608262141 | I104: 0.02067409963 | J104: 1.296082484 | K104: 0.5260488633 | L104: 0.1133811363 | M104: 0.08549266343 | N104: 1.431557764 | O104: 0.2895296025 | P104: 0.0165392797 | Q104: 0.6485131093 | R104: 0.4085816414 | S104: 0.06839413074 | T104: 1.112202035 | U104: 0.608262141 | V104: 0.005414178628 | W104: 0.2656183902 | X104: 0.1474146622 | Y104: 0.08549266343 | Z104: 0.6046264761 | AA104: 0.2895296025 | AB104: 0.004331342902 | AC104: 0.1278745749 | AD104: 0.114496825 | AE104: 0.06839413074
A105: 14 | B105: 2034 | C105: Personbil | D105: Benzin | E105: 0.05843832803 | F105: 22186.14356 | G105: 2.406053269 | H105: 0.7541753424 | I105: 0 | J105: 0.9953721317 | K105: 0.4594282848 | L105: 0.1161741251 | M105: 0.08090338466 | N105: 1.241366285 | O105: 0.343014335 | P105: 0 | Q105: 0.4767917397 | R105: 0.3568375027 | S105: 0.06472270773 | T105: 1.08088052 | U105: 0.7541753424 | V105: 0 | W105: 0.1496232949 | X105: 0.09617849801 | Y105: 0.08090338466 | Z105: 0.554798387 | AA105: 0.343014335 | AB105: 0 | AC105: 0.07235959826 | AD105: 0.07470174602 | AE105: 0.06472270773
A106: 14 | B106: 2034 | C106: Personbil | D106: Diesel | E106: 0.05717327558 | F106: 11072.26089 | G106: 2.855355923 | H106: 0.6806778406 | I106: 0 | J106: 1.158327116 | K106: 0.7185745783 | L106: 0.2001283201 | M106: 0.09764806805 | N106: 1.515320811 | O106: 0.370980343 | P106: 0 | Q106: 0.5081058361 | R106: 0.5581161773 | S106: 0.07811845444 | T106: 1.48101147 | U106: 0.6806778406 | V106: 0 | W106: 0.4055996571 | X106: 0.2970859042 | Y106: 0.09764806805 | Z106: 0.8590707343 | AA106: 0.370980343 | AB106: 0 | AC106: 0.1792256034 | AD106: 0.2307463334 | AE106: 0.07811845444
A107: 14 | B107: 2034 | C107: Personbil | D107: Elektricitet | E107: 0.1426180715 | F107: 3834.084638 | G107: 2.747735118 | H107: 0.317515537 | I107: 0.2549452328 | J107: 1.751267507 | K107: 0.2679909919 | L107: 0.04935298688 | M107: 0.1066628629 | N107: 1.733735189 | O107: 0.1259414014 | P107: 0.2039561862 | Q107: 1.110358968 | R107: 0.2081483432 | S107: 0.08533029028 | T107: 0.8757641111 | U107: 0.317515537 | V107: 0.06676561763 | W107: 0.3237468795 | X107: 0.06107321415 | Y107: 0.1066628629 | Z107: 0.5018469722 | AA107: 0.1259414014 | AB107: 0.0534124941 | AC107: 0.1897272803 | AD107: 0.04743550614 | AE107: 0.08533029028
A108: 14 | B108: 2034 | C108: Personbil | D108: Hybrid | E108: 0.02489076129 | F108: 10188.00283 | G108: 2.921003745 | H108: 0.3212275069 | I108: 0 | J108: 1.929341881 | K108: 0.5590066962 | L108: 0.03711851942 | M108: 0.07430914179 | N108: 1.640980096 | O108: 0.1461008249 | P108: 0 | Q108: 1.001251999 | R108: 0.4341799582 | S108: 0.05944731343 | T108: 0.8685696312 | U108: 0.3212275069 | V108: 0 | W108: 0.3442113386 | X108: 0.1288216438 | Y108: 0.07430914179 | Z108: 0.4752866266 | AA108: 0.1461008249 | AB108: 0 | AC108: 0.1696828426 | AD108: 0.1000556457 | AE108: 0.05944731343
A109: 15 | B109: 2035 | C109: Personbil | D109: Vægtet gnst. | E109: 0 | F109: 47061.94021 | G109: 2.669296207 | H109: 0.6066030357 | I109: 0.02122085451 | J109: 1.322753029 | K109: 0.5244056515 | L109: 0.1088491609 | M109: 0.08546447535 | N109: 1.43956692 | O109: 0.2894478025 | P109: 0.01697668361 | Q109: 0.6574654934 | R109: 0.4073053604 | S109: 0.06837158028 | T109: 1.112600611 | U109: 0.6066030357 | V109: 0.005508689813 | W109: 0.2691216521 | X109: 0.1459027585 | Y109: 0.08546447535 | Z109: 0.6039314538 | AA109: 0.2894478025 | AB109: 0.00440695185 | AC109: 0.1283825883 | AD109: 0.1133225309 | AE109: 0.06837158028
A110: 15 | B110: 2035 | C110: Personbil | D110: Benzin | E110: 0.05812926041 | F110: 21994.84237 | G110: 2.406768508 | H110: 0.7537232887 | I110: 0 | J110: 1.000899974 | K110: 0.4589729188 | L110: 0.1120958031 | M110: 0.08107652257 | N110: 1.246032298 | O110: 0.3440294994 | P110: 0 | Q110: 0.4806577597 | R110: 0.3564838204 | S110: 0.06486121806 | T110: 1.08182145 | U110: 0.7537232887 | V110: 0 | W110: 0.1506565191 | X110: 0.09636511921 | Y110: 0.08107652257 | Z110: 0.5566262456 | AA110: 0.3440294994 | AB110: 0 | AC110: 0.07288883365 | AD110: 0.07484669453 | AE110: 0.06486121806
A111: 15 | B111: 2035 | C111: Personbil | D111: Diesel | E111: 0.05726725671 | F111: 10709.23676 | G111: 2.862483088 | H111: 0.6856010045 | I111: 0 | J111: 1.181855565 | K111: 0.703522592 | L111: 0.1939446846 | M111: 0.0975592424 | N111: 1.518610106 | O111: 0.374633574 | P111: 0 | Q111: 0.519503824 | R111: 0.5464253142 | S111: 0.07804739392 | T111: 1.495255569 | U111: 0.6856010045 | V111: 0 | W111: 0.4179464839 | X111: 0.294148838 | Y111: 0.0975592424 | Z111: 0.865866117 | AA111: 0.374633574 | AB111: 0 | AC111: 0.1847200322 | AD111: 0.2284651169 | AE111: 0.07804739392
A112: 15 | B112: 2035 | C112: Personbil | D112: Elektricitet | E112: 0.1424860222 | F112: 3921.827427 | G112: 2.806773027 | H112: 0.3210920004 | I112: 0.2546503141 | J112: 1.800771029 | K112: 0.2742704078 | L112: 0.04929342547 | M112: 0.1066958499 | N112: 1.741450665 | O112: 0.1289211524 | P112: 0.2037202513 | Q112: 1.110427022 | R112: 0.2130255594 | S112: 0.08535667992 | T112: 0.8832916337 | U112: 0.3210920004 | V112: 0.06610429332 | W112: 0.3278098671 | X112: 0.06158962291 | Y112: 0.1066958499 | Z112: 0.5007883467 | AA112: 0.1289211524 | AB112: 0.05288343465 | AC112: 0.1857904794 | AD112: 0.04783660032 | AE112: 0.08535667992
A113: 15 | B113: 2035 | C113: Personbil | D113: Hybrid | E113: 0.02489234955 | F113: 10436.03366 | G113: 2.972688382 | H113: 0.3227624682 | I113: 0 | J113: 1.96603453 | K113: 0.5725047851 | L113: 0.03706420865 | M113: 0.07432238967 | N113: 1.652898484 | O113: 0.1473217187 | P113: 0 | Q113: 1.001454942 | R113: 0.4446639108 | S113: 0.05945791174 | T113: 0.8709715055 | U113: 0.3227624682 | V113: 0 | W113: 0.3440214216 | X113: 0.129865226 | Y113: 0.07432238967 | Z113: 0.4736003047 | AA113: 0.1473217187 | AB113: 0 | AC113: 0.1659544792 | AD113: 0.100866195 | AE113: 0.05945791174
A114: 16 | B114: 2036 | C114: Personbil | D114: Vægtet gnst. | E114: 0 | F114: 46856.69673 | G114: 2.675169064 | H114: 0.602415246 | I114: 0.01317289392 | J114: 1.346836764 | K114: 0.5224063741 | L114: 0.1049068223 | M114: 0.08543096435 | N114: 1.436909062 | O114: 0.2871727829 | P114: 0.01053831513 | Q114: 0.6651006687 | R114: 0.4057525235 | S114: 0.06834477148 | T114: 1.107990273 | U114: 0.602415246 | V114: 0.003552425581 | W114: 0.2721917881 | X114: 0.1443998487 | Y114: 0.08543096435 | Z114: 0.599380986 | AA114: 0.2871727829 | AB114: 0.002841940465 | AC114: 0.1288662689 | AD114: 0.1121552223 | AE114: 0.06834477148
A115: 16 | B115: 2036 | C115: Personbil | D115: Benzin | E115: 0.05785480389 | F115: 21826.87866 | G115: 2.403108329 | H115: 0.7501645944 | I115: 0 | J115: 1.005356082 | K115: 0.4579424447 | L115: 0.108441059 | M115: 0.08120414834 | N115: 1.246974411 | O115: 0.3424051687 | P115: 0 | Q115: 0.4839224709 | R115: 0.3556834522 | S115: 0.06496331867 | T115: 1.07938236 | U115: 0.7501645944 | V115: 0 | W115: 0.1515726946 | X115: 0.09644092235 | Y115: 0.08120414834 | Z115: 0.5556339335 | AA115: 0.3424051687 | AB115: 0 | AC115: 0.07335987535 | AD115: 0.07490557076 | AE115: 0.06496331867
A116: 16 | B116: 2036 | C116: Personbil | D116: Diesel | E116: 0.05735562255 | F116: 10394.50746 | G116: 2.863667018 | H116: 0.6866589164 | I116: 0 | J116: 1.203534715 | K116: 0.6876028853 | L116: 0.1883792027 | M116: 0.09749129845 | N116: 1.517239229 | O116: 0.3752116497 | P116: 0 | Q116: 0.5299740472 | R116: 0.5340604934 | S116: 0.07799303876 | T116: 1.504105226 | U116: 0.6866589164 | V116: 0 | W116: 0.4293616326 | X116: 0.290593379 | Y116: 0.09749129845 | Z116: 0.8687073041 | AA116: 0.3752116497 | AB116: 0 | AC116: 0.1897990204 | AD116: 0.2257035953 | AE116: 0.07799303876
A117: 16 | B117: 2036 | C117: Personbil | D117: Elektricitet | E117: 0.1423423147 | F117: 3993.087558 | G117: 2.757251452 | H117: 0.320768156 | I117: 0.1545766994 | J117: 1.846457271 | K117: 0.2795008872 | L117: 0.04923676971 | M117: 0.1067116689 | N117: 1.665291841 | O117: 0.1287911262 | P117: 0.1236613596 | Q117: 1.110381953 | R117: 0.2170880677 | S117: 0.08536933509 | T117: 0.8625362173 | U117: 0.320768156 | V117: 0.04168576964 | W117: 0.3313270952 | X117: 0.06204352753 | Y117: 0.1067116689 | Z117: 0.4784172724 | AA117: 0.1287911262 | AB117: 0.03334861571 | AC117: 0.1827190478 | AD117: 0.04818914759 | AE117: 0.08536933509
A118: 16 | B118: 2036 | C118: Personbil | D118: Hybrid | E118: 0.02489372769 | F118: 10642.22305 | G118: 3.018248805 | H118: 0.3227803376 | I118: 0 | J118: 1.999706296 | K118: 0.584409667 | L118: 0.03701684874 | M118: 0.07433565574 | N118: 1.662307047 | O118: 0.1473298751 | P118: 0 | Q118: 1.001598226 | R118: 0.453910421 | S118: 0.05946852459 | T118: 0.8718667816 | U118: 0.3227803376 | V118: 0 | W118: 0.3438781953 | X118: 0.1308725929 | Y118: 0.07433565574 | Z118: 0.4714345871 | AA118: 0.1473298751 | AB118: 0 | AC118: 0.1629875716 | AD118: 0.1016486159 | AE118: 0.05946852459
A119: 17 | B119: 2037 | C119: Personbil | D119: Vægtet gnst. | E119: 0 | F119: 46675.56673 | G119: 2.674427007 | H119: 0.59886262 | I119: 0.0002826963604 | J119: 1.368284479 | K119: 0.5202516189 | L119: 0.101346707 | M119: 0.08539888562 | N119: 1.429433092 | O119: 0.2852321292 | P119: 0.0002261570883 | Q119: 0.6715767696 | R119: 0.4040789273 | S119: 0.0683191085 | T119: 1.101997214 | U119: 0.59886262 | V119: 4.457251808e-05 | W119: 0.2747919151 | X119: 0.1428992208 | Y119: 0.08539888562 | Z119: 0.5938739357 | AA119: 0.2852321292 | AB119: 3.565801446e-05 | AC119: 0.1292973539 | AD119: 0.1109896861 | AE119: 0.0683191085
A120: 17 | B120: 2037 | C120: Personbil | D120: Benzin | E120: 0.05761768677 | F120: 21687.19498 | G120: 2.398489292 | H120: 0.747090055 | I120: 0 | J120: 1.008447793 | K120: 0.4566088478 | L120: 0.1050516514 | M120: 0.08129094535 | N120: 1.24720196 | O120: 0.3410018258 | P120: 0 | Q120: 0.4865197293 | R120: 0.3546476488 | S120: 0.06503275628 | T120: 1.077153189 | U120: 0.747090055 | V120: 0 | W120: 0.1523317252 | X120: 0.09644046377 | Y120: 0.08129094535 | Z120: 0.5546958487 | AA120: 0.3410018258 | AB120: 0 | AC120: 0.07375605203 | AD120: 0.07490521458 | AE120: 0.06503275628
A121: 17 | B121: 2037 | C121: Personbil | D121: Diesel | E121: 0.05743954247 | F121: 10120.28543 | G121: 2.862952435 | H121: 0.6876636018 | I121: 0 | J121: 1.22339799 | K121: 0.6713592544 | L121: 0.1830756694 | M121: 0.09745591927 | N121: 1.514660506 | O121: 0.3757606409 | P121: 0 | Q121: 0.5394910487 | R121: 0.5214440811 | S121: 0.07796473542 | T121: 1.51151563 | U121: 0.6876636018 | V121: 0 | W121: 0.4398990652 | X121: 0.286497044 | Y121: 0.09745591927 | Z121: 0.8707324955 | AA121: 0.3757606409 | AB121: 0 | AC121: 0.1944851432 | AD121: 0.222521976 | AE121: 0.07796473542
A122: 17 | B122: 2037 | C122: Personbil | D122: Elektricitet | E122: 0.1422852761 | F122: 4055.708809 | G122: 2.652898948 | H122: 0.3206396195 | I122: 0.003253441865 | J122: 1.888331799 | K122: 0.2847270672 | L122: 0.04920307639 | M122: 0.1067439438 | N122: 1.548432097 | O122: 0.1287395177 | P122: 0.002602753492 | Q122: 1.110547434 | R122: 0.2211472367 | S122: 0.08539515501 | T122: 0.8242914401 | U122: 0.3206396195 | V122: 0.0005129676808 | W122: 0.3338446831 | X122: 0.06255022606 | Y122: 0.1067439438 | Z122: 0.4432406514 | AA122: 0.1287395177 | AB122: 0.0004103741446 | AC122: 0.1801129048 | AD122: 0.04858269985 | AE122: 0.08539515501
A123: 17 | B123: 2037 | C123: Personbil | D123: Hybrid | E123: 0.0248949315 | F123: 10812.37751 | G123: 3.059513026 | H123: 0.3227959467 | I123: 0 | J123: 2.030579195 | K123: 0.5948142935 | L123: 0.03697687744 | M123: 0.07434671321 | N123: 1.670539269 | O123: 0.1473369997 | P123: 0 | Q123: 1.001733215 | R123: 0.4619916843 | S123: 0.05947737057 | T123: 0.8726903576 | U123: 0.3227959467 | V123: 0 | W123: 0.3437301016 | X123: 0.1318175961 | Y123: 0.07434671321 | Z123: 0.4698216543 | AA123: 0.1473369997 | AB123: 0 | AC123: 0.1606246852 | AD123: 0.1023825989 | AE123: 0.05947737057
A124: 18 | B124: 2038 | C124: Personbil | D124: Vægtet gnst. | E124: 0 | F124: 46515.32314 | G124: 2.683284692 | H124: 0.5959554398 | I124: 6.708102998e-05 | J124: 1.386386083 | K124: 0.5181070556 | L124: 0.097398991 | M124: 0.08537004161 | N124: 1.431095228 | O124: 0.2836391319 | P124: 5.366482398e-05 | Q124: 0.6766931506 | R124: 0.4024132471 | S124: 0.06829603329 | T124: 1.099817341 | U124: 0.5959554398 | V124: 1.093923603e-05 | W124: 0.2769618146 | X124: 0.1415191055 | Y124: 0.08537004161 | Z124: 0.5915443178 | AA124: 0.2836391319 | AB124: 8.751388823e-06 | AC124: 0.1296826493 | AD124: 0.1099177519 | AE124: 0.06829603329
A125: 18 | B125: 2038 | C125: Personbil | D125: Benzin | E125: 0.0574287508 | F125: 21567.42418 | G125: 2.391287843 | H125: 0.7446402485 | I125: 0 | J125: 1.009158358 | K125: 0.4549937781 | L125: 0.1011468017 | M125: 0.08134865731 | N125: 1.246627905 | O125: 0.339883636 | P125: 0 | Q125: 0.4882721172 | R125: 0.3533932257 | S125: 0.06507892585 | T125: 1.075317328 | U125: 0.7446402485 | V125: 0 | W125: 0.15295293 | X125: 0.09637549245 | Y125: 0.08134865731 | Z125: 0.5539155727 | AA125: 0.339883636 | AB125: 0 | AC125: 0.07409825944 | AD125: 0.07485475142 | AE125: 0.06507892585
A126: 18 | B126: 2038 | C126: Personbil | D126: Diesel | E126: 0.05750492098 | F126: 9892.309526 | G126: 2.858210848 | H126: 0.6884463105 | I126: 0 | J126: 1.240192556 | K126: 0.6559671243 | L126: 0.1761632353 | M126: 0.09744162231 | N126: 1.511074699 | O126: 0.3761883371 | P126: 0 | Q126: 0.5474440356 | R126: 0.5094890286 | S126: 0.07795329785 | T126: 1.517317077 | U126: 0.6884463105 | V126: 0 | W126: 0.4491062796 | X126: 0.2823228643 | Y126: 0.09744162231 | Z126: 0.8720031348 | AA126: 0.3761883371 | AB126: 0 | AC126: 0.1985816053 | AD126: 0.2192798946 | AE126: 0.07795329785
A127: 18 | B127: 2038 | C127: Personbil | D127: Elektricitet | E127: 0.1422391276 | F127: 4106.368188 | G127: 2.69322316 | H127: 0.3205356239 | I127: 0.000759867514 | J127: 1.926746641 | K127: 0.2892348222 | L127: 0.04917385267 | M127: 0.1067723525 | N127: 1.550073521 | O127: 0.1286977625 | P127: 0.0006078940112 | Q127: 1.110701577 | R127: 0.2246484056 | S127: 0.08541788202 | T127: 0.8261714588 | U127: 0.3205356239 | V127: 0.0001239153616 | W127: 0.3357295614 | X127: 0.06301000563 | Y127: 0.1067723525 | Z127: 0.4412180864 | AA127: 0.1286977625 | AB127: 9.913228927e-05 | AC127: 0.1780634994 | AD127: 0.0489398102 | AE127: 0.08541788202
A128: 18 | B128: 2038 | C128: Personbil | D128: Hybrid | E128: 0.02489607427 | F128: 10949.22125 | G128: 3.096682605 | H128: 0.3228107642 | I128: 0 | J128: 2.058863369 | K128: 0.6037085785 | L128: 0.03694165637 | M128: 0.07435823741 | N128: 1.677572541 | O128: 0.147343763 | P128: 0 | Q128: 1.001842321 | R128: 0.4688998668 | S128: 0.05948658993 | T128: 0.8735050169 | U128: 0.3228107642 | V128: 0 | W128: 0.3436628029 | X128: 0.1326732124 | Y128: 0.07435823741 | Z128: 0.4686556267 | AA128: 0.147343763 | AB128: 0 | AC128: 0.1587781186 | AD128: 0.1030471552 | AE128: 0.05948658993
A129: 19 | B129: 2039 | C129: Personbil | D129: Vægtet gnst. | E129: 0 | F129: 46360.69149 | G129: 2.690892239 | H129: 0.5935170293 | I129: 0 | J129: 1.402292339 | K129: 0.5157416055 | L129: 0.09400560653 | M129: 0.08533565841 | N129: 1.431987162 | O129: 0.2823190045 | P129: 0 | Q129: 0.6808236262 | R129: 0.4005760043 | S129: 0.06826852673 | T129: 1.097952401 | U129: 0.5935170293 | V129: 0 | W129: 0.278836454 | X129: 0.1402632592 | Y129: 0.08533565841 | Z129: 0.5895909531 | AA129: 0.2823190045 | AB129: 0 | AC129: 0.1300610846 | AD129: 0.1089423373 | AE129: 0.06826852673
A130: 19 | B130: 2039 | C130: Personbil | D130: Benzin | E130: 0.05725611618 | F130: 21456.26041 | G130: 2.383111475 | H130: 0.7424018107 | I130: 0 | J130: 1.009247581 | K130: 0.452679679 | L130: 0.09742773335 | M130: 0.08135467074 | N130: 1.245114457 | O130: 0.3388619233 | P130: 0 | Q130: 0.4895729298 | R130: 0.3515958672 | S130: 0.06508373659 | T130: 1.073485221 | U130: 0.7424018107 | V130: 0 | W130: 0.153543068 | X130: 0.09618567195 | Y130: 0.08135467074 | Z130: 0.5530729171 | AA130: 0.3388619233 | AB130: 0 | AC130: 0.07441993914 | AD130: 0.07470731802 | AE130: 0.06508373659
A131: 19 | B131: 2039 | C131: Personbil | D131: Diesel | E131: 0.05756554917 | F131: 9708.725731 | G131: 2.854097289 | H131: 0.6891721484 | I131: 0 | J131: 1.254670708 | K131: 0.6422160309 | L131: 0.1705901859 | M131: 0.0974482159 | N131: 1.507612416 | O131: 0.3765849573 | P131: 0 | Q131: 0.5542603183 | R131: 0.4988085677 | S131: 0.07795857272 | T131: 1.521790864 | U131: 0.6891721484 | V131: 0 | W131: 0.4568427423 | X131: 0.2783277575 | Y131: 0.0974482159 | Z131: 0.8727431964 | AA131: 0.3765849573 | AB131: 0 | AC131: 0.2020227674 | AD131: 0.216176899 | AE131: 0.07795857272
A132: 19 | B132: 2039 | C132: Personbil | D132: Elektricitet | E132: 0.1421946616 | F132: 4145.179752 | G132: 2.731413164 | H132: 0.32043542 | I132: 0 | J132: 1.962052739 | K132: 0.2929760721 | L132: 0.04914423934 | M132: 0.1068046934 | N132: 1.552511924 | O132: 0.1286575298 | P132: 0 | Q132: 1.110856409 | R132: 0.2275542307 | S132: 0.08544375475 | T132: 0.8278185921 | U132: 0.32043542 | V132: 0 | W132: 0.3371689887 | X132: 0.06340948993 | Y132: 0.1068046934 | Z132: 0.4398799833 | AA132: 0.1286575298 | AB132: 0 | AC132: 0.1765286094 | AD132: 0.04925008926 | AE132: 0.08544375475
A133: 19 | B133: 2039 | C133: Personbil | D133: Hybrid | E133: 0.0248976021 | F133: 11050.5256 | G133: 3.12990707 | H133: 0.3228305746 | I133: 0 | J133: 2.085172177 | K133: 0.6106303757 | L133: 0.03690368098 | M133: 0.07437026147 | N133: 1.683175915 | O133: 0.1473528052 | P133: 0 | Q133: 1.002050881 | R133: 0.47427602 | S133: 0.05949620918 | T133: 0.8744151583 | U133: 0.3228305746 | V133: 0 | W133: 0.343839194 | X133: 0.1333751283 | Y133: 0.07437026147 | Z133: 0.4678837921 | AA133: 0.1473528052 | AB133: 0 | AC133: 0.157442445 | AD133: 0.1035923327 | AE133: 0.05949620918
A134: 20 | B134: 2040 | C134: Personbil | D134: Vægtet gnst. | E134: 0 | F134: 46207.00237 | G134: 2.697869986 | H134: 0.5917219184 | I134: 0 | J134: 1.415999658 | K134: 0.5133683989 | L134: 0.09146461732 | M134: 0.0853153936 | N134: 1.432188902 | O134: 0.2813798042 | P134: 0 | Q134: 0.6838240456 | R134: 0.398732737 | S134: 0.06825231488 | T134: 1.096869743 | U134: 0.5917219184 | V134: 0 | W134: 0.2804884686 | X134: 0.1393439625 | Y134: 0.0853153936 | Z134: 0.588307015 | AA134: 0.2813798042 | AB134: 0 | AC134: 0.1304465755 | AD134: 0.1082283204 | AE134: 0.06825231488
A135: 20 | B135: 2040 | C135: Personbil | D135: Benzin | E135: 0.05710498152 | F135: 21350.23254 | G135: 2.375245346 | H135: 0.7404421486 | I135: 0 | J135: 1.009150507 | K135: 0.4500078736 | L135: 0.09430267176 | M135: 0.08134214516 | N135: 1.243180889 | O135: 0.337967455 | P135: 0 | Q135: 0.4906190394 | R135: 0.3495206785 | S135: 0.06507371613 | T135: 1.071834114 | U135: 0.7404421486 | V135: 0 | W135: 0.1541227737 | X135: 0.09592704625 | Y135: 0.08134214516 | Z135: 0.5522789118 | AA135: 0.337967455 | AB135: 0 | AC135: 0.07473129697 | AD135: 0.07450644369 | AE135: 0.06507371613
A136: 20 | B136: 2040 | C136: Personbil | D136: Diesel | E136: 0.05761488583 | F136: 9588.988305 | G136: 2.852322986 | H136: 0.6897628046 | I136: 0 | J136: 1.265614138 | K136: 0.6327116105 | L136: 0.1667658545 | M136: 0.09746857843 | N136: 1.505695039 | O136: 0.3769077102 | P136: 0 | Q136: 0.5593859722 | R136: 0.4914264936 | S136: 0.07797486275 | T136: 1.524662821 | U136: 0.6897628046 | V136: 0 | W136: 0.4620498309 | X136: 0.275381607 | Y136: 0.09746857843 | Z136: 0.8731107877 | AA136: 0.3769077102 | AB136: 0 | AC136: 0.204339588 | AD136: 0.2138886268 | AE136: 0.07797486275
A137: 20 | B137: 2040 | C137: Personbil | D137: Elektricitet | E137: 0.1421582351 | F137: 4167.570114 | G137: 2.766975961 | H137: 0.3203533328 | I137: 0 | J137: 1.995375442 | K137: 0.2953134038 | L137: 0.04911141841 | M137: 0.1068223633 | N137: 1.554513597 | O137: 0.1286245711 | P137: 0 | Q137: 1.111061501 | R137: 0.2293696341 | S137: 0.08545789062 | T137: 0.8295862946 | U137: 0.3203533328 | V137: 0 | W137: 0.3387357966 | X137: 0.06367480195 | Y137: 0.1068223633 | Z137: 0.4391990942 | AA137: 0.1286245711 | AB137: 0 | AC137: 0.1756604756 | AD137: 0.04945615686 | AE137: 0.08545789062
A138: 20 | B138: 2040 | C138: Personbil | D138: Hybrid | E138: 0.02490020033 | F138: 11100.21141 | G138: 3.159037696 | H138: 0.322864264 | I138: 0 | J138: 2.110921536 | K138: 0.6140097949 | L138: 0.03685792056 | M138: 0.07438418076 | N138: 1.686302872 | O138: 0.1473681824 | P138: 0 | Q138: 1.002526533 | R138: 0.4769008116 | S138: 0.05950734461 | T138: 0.8758231603 | U138: 0.322864264 | V138: 0 | W138: 0.3448293485 | X138: 0.133745367 | Y138: 0.07438418076 | Z138: 0.4675567064 | AA138: 0.1473681824 | AB138: 0 | AC138: 0.1568012827 | AD138: 0.1038798967 | AE138: 0.05950734461
E140: Gennemsnitlige kørselsomkostninger [kr. per km.] | R140: Marginale kørselsomkostninger, [kr. per km.]
B141: Forskelle fra 2021-2030 | C141: Brændstof-effektivitet [liter/km] / [kWh/km] | D141: Trafikarbejde, i alt for kategori [mio. km. per år] | E141: Gennemsnitlige omkostninger inkl.. afgifter og moms, i alt | F141: Brændstof, inkl. afgifter og moms [kr. per km.] | G141: Batteri, inkl. afgifter og moms [kr. per km.] | H141: Afskrivninger, inkl. afgifter og moms [kr. per km.] | I141: Reparation og vedligeholdelse, inkl. afgifter og moms [kr. per km.] | J141: Ejerafgift [kr. per km.] | K141: Dæk, inkl. afgifter og moms [kr. per km.] | L141: Gennemsnitlige omkostninger ekskl.. afgifter og moms, i alt [kr. per km.] | M141: Brændstof, ekskl. afgifter og moms [kr. per km.] | N141: Batteri, ekskl. afgifter og moms [kr. per km.] | O141: Afskrivninger, ekskl. afgifter og moms [kr. per km.] | P141: Reparation og vedligeholdelse, ekskl. afgifter og moms [kr. per km.] | Q141: Dæk, ekskl. afgifter og moms [kr. per km.] | R141: Marginale omkostninger inkl.. afgifter og moms, i alt | S141: Brændstof, inkl. afgifter og moms [kr. per km.] | T141: Batteri, inkl. afgifter og moms [kr. per km.] | U141: Afskrivninger, inkl. afgifter og moms [kr. per km.] | V141: Reparation og vedligeholdelse, inkl. afgifter og moms [kr. per km.] | W141: Dæk, inkl. afgifter og moms [kr. per km.] | X141: Marginale omkostninger ekskl.. afgifter og moms, i alt [kr. per km.] | Y141: Brændstof, ekskl. afgifter og moms [kr. per km.] | Z141: Batteri, ekskl. afgifter og moms [kr. per km.] | AA141: Afskrivninger, ekskl. afgifter og moms [kr. per km.] | AB141: Reparation og vedligeholdelse, ekskl. afgifter og moms [kr. per km.] | AC141: Dæk, ekskl. afgifter og moms [kr. per km.]
B142: Benzin | C142: =E84/E39-1 ->  | D142: =F84/F39-1 -> -0.008271850999 | E142: =G84/G39-1 -> 0.08083310388 | F142: -0.1155293801 | G142: 2.300817252 | H142: =J84/J39-1 -> 0.3011847053 | I142: 0.0907955984 | J142: -0.2737519866 | K142: -0.01603094708 | L142: 0.1790503936 | M142: -0.06950554431 | N142: 2.300817252 | O142: 0.4653969685 | P142: 0.0907955984 | Q142: -0.01603094708 | R142: -0.06121852848 | S142: -0.1155293801 | T142: 1.664995368 | U142: =W84/W39-1 -> 0.07813291806 | V142: -0.06769896717 | W142: -0.01603094708 | X142: -0.01714329332 | Y142: -0.06950554431 | Z142: 1.664995368 | AA142: 0.1772026163 | AB142: -0.06769896717 | AC142: -0.01603094708
B143: Diesel | C143: =E85/E40-1 -> -0.1573861276 | D143: -0.07496405133 | E143: 0.004932269195 | F143: -0.07700438518 | H143: 0.08366423773 | I143: 0.09758203807 | J143: -0.2272399691 | K143: 0.01987493908 | L143: 0.09091179368 | M143: -0.001828458016 | O143: 0.1789500125 | P143: 0.09758203807 | Q143: 0.01987493908 | R143: -0.05494531285 | S143: -0.07700438518 | U143: =W85/W40-1 -> -0.01474823028 | V143: 0.01391277458 | W143: 0.01987493908 | X143: 0.01228558171 | Y143: -0.001828458016 | AA143: 0.07740356695 | AB143: 0.01391277458 | AC143: 0.01987493908
B144: Hybrid | C144: -0.04532836292 | D144: -0.3547805627 | E144: 0.1661420126 | F144: 0.06489100903 | H144: 0.2525979867 | I144: 0.2454388104 | J144: -0.008093772969 | K144: -0.004229850245 | L144: 0.2242202054 | M144: 0.1282545373 | O144: 0.3375641811 | P144: 0.2454388104 | Q144: -0.004229850245 | R144: 0.08585894768 | S144: 0.06489100903 | U144: 0.1150886078 | V144: 0.1338360976 | W144: -0.004229850245 | X144: 0.1237618694 | Y144: 0.1282545373 | AA144: 0.1744270615 | AB144: 0.1338360976 | AC144: -0.004229850245
B145: Elektricitet | C145: -0.05718852743 | D145: 2.516885797 | E145: 0.1412526891 | F145: 0.05001058867 | G145: -0.0692011134 | H145: 0.152329052 | I145: 0.693161642 | J145: 0.2666273629 | K145: 0.02470419578 | L145: 0.05323402317 | M145: 0.2047035483 | N145: -0.0692011134 | O145: 0.004456039937 | P145: 0.693161642 | Q145: 0.02470419578 | R145: -0.03619022397 | S145: 0.05001058867 | T145: -0.248496802 | U145: =W87/W42-1 -> -0.1094330383 | V145: 0.2888453832 | W145: 0.02470419578 | X145: -0.106675325 | Y145: 0.2047035483 | Z145: -0.248496802 | AA145: -0.2570567069 | AB145: 0.2888453832 | AC145: 0.02470419578
C149: Benzin
A152: Scenarie | B152: År | C152: Størrelse | D152: Køretøjskategori | E152: Drivmiddel | F152: Brændstof-effektivitet [liter per km] | G152: Trafikarbejde, i alt for kategori [km. per år] | H152: Gennemsnitlige omkostninger inkl.. afgifter og moms, i alt | I152: Brændstof, inkl. afgifter og moms [kr. per km.] | J152: Batteri, inkl. afgifter og moms [kr. per km.] | K152: Afskrivninger, inkl. afgifter og moms [kr. per km.] | L152: Reparation og vedligeholdelse, inkl. afgifter og moms [kr. per km.] | M152: Ejerafgift [kr. per km.] | N152: Dæk, inkl. afgifter og moms [kr. per km.] | O152: Gennemsnitlige omkostninger ekskl.. afgifter og moms, i alt [kr. per km.] | P152: Brændstof, ekskl. afgifter og moms [kr. per km.] | Q152: Batteri, ekskl. afgifter og moms [kr. per km.] | R152: Afskrivninger, ekskl. afgifter og moms [kr. per km.] | S152: Reparation og vedligeholdelse, ekskl. afgifter og moms [kr. per km.] | T152: Dæk, ekskl. afgifter og moms [kr. per km.] | U152: Marginale omkostninger inkl.. afgifter og moms, i alt | V152: Brændstof, inkl. afgifter og moms [kr. per km.] | W152: Batteri, inkl. afgifter og moms [kr. per km.] | X152: Afskrivninger, inkl. afgifter og moms [kr. per km.] | Y152: Reparation og vedligeholdelse, inkl. afgifter og moms [kr. per km.] | Z152: Dæk, inkl. afgifter og moms [kr. per km.] | AA152: Marginale omkostninger ekskl.. afgifter og moms, i alt [kr. per km.] | AB152: Brændstof, ekskl. afgifter og moms [kr. per km.] | AC152: Batteri, ekskl. afgifter og moms [kr. per km.] | AD152: Afskrivninger, ekskl. afgifter og moms [kr. per km.] | AE152: Reparation og vedligeholdelse, ekskl. afgifter og moms [kr. per km.] | AF152: Dæk, ekskl. afgifter og moms [kr. per km.]
A153: =MATCH(input_år,$B$3:$B$30,0) -> 1 | B153: ='Resultat - niveau I'!B12 -> 2021 | C153: ='Personbiler - Benzin'!J21 -> Mini | D153: ='Personbiler - Benzin'!K21 -> Personbil | E153: ='Personbiler - Benzin'!L21 -> Benzin | F153: ='Personbiler - Benzin'!M21 -> 0.05885388934 | G153: ='Personbiler - Benzin'!N21 -> 4429.457191 | H153: ='Personbiler - Benzin'!O21 -> 1.607162477 | I153: ='Personbiler - Benzin'!P21 -> 0.6781370584 | J153: ='Personbiler - Benzin'!Q21 -> 0 | K153: ='Personbiler - Benzin'!R21 -> 0.4857719372 | L153: ='Personbiler - Benzin'!S21 -> 0.3057248577 | M153: ='Personbiler - Benzin'!T21 -> 0.08389576919 | N153: ='Personbiler - Benzin'!U21 -> 0.05363285488 | O153: ='Personbiler - Benzin'!V21 -> 0.8229915578 | P153: ='Personbiler - Benzin'!W21 -> 0.2803325017 | Q153: ='Personbiler - Benzin'!X21 -> 0 | R153: ='Personbiler - Benzin'!Y21 -> 0.2622965719 | S153: ='Personbiler - Benzin'!Z21 -> 0.2374562002 | T153: ='Personbiler - Benzin'!AA21 -> 0.04290628391 | U153: ='Personbiler - Benzin'!AB21 -> 0.8881685377 | V153: ='Personbiler - Benzin'!AC21 -> 0.6781370584 | W153: ='Personbiler - Benzin'!AD21 -> 0 | X153: ='Personbiler - Benzin'!AE21 -> 0.06296985353 | Y153: ='Personbiler - Benzin'!AF21 -> 0.09342877089 | Z153: ='Personbiler - Benzin'!AG21 -> 0.05363285488 | AA153: ='Personbiler - Benzin'!AH21 -> 0.429467823 | AB153: ='Personbiler - Benzin'!AI21 -> 0.2803325017 | AC153: ='Personbiler - Benzin'!AJ21 -> 0 | AD153: ='Personbiler - Benzin'!AK21 -> 0.03366300169 | AE153: ='Personbiler - Benzin'!AL21 -> 0.07256603564 | AF153: ='Personbiler - Benzin'!AM21 -> 0.04290628391
A154: =MATCH(input_år,$B$3:$B$30,0) -> 1 | B154: ='Resultat - niveau I'!B13 -> 2021 | C154: ='Personbiler - Benzin'!J22 -> Lille | D154: ='Personbiler - Benzin'!K22 -> Personbil | E154: ='Personbiler - Benzin'!L22 -> Benzin | F154: ='Personbiler - Benzin'!M22 -> 0.06658364762 | G154: ='Personbiler - Benzin'!N22 -> 12441.86597 | H154: ='Personbiler - Benzin'!O22 -> 2.093671231 | I154: ='Personbiler - Benzin'!P22 -> 0.7672022945 | J154: ='Personbiler - Benzin'!Q22 -> 0 | K154: ='Personbiler - Benzin'!R22 -> 0.7448851519 | L154: ='Personbiler - Benzin'!S22 -> 0.3535965359 | M154: ='Personbiler - Benzin'!T22 -> 0.1614919533 | N154: ='Personbiler - Benzin'!U22 -> 0.06649529585 | O154: ='Personbiler - Benzin'!V22 -> 0.9879014319 | P154: ='Personbiler - Benzin'!W22 -> 0.3171508412 | Q154: ='Personbiler - Benzin'!X22 -> 0 | R154: ='Personbiler - Benzin'!Y22 -> 0.3429162679 | S154: ='Personbiler - Benzin'!Z22 -> 0.2746380861 | T154: ='Personbiler - Benzin'!AA22 -> 0.05319623668 | U154: ='Personbiler - Benzin'!AB22 -> 1.039612878 | V154: ='Personbiler - Benzin'!AC22 -> 0.7672022945 | W154: ='Personbiler - Benzin'!AD22 -> 0 | X154: ='Personbiler - Benzin'!AE22 -> 0.1260044964 | Y154: ='Personbiler - Benzin'!AF22 -> 0.07991079123 | Z154: ='Personbiler - Benzin'!AG22 -> 0.06649529585 | AA154: ='Personbiler - Benzin'!AH22 -> 0.4898859915 | AB154: ='Personbiler - Benzin'!AI22 -> 0.3171508412 | AC154: ='Personbiler - Benzin'!AJ22 -> 0 | AD154: ='Personbiler - Benzin'!AK22 -> 0.05747227959 | AE154: ='Personbiler - Benzin'!AL22 -> 0.06206663397 | AF154: ='Personbiler - Benzin'!AM22 -> 0.05319623668
A155: =MATCH(input_år,$B$3:$B$30,0) -> 1 | B155: ='Resultat - niveau I'!B14 -> 2021 | C155: ='Personbiler - Benzin'!J23 -> Mellem | D155: ='Personbiler - Benzin'!K23 -> Personbil | E155: ='Personbiler - Benzin'!L23 -> Benzin | F155: ='Personbiler - Benzin'!M23 -> 0.08049546069 | G155: ='Personbiler - Benzin'!N23 -> 6829.627871 | H155: ='Personbiler - Benzin'!O23 -> 2.954653451 | I155: ='Personbiler - Benzin'!P23 -> 0.927499534 | J155: ='Personbiler - Benzin'!Q23 -> 0 | K155: ='Personbiler - Benzin'!R23 -> 1.190265368 | L155: ='Personbiler - Benzin'!S23 -> 0.4969169828 | M155: ='Personbiler - Benzin'!T23 -> 0.2333601859 | N155: ='Personbiler - Benzin'!U23 -> 0.1066113805 | O155: ='Personbiler - Benzin'!V23 -> 1.336471128 | P155: ='Personbiler - Benzin'!W23 -> 0.383415508 | Q155: ='Personbiler - Benzin'!X23 -> 0 | R155: ='Personbiler - Benzin'!Y23 -> 0.4818115774 | S155: ='Personbiler - Benzin'!Z23 -> 0.3859549381 | T155: ='Personbiler - Benzin'!AA23 -> 0.08528910442 | U155: ='Personbiler - Benzin'!AB23 -> 1.369920643 | V155: ='Personbiler - Benzin'!AC23 -> 0.927499534 | W155: ='Personbiler - Benzin'!AD23 -> 0 | X155: ='Personbiler - Benzin'!AE23 -> 0.226472 | Y155: ='Personbiler - Benzin'!AF23 -> 0.1093377281 | Z155: ='Personbiler - Benzin'!AG23 -> 0.1066113805 | AA155: ='Personbiler - Benzin'!AH23 -> 0.6488926772 | AB155: ='Personbiler - Benzin'!AI23 -> 0.383415508 | AC155: ='Personbiler - Benzin'!AJ23 -> 0 | AD155: ='Personbiler - Benzin'!AK23 -> 0.09526555755 | AE155: ='Personbiler - Benzin'!AL23 -> 0.08492250723 | AF155: ='Personbiler - Benzin'!AM23 -> 0.08528910442
A156: =MATCH(input_år,$B$3:$B$30,0) -> 1 | B156: ='Resultat - niveau I'!B15 -> 2021 | C156: ='Personbiler - Benzin'!J24 -> Stor | D156: ='Personbiler - Benzin'!K24 -> Personbil | E156: ='Personbiler - Benzin'!L24 -> Benzin | F156: ='Personbiler - Benzin'!M24 -> 0.1189712262 | G156: ='Personbiler - Benzin'!N24 -> 1300.224116 | H156: ='Personbiler - Benzin'!O24 -> 4.94960478 | I156: ='Personbiler - Benzin'!P24 -> 1.370832044 | J156: ='Personbiler - Benzin'!Q24 -> 0 | K156: ='Personbiler - Benzin'!R24 -> 2.08726658 | L156: ='Personbiler - Benzin'!S24 -> 0.9424604029 | M156: ='Personbiler - Benzin'!T24 -> 0.4206320962 | N156: ='Personbiler - Benzin'!U24 -> 0.1284136575 | O156: ='Personbiler - Benzin'!V24 -> 2.120666105 | P156: ='Personbiler - Benzin'!W24 -> 0.5666830495 | Q156: ='Personbiler - Benzin'!X24 -> 0 | R156: ='Personbiler - Benzin'!Y24 -> 0.7192440496 | S156: ='Personbiler - Benzin'!Z24 -> 0.7320080799 | T156: ='Personbiler - Benzin'!AA24 -> 0.102730926 | U156: ='Personbiler - Benzin'!AB24 -> 1.867194448 | V156: ='Personbiler - Benzin'!AC24 -> 1.370832044 | W156: ='Personbiler - Benzin'!AD24 -> 0 | X156: ='Personbiler - Benzin'!AE24 -> 0.2279336157 | Y156: ='Personbiler - Benzin'!AF24 -> 0.1400151313 | Z156: ='Personbiler - Benzin'!AG24 -> 0.1284136575 | AA156: ='Personbiler - Benzin'!AH24 -> 0.8618216491 | AB156: ='Personbiler - Benzin'!AI24 -> 0.5666830495 | AC156: ='Personbiler - Benzin'!AJ24 -> 0 | AD156: ='Personbiler - Benzin'!AK24 -> 0.08365805698 | AE156: ='Personbiler - Benzin'!AL24 -> 0.1087496165 | AF156: ='Personbiler - Benzin'!AM24 -> 0.102730926
A157: 1 | B157: 2021 | C157: Mini | D157: Personbil | E157: Benzin | F157: 0.05885388934 | G157: 4429.457191 | H157: 1.607162477 | I157: 0.6781370584 | J157: 0 | K157: 0.4857719372 | L157: 0.3057248577 | M157: 0.08389576919 | N157: 0.05363285488 | O157: 0.8229915578 | P157: 0.2803325017 | Q157: 0 | R157: 0.2622965719 | S157: 0.2374562002 | T157: 0.04290628391 | U157: 0.8881685377 | V157: 0.6781370584 | W157: 0 | X157: 0.06296985353 | Y157: 0.09342877089 | Z157: 0.05363285488 | AA157: 0.429467823 | AB157: 0.2803325017 | AC157: 0 | AD157: 0.03366300169 | AE157: 0.07256603564 | AF157: 0.04290628391
A158: 1 | B158: 2021 | C158: Lille | D158: Personbil | E158: Benzin | F158: 0.06658364762 | G158: 12441.86597 | H158: 2.093671231 | I158: 0.7672022945 | J158: 0 | K158: 0.7448851519 | L158: 0.3535965359 | M158: 0.1614919533 | N158: 0.06649529585 | O158: 0.9879014319 | P158: 0.3171508412 | Q158: 0 | R158: 0.3429162679 | S158: 0.2746380861 | T158: 0.05319623668 | U158: 1.039612878 | V158: 0.7672022945 | W158: 0 | X158: 0.1260044964 | Y158: 0.07991079123 | Z158: 0.06649529585 | AA158: 0.4898859915 | AB158: 0.3171508412 | AC158: 0 | AD158: 0.05747227959 | AE158: 0.06206663397 | AF158: 0.05319623668
A159: 1 | B159: 2021 | C159: Mellem | D159: Personbil | E159: Benzin | F159: 0.08049546069 | G159: 6829.627871 | H159: 2.954653451 | I159: 0.927499534 | J159: 0 | K159: 1.190265368 | L159: 0.4969169828 | M159: 0.2333601859 | N159: 0.1066113805 | O159: 1.336471128 | P159: 0.383415508 | Q159: 0 | R159: 0.4818115774 | S159: 0.3859549381 | T159: 0.08528910442 | U159: 1.369920643 | V159: 0.927499534 | W159: 0 | X159: 0.226472 | Y159: 0.1093377281 | Z159: 0.1066113805 | AA159: 0.6488926772 | AB159: 0.383415508 | AC159: 0 | AD159: 0.09526555755 | AE159: 0.08492250723 | AF159: 0.08528910442
A160: 1 | B160: 2021 | C160: Stor | D160: Personbil | E160: Benzin | F160: 0.1189712262 | G160: 1300.224116 | H160: 4.94960478 | I160: 1.370832044 | J160: 0 | K160: 2.08726658 | L160: 0.9424604029 | M160: 0.4206320962 | N160: 0.1284136575 | O160: 2.120666105 | P160: 0.5666830495 | Q160: 0 | R160: 0.7192440496 | S160: 0.7320080799 | T160: 0.102730926 | U160: 1.867194448 | V160: 1.370832044 | W160: 0 | X160: 0.2279336157 | Y160: 0.1400151313 | Z160: 0.1284136575 | AA160: 0.8618216491 | AB160: 0.5666830495 | AC160: 0 | AD160: 0.08365805698 | AE160: 0.1087496165 | AF160: 0.102730926
A161: 2 | B161: 2022 | C161: Mini | D161: Personbil | E161: Benzin | F161: 0.05799441051 | G161: 4274.337556 | H161: 1.623892125 | I161: 0.6767020017 | J161: 0 | K161: 0.4916218055 | L161: 0.3164169947 | M161: 0.08551846794 | N161: 0.05363285488 | O161: 0.8373606112 | P161: 0.2830131873 | Q161: 0 | R161: 0.2656803674 | S161: 0.2457607726 | T161: 0.04290628391 | U161: 0.8830313846 | V161: 0.6767020017 | W161: 0 | X161: 0.06049140329 | Y161: 0.09220512469 | Z161: 0.05363285488 | AA161: 0.4298323466 | AB161: 0.2830131873 | AC161: 0 | AD161: 0.03229724457 | AE161: 0.07161563083 | AF161: 0.04290628391
A162: 2 | B162: 2022 | C162: Lille | D162: Personbil | E162: Benzin | F162: 0.06501228232 | G162: 12537.23092 | H162: 2.108613219 | I162: 0.7585893398 | J162: 0 | K162: 0.7584991013 | L162: 0.3660805677 | M162: 0.158948914 | N162: 0.06649529585 | O162: 1.006465695 | P162: 0.3172604579 | Q162: 0 | R162: 0.351674579 | S162: 0.2843344215 | T162: 0.05319623668 | U162: 1.030171326 | V162: 0.7585893398 | W162: 0 | X162: 0.1241579566 | Y162: 0.08092873424 | Z162: 0.06649529585 | AA162: 0.4906037619 | AB162: 0.3172604579 | AC162: 0 | AD162: 0.05728979805 | AE162: 0.06285726931 | AF162: 0.05319623668
A163: 2 | B163: 2022 | C163: Mellem | D163: Personbil | E163: Benzin | F163: 0.07733986739 | G163: 7015.506827 | H163: 2.927237123 | I163: 0.9024325382 | J163: 0 | K163: 1.197347742 | L163: 0.5012861943 | M163: 0.2195592689 | N163: 0.1066113805 | O163: 1.345950388 | P163: 0.3774191716 | Q163: 0 | R163: 0.4938936113 | S163: 0.3893485004 | T163: 0.08528910442 | U163: 1.346077435 | V163: 0.9024325382 | W163: 0 | X163: 0.2274606129 | Y163: 0.1095729035 | Z163: 0.1066113805 | AA163: 0.6454633712 | AB163: 0.3774191716 | AC163: 0 | AD163: 0.09764992737 | AE163: 0.08510516774 | AF163: 0.08528910442
A164: 2 | B164: 2022 | C164: Stor | D164: Personbil | E164: Benzin | F164: 0.1157038702 | G164: 1194.473626 | H164: 4.906803303 | I164: 1.350079083 | J164: 0 | K164: 2.060200437 | L164: 0.9586725509 | M164: 0.4094375746 | N164: 0.1284136575 | O164: 2.130564786 | P164: 0.5646358123 | Q164: 0 | R164: 0.7185980086 | S164: 0.7446000395 | T164: 0.102730926 | U164: 1.840611027 | V164: 1.350079083 | W164: 0 | X164: 0.2208248483 | Y164: 0.1412934379 | Z164: 0.1284136575 | AA164: 0.8597094148 | AB164: 0.5646358123 | AC164: 0 | AD164: 0.08260020053 | AE164: 0.109742476 | AF164: 0.102730926
A165: 3 | B165: 2023 | C165: Mini | D165: Personbil | E165: Benzin | F165: 0.05710568822 | G165: 4109.522566 | H165: 1.641913333 | I165: 0.6744388302 | J165: 0 | K165: 0.4978404309 | L165: 0.3259017308 | M165: 0.09009948628 | N165: 0.05363285488 | O165: 0.8504514222 | P165: 0.2851616522 | Q165: 0 | R165: 0.2692559282 | S165: 0.2531275579 | T165: 0.04290628391 | U165: 0.8774012097 | V165: 0.6744388302 | W165: 0 | X165: 0.0586425652 | Y165: 0.09068695936 | Z165: 0.05363285488 | AA165: 0.4298016875 | AB165: 0.2851616522 | AC165: 0 | AD165: 0.03129727805 | AE165: 0.07043647329 | AF165: 0.04290628391
A166: 3 | B166: 2023 | C166: Lille | D166: Personbil | E166: Benzin | F166: 0.06519624506 | G166: 12579.4031 | H166: 2.1471611 | I166: 0.7699912324 | J166: 0 | K166: 0.7715438785 | L166: 0.3773858902 | M166: 0.1617448031 | N166: 0.06649529585 | O166: 1.032009717 | P166: 0.3255624709 | Q166: 0 | R166: 0.3601357548 | S166: 0.2931152546 | T166: 0.05319623668 | U166: 1.040603632 | V166: 0.7699912324 | W166: 0 | X166: 0.1224212992 | Y166: 0.08169580505 | Z166: 0.06649529585 | AA166: 0.4993388165 | AB166: 0.3255624709 | AC166: 0 | AD166: 0.05712705646 | AE166: 0.06345305247 | AF166: 0.05319623668
A167: 3 | B167: 2023 | C167: Mellem | D167: Personbil | E167: Benzin | F167: 0.07451777697 | G167: 7184.104418 | H167: 2.910440818 | I167: 0.8800818955 | J167: 0 | K167: 1.203678551 | L167: 0.5062172677 | M167: 0.2138517232 | N167: 0.1066113805 | O167: 1.355428812 | P167: 0.3721102584 | Q167: 0 | R167: 0.5048509893 | S167: 0.3931784603 | T167: 0.08528910442 | U167: 1.323629604 | V167: 0.8800818955 | W167: 0 | X167: 0.2270899543 | Y167: 0.1098463739 | Z167: 0.1066113805 | AA167: 0.6418664247 | AB167: 0.3721102584 | AC167: 0 | AD167: 0.09914948995 | AE167: 0.08531757194 | AF167: 0.08528910442
A168: 3 | B168: 2023 | C168: Stor | D168: Personbil | E168: Benzin | F168: 0.1122698325 | G168: 1099.133146 | H168: 4.869370681 | I168: 1.325947324 | J168: 0 | K168: 2.032757315 | L168: 0.9723054931 | M168: 0.4099468914 | N168: 0.1284136575 | O168: 2.136846693 | P168: 0.560628055 | Q168: 0 | R168: 0.7182989794 | S168: 0.7551887325 | T168: 0.102730926 | U168: 1.811497596 | V168: 1.325947324 | W168: 0 | X168: 0.2148981664 | Y168: 0.142238448 | Z168: 0.1284136575 | AA168: 0.855765637 | AB168: 0.560628055 | AC168: 0 | AD168: 0.08193019157 | AE168: 0.1104764645 | AF168: 0.102730926
A169: 4 | B169: 2024 | C169: Mini | D169: Personbil | E169: Benzin | F169: 0.05618798974 | G169: 3939.651064 | H169: 1.65808048 | I169: 0.6711211965 | J169: 0 | K169: 0.5044158973 | L169: 0.3340670742 | M169: 0.09484345697 | N169: 0.05363285488 | O169: 0.8619983569 | P169: 0.286595628 | Q169: 0 | R169: 0.2730268728 | S169: 0.2594695722 | T169: 0.04290628391 | U169: 0.8714420851 | V169: 0.6711211965 | W169: 0 | X169: 0.05772887628 | Y169: 0.08895915743 | Z169: 0.05363285488 | AA169: 0.4294275804 | AB169: 0.286595628 | AC169: 0 | AD169: 0.03083117732 | AE169: 0.06909449121 | AF169: 0.04290628391
A170: 4 | B170: 2024 | C170: Lille | D170: Personbil | E170: Benzin | F170: 0.06458255906 | G170: 12575.88311 | H170: 2.173838972 | I170: 0.7713877025 | J170: 0 | K170: 0.7840140151 | L170: 0.3874622868 | M170: 0.1644796716 | N170: 0.06649529585 | O170: 1.051858306 | P170: 0.3294134415 | Q170: 0 | R170: 0.3683070459 | S170: 0.300941582 | T170: 0.05319623668 | U170: 1.040973699 | V170: 0.7713877025 | W170: 0 | X170: 0.1208232121 | Y170: 0.08226748859 | Z170: 0.06649529585 | AA170: 0.5035014897 | AB170: 0.3294134415 | AC170: 0 | AD170: 0.05699473298 | AE170: 0.06389707852 | AF170: 0.05319623668
A171: 4 | B171: 2024 | C171: Mellem | D171: Personbil | E171: Benzin | F171: 0.07200019553 | G171: 7335.113222 | H171: 2.89592507 | I171: 0.8599855164 | J171: 0 | K171: 1.209296791 | L171: 0.5115256002 | M171: 0.208505782 | N171: 0.1066113805 | O171: 1.364594462 | P171: 0.3672482562 | Q171: 0 | R171: 0.5147556639 | S171: 0.3973014371 | T171: 0.08528910442 | U171: 1.302938601 | V171: 0.8599855164 | W171: 0 | X171: 0.225596883 | Y171: 0.1107448214 | Z171: 0.1066113805 | AA171: 0.6384495131 | AB171: 0.3672482562 | AC171: 0 | AD171: 0.09989675718 | AE171: 0.08601539528 | AF171: 0.08528910442
A172: 4 | B172: 2024 | C172: Stor | D172: Personbil | E172: Benzin | F172: 0.1087176959 | G172: 1014.170199 | H172: 4.823848215 | I172: 1.298547082 | J172: 0 | K172: 2.005462112 | L172: 0.9832789728 | M172: 0.408146391 | N172: 0.1284136575 | O172: 2.139376358 | P172: 0.5545316083 | Q172: 0 | R172: 0.7184019997 | S172: 0.7637118236 | T172: 0.102730926 | U172: 1.780516368 | V172: 1.298547082 | W172: 0 | X172: 0.2105743975 | Y172: 0.1429812304 | Z172: 0.1284136575 | AA172: 0.8500814707 | AB172: 0.5545316083 | AC172: 0 | AD172: 0.08176555353 | AE172: 0.1110533828 | AF172: 0.102730926
A173: 5 | B173: 2025 | C173: Mini | D173: Personbil | E173: Benzin | F173: 0.05524457151 | G173: 3769.214022 | H173: 1.672615832 | I173: 0.6670231778 | J173: 0 | K173: 0.5113195779 | L173: 0.3408334442 | M173: 0.09980677733 | N173: 0.05363285488 | O173: 0.872135268 | P173: 0.2875198698 | Q173: 0 | R173: 0.2769841091 | S173: 0.2647250052 | T173: 0.04290628391 | U173: 0.8661185065 | V173: 0.6670231778 | W173: 0 | X173: 0.05773295728 | Y173: 0.08772951657 | Z173: 0.05363285488 | AA173: 0.4294852484 | AB173: 0.2875198698 | AC173: 0 | AD173: 0.03091966437 | AE173: 0.06813943035 | AF173: 0.04290628391
A174: 5 | B174: 2025 | C174: Lille | D174: Personbil | E174: Benzin | F174: 0.06401452182 | G174: 12533.1977 | H174: 2.198735956 | I174: 0.772911593 | J174: 0 | K174: 0.79588642 | L174: 0.3962332033 | M174: 0.1672094438 | N174: 0.06649529585 | O174: 1.070297941 | P174: 0.3331629964 | Q174: 0 | R174: 0.3761847634 | S174: 0.3077539443 | T174: 0.05319623668 | U174: 1.041474502 | V174: 0.772911593 | W174: 0 | X174: 0.1194164269 | Y174: 0.08265118584 | Z174: 0.06649529585 | AA174: 0.5074870041 | AB174: 0.3331629964 | AC174: 0 | AD174: 0.05693267517 | AE174: 0.0641950958 | AF174: 0.05319623668
A175: 5 | B175: 2025 | C175: Mellem | D175: Personbil | E175: Benzin | F175: 0.06974160217 | G175: 7465.170027 | H175: 2.883161924 | I175: 0.8420603842 | J175: 0 | K175: 1.214263792 | L175: 0.5166978322 | M175: 0.2035285355 | N175: 0.1066113805 | O175: 1.373300889 | P175: 0.362969534 | Q175: 0 | R175: 0.5237235464 | S175: 0.4013187046 | T175: 0.08528910442 | U175: 1.283631611 | V175: 0.8420603842 | W175: 0 | X175: 0.2231542298 | Y175: 0.1118056167 | Z175: 0.1066113805 | AA175: 0.6351012744 | AB175: 0.362969534 | AC175: 0 | AD175: 0.100003322 | AE175: 0.08683931394 | AF175: 0.08528910442
A176: 5 | B176: 2025 | C176: Stor | D176: Personbil | E176: Benzin | F176: 0.1050242619 | G176: 937.1380071 | H176: 4.767584419 | I176: 1.268063359 | J176: 0 | K176: 1.978047985 | L176: 0.9894900481 | M176: 0.4035693699 | N176: 0.1284136575 | O176: 2.136735962 | P176: 0.5465978154 | Q176: 0 | R176: 0.7188712606 | S176: 0.7685359597 | T176: 0.102730926 | U176: 1.746877428 | V176: 1.268063359 | W176: 0 | X176: 0.2071440047 | Y176: 0.1432564074 | Z176: 0.1284136575 | AA176: 0.8424126323 | AB176: 0.5465978154 | AC176: 0 | AD176: 0.08181677838 | AE176: 0.1112671126 | AF176: 0.102730926
A177: 6 | B177: 2026 | C177: Mini | D177: Personbil | E177: Benzin | F177: 0.05426864038 | G177: 3598.653359 | H177: 1.688253296 | I177: 0.6618432487 | J177: 0 | K177: 0.5184641523 | L177: 0.3459124044 | M177: 0.1084006362 | N177: 0.05363285488 | O177: 0.8804393511 | P177: 0.2877234189 | Q177: 0 | R177: 0.2811398197 | S177: 0.2686698287 | T177: 0.04290628391 | U177: 0.8612124053 | V177: 0.6618432487 | W177: 0 | X177: 0.05853681024 | Y177: 0.08719949152 | Z177: 0.05363285488 | AA177: 0.4298543897 | AB177: 0.2877234189 | AC177: 0 | AD177: 0.03149692648 | AE177: 0.06772776041 | AF177: 0.04290628391
A178: 6 | B178: 2026 | C178: Lille | D178: Personbil | E178: Benzin | F178: 0.06345187877 | G178: 12441.85739 | H178: 2.225681272 | I178: 0.7738391323 | J178: 0 | K178: 0.8071559195 | L178: 0.4030746542 | M178: 0.1751162704 | N178: 0.06649529585 | O178: 1.08650524 | P178: 0.3364114407 | Q178: 0 | R178: 0.38382987 | S178: 0.3130676926 | T178: 0.05319623668 | U178: 1.041601353 | V178: 0.7738391323 | W178: 0 | X178: 0.118392646 | Y178: 0.08287427871 | Z178: 0.06649529585 | AA178: 0.5110094837 | AB178: 0.3364114407 | AC178: 0 | AD178: 0.05703343442 | AE178: 0.06436837181 | AF178: 0.05319623668
A179: 6 | B179: 2026 | C179: Mellem | D179: Personbil | E179: Benzin | F179: 0.06758452481 | G179: 7551.971974 | H179: 2.873360206 | I179: 0.824239582 | J179: 0 | K179: 1.218770347 | L179: 0.5193605276 | M179: 0.2043783693 | N179: 0.1066113805 | O179: 1.379167032 | P179: 0.3583220513 | Q179: 0 | R179: 0.5321690591 | S179: 0.4033868175 | T179: 0.08528910442 | U179: 1.263986956 | V179: 0.824239582 | W179: 0 | X179: 0.2207420237 | Y179: 0.1123939699 | Z179: 0.1066113805 | AA179: 0.6308544759 | AB179: 0.3583220513 | AC179: 0 | AD179: 0.09994703286 | AE179: 0.0872962873 | AF179: 0.08528910442
A180: 6 | B180: 2026 | C180: Stor | D180: Personbil | E180: Benzin | F180: 0.100936115 | G180: 861.6603811 | H180: 4.697749794 | I180: 1.230985073 | J180: 0 | K180: 1.948006142 | L180: 0.9841583324 | M180: 0.406186589 | N180: 0.1284136575 | O180: 2.121766618 | P180: 0.5351467051 | Q180: 0 | R180: 0.7194941654 | S180: 0.7643948213 | T180: 0.102730926 | U180: 1.70957235 | V180: 1.230985073 | W180: 0 | X180: 0.2075188897 | Y180: 0.1426547294 | Z180: 0.1284136575 | AA180: 0.831943489 | AB180: 0.5351467051 | AC180: 0 | AD180: 0.08326606799 | AE180: 0.1107997898 | AF180: 0.102730926
A181: 7 | B181: 2027 | C181: Mini | D181: Personbil | E181: Benzin | F181: 0.05321189564 | G181: 3418.631362 | H181: 1.689270208 | I181: 0.6549987452 | J181: 0 | K181: 0.525683091 | L181: 0.3482891366 | M181: 0.1066663805 | N181: 0.05363285488 | O181: 0.886000333 | P181: 0.2869553099 | Q181: 0 | R181: 0.2856229049 | S181: 0.2705158343 | T181: 0.04290628391 | U181: 0.8559710522 | V181: 0.6549987452 | W181: 0 | X181: 0.0601101616 | Y181: 0.08722929044 | Z181: 0.05363285488 | AA181: 0.4301512332 | AB181: 0.2869553099 | AC181: 0 | AD181: 0.03253873412 | AE181: 0.06775090519 | AF181: 0.04290628391
A182: 7 | B182: 2027 | C182: Lille | D182: Personbil | E182: Benzin | F182: 0.06278741665 | G182: 12264.20119 | H182: 2.228515295 | I182: 0.7728662666 | J182: 0 | K182: 0.8179412641 | L182: 0.4062262081 | M182: 0.1649862603 | N182: 0.06649529585 | O182: 1.098791629 | P182: 0.3385931357 | Q182: 0 | R182: 0.391486755 | S182: 0.3155155014 | T182: 0.05319623668 | U182: 1.040268595 | V182: 0.7728662666 | W182: 0 | X182: 0.1181104494 | Y182: 0.08279658319 | Z182: 0.06649529585 | AA182: 0.5135708601 | AB182: 0.3385931357 | AC182: 0 | AD182: 0.05747346192 | AE182: 0.06430802578 | AF182: 0.05319623668
A183: 7 | B183: 2027 | C183: Mellem | D183: Personbil | E183: Benzin | F183: 0.06514341157 | G183: 7539.142744 | H183: 2.827516652 | I183: 0.8018668067 | J183: 0 | K183: 1.223286863 | L183: 0.5132724549 | M183: 0.1824791475 | N183: 0.1066113805 | O183: 1.376389449 | P183: 0.3512982883 | Q183: 0 | R183: 0.5411438386 | S183: 0.3986582174 | T183: 0.08528910442 | U183: 1.240147836 | V183: 0.8018668067 | W183: 0 | X183: 0.2199703319 | Y183: 0.1116993173 | Z183: 0.1066113805 | AA183: 0.6238513981 | AB183: 0.3512982883 | AC183: 0 | AD183: 0.100507254 | AE183: 0.08675675131 | AF183: 0.08528910442
A184: 7 | B184: 2027 | C184: Stor | D184: Personbil | E184: Benzin | F184: 0.09612401 | G184: 783.958963 | H184: 4.545857987 | I184: 1.183214865 | J184: 0 | K184: 1.912343455 | L184: 0.9602415397 | M184: 0.36164447 | N184: 0.1284136575 | O184: 2.087014563 | P184: 0.5183670822 | Q184: 0 | R184: 0.7200978836 | S184: 0.7458186716 | T184: 0.102730926 | U184: 1.664863215 | V184: 1.183214865 | W184: 0 | X184: 0.2125205534 | Y184: 0.1407141392 | Z184: 0.1284136575 | AA184: 0.8168897304 | AB184: 0.5183670822 | AC184: 0 | AD184: 0.0864991869 | AE184: 0.1092925353 | AF184: 0.102730926
A185: 8 | B185: 2028 | C185: Mini | D185: Personbil | E185: Benzin | F185: 0.0521341813 | G185: 3247.878634 | H185: 1.688007522 | I185: 0.6474422551 | J185: 0 | K185: 0.533079563 | L185: 0.3489892414 | M185: 0.104863608 | N185: 0.05363285488 | O185: 0.8899393305 | P185: 0.2857110252 | Q185: 0 | R185: 0.2902624164 | S185: 0.271059605 | T185: 0.04290628391 | U185: 0.8509064886 | V185: 0.6474422551 | W185: 0 | X185: 0.06212733908 | Y185: 0.08770403948 | Z185: 0.05363285488 | AA185: 0.4305850029 | AB185: 0.2857110252 | AC185: 0 | AD185: 0.03384805155 | AE185: 0.06811964232 | AF185: 0.04290628391
A186: 8 | B186: 2028 | C186: Lille | D186: Personbil | E186: Benzin | F186: 0.06224401465 | G186: 12109.34478 | H186: 2.232971818 | I186: 0.7729939208 | J186: 0 | K186: 0.8280136065 | L186: 0.4094066619 | M186: 0.1560623329 | N186: 0.06649529585 | O186: 1.110934542 | P186: 0.3411159587 | Q186: 0 | R186: 0.3986365901 | S186: 0.3179857568 | T186: 0.05319623668 | U186: 1.04014226 | V186: 0.7729939208 | W186: 0 | X186: 0.1178376133 | Y186: 0.08281542998 | Z186: 0.06649529585 | AA186: 0.5165085531 | AB186: 0.3411159587 | AC186: 0 | AD186: 0.05787369366 | AE186: 0.06432266406 | AF186: 0.05319623668
A187: 8 | B187: 2028 | C187: Mellem | D187: Personbil | E187: Benzin | F187: 0.06322070273 | G187: 7566.632612 | H187: 2.795883816 | I187: 0.7851231826 | J187: 0 | K187: 1.226958987 | L187: 0.5122608683 | M187: 0.1649293976 | N187: 0.1066113805 | O187: 1.378181123 | P187: 0.3464685037 | Q187: 0 | R187: 0.5485509962 | S187: 0.397872519 | T187: 0.08528910442 | U187: 1.220629905 | V187: 0.7851231826 | W187: 0 | X187: 0.21765165 | Y187: 0.1112436915 | Z187: 0.1066113805 | AA187: 0.6183502525 | AB187: 0.3464685037 | AC187: 0 | AD187: 0.1001897772 | AE187: 0.0864028672 | AF187: 0.08528910442
A188: 8 | B188: 2028 | C188: Stor | D188: Personbil | E188: Benzin | F188: 0.0914268785 | G188: 720.1065272 | H188: 4.396176648 | I188: 1.13540911 | J188: 0 | K188: 1.8792223 | L188: 0.9345308149 | M188: 0.3186007652 | N188: 0.1284136575 | O188: 2.050950903 | P188: 0.5010468474 | Q188: 0 | R188: 0.7213239526 | S188: 0.7258491766 | T188: 0.102730926 | U188: 1.621250035 | V188: 1.13540911 | W188: 0 | X188: 0.2187719752 | Y188: 0.1386552919 | Z188: 0.1284136575 | AA188: 0.8015526884 | AB188: 0.5010468474 | AC188: 0 | AD188: 0.0900814844 | AE188: 0.1076934306 | AF188: 0.102730926
A189: 9 | B189: 2029 | C189: Mini | D189: Personbil | E189: Benzin | F189: 0.05103021336 | G189: 3084.869062 | H189: 1.684115973 | I189: 0.6391138246 | J189: 0 | K189: 0.5406607084 | L189: 0.3477577229 | M189: 0.1029508617 | N189: 0.05363285488 | O189: 0.8920203777 | P189: 0.2839661404 | Q189: 0 | R189: 0.2950448677 | S189: 0.2701030858 | T189: 0.04290628391 | U189: 0.845674328 | V189: 0.6391138246 | W189: 0 | X189: 0.06453595969 | Y189: 0.0883916888 | Z189: 0.05363285488 | AA189: 0.4308544829 | AB189: 0.2839661404 | AC189: 0 | AD189: 0.03532831975 | AE189: 0.06865373887 | AF189: 0.04290628391
A190: 9 | B190: 2029 | C190: Lille | D190: Personbil | E190: Benzin | F190: 0.06179651018 | G190: 11965.36511 | H190: 2.238092539 | I190: 0.773953338 | J190: 0 | K190: 0.8374041876 | L190: 0.4121139466 | M190: 0.1481257711 | N190: 0.06649529585 | O190: 1.122463369 | P190: 0.3438769962 | Q190: 0 | R190: 0.4053016336 | S190: 0.3200885022 | T190: 0.05319623668 | U190: 1.040976986 | V190: 0.773953338 | W190: 0 | X190: 0.1176445807 | Y190: 0.08288377112 | Z190: 0.06649529585 | AA190: 0.5196646311 | AB190: 0.3438769962 | AC190: 0 | AD190: 0.05821565366 | AE190: 0.06437574456 | AF190: 0.05319623668
A191: 9 | B191: 2029 | C191: Mellem | D191: Personbil | E191: Benzin | F191: 0.06184369022 | G191: 7634.754186 | H191: 2.779389295 | I191: 0.7745442314 | J191: 0 | K191: 1.229845963 | L191: 0.5165328633 | M191: 0.1518548569 | N191: 0.1066113805 | O191: 1.38493887 | P191: 0.3441395374 | Q191: 0 | R191: 0.5543196546 | S191: 0.4011905734 | T191: 0.08528910442 | U191: 1.206340441 | V191: 0.7745442314 | W191: 0 | X191: 0.2139695672 | Y191: 0.1112152621 | Z191: 0.1066113805 | AA191: 0.614885746 | AB191: 0.3441395374 | AC191: 0 | AD191: 0.09907631811 | AE191: 0.08638078608 | AF191: 0.08528910442
A192: 9 | B192: 2029 | C192: Stor | D192: Personbil | E192: Benzin | F192: 0.08745827192 | G192: 673.5878931 | H192: 4.276551505 | I192: 1.095346991 | J192: 0 | K192: 1.854357331 | L192: 0.9161760431 | M192: 0.2822574827 | N192: 0.1284136575 | O192: 2.024565189 | P192: 0.4866761529 | Q192: 0 | R192: 0.7235650671 | S192: 0.7115930432 | T192: 0.102730926 | U192: 1.588461375 | V192: 1.095346991 | W192: 0 | X192: 0.227286695 | Y192: 0.1374140311 | Z192: 0.1284136575 | AA192: 0.790232259 | AB192: 0.4866761529 | AC192: 0 | AD192: 0.09409583549 | AE192: 0.1067293446 | AF192: 0.102730926
A193: 10 | B193: 2030 | C193: Mini | D193: Personbil | E193: Benzin | F193: 0.04998454132 | G193: 2942.323799 | H193: 1.680258545 | I193: 0.6308833325 | J193: 0 | K193: 0.5489820456 | L193: 0.3456326537 | M193: 0.1011276587 | N193: 0.05363285488 | O193: 0.8930342469 | P193: 0.2820399147 | Q193: 0 | R193: 0.2996355018 | S193: 0.2684525466 | T193: 0.04290628391 | U193: 0.8406233137 | V193: 0.6308833325 | W193: 0 | X193: 0.06695226786 | Y193: 0.08915485851 | Z193: 0.05363285488 | AA193: 0.4309376373 | AB193: 0.2820399147 | AC193: 0 | AD193: 0.03674494658 | AE193: 0.06924649205 | AF193: 0.04290628391
A194: 10 | B194: 2030 | C194: Lille | D194: Personbil | E194: Benzin | F194: 0.06148414236 | G194: 11830.32084 | H194: 2.245015054 | I194: 0.7760263393 | J194: 0 | K194: 0.8465496285 | L194: 0.4142320571 | M194: 0.1417117332 | N194: 0.06649529585 | O194: 1.133397122 | P194: 0.346926906 | Q194: 0 | R194: 0.4115403427 | S194: 0.3217336366 | T194: 0.05319623668 | U194: 1.043502546 | V194: 0.7760263393 | W194: 0 | X194: 0.1179507348 | Y194: 0.08303017587 | Z194: 0.06649529585 | AA194: 0.5232746881 | AB194: 0.346926906 | AC194: 0 | AD194: 0.05866208846 | AE194: 0.06448945699 | AF194: 0.05319623668
A195: 10 | B195: 2030 | C195: Mellem | D195: Personbil | E195: Benzin | F195: 0.06086481556 | G195: 7714.705741 | H195: 2.772561917 | I195: 0.7682094634 | J195: 0 | K195: 1.232565304 | L195: 0.5231230281 | M195: 0.1420527406 | N195: 0.1066113805 | O195: 1.394076116 | P195: 0.343432328 | Q195: 0 | R195: 0.5590455359 | S195: 0.4063091481 | T195: 0.08528910442 | U195: 1.196210052 | V195: 0.7682094634 | W195: 0 | X195: 0.2099786466 | Y195: 0.1114105613 | Z195: 0.1066113805 | AA195: 0.6129206093 | AB195: 0.343432328 | AC195: 0 | AD195: 0.09766670213 | AE195: 0.08653247481 | AF195: 0.08528910442
A196: 10 | B196: 2030 | C196: Stor | D196: Personbil | E196: Benzin | F196: 0.08439830266 | G196: 639.6353904 | H196: 4.192075183 | I196: 1.065238993 | J196: 0 | K196: 1.840732145 | L196: 0.9041008636 | M196: 0.2535895245 | N196: 0.1284136575 | O196: 2.008699468 | P196: 0.4762210367 | Q196: 0 | R196: 0.7275332426 | S196: 0.702214263 | T196: 0.102730926 | U196: 1.565977097 | V196: 1.065238993 | W196: 0 | X196: 0.235272135 | Y196: 0.1370523116 | Z196: 0.1284136575 | AA196: 0.783170122 | AB196: 0.4762210367 | AC196: 0 | AD196: 0.09776976201 | AE196: 0.1064483973 | AF196: 0.102730926
A197: 11 | B197: 2031 | C197: Mini | D197: Personbil | E197: Benzin | F197: 0.04894920366 | G197: 2811.07483 | H197: 1.674078264 | I197: 0.6219850815 | J197: 0 | K197: 0.5571748805 | L197: 0.342012061 | M197: 0.09927338598 | N197: 0.05363285488 | O197: 0.8922912477 | P197: 0.2795334454 | Q197: 0 | R197: 0.3042110828 | S197: 0.2656404357 | T197: 0.04290628391 | U197: 0.8347167826 | V197: 0.6219850815 | W197: 0 | X197: 0.06940001695 | Y197: 0.08969882934 | Z197: 0.05363285488 | AA197: 0.4302472913 | AB197: 0.2795334454 | AC197: 0 | AD197: 0.03813856835 | AE197: 0.06966899366 | AF197: 0.04290628391
A198: 11 | B198: 2031 | C198: Lille | D198: Personbil | E198: Benzin | F198: 0.06118324955 | G198: 11679.69177 | H198: 2.249330362 | I198: 0.7774399911 | J198: 0 | K198: 0.8551054781 | L198: 0.414777904 | M198: 0.1355116931 | N198: 0.06649529585 | O198: 1.1422018 | P198: 0.3493982183 | Q198: 0 | R198: 0.4174497499 | S198: 0.3221575953 | T198: 0.05319623668 | U198: 1.045926188 | V198: 0.7774399911 | W198: 0 | X198: 0.1188474996 | Y198: 0.08314340166 | Z198: 0.06649529585 | AA198: 0.5264588867 | AB198: 0.3493982183 | AC198: 0 | AD198: 0.0592870324 | AE198: 0.06457739935 | AF198: 0.05319623668
A199: 11 | B199: 2031 | C199: Mellem | D199: Personbil | E199: Benzin | F199: 0.0600057106 | G199: 7778.768138 | H199: 2.76627068 | I199: 0.7624773032 | J199: 0 | K199: 1.234792373 | L199: 0.5290560352 | M199: 0.1333335883 | N199: 0.1066113805 | O199: 1.402040621 | P199: 0.3426736652 | Q199: 0 | R199: 0.5631605425 | S199: 0.4109173089 | T199: 0.08528910442 | U199: 1.187676388 | V199: 0.7624773032 | W199: 0 | X199: 0.2068986047 | Y199: 0.1116890996 | Z199: 0.1066113805 | AA199: 0.6112457451 | AB199: 0.3426736652 | AC199: 0 | AD199: 0.09653416024 | AE199: 0.08674881526 | AF199: 0.08528910442
A200: 11 | B200: 2031 | C200: Stor | D200: Personbil | E200: Benzin | F200: 0.08146185897 | G200: 609.4650772 | H200: 4.105769721 | I200: 1.035115124 | J200: 0 | K200: 1.828229062 | L200: 0.8879491484 | M200: 0.2260627297 | N200: 0.1284136575 | O200: 1.98914637 | P200: 0.4652029533 | Q200: 0 | R200: 0.7315432493 | S200: 0.6896692415 | T200: 0.102730926 | U200: 1.544097293 | V200: 1.035115124 | W200: 0 | X200: 0.2438967122 | Y200: 0.1366717995 | Z200: 0.1284136575 | AA200: 0.7757470046 | AB200: 0.4652029533 | AC200: 0 | AD200: 0.1016602713 | AE200: 0.106152854 | AF200: 0.102730926
A201: 12 | B201: 2032 | C201: Mini | D201: Personbil | E201: Benzin | F201: 0.04796060252 | G201: 2695.219396 | H201: 1.666523775 | I201: 0.6129247173 | J201: 0 | K201: 0.5650027421 | L201: 0.337478508 | M201: 0.097484953 | N201: 0.05363285488 | O201: 0.8903534173 | P201: 0.2766890876 | Q201: 0 | R201: 0.3086388163 | S201: 0.2621192295 | T201: 0.04290628391 | U201: 0.8284849665 | V201: 0.6129247173 | W201: 0 | X201: 0.07185239943 | Y201: 0.09007499491 | Z201: 0.05363285488 | AA201: 0.4290463684 | AB201: 0.2766890876 | AC201: 0 | AD201: 0.03948983577 | AE201: 0.06996116109 | AF201: 0.04290628391
A202: 12 | B202: 2032 | C202: Lille | D202: Personbil | E202: Benzin | F202: 0.06090676702 | G202: 11531.56932 | H202: 2.25172931 | I202: 0.7783735189 | J202: 0 | K202: 0.8628248723 | L202: 0.414371321 | M202: 0.1296643023 | N202: 0.06649529585 | O202: 1.149298888 | P202: 0.3513766907 | Q202: 0 | R202: 0.4228841579 | S202: 0.3218418027 | T202: 0.05319623668 | U202: 1.048225028 | V202: 0.7783735189 | W202: 0 | X202: 0.1200710325 | Y202: 0.08328518072 | Z202: 0.06649529585 | AA202: 0.5292405676 | AB202: 0.3513766907 | AC202: 0 | AD202: 0.05998012124 | AE202: 0.064687519 | AF202: 0.05319623668
A203: 12 | B203: 2032 | C203: Mellem | D203: Personbil | E203: Benzin | F203: 0.05927672889 | G203: 7833.564677 | H203: 2.76113001 | I203: 0.7575420321 | J203: 0 | K203: 1.236482771 | L203: 0.5347258646 | M203: 0.1257679619 | N203: 0.1066113805 | O203: 1.409200667 | P203: 0.3419728521 | Q203: 0 | R203: 0.566617651 | S203: 0.4153210599 | T203: 0.08528910442 | U203: 1.181485878 | V203: 0.7575420321 | W203: 0 | X203: 0.2051052096 | Y203: 0.112227256 | Z203: 0.1066113805 | AA203: 0.6102730505 | AB203: 0.3419728521 | AC203: 0 | AD203: 0.09584429314 | AE203: 0.08716680081 | AF203: 0.08528910442
A204: 12 | B204: 2032 | C204: Stor | D204: Personbil | E204: Benzin | F204: 0.07875632973 | G204: 583.7280575 | H204: 4.022695378 | I204: 1.006486545 | J204: 0 | K204: 1.81729336 | L204: 0.8698637862 | M204: 0.2006380293 | N204: 0.1284136575 | O204: 1.968142195 | P204: 0.454352445 | Q204: 0 | R204: 0.7354364659 | S204: 0.6756223582 | T204: 0.102730926 | U204: 1.523957401 | V204: 1.006486545 | W204: 0 | X204: 0.2527161842 | Y204: 0.1363410142 | Z204: 0.1284136575 | AA204: 0.7685537138 | AB204: 0.454352445 | AC204: 0 | AD204: 0.1055744095 | AE204: 0.1058959333 | AF204: 0.102730926
A205: 13 | B205: 2033 | C205: Mini | D205: Personbil | E205: Benzin | F205: 0.0468866118 | G205: 2569.27531 | H205: 1.654603486 | I205: 0.6022421604 | J205: 0 | K205: 0.5734663509 | L205: 0.3296263842 | M205: 0.09563573605 | N205: 0.05363285488 | O205: 0.8852128568 | P205: 0.2729273618 | Q205: 0 | R205: 0.3133587185 | S205: 0.2560204925 | T205: 0.04290628391 | U205: 0.8208042146 | V205: 0.6022421604 | W205: 0 | X205: 0.07461641433 | Y205: 0.09031278501 | Z205: 0.05363285488 | AA205: 0.426986177 | AB205: 0.2729273618 | AC205: 0 | AD205: 0.04100667878 | AE205: 0.07014585244 | AF205: 0.04290628391
A206: 13 | B206: 2033 | C206: Lille | D206: Personbil | E206: Benzin | F206: 0.06067466777 | G206: 11396.15807 | H206: 2.253304976 | I206: 0.779344926 | J206: 0 | K206: 0.8696364032 | L206: 0.4134472608 | M206: 0.1243810906 | N206: 0.06649529585 | O206: 1.155250812 | P206: 0.3531877517 | Q206: 0 | R206: 0.4277427372 | S206: 0.321124086 | T206: 0.05319623668 | U206: 1.050384485 | V206: 0.779344926 | W206: 0 | X206: 0.1211323104 | Y206: 0.08341195268 | Z206: 0.06649529585 | AA206: 0.5317149576 | AB206: 0.3531877517 | AC206: 0 | AD206: 0.06054498656 | AE206: 0.06478598267 | AF206: 0.05319623668
A207: 13 | B207: 2033 | C207: Mellem | D207: Personbil | E207: Benzin | F207: 0.05868769242 | G207: 7883.160528 | H207: 2.757818186 | I207: 0.7538229213 | J207: 0 | K207: 1.237629501 | L207: 0.5403349744 | M207: 0.1194194082 | N207: 0.1066113805 | O207: 1.415982624 | P207: 0.3416215515 | Q207: 0 | R207: 0.5693943182 | S207: 0.41967765 | T207: 0.08528910442 | U207: 1.177277119 | V207: 0.7538229213 | W207: 0 | X207: 0.2039370263 | Y207: 0.1129057906 | Z207: 0.1066113805 | AA207: 0.6099132859 | AB207: 0.3416215515 | AC207: 0 | AD207: 0.09530881199 | AE207: 0.08769381796 | AF207: 0.08528910442
... 242 more rows

Sheet Til TE Nul (hidden)
A1: Overgangsark til TE
A2: Ret ikke i rækker og søjler
A3: Sammenligningsark med nulvækst i priser og energieffektivitet
A10: Tal før 2021 er fra de gamle kørselsomkostninger
A13: Personbiler
A16: ='Resultat - niveau I'!D13 -> Benzin | E16: Kørselsomkostninger for benzin-personbiler opgjort som gennemsnitlige omkostninger med og uden afgifter | L16: =original_år -> 2021 | M16: priser
B17: =input_år -> 2021 | E17: kr./km | G17: 2021 | H17: 2022 | I17: 2023 | J17: 2024 | K17: 2025 | L17: 2015 | M17: 2016 | N17: 2017 | O17: 2018 | P17: 2019 | Q17: 2020 | R17: 2021 | S17: 2022 | T17: 2023 | U17: 2024 | V17: 2025 | W17: 2026 | X17: 2027 | Y17: 2028 | Z17: 2029 | AA17: 2030 | AB17: 2031 | AC17: 2032 | AD17: 2033 | AE17: 2034 | AF17: 2035 | AG17: 2036 | AH17: 2037 | AI17: 2038 | AJ17: 2039 | AK17: 2040
B18: ='Resultat - niveau I'!O13 -> 0.341706709 | E18: =CONCATENATE("Drivmiddel (", $G$123,"-priser)") -> Drivmiddel (-priser) | F18: ekskl. afgifter | G18: 0.4307056274 | H18: 0.5066590149 | I18: 0.5429606755 | J18: 0.5054310028 | K18: 0.4659125726 | L18: 0.3815229078 | M18: 0.3287209812 | N18: 0.3709187255 | O18: 0.3943133169 | P18: 0.3933783523 | Q18: 0.3144851473 | R18: 0.341706709 | S18: 0.3400864951 | T18: 0.3426512774 | U18: 0.342972501 | V18: 0.3433023561 | W18: 0.3430156103 | X18: 0.3411004601 | Y18: 0.3400890377 | Z18: 0.3401685114 | AA18: 0.3410819126 | AB18: 0.3416126987 | AC18: 0.3418883298 | AD18: 0.3422116798 | AE18: 0.343014335 | AF18: 0.3440294994 | AG18: 0.3424051687 | AH18: 0.3410018258 | AI18: 0.339883636 | AJ18: 0.3388619233 | AK18: 0.337967455
B19: ='Resultat - niveau I'!S13 -> 0.06271617464 | E19: Dæk | F19: ekskl. afgifter | G19: 0.06636898489 | H19: 0.06636898489 | I19: 0.06636898489 | J19: 0.06636898489 | K19: 0.06636898489 | L19: 0.06636898489 | M19: 0.06636898489 | N19: 0.06636898489 | O19: 0.06636898489 | P19: 0.06636898489 | Q19: 0.06636898489 | R19: 0.06271617464 | S19: 0.06280127279 | T19: 0.06291573661 | U19: 0.06305364263 | V19: 0.06320300958 | W19: 0.063338344 | X19: 0.06342738689 | Y19: 0.06356187123 | Z19: 0.06375526921 | AA19: 0.06396265479 | AB19: 0.06416292295 | AC19: 0.06435070383 | AD19: 0.06454861515 | AE19: 0.06472270773 | AF19: 0.06486121806 | AG19: 0.06496331867 | AH19: 0.06503275628 | AI19: 0.06507892585 | AJ19: 0.06508373659 | AK19: 0.06507371613
B20: ='Resultat - niveau I'!R13 -> 0.3222454722 | E20: Reparation og vedligeholdelse | F20: ekskl. afgifter | G20: 0.7455846775 | H20: 0.7455846775 | I20: 0.7455846775 | J20: 0.7455846775 | K20: 0.7455846775 | L20: 0.7455846775 | M20: 0.7455846775 | N20: 0.7455846775 | O20: 0.7455846775 | P20: 0.7455846775 | Q20: 0.7455846775 | R20: 0.3222454722 | S20: 0.3291607964 | T20: 0.3356592041 | U20: 0.3416719426 | V20: 0.3469411082 | W20: 0.3503295046 | X20: 0.3492708033 | Y20: 0.3495273583 | Z20: 0.3512851224 | AA20: 0.3536908422 | AB20: 0.3551814507 | AC20: 0.3561917059 | AD20: 0.3568690171 | AE20: 0.3568375027 | AF20: 0.3564838204 | AG20: 0.3556834522 | AH20: 0.3546476488 | AI20: 0.3533932257 | AJ20: 0.3515958672 | AK20: 0.3495206785
B21: ='Resultat - niveau I'!Q13 -> 0.3861467255 | E21: Afskrivninger | F21: ekskl. afgifter | G21: 0.3725214066 | H21: 0.3725214066 | I21: 0.3725214066 | J21: 0.3725214066 | K21: 0.3725214066 | L21: 0.3725214066 | M21: 0.3725214066 | N21: 0.3725214066 | O21: 0.3725214066 | P21: 0.3725214066 | Q21: 0.3725214066 | R21: 0.3861467255 | S21: 0.3943757989 | T21: 0.4025768409 | U21: 0.4106923328 | V21: 0.4186316381 | W21: 0.4263558389 | X21: 0.4341426361 | Y21: 0.4415536919 | Z21: 0.448624765 | AA21: 0.4552476869 | AB21: 0.4614445544 | AC21: 0.4670667805 | AD21: 0.4722604973 | AE21: 0.4767917397 | AF21: 0.4806577597 | AG21: 0.4839224709 | AH21: 0.4865197293 | AI21: 0.4882721172 | AJ21: 0.4895729298 | AK21: 0.4906190394
B22: ='Resultat - niveau I'!H13 -> 0.8266040543 | E22: =CONCATENATE("Drivmiddel (", $G$123,"-priser)") -> Drivmiddel (-priser) | F22: inkl. afgifter | G22: 1.037192644 | H22: 1.122521364 | I22: 1.152393345 | J22: 1.101853613 | K22: 1.047917717 | L22: 0.9396375197 | M22: 0.8661436253 | N22: 0.9082865036 | O22: 0.9292257166 | P22: 0.9227615556 | Q22: 0.8226021073 | R22: 0.8266040543 | S22: 0.813167804 | T22: 0.8104081488 | U22: 0.8031389623 | V22: 0.7964340992 | W22: 0.7890305444 | X22: 0.7785894376 | Y22: 0.7706668421 | Z22: 0.7656067658 | AA22: 0.7629519173 | AB22: 0.7601165647 | AC22: 0.7573547973 | AD22: 0.7551250999 | AE22: 0.7541753424 | AF22: 0.7537232887 | AG22: 0.7501645944 | AH22: 0.747090055 | AI22: 0.7446402485 | AJ22: 0.7424018107 | AK22: 0.7404421486
B23: ='Resultat - niveau I'!M13 -> 0.0783952183 | E23: Dæk | F23: inkl. afgifter | G23: 0.08296123111 | H23: 0.08296123111 | I23: 0.08296123111 | J23: 0.08296123111 | K23: 0.08296123111 | L23: 0.08296123111 | M23: 0.08296123111 | N23: 0.08296123111 | O23: 0.08296123111 | P23: 0.08296123111 | Q23: 0.08296123111 | R23: 0.0783952183 | S23: 0.07850159099 | T23: 0.07864467076 | U23: 0.07881705328 | V23: 0.07900376197 | W23: 0.07917293001 | X23: 0.07928423361 | Y23: 0.07945233903 | Z23: 0.07969408651 | AA23: 0.07995331849 | AB23: 0.08020365368 | AC23: 0.08043837979 | AD23: 0.08068576894 | AE23: 0.08090338466 | AF23: 0.08107652257 | AG23: 0.08120414834 | AH23: 0.08129094535 | AI23: 0.08134865731 | AJ23: 0.08135467074 | AK23: 0.08134214516
B24: ='Resultat - niveau I'!K13 -> 0.4148910455 | E24: Reparation og vedligeholdelse | F24: inkl. afgifter | G24: 0.9599402722 | H24: 0.9599402722 | I24: 0.9599402722 | J24: 0.9599402722 | K24: 0.9599402722 | L24: 0.9599402722 | M24: 0.9599402722 | N24: 0.9599402722 | O24: 0.9599402722 | P24: 0.9599402722 | Q24: 0.9599402722 | R24: 0.4148910455 | S24: 0.4237945254 | T24: 0.4321612253 | U24: 0.4399026261 | V24: 0.4466866769 | W24: 0.4510492372 | X24: 0.4496861592 | Y24: 0.4500164739 | Z24: 0.4522795951 | AA24: 0.4553769593 | AB24: 0.4572961178 | AC24: 0.4585968214 | AD24: 0.4594688596 | AE24: 0.4594282848 | AF24: 0.4589729188 | AG24: 0.4579424447 | AH24: 0.4566088478 | AI24: 0.4549937781 | AJ24: 0.452679679 | AK24: 0.4500078736
B25: ='Resultat - niveau I'!L13 -> 0.1808536261 | E25: Ejerafgift | G25: 0.2065078932 | H25: 0.2065078932 | I25: 0.2065078932 | J25: 0.2065078932 | K25: 0.2065078932 | L25: 0.2065078932 | M25: 0.2065078932 | N25: 0.2065078932 | O25: 0.2065078932 | P25: 0.2065078932 | Q25: 0.2065078932 | R25: 0.1808536261 | S25: 0.1753566889 | T25: 0.1758693564 | U25: 0.1763725255 | V25: 0.176866505 | W25: 0.18247716 | X25: 0.1685969996 | Y25: 0.1568173486 | Z25: 0.1472464996 | AA25: 0.1397564537 | AB25: 0.1327308079 | AC25: 0.1263158209 | AD25: 0.1206897343 | AE25: 0.1161741251 | AF25: 0.1120958031 | AG25: 0.108441059 | AH25: 0.1050516514 | AI25: 0.1011468017 | AJ25: 0.09742773335 | AK25: 0.09430267176
B26: ='Resultat - niveau I'!J13 -> 0.8904561871 | E26: Afskrivninger | F26: inkl. afgifter | G26: 0.9059482241 | H26: 0.9059482241 | I26: 0.9059482241 | J26: 0.9059482241 | K26: 0.9059482241 | L26: 0.9059482241 | M26: 0.9059482241 | N26: 0.9059482241 | O26: 0.9059482241 | P26: 0.9059482241 | Q26: 0.9059482241 | R26: 0.8904561871 | S26: 0.8980935727 | T26: 0.9063320254 | U26: 0.9149916318 | V26: 0.923737027 | W26: 0.9319864828 | X26: 0.9393613157 | Y26: 0.9471875981 | Z26: 0.9558099074 | AA26: 0.9649555253 | AB26: 0.9735143237 | AC26: 0.9812455454 | AD26: 0.988663388 | AE26: 0.9953721317 | AF26: 1.000899974 | AG26: 1.005356082 | AH26: 1.008447793 | AI26: 1.009158358 | AJ26: 1.009247581 | AK26: 1.009150507
E28: Kørselsomkostninger for benzin-personbiler opgjort som marginale omkostninger med og uden afgifter | L28: =$L$16 -> 2021 | M28: priser
B29: =$B$17 -> 2021 | E29: kr./km | G29: 2010 | H29: 2011 | I29: 2012 | J29: 2013 | K29: 2014 | L29: 2015 | M29: 2016 | N29: 2017 | O29: 2018 | P29: 2019 | Q29: 2020 | R29: 2021 | S29: 2022 | T29: 2023 | U29: 2024 | V29: 2025 | W29: 2026 | X29: 2027 | Y29: 2028 | Z29: 2029 | AA29: 2030 | AB29: 2031 | AC29: 2032 | AD29: 2033 | AE29: 2034 | AF29: 2035 | AG29: 2036 | AH29: 2037 | AI29: 2038 | AJ29: 2039 | AK29: 2040
B30: ='Resultat - niveau I'!AA13 -> 0.341706709 | E30: =CONCATENATE("Drivmiddel (", $G$123,"-priser)") -> Drivmiddel (-priser) | F30: ekskl. afgifter | G30: 0.4307056274 | H30: 0.5066590149 | I30: 0.5429606755 | J30: 0.5054310028 | K30: 0.4659125726 | L30: 0.3815229078 | M30: 0.3287209812 | N30: 0.3709187255 | O30: 0.3943133169 | P30: 0.3933783523 | Q30: 0.3144851473 | R30: 0.341706709 | S30: 0.3400864951 | T30: 0.3426512774 | U30: 0.342972501 | V30: 0.3433023561 | W30: 0.3430156103 | X30: 0.3411004601 | Y30: 0.3400890377 | Z30: 0.3401685114 | AA30: 0.3410819126 | AB30: 0.3416126987 | AC30: 0.3418883298 | AD30: 0.3422116798 | AE30: 0.343014335 | AF30: 0.3440294994 | AG30: 0.3424051687 | AH30: 0.3410018258 | AI30: 0.339883636 | AJ30: 0.3388619233 | AK30: 0.337967455
B31: ='Resultat - niveau I'!AE13 -> 0.06271617464 | E31: Dæk | F31: ekskl. afgifter | G31: 0.06636898489 | H31: 0.06636898489 | I31: 0.06636898489 | J31: 0.06636898489 | K31: 0.06636898489 | L31: 0.06636898489 | M31: 0.06636898489 | N31: 0.06636898489 | O31: 0.06636898489 | P31: 0.06636898489 | Q31: 0.06636898489 | R31: 0.06271617464 | S31: 0.06280127279 | T31: 0.06291573661 | U31: 0.06305364263 | V31: 0.06320300958 | W31: 0.063338344 | X31: 0.06342738689 | Y31: 0.06356187123 | Z31: 0.06375526921 | AA31: 0.06396265479 | AB31: 0.06416292295 | AC31: 0.06435070383 | AD31: 0.06454861515 | AE31: 0.06472270773 | AF31: 0.06486121806 | AG31: 0.06496331867 | AH31: 0.06503275628 | AI31: 0.06507892585 | AJ31: 0.06508373659 | AK31: 0.06507371613
B32: ='Resultat - niveau I'!AD13 -> 0.07259822288 | E32: Reparation og vedligeholdelse | F32: ekskl. afgifter | G32: 0.1936490262 | H32: 0.1936490262 | I32: 0.1936490262 | J32: 0.1936490262 | K32: 0.1936490262 | L32: 0.1936490262 | M32: 0.1936490262 | N32: 0.1936490262 | O32: 0.1936490262 | P32: 0.1936490262 | Q32: 0.1936490262 | R32: 0.07259822288 | S32: 0.0728294585 | T32: 0.07296206076 | U32: 0.07316884847 | V32: 0.07342503072 | W32: 0.07357942299 | X32: 0.07331746856 | Y32: 0.07323134345 | Z32: 0.07335441711 | AA32: 0.07360826559 | AB32: 0.0738486938 | AC32: 0.07415405614 | AD32: 0.07448219366 | AE32: 0.07470174602 | AF32: 0.07484669453 | AG32: 0.07490557076 | AH32: 0.07490521458 | AI32: 0.07485475142 | AJ32: 0.07470731802 | AK32: 0.07450644369
B33: ='Resultat - niveau I'!AC13 -> 0.06493989763 | E33: Afskrivninger | F33: ekskl. afgifter | G33: 0.06040413968 | H33: 0.06040413968 | I33: 0.06040413968 | J33: 0.06040413968 | K33: 0.06040413968 | L33: 0.06040413968 | M33: 0.06040413968 | N33: 0.06040413968 | O33: 0.06040413968 | P33: 0.06040413968 | Q33: 0.06040413968 | R33: 0.06493989763 | S33: 0.06554479304 | T33: 0.06605729765 | U33: 0.06651572593 | V33: 0.06692270696 | W33: 0.06745248172 | X33: 0.068385357 | Y33: 0.06909647106 | Z33: 0.06958300559 | AA33: 0.06996647735 | AB33: 0.07048122217 | AC33: 0.07112356997 | AD33: 0.07174680819 | AE33: 0.07235959826 | AF33: 0.07288883365 | AG33: 0.07335987535 | AH33: 0.07375605203 | AI33: 0.07409825944 | AJ33: 0.07441993914 | AK33: 0.07473129697
B34: ='Resultat - niveau I'!U13 -> 0.8266040543 | E34: =CONCATENATE("Drivmiddel (", $G$123,"-priser)") -> Drivmiddel (-priser) | F34: inkl. afgifter | G34: 1.037192644 | H34: 1.122521364 | I34: 1.152393345 | J34: 1.101853613 | K34: 1.047917717 | L34: 0.9396375197 | M34: 0.8661436253 | N34: 0.9082865036 | O34: 0.9292257166 | P34: 0.9227615556 | Q34: 0.8226021073 | R34: 0.8266040543 | S34: 0.813167804 | T34: 0.8104081488 | U34: 0.8031389623 | V34: 0.7964340992 | W34: 0.7890305444 | X34: 0.7785894376 | Y34: 0.7706668421 | Z34: 0.7656067658 | AA34: 0.7629519173 | AB34: 0.7601165647 | AC34: 0.7573547973 | AD34: 0.7551250999 | AE34: 0.7541753424 | AF34: 0.7537232887 | AG34: 0.7501645944 | AH34: 0.747090055 | AI34: 0.7446402485 | AJ34: 0.7424018107 | AK34: 0.7404421486
B35: ='Resultat - niveau I'!Y13 -> 0.0783952183 | E35: Dæk | F35: inkl. afgifter | G35: 0.08296123111 | H35: 0.08296123111 | I35: 0.08296123111 | J35: 0.08296123111 | K35: 0.08296123111 | L35: 0.08296123111 | M35: 0.08296123111 | N35: 0.08296123111 | O35: 0.08296123111 | P35: 0.08296123111 | Q35: 0.08296123111 | R35: 0.0783952183 | S35: 0.07850159099 | T35: 0.07864467076 | U35: 0.07881705328 | V35: 0.07900376197 | W35: 0.07917293001 | X35: 0.07928423361 | Y35: 0.07945233903 | Z35: 0.07969408651 | AA35: 0.07995331849 | AB35: 0.08020365368 | AC35: 0.08043837979 | AD35: 0.08068576894 | AE35: 0.08090338466 | AF35: 0.08107652257 | AG35: 0.08120414834 | AH35: 0.08129094535 | AI35: 0.08134865731 | AJ35: 0.08135467074 | AK35: 0.08134214516
B36: ='Resultat - niveau I'!X13 -> 0.09347021196 | E36: Reparation og vedligeholdelse | F36: inkl. afgifter | G36: 0.2493231213 | H36: 0.2493231213 | I36: 0.2493231213 | J36: 0.2493231213 | K36: 0.2493231213 | L36: 0.2493231213 | M36: 0.2493231213 | N36: 0.2493231213 | O36: 0.2493231213 | P36: 0.2493231213 | Q36: 0.2493231213 | R36: 0.09347021196 | S36: 0.09376792782 | T36: 0.09393865322 | U36: 0.09420489241 | V36: 0.09453472705 | W36: 0.09473350709 | X36: 0.09439624077 | Y36: 0.09428535469 | Z36: 0.09444381202 | AA36: 0.09477064195 | AB36: 0.09508019326 | AC36: 0.09547334728 | AD36: 0.09589582434 | AE36: 0.09617849801 | AF36: 0.09636511921 | AG36: 0.09644092235 | AH36: 0.09644046377 | AI36: 0.09637549245 | AJ36: 0.09618567195 | AK36: 0.09592704625
B37: ='Resultat - niveau I'!W13 -> 0.1475825665 | E37: Afskrivninger | F37: inkl. afgifter | G37: 0.1416333482 | H37: 0.1416333482 | I37: 0.1416333482 | J37: 0.1416333482 | K37: 0.1416333482 | L37: 0.1416333482 | M37: 0.1416333482 | N37: 0.1416333482 | O37: 0.1416333482 | P37: 0.1416333482 | Q37: 0.1416333482 | R37: 0.1475825665 | S37: 0.146860556 | T37: 0.1461074647 | U37: 0.1453952825 | V37: 0.1446802223 | W37: 0.1443324542 | X37: 0.1449233296 | Y37: 0.1452018687 | Z37: 0.1452763184 | AA37: 0.1454059848 | AB37: 0.1460401955 | AC37: 0.1471681629 | AD37: 0.1484207348 | AE37: 0.1496232949 | AF37: 0.1506565191 | AG37: 0.1515726946 | AH37: 0.1523317252 | AI37: 0.15295293 | AJ37: 0.153543068 | AK37: 0.1541227737
A39: ='Resultat - niveau I'!D14 -> Diesel | E39: Kørselsomkostninger for diesel-personbiler opgjort som gennemsnitlige omkostninger med og uden afgifter | L39: =$L$16 -> 2021 | M39: priser
B40: =$B$17 -> 2021 | E40: kr./km | G40: 2010 | H40: 2011 | I40: 2012 | J40: 2013 | K40: 2014 | L40: 2015 | M40: 2016 | N40: 2017 | O40: 2018 | P40: 2019 | Q40: 2020 | R40: 2021 | S40: 2022 | T40: 2023 | U40: 2024 | V40: 2025 | W40: 2026 | X40: 2027 | Y40: 2028 | Z40: 2029 | AA40: 2030 | AB40: 2031 | AC40: 2032 | AD40: 2033 | AE40: 2034 | AF40: 2035 | AG40: 2036 | AH40: 2037 | AI40: 2038 | AJ40: 2039 | AK40: 2040
B41: ='Resultat - niveau I'!O14 -> 0.3165501615 | E41: =CONCATENATE("Drivmiddel (", $G$123,"-priser)") -> Drivmiddel (-priser) | F41: ekskl. afgifter | G41: 0.3470523275 | H41: 0.4168368551 | I41: 0.4354578044 | J41: 0.4125050778 | K41: 0.385302488 | L41: 0.3106979645 | M41: 0.2688166196 | N41: 0.3009325432 | O41: 0.3444415306 | P41: 0.346576112 | Q41: 0.286007327 | R41: 0.3165501615 | S41: 0.322209801 | T41: 0.3277071979 | U41: 0.3328312001 | V41: 0.3376040646 | W41: 0.3421426456 | X41: 0.3459929049 | Y41: 0.3492221093 | Z41: 0.3524438271 | AA41: 0.3571491559 | AB41: 0.3609780516 | AC41: 0.3639937017 | AD41: 0.3672647625 | AE41: 0.370980343 | AF41: 0.374633574 | AG41: 0.3752116497 | AH41: 0.3757606409 | AI41: 0.3761883371 | AJ41: 0.3765849573 | AK41: 0.3769077102
B42: ='Resultat - niveau I'!S14 -> 0.07865980823 | E42: Dæk | F42: ekskl. afgifter | G42: 0.07776387172 | H42: 0.07776387172 | I42: 0.07776387172 | J42: 0.07776387172 | K42: 0.07776387172 | L42: 0.07776387172 | M42: 0.07776387172 | N42: 0.07776387172 | O42: 0.07776387172 | P42: 0.07776387172 | Q42: 0.07776387172 | R42: 0.07865980823 | S42: 0.07862849416 | T42: 0.07859224032 | U42: 0.0785510726 | V42: 0.07850697303 | W42: 0.0784615628 | X42: 0.0784186555 | Y42: 0.07838691448 | Z42: 0.07836609447 | AA42: 0.07832708902 | AB42: 0.07828982305 | AC42: 0.0782436527 | AD42: 0.07819032268 | AE42: 0.07811845444 | AF42: 0.07804739392 | AG42: 0.07799303876 | AH42: 0.07796473542 | AI42: 0.07795329785 | AJ42: 0.07795857272 | AK42: 0.07797486275
B43: ='Resultat - niveau I'!R14 -> 0.4773282245 | E43: Reparation og vedligeholdelse | F43: ekskl. afgifter | G43: 1.012830937 | H43: 1.012830937 | I43: 1.012830937 | J43: 1.012830937 | K43: 1.012830937 | L43: 1.012830937 | M43: 1.012830937 | N43: 1.012830937 | O43: 1.012830937 | P43: 1.012830937 | Q43: 1.012830937 | R43: 0.4773282245 | S43: 0.5033514591 | T43: 0.5270428448 | U43: 0.5480586847 | V43: 0.5661724884 | W43: 0.5807188056 | X43: 0.5895268636 | Y43: 0.5936559079 | Z43: 0.5949242089 | AA43: 0.5944830961 | AB43: 0.5886156363 | AC43: 0.5791810444 | AD43: 0.5688586222 | AE43: 0.5581161773 | AF43: 0.5464253142 | AG43: 0.5340604934 | AH43: 0.5214440811 | AI43: 0.5094890286 | AJ43: 0.4988085677 | AK43: 0.4914264936
B44: ='Resultat - niveau I'!Q14 -> 0.3371996261 | E44: Afskrivninger | F44: ekskl. afgifter | G44: 0.3305239731 | H44: 0.3305239731 | I44: 0.3305239731 | J44: 0.3305239731 | K44: 0.3305239731 | L44: 0.3305239731 | M44: 0.3305239731 | N44: 0.3305239731 | O44: 0.3305239731 | P44: 0.3305239731 | Q44: 0.3305239731 | R44: 0.3371996261 | S44: 0.3472842058 | T44: 0.3579557773 | U44: 0.3692379452 | V44: 0.381141896 | W44: 0.3936946877 | X44: 0.4071362871 | Y44: 0.4214371147 | Z44: 0.4362578464 | AA44: 0.4510261417 | AB44: 0.4663774205 | AC44: 0.481580428 | AD44: 0.4956675706 | AE44: 0.5081058361 | AF44: 0.519503824 | AG44: 0.5299740472 | AH44: 0.5394910487 | AI44: 0.5474440356 | AJ44: 0.5542603183 | AK44: 0.5593859722
B45: ='Resultat - niveau I'!H14 -> 0.6231628583 | E45: =CONCATENATE("Drivmiddel (", $G$123,"-priser)") -> Drivmiddel (-priser) | F45: inkl. afgifter | G45: 0.6926137975 | H45: 0.7737543848 | I45: 0.7909098013 | J45: 0.7631376359 | K45: 0.7309156896 | L45: 0.6398557287 | M45: 0.5853651165 | N45: 0.6213774176 | O45: 0.6736359077 | P45: 0.6763339874 | Q45: 0.6028290735 | R45: 0.6231628583 | S45: 0.628843729 | T45: 0.6344186705 | U45: 0.6396133119 | V45: 0.6444604077 | W45: 0.6490386819 | X45: 0.6524886553 | Y45: 0.6550753291 | Z45: 0.6579431622 | AA45: 0.663600525 | AB45: 0.6681288385 | AC45: 0.6716441513 | AD45: 0.6756340861 | AE45: 0.6806778406 | AF45: 0.6856010045 | AG45: 0.6866589164 | AH45: 0.6876636018 | AI45: 0.6884463105 | AJ45: 0.6891721484 | AK45: 0.6897628046
B46: ='Resultat - niveau I'!M14 -> 0.09832476029 | E46: Dæk | F46: inkl. afgifter | G46: 0.09720483965 | H46: 0.09720483965 | I46: 0.09720483965 | J46: 0.09720483965 | K46: 0.09720483965 | L46: 0.09720483965 | M46: 0.09720483965 | N46: 0.09720483965 | O46: 0.09720483965 | P46: 0.09720483965 | Q46: 0.09720483965 | R46: 0.09832476029 | S46: 0.0982856177 | T46: 0.09824030041 | U46: 0.09818884075 | V46: 0.09813371629 | W46: 0.0980769535 | X46: 0.09802331938 | Y46: 0.09798364311 | Z46: 0.09795761808 | AA46: 0.09790886127 | AB46: 0.09786227881 | AC46: 0.09780456588 | AD46: 0.09773790335 | AE46: 0.09764806805 | AF46: 0.0975592424 | AG46: 0.09749129845 | AH46: 0.09745591927 | AI46: 0.09744162231 | AJ46: 0.0974482159 | AK46: 0.09746857843
B47: ='Resultat - niveau I'!K14 -> 0.6145600891 | E47: Reparation og vedligeholdelse | F47: inkl. afgifter | G47: 1.304019832 | H47: 1.304019832 | I47: 1.304019832 | J47: 1.304019832 | K47: 1.304019832 | L47: 1.304019832 | M47: 1.304019832 | N47: 1.304019832 | O47: 1.304019832 | P47: 1.304019832 | Q47: 1.304019832 | R47: 0.6145600891 | S47: 0.6480650036 | T47: 0.6785676627 | U47: 0.7056255565 | V47: 0.7289470788 | W47: 0.7476754622 | X47: 0.7590158369 | Y47: 0.7643319815 | Z47: 0.7659649189 | AA47: 0.7653969862 | AB47: 0.7578426318 | AC47: 0.7456955947 | AD47: 0.7324054761 | AE47: 0.7185745783 | AF47: 0.703522592 | AG47: 0.6876028853 | AH47: 0.6713592544 | AI47: 0.6559671243 | AJ47: 0.6422160309 | AK47: 0.6327116105
B48: ='Resultat - niveau I'!L14 -> 0.234969369 | E48: Ejerafgift | G48: 0.1846909111 | H48: 0.1846909111 | I48: 0.1846909111 | J48: 0.1846909111 | K48: 0.1846909111 | L48: 0.1846909111 | M48: 0.1846909111 | N48: 0.1846909111 | O48: 0.1846909111 | P48: 0.1846909111 | Q48: 0.1846909111 | R48: 0.234969369 | S48: 0.2354815043 | T48: 0.2437255425 | U48: 0.2517877036 | V48: 0.2597607123 | W48: 0.276159049 | X48: 0.265004705 | Y48: 0.2530750522 | Z48: 0.2417163648 | AA48: 0.2330675802 | AB48: 0.2240895055 | AC48: 0.2151141008 | AD48: 0.2068105708 | AE48: 0.2001283201 | AF48: 0.1939446846 | AG48: 0.1883792027 | AH48: 0.1830756694 | AI48: 0.1761632353 | AJ48: 0.1705901859 | AK48: 0.1667658545
B49: ='Resultat - niveau I'!J14 -> 0.8334306977 | E49: Afskrivninger | F49: inkl. afgifter | G49: 0.8192644223 | H49: 0.8192644223 | I49: 0.8192644223 | J49: 0.8192644223 | K49: 0.8192644223 | L49: 0.8192644223 | M49: 0.8192644223 | N49: 0.8192644223 | O49: 0.8192644223 | P49: 0.8192644223 | Q49: 0.8192644223 | R49: 0.8334306977 | S49: 0.8511490399 | T49: 0.8702180414 | U49: 0.890669724 | V49: 0.9125475366 | W49: 0.9357978151 | X49: 0.9604064388 | Y49: 0.9866878195 | Z49: 1.014629126 | AA49: 1.043953614 | AB49: 1.074393009 | AC49: 1.104482769 | AD49: 1.132602339 | AE49: 1.158327116 | AF49: 1.181855565 | AG49: 1.203534715 | AH49: 1.22339799 | AI49: 1.240192556 | AJ49: 1.254670708 | AK49: 1.265614138
E51: Kørselsomkostninger for diesel-personbiler opgjort som marginale omkostninger med og uden afgifter | L51: =$L$16 -> 2021 | M51: priser
B52: =$B$17 -> 2021 | E52: kr./km | G52: 2010 | H52: 2011 | I52: 2012 | J52: 2013 | K52: 2014 | L52: 2015 | M52: 2016 | N52: 2017 | O52: 2018 | P52: 2019 | Q52: 2020 | R52: 2021 | S52: 2022 | T52: 2023 | U52: 2024 | V52: 2025 | W52: 2026 | X52: 2027 | Y52: 2028 | Z52: 2029 | AA52: 2030 | AB52: 2031 | AC52: 2032 | AD52: 2033 | AE52: 2034 | AF52: 2035 | AG52: 2036 | AH52: 2037 | AI52: 2038 | AJ52: 2039 | AK52: 2040
B53: ='Resultat - niveau I'!AA14 -> 0.3165501615 | E53: =CONCATENATE("Drivmiddel (", $G$123,"-priser)") -> Drivmiddel (-priser) | F53: ekskl. afgifter | G53: 0.3470523275 | H53: 0.4168368551 | I53: 0.4354578044 | J53: 0.4125050778 | K53: 0.385302488 | L53: 0.3106979645 | M53: 0.2688166196 | N53: 0.3009325432 | O53: 0.3444415306 | P53: 0.346576112 | Q53: 0.286007327 | R53: 0.3165501615 | S53: 0.322209801 | T53: 0.3277071979 | U53: 0.3328312001 | V53: 0.3376040646 | W53: 0.3421426456 | X53: 0.3459929049 | Y53: 0.3492221093 | Z53: 0.3524438271 | AA53: 0.3571491559 | AB53: 0.3609780516 | AC53: 0.3639937017 | AD53: 0.3672647625 | AE53: 0.370980343 | AF53: 0.374633574 | AG53: 0.3752116497 | AH53: 0.3757606409 | AI53: 0.3761883371 | AJ53: 0.3765849573 | AK53: 0.3769077102
B54: ='Resultat - niveau I'!AE14 -> 0.07865980823 | E54: Dæk | F54: ekskl. afgifter | G54: 0.07776387172 | H54: 0.07776387172 | I54: 0.07776387172 | J54: 0.07776387172 | K54: 0.07776387172 | L54: 0.07776387172 | M54: 0.07776387172 | N54: 0.07776387172 | O54: 0.07776387172 | P54: 0.07776387172 | Q54: 0.07776387172 | R54: 0.07865980823 | S54: 0.07862849416 | T54: 0.07859224032 | U54: 0.0785510726 | V54: 0.07850697303 | W54: 0.0784615628 | X54: 0.0784186555 | Y54: 0.07838691448 | Z54: 0.07836609447 | AA54: 0.07832708902 | AB54: 0.07828982305 | AC54: 0.0782436527 | AD54: 0.07819032268 | AE54: 0.07811845444 | AF54: 0.07804739392 | AG54: 0.07799303876 | AH54: 0.07796473542 | AI54: 0.07795329785 | AJ54: 0.07795857272 | AK54: 0.07797486275
B55: ='Resultat - niveau I'!AD14 -> 0.2088350294 | E55: Reparation og vedligeholdelse | F55: ekskl. afgifter | G55: 0.5462283264 | H55: 0.5462283264 | I55: 0.5462283264 | J55: 0.5462283264 | K55: 0.5462283264 | L55: 0.5462283264 | M55: 0.5462283264 | N55: 0.5462283264 | O55: 0.5462283264 | P55: 0.5462283264 | Q55: 0.5462283264 | R55: 0.2088350294 | S55: 0.2149942215 | T55: 0.2204798095 | U55: 0.2255092212 | V55: 0.2299775598 | W55: 0.2334883765 | X55: 0.2354940492 | Y55: 0.2363126542 | Z55: 0.2365444293 | AA55: 0.2367846948 | AB55: 0.2358500617 | AC55: 0.2342511852 | AD55: 0.2325835361 | AE55: 0.2307463334 | AF55: 0.2284651169 | AG55: 0.2257035953 | AH55: 0.222521976 | AI55: 0.2192798946 | AJ55: 0.216176899 | AK55: 0.2138886268
B56: ='Resultat - niveau I'!AC14 -> 0.1291181847 | E56: Afskrivninger | F56: ekskl. afgifter | G56: 0.1386692841 | H56: 0.1386692841 | I56: 0.1386692841 | J56: 0.1386692841 | K56: 0.1386692841 | L56: 0.1386692841 | M56: 0.1386692841 | N56: 0.1386692841 | O56: 0.1386692841 | P56: 0.1386692841 | Q56: 0.1386692841 | R56: 0.1291181847 | S56: 0.1279081367 | T56: 0.1275123183 | U56: 0.1281104842 | V56: 0.1295412622 | W56: 0.1318904728 | X56: 0.1355465787 | Y56: 0.1403433709 | Z56: 0.1457880217 | AA56: 0.1516398903 | AB56: 0.1587881214 | AC56: 0.1664645304 | AD56: 0.173233959 | AE56: 0.1792256034 | AF56: 0.1847200322 | AG56: 0.1897990204 | AH56: 0.1944851432 | AI56: 0.1985816053 | AJ56: 0.2020227674 | AK56: 0.204339588
B57: ='Resultat - niveau I'!U14 -> 0.6231628583 | E57: =CONCATENATE("Drivmiddel (", $G$123,"-priser)") -> Drivmiddel (-priser) | F57: inkl. afgifter | G57: 0.6926137975 | H57: 0.7737543848 | I57: 0.7909098013 | J57: 0.7631376359 | K57: 0.7309156896 | L57: 0.6398557287 | M57: 0.5853651165 | N57: 0.6213774176 | O57: 0.6736359077 | P57: 0.6763339874 | Q57: 0.6028290735 | R57: 0.6231628583 | S57: 0.628843729 | T57: 0.6344186705 | U57: 0.6396133119 | V57: 0.6444604077 | W57: 0.6490386819 | X57: 0.6524886553 | Y57: 0.6550753291 | Z57: 0.6579431622 | AA57: 0.663600525 | AB57: 0.6681288385 | AC57: 0.6716441513 | AD57: 0.6756340861 | AE57: 0.6806778406 | AF57: 0.6856010045 | AG57: 0.6866589164 | AH57: 0.6876636018 | AI57: 0.6884463105 | AJ57: 0.6891721484 | AK57: 0.6897628046
B58: ='Resultat - niveau I'!Y14 -> 0.09832476029 | E58: Dæk | F58: inkl. afgifter | G58: 0.09720483965 | H58: 0.09720483965 | I58: 0.09720483965 | J58: 0.09720483965 | K58: 0.09720483965 | L58: 0.09720483965 | M58: 0.09720483965 | N58: 0.09720483965 | O58: 0.09720483965 | P58: 0.09720483965 | Q58: 0.09720483965 | R58: 0.09832476029 | S58: 0.0982856177 | T58: 0.09824030041 | U58: 0.09818884075 | V58: 0.09813371629 | W58: 0.0980769535 | X58: 0.09802331938 | Y58: 0.09798364311 | Z58: 0.09795761808 | AA58: 0.09790886127 | AB58: 0.09786227881 | AC58: 0.09780456588 | AD58: 0.09773790335 | AE58: 0.09764806805 | AF58: 0.0975592424 | AG58: 0.09749129845 | AH58: 0.09745591927 | AI58: 0.09744162231 | AJ58: 0.0974482159 | AK58: 0.09746857843
B59: ='Resultat - niveau I'!X14 -> 0.2688751004 | E59: Reparation og vedligeholdelse | F59: inkl. afgifter | G59: 0.7032689703 | H59: 0.7032689703 | I59: 0.7032689703 | J59: 0.7032689703 | K59: 0.7032689703 | L59: 0.7032689703 | M59: 0.7032689703 | N59: 0.7032689703 | O59: 0.7032689703 | P59: 0.7032689703 | Q59: 0.7032689703 | R59: 0.2688751004 | S59: 0.2768050602 | T59: 0.2838677547 | U59: 0.2903431222 | V59: 0.2960961082 | W59: 0.3006162847 | X59: 0.3031985884 | Y59: 0.3042525423 | Z59: 0.3045509527 | AA59: 0.3048602945 | AB59: 0.3036569544 | AC59: 0.301598401 | AD59: 0.2994513027 | AE59: 0.2970859042 | AF59: 0.294148838 | AG59: 0.290593379 | AH59: 0.286497044 | AI59: 0.2823228643 | AJ59: 0.2783277575 | AK59: 0.275381607
B60: ='Resultat - niveau I'!W14 -> 0.3087459458 | E60: Afskrivninger | F60: inkl. afgifter | G60: 0.3278486011 | H60: 0.3278486011 | I60: 0.3278486011 | J60: 0.3278486011 | K60: 0.3278486011 | L60: 0.3278486011 | M60: 0.3278486011 | N60: 0.3278486011 | O60: 0.3278486011 | P60: 0.3278486011 | Q60: 0.3278486011 | R60: 0.3087459458 | S60: 0.3028628805 | T60: 0.2992167636 | U60: 0.2982871314 | V60: 0.2997642993 | W60: 0.3035262256 | X60: 0.3104432374 | Y60: 0.3201462759 | Z60: 0.3316286627 | AA60: 0.3442790868 | AB60: 0.3600138447 | AC60: 0.3770565887 | AD60: 0.3921297922 | AE60: 0.4055996571 | AF60: 0.4179464839 | AG60: 0.4293616326 | AH60: 0.4398990652 | AI60: 0.4491062796 | AJ60: 0.4568427423 | AK60: 0.4620498309
A62: ='Resultat - niveau I'!D16 -> Hybrid | E62: Kørselsomkostninger for opladningshybrid-personbiler opgjort som gennemsnitlige omkostninger med og uden afgifter | L62: =$L$16 -> 2021 | M62: priser
B63: =$B$17 -> 2021 | E63: kr./km | G63: 2010 | H63: 2011 | I63: 2012 | J63: 2013 | K63: 2014 | L63: 2015 | M63: 2016 | N63: 2017 | O63: 2018 | P63: 2019 | Q63: 2020 | R63: 2021 | S63: 2022 | T63: 2023 | U63: 2024 | V63: 2025 | W63: 2026 | X63: 2027 | Y63: 2028 | Z63: 2029 | AA63: 2030 | AB63: 2031 | AC63: 2032 | AD63: 2033 | AE63: 2034 | AF63: 2035 | AG63: 2036 | AH63: 2037 | AI63: 2038 | AJ63: 2039 | AK63: 2040
B64: ='Resultat - niveau I'!O16 -> 0.1178999589 | E64: =CONCATENATE("Drivmiddel (", $G$123,"-priser)") -> Drivmiddel (-priser) | F64: ekskl. afgifter | G64: 0.3090701743 | H64: 0.3426653526 | I64: 0.3534956705 | J64: 0.335081573 | K64: 0.3111893821 | L64: 0.2649110001 | M64: 0.239855106 | N64: 0.2550362854 | O64: 0.2659675434 | P64: 0.2667202804 | Q64: 0.2135625561 | R64: 0.1178999589 | S64: 0.1210131925 | T64: 0.1239571779 | U64: 0.1266997961 | V64: 0.1293400107 | W64: 0.1318057018 | X64: 0.1341012795 | Y64: 0.1363099712 | Z64: 0.1384333575 | AA64: 0.140391721 | AB64: 0.1421049705 | AC64: 0.1435735391 | AD64: 0.1448784931 | AE64: 0.1461008249 | AF64: 0.1473217187 | AG64: 0.1473298751 | AH64: 0.1473369997 | AI64: 0.147343763 | AJ64: 0.1473528052 | AK64: 0.1473681824
B65: ='Resultat - niveau I'!P16 -> 0 | E65: Batteri | F65: ekskl. afgifter | G65: 0.07177205196 | H65: 0.07177205196 | I65: 0.07177205196 | J65: 0.07177205196 | K65: 0.07177205196 | L65: 0.07177205196 | M65: 0.07177205196 | N65: 0.07177205196 | O65: 0.07177205196 | P65: 0.07177205196 | Q65: 0.07177205196 | R65: 0 | S65: 0 | T65: 0 | U65: 0 | V65: 0 | W65: 0 | X65: 0 | Y65: 0 | Z65: 0 | AA65: 0 | AB65: 0 | AC65: 0 | AD65: 0 | AE65: 0 | AF65: 0 | AG65: 0 | AH65: 0 | AI65: 0 | AJ65: 0 | AK65: 0
B66: ='Resultat - niveau I'!S16 -> 0.05843413209 | E66: Dæk | F66: ekskl. afgifter | G66: 0.07617167224 | H66: 0.07617167224 | I66: 0.07617167224 | J66: 0.07617167224 | K66: 0.07617167224 | L66: 0.07617167224 | M66: 0.07617167224 | N66: 0.07617167224 | O66: 0.07617167224 | P66: 0.07617167224 | Q66: 0.07617167224 | R66: 0.05843413209 | S66: 0.05877475996 | T66: 0.05896563031 | U66: 0.05908855227 | V66: 0.05917469681 | W66: 0.05923852048 | X66: 0.05928764434 | Y66: 0.05932647082 | Z66: 0.05935772693 | AA66: 0.05938319999 | AB66: 0.05940411895 | AC66: 0.05942136734 | AD66: 0.05943559026 | AE66: 0.05944731343 | AF66: 0.05945791174 | AG66: 0.05946852459 | AH66: 0.05947737057 | AI66: 0.05948658993 | AJ66: 0.05949620918 | AK66: 0.05950734461
B67: ='Resultat - niveau I'!R16 -> 0.2139033569 | E67: Reparation og vedligeholdelse | F67: ekskl. afgifter | G67: 0.8746893678 | H67: 0.8746893678 | I67: 0.8746893678 | J67: 0.8746893678 | K67: 0.8746893678 | L67: 0.8746893678 | M67: 0.8746893678 | N67: 0.8746893678 | O67: 0.8746893678 | P67: 0.8746893678 | Q67: 0.8746893678 | R67: 0.2139033569 | S67: 0.2312318811 | T67: 0.2505500628 | U67: 0.2704415406 | V67: 0.2902990235 | W67: 0.3097854977 | X67: 0.328678455 | Y67: 0.34681399 | Z67: 0.3640640443 | AA67: 0.3803265799 | AB67: 0.3955213811 | AC67: 0.4095880503 | AD67: 0.4224831754 | AE67: 0.4341799582 | AF67: 0.4446639108 | AG67: 0.453910421 | AH67: 0.4619916843 | AI67: 0.4688998668 | AJ67: 0.47427602 | AK67: 0.4769008116
B68: ='Resultat - niveau I'!Q16 -> 0.9856236618 | E68: Afskrivninger | F68: ekskl. afgifter | G68: 0.5924419072 | H68: 0.5924419072 | I68: 0.5924419072 | J68: 0.5924419072 | K68: 0.5924419072 | L68: 0.5924419072 | M68: 0.5924419072 | N68: 0.5924419072 | O68: 0.5924419072 | P68: 0.5924419072 | Q68: 0.5924419072 | R68: 0.9856236618 | S68: 0.9905677694 | T68: 0.9933686537 | U68: 0.9952017678 | V68: 0.9965143047 | W68: 0.9975129879 | X68: 0.9983061373 | Y68: 0.9989556981 | Z68: 0.999499461 | AA68: 0.9999616723 | AB68: 1.000358554 | AC68: 1.00070134 | AD68: 1.000997863 | AE68: 1.001251999 | AF68: 1.001454942 | AG68: 1.001598226 | AH68: 1.001733215 | AI68: 1.001842321 | AJ68: 1.002050881 | AK68: 1.002526533
B69: ='Resultat - niveau I'!H16 -> 0.2852053574 | E69: =CONCATENATE("Drivmiddel (", $G$123,"-priser)") -> Drivmiddel (-priser) | F69: inkl. afgifter | G69: 0.7318056675 | H69: 0.776248449 | I69: 0.6853294922 | J69: 0.6605737989 | K69: 0.6199577906 | L69: 0.5607120214 | M69: 0.5256836979 | N69: 0.5393874904 | O69: 0.5488593983 | P69: 0.5535769675 | Q69: 0.4823709967 | R69: 0.2852053574 | S69: 0.2893500136 | T69: 0.2931724283 | U69: 0.2966930074 | V69: 0.3000585144 | W69: 0.3031894803 | X69: 0.306097036 | Y69: 0.3088884481 | Z69: 0.3115676836 | AA69: 0.3140363904 | AB69: 0.316195336 | AC69: 0.3180456867 | AD69: 0.3196892245 | AE69: 0.3212275069 | AF69: 0.3227624682 | AG69: 0.3227803376 | AH69: 0.3227959467 | AI69: 0.3228107642 | AJ69: 0.3228305746 | AK69: 0.322864264
B70: ='Resultat - niveau I'!I16 -> 0 | E70: Batteri | F70: inkl. afgifter | G70: 0.08971506495 | H70: 0.08971506495 | I70: 0.08971506495 | J70: 0.08971506495 | K70: 0.08971506495 | L70: 0.08971506495 | M70: 0.08971506495 | N70: 0.08971506495 | O70: 0.08971506495 | P70: 0.08971506495 | Q70: 0.08971506495 | R70: 0 | S70: 0 | T70: 0 | U70: 0 | V70: 0 | W70: 0 | X70: 0 | Y70: 0 | Z70: 0 | AA70: 0 | AB70: 0 | AC70: 0 | AD70: 0 | AE70: 0 | AF70: 0 | AG70: 0 | AH70: 0 | AI70: 0 | AJ70: 0 | AK70: 0
B71: ='Resultat - niveau I'!M16 -> 0.07304266511 | E71: Dæk | F71: inkl. afgifter | G71: 0.0952145903 | H71: 0.0952145903 | I71: 0.0952145903 | J71: 0.0952145903 | K71: 0.0952145903 | L71: 0.0952145903 | M71: 0.0952145903 | N71: 0.0952145903 | O71: 0.0952145903 | P71: 0.0952145903 | Q71: 0.0952145903 | R71: 0.07304266511 | S71: 0.07346844996 | T71: 0.07370703789 | U71: 0.07386069034 | V71: 0.07396837101 | W71: 0.07404815059 | X71: 0.07410955543 | Y71: 0.07415808852 | Z71: 0.07419715866 | AA71: 0.07422899999 | AB71: 0.07425514869 | AC71: 0.07427670918 | AD71: 0.07429448783 | AE71: 0.07430914179 | AF71: 0.07432238967 | AG71: 0.07433565574 | AH71: 0.07434671321 | AI71: 0.07435823741 | AJ71: 0.07437026147 | AK71: 0.07438418076
B72: ='Resultat - niveau I'!K16 -> 0.275400572 | E72: Reparation og vedligeholdelse | F72: inkl. afgifter | G72: 1.126162561 | H72: 1.126162561 | I72: 1.126162561 | J72: 1.126162561 | K72: 1.126162561 | L72: 1.126162561 | M72: 1.126162561 | N72: 1.126162561 | O72: 1.126162561 | P72: 1.126162561 | Q72: 1.126162561 | R72: 0.275400572 | S72: 0.2977110469 | T72: 0.3225832058 | U72: 0.3481934835 | V72: 0.3737599927 | W72: 0.3988488283 | X72: 0.4231735108 | Y72: 0.4465230122 | Z72: 0.4687324571 | AA72: 0.4896704716 | AB72: 0.5092337781 | AC72: 0.5273446148 | AD72: 0.5439470884 | AE72: 0.5590066962 | AF72: 0.5725047851 | AG72: 0.584409667 | AH72: 0.5948142935 | AI72: 0.6037085785 | AJ72: 0.6106303757 | AK72: 0.6140097949
B73: ='Resultat - niveau I'!L16 -> 0.03020572274 | E73: Ejerafgift | G73: 0.1038583811 | H73: 0.1038583811 | I73: 0.1038583811 | J73: 0.1038583811 | K73: 0.1038583811 | L73: 0.1038583811 | M73: 0.1038583811 | N73: 0.1038583811 | O73: 0.1038583811 | P73: 0.1038583811 | Q73: 0.1038583811 | R73: 0.03020572274 | S73: 0.03008062782 | T73: 0.03141820292 | U73: 0.03302319815 | V73: 0.03484806354 | W73: 0.03808122362 | X73: 0.03787043702 | Y73: 0.03769990377 | Z73: 0.03755893876 | AA73: 0.03744063351 | AB73: 0.03734032222 | AC73: 0.03725472347 | AD73: 0.0371814159 | AE73: 0.03711851942 | AF73: 0.03706420865 | AG73: 0.03701684874 | AH73: 0.03697687744 | AI73: 0.03694165637 | AJ73: 0.03690368098 | AK73: 0.03685792056
B74: ='Resultat - niveau I'!J16 -> 1.500595275 | E74: Afskrivninger | F74: inkl. afgifter | G74: 1.390149063 | H74: 1.390149063 | I74: 1.390149063 | J74: 1.390149063 | K74: 1.390149063 | L74: 1.390149063 | M74: 1.390149063 | N74: 1.390149063 | O74: 1.390149063 | P74: 1.390149063 | Q74: 1.390149063 | R74: 1.500595275 | S74: 1.523072857 | T74: 1.552742739 | U74: 1.58672504 | V74: 1.624822191 | W74: 1.659993802 | X74: 1.693581038 | Y74: 1.726382721 | Z74: 1.758909858 | AA74: 1.791506263 | AB74: 1.824742183 | AC74: 1.858740938 | AD74: 1.893588866 | AE74: 1.929341881 | AF74: 1.96603453 | AG74: 1.999706296 | AH74: 2.030579195 | AI74: 2.058863369 | AJ74: 2.085172177 | AK74: 2.110921536
E75: Note: Benzindreven
E77: Kørselsomkostninger for opladningshybrid-personbiler opgjort som marginale omkostninger med og uden afgifter | L77: =$L$16 -> 2021 | M77: priser
B78: =$B$17 -> 2021 | E78: kr./km | G78: 2010 | H78: 2011 | I78: 2012 | J78: 2013 | K78: 2014 | L78: 2015 | M78: 2016 | N78: 2017 | O78: 2018 | P78: 2019 | Q78: 2020 | R78: 2021 | S78: 2022 | T78: 2023 | U78: 2024 | V78: 2025 | W78: 2026 | X78: 2027 | Y78: 2028 | Z78: 2029 | AA78: 2030 | AB78: 2031 | AC78: 2032 | AD78: 2033 | AE78: 2034 | AF78: 2035 | AG78: 2036 | AH78: 2037 | AI78: 2038 | AJ78: 2039 | AK78: 2040
B79: ='Resultat - niveau I'!AA16 -> 0.1178999589 | E79: =CONCATENATE("Drivmiddel (", $G$123,"-priser)") -> Drivmiddel (-priser) | F79: ekskl. afgifter | G79: 0.3090701743 | H79: 0.3426653526 | I79: 0.3534956705 | J79: 0.335081573 | K79: 0.3111893821 | L79: 0.2649110001 | M79: 0.239855106 | N79: 0.2550362854 | O79: 0.2659675434 | P79: 0.2667202804 | Q79: 0.2135625561 | R79: 0.1178999589 | S79: 0.1210131925 | T79: 0.1239571779 | U79: 0.1266997961 | V79: 0.1293400107 | W79: 0.1318057018 | X79: 0.1341012795 | Y79: 0.1363099712 | Z79: 0.1384333575 | AA79: 0.140391721 | AB79: 0.1421049705 | AC79: 0.1435735391 | AD79: 0.1448784931 | AE79: 0.1461008249 | AF79: 0.1473217187 | AG79: 0.1473298751 | AH79: 0.1473369997 | AI79: 0.147343763 | AJ79: 0.1473528052 | AK79: 0.1473681824
B80: ='Resultat - niveau I'!AB16 -> 0 | E80: Batteri | F80: ekskl. afgifter | G80: 0.02359038673 | H80: 0.02359038673 | I80: 0.02359038673 | J80: 0.02359038673 | K80: 0.02359038673 | L80: 0.02359038673 | M80: 0.02359038673 | N80: 0.02359038673 | O80: 0.02359038673 | P80: 0.02359038673 | Q80: 0.02359038673 | R80: 0 | S80: 0 | T80: 0 | U80: 0 | V80: 0 | W80: 0 | X80: 0 | Y80: 0 | Z80: 0 | AA80: 0 | AB80: 0 | AC80: 0 | AD80: 0 | AE80: 0 | AF80: 0 | AG80: 0 | AH80: 0 | AI80: 0 | AJ80: 0 | AK80: 0
B81: ='Resultat - niveau I'!AE16 -> 0.05843413209 | E81: Dæk | F81: ekskl. afgifter | G81: 0.07617167224 | H81: 0.07617167224 | I81: 0.07617167224 | J81: 0.07617167224 | K81: 0.07617167224 | L81: 0.07617167224 | M81: 0.07617167224 | N81: 0.07617167224 | O81: 0.07617167224 | P81: 0.07617167224 | Q81: 0.07617167224 | R81: 0.05843413209 | S81: 0.05877475996 | T81: 0.05896563031 | U81: 0.05908855227 | V81: 0.05917469681 | W81: 0.05923852048 | X81: 0.05928764434 | Y81: 0.05932647082 | Z81: 0.05935772693 | AA81: 0.05938319999 | AB81: 0.05940411895 | AC81: 0.05942136734 | AD81: 0.05943559026 | AE81: 0.05944731343 | AF81: 0.05945791174 | AG81: 0.05946852459 | AH81: 0.05947737057 | AI81: 0.05948658993 | AJ81: 0.05949620918 | AK81: 0.05950734461
B82: ='Resultat - niveau I'!AD16 -> 0.07278075392 | E82: Reparation og vedligeholdelse | F82: ekskl. afgifter | G82: 0.2874971509 | H82: 0.2874971509 | I82: 0.2874971509 | J82: 0.2874971509 | K82: 0.2874971509 | L82: 0.2874971509 | M82: 0.2874971509 | N82: 0.2874971509 | O82: 0.2874971509 | P82: 0.2874971509 | Q82: 0.2874971509 | R82: 0.07278075392 | S82: 0.07670228205 | T82: 0.0803029951 | U82: 0.08334514396 | V82: 0.08622564838 | W82: 0.08890867932 | X82: 0.09132338004 | Y82: 0.09349172403 | Z82: 0.09526503058 | AA82: 0.09663300901 | AB82: 0.09764667101 | AC82: 0.09851302706 | AD82: 0.09925529101 | AE82: 0.1000556457 | AF82: 0.100866195 | AG82: 0.1016486159 | AH82: 0.1023825989 | AI82: 0.1030471552 | AJ82: 0.1035923327 | AK82: 0.1038798967
B83: ='Resultat - niveau I'!AC16 -> 0.2677249377 | E83: Afskrivninger | F83: ekskl. afgifter | G83: 0.09126842553 | H83: 0.09126842553 | I83: 0.09126842553 | J83: 0.09126842553 | K83: 0.09126842553 | L83: 0.09126842553 | M83: 0.09126842553 | N83: 0.09126842553 | O83: 0.09126842553 | P83: 0.09126842553 | Q83: 0.09126842553 | R83: 0.2677249377 | S83: 0.2609103618 | T83: 0.2526054455 | U83: 0.2437782822 | V83: 0.2348284836 | W83: 0.225962909 | X83: 0.2172993057 | Y83: 0.2089921268 | Z83: 0.2010786497 | AA83: 0.1936194407 | AB83: 0.1864282396 | AC83: 0.1801086935 | AD83: 0.1743308721 | AE83: 0.1696828426 | AF83: 0.1659544792 | AG83: 0.1629875716 | AH83: 0.1606246852 | AI83: 0.1587781186 | AJ83: 0.157442445 | AK83: 0.1568012827
B84: ='Resultat - niveau I'!U16 -> 0.2852053574 | E84: =CONCATENATE("Drivmiddel (", $G$123,"-priser)") -> Drivmiddel (-priser) | F84: inkl. afgifter | G84: 0.7318056675 | H84: 0.776248449 | I84: 0.6853294922 | J84: 0.6605737989 | K84: 0.6199577906 | L84: 0.5607120214 | M84: 0.5256836979 | N84: 0.5393874904 | O84: 0.5488593983 | P84: 0.5535769675 | Q84: 0.4823709967 | R84: 0.2852053574 | S84: 0.2893500136 | T84: 0.2931724283 | U84: 0.2966930074 | V84: 0.3000585144 | W84: 0.3031894803 | X84: 0.306097036 | Y84: 0.3088884481 | Z84: 0.3115676836 | AA84: 0.3140363904 | AB84: 0.316195336 | AC84: 0.3180456867 | AD84: 0.3196892245 | AE84: 0.3212275069 | AF84: 0.3227624682 | AG84: 0.3227803376 | AH84: 0.3227959467 | AI84: 0.3228107642 | AJ84: 0.3228305746 | AK84: 0.322864264
B85: ='Resultat - niveau I'!V16 -> 0 | E85: Batteri | F85: inkl. afgifter | G85: 0.02948798341 | H85: 0.02948798341 | I85: 0.02948798341 | J85: 0.02948798341 | K85: 0.02948798341 | L85: 0.02948798341 | M85: 0.02948798341 | N85: 0.02948798341 | O85: 0.02948798341 | P85: 0.02948798341 | Q85: 0.02948798341 | R85: 0 | S85: 0 | T85: 0 | U85: 0 | V85: 0 | W85: 0 | X85: 0 | Y85: 0 | Z85: 0 | AA85: 0 | AB85: 0 | AC85: 0 | AD85: 0 | AE85: 0 | AF85: 0 | AG85: 0 | AH85: 0 | AI85: 0 | AJ85: 0 | AK85: 0
B86: ='Resultat - niveau I'!Y16 -> 0.07304266511 | E86: Dæk | F86: inkl. afgifter | G86: 0.0952145903 | H86: 0.0952145903 | I86: 0.0952145903 | J86: 0.0952145903 | K86: 0.0952145903 | L86: 0.0952145903 | M86: 0.0952145903 | N86: 0.0952145903 | O86: 0.0952145903 | P86: 0.0952145903 | Q86: 0.0952145903 | R86: 0.07304266511 | S86: 0.07346844996 | T86: 0.07370703789 | U86: 0.07386069034 | V86: 0.07396837101 | W86: 0.07404815059 | X86: 0.07410955543 | Y86: 0.07415808852 | Z86: 0.07419715866 | AA86: 0.07422899999 | AB86: 0.07425514869 | AC86: 0.07427670918 | AD86: 0.07429448783 | AE86: 0.07430914179 | AF86: 0.07432238967 | AG86: 0.07433565574 | AH86: 0.07434671321 | AI86: 0.07435823741 | AJ86: 0.07437026147 | AK86: 0.07438418076
B87: ='Resultat - niveau I'!X16 -> 0.09370522067 | E87: Reparation og vedligeholdelse | F87: inkl. afgifter | G87: 0.3701525818 | H87: 0.3701525818 | I87: 0.3701525818 | J87: 0.3701525818 | K87: 0.3701525818 | L87: 0.3701525818 | M87: 0.3701525818 | N87: 0.3701525818 | O87: 0.3701525818 | P87: 0.3701525818 | Q87: 0.3701525818 | R87: 0.09370522067 | S87: 0.09875418814 | T87: 0.1033901062 | U87: 0.1073068729 | V87: 0.1110155223 | W87: 0.1144699246 | X87: 0.1175788518 | Y87: 0.1203705947 | Z87: 0.1226537269 | AA87: 0.1244149991 | AB87: 0.1257200889 | AC87: 0.1268355223 | AD87: 0.1277911872 | AE87: 0.1288216438 | AF87: 0.129865226 | AG87: 0.1308725929 | AH87: 0.1318175961 | AI87: 0.1326732124 | AJ87: 0.1333751283 | AK87: 0.133745367
B88: ='Resultat - niveau I'!W16 -> 0.4082211071 | E88: Afskrivninger | F88: inkl. afgifter | G88: 0.2125192487 | H88: 0.2125192487 | I88: 0.2125192487 | J88: 0.2125192487 | K88: 0.2125192487 | L88: 0.2125192487 | M88: 0.2125192487 | N88: 0.2125192487 | O88: 0.2125192487 | P88: 0.2125192487 | Q88: 0.2125192487 | R88: 0.4082211071 | S88: 0.4017279902 | T88: 0.3960441539 | U88: 0.3909644687 | V88: 0.3867078064 | W88: 0.3813214557 | X88: 0.3753960705 | Y88: 0.36941118 | Z88: 0.3635871598 | AA88: 0.3581272687 | AB88: 0.3529211286 | AC88: 0.3489764491 | AD88: 0.3457844681 | AE88: 0.3442113386 | AF88: 0.3440214216 | AG88: 0.3438781953 | AH88: 0.3437301016 | AI88: 0.3436628029 | AJ88: 0.343839194 | AK88: 0.3448293485
E89: Note: Benzindreven
A91: ='Resultat - niveau I'!D15 -> Elektricitet | E91: Kørselsomkostninger for el-personbiler opgjort som gennemsnitlige omkostninger med og uden afgifter | L91: =$L$16 -> 2021 | M91: priser
B92: =$B$17 -> 2021 | E92: kr./km | G92: 2010 | H92: 2011 | I92: 2012 | J92: 2013 | K92: 2014 | L92: 2015 | M92: 2016 | N92: 2017 | O92: 2018 | P92: 2019 | Q92: 2020 | R92: 2021 | S92: 2022 | T92: 2023 | U92: 2024 | V92: 2025 | W92: 2026 | X92: 2027 | Y92: 2028 | Z92: 2029 | AA92: 2030 | AB92: 2031 | AC92: 2032 | AD92: 2033 | AE92: 2034 | AF92: 2035 | AG92: 2036 | AH92: 2037 | AI92: 2038 | AJ92: 2039 | AK92: 2040
B93: ='Resultat - niveau I'!O15 -> 0.09456803922 | E93: =CONCATENATE("Drivmiddel (", $G$123,"-priser)") -> Drivmiddel (-priser) | F93: ekskl. afgifter | G93: 0.1931592973 | H93: 0.185405775 | I93: 0.1712472412 | J93: 0.1714499061 | K93: 0.1626587088 | L93: 0.1533699733 | M93: 0.155358313 | N93: 0.1440837844 | O93: 0.1428626501 | P93: 0.1335949301 | Q93: 0.1122849284 | R93: 0.09456803922 | S93: 0.09640606751 | T93: 0.09775550497 | U93: 0.09814774953 | V93: 0.09960746753 | W93: 0.1023313102 | X93: 0.1051284714 | Y93: 0.1079778946 | Z93: 0.1108663816 | AA93: 0.1139264524 | AB93: 0.1168699931 | AC93: 0.1198324463 | AD93: 0.122812442 | AE93: 0.1259414014 | AF93: 0.1289211524 | AG93: 0.1287911262 | AH93: 0.1287395177 | AI93: 0.1286977625 | AJ93: 0.1286575298 | AK93: 0.1286245711
B94: ='Resultat - niveau I'!P15 -> 0 | E94: Batteri | F94: ekskl. afgifter | G94: 0.2783527889 | H94: 0.2783527889 | I94: 0.2783527889 | J94: 0.2783527889 | K94: 0.2783527889 | L94: 0.2783527889 | M94: 0.2783527889 | N94: 0.2783527889 | O94: 0.2783527889 | P94: 0.2783527889 | Q94: 0.2783527889 | R94: 0.220348806 | S94: 0.2151477234 | T94: 0.2120972106 | U94: 0.210081039 | V94: 0.2086457557 | W94: 0.2075712017 | X94: 0.2067379208 | Y94: 0.2060756037 | Z94: 0.205539804 | AA94: 0.2051004233 | AB94: 0.2047384891 | AC94: 0.2044355814 | AD94: 0.2041802612 | AE94: 0.2039561862 | AF94: 0.2037202513 | AG94: 0.2034431342 | AH94: 0.2033636379 | AI94: 0.2032993358 | AJ94: 0.2032463768 | AK94: 0.2031670034
B95: ='Resultat - niveau I'!S15 -> 0.08310761536 | E95: Dæk | F95: ekskl. afgifter | G95: 0.06558921715 | H95: 0.06558921715 | I95: 0.06558921715 | J95: 0.06558921715 | K95: 0.06558921715 | L95: 0.06558921715 | M95: 0.06558921715 | N95: 0.06558921715 | O95: 0.06558921715 | P95: 0.06558921715 | Q95: 0.06558921715 | R95: 0.08310761536 | S95: 0.08379927529 | T95: 0.08420593432 | U95: 0.08447621698 | V95: 0.08466968486 | W95: 0.08481572112 | X95: 0.08493013622 | Y95: 0.08502212309 | Z95: 0.08509755911 | AA95: 0.08516072216 | AB95: 0.08521307858 | AC95: 0.08525908827 | AD95: 0.08529791547 | AE95: 0.08533029028 | AF95: 0.08535667992 | AG95: 0.08536933509 | AH95: 0.08539515501 | AI95: 0.08541788202 | AJ95: 0.08544375475 | AK95: 0.08545789062
B96: ='Resultat - niveau I'!R15 -> 0.1076848329 | E96: Reparation og vedligeholdelse | F96: ekskl. afgifter | G96: 0.46 | H96: 0.46 | I96: 0.46 | J96: 0.46 | K96: 0.46 | L96: 0.46 | M96: 0.46 | N96: 0.46 | O96: 0.46 | P96: 0.46 | Q96: 0.46 | R96: 0.1076848329 | S96: 0.114027711 | T96: 0.1221311607 | U96: 0.1309293846 | V96: 0.1399630748 | W96: 0.1489798486 | X96: 0.1578219416 | Y96: 0.166379675 | Z96: 0.1745703453 | AA96: 0.1823278285 | AB96: 0.189607724 | AC96: 0.1963567215 | AD96: 0.2025456722 | AE96: 0.2081483432 | AF96: 0.2130255594 | AG96: 0.2170880677 | AH96: 0.2211472367 | AI96: 0.2246484056 | AJ96: 0.2275542307 | AK96: 0.2293696341
B97: ='Resultat - niveau I'!Q15 -> 1.104703168 | E97: Afskrivninger | F97: ekskl. afgifter | G97: 1.085780818 | H97: 1.085780818 | I97: 1.085780818 | J97: 1.085780818 | K97: 1.085780818 | L97: 1.085780818 | M97: 1.085780818 | N97: 1.085780818 | O97: 1.085780818 | P97: 1.085780818 | Q97: 1.085780818 | R97: 1.104703168 | S97: 1.106142859 | T97: 1.107025897 | U97: 1.107646375 | V97: 1.108122434 | W97: 1.108510891 | X97: 1.108841698 | Y97: 1.109131697 | Z97: 1.109390919 | AA97: 1.10962577 | AB97: 1.109838885 | AC97: 1.110036349 | AD97: 1.110218189 | AE97: 1.110358968 | AF97: 1.110427022 | AG97: 1.110381953 | AH97: 1.110547434 | AI97: 1.110701577 | AJ97: 1.110856409 | AK97: 1.111061501
B98: ='Resultat - niveau I'!H15 -> 0.288792261 | E98: =CONCATENATE("Drivmiddel (", $G$123,"-priser)") -> Drivmiddel (-priser) | F98: inkl. afgifter | G98: 0.4402041809 | H98: 0.4448951424 | I98: 0.2335822802 | J98: 0.2339388946 | K98: 0.205925903 | L98: 0.194275393 | M98: 0.1967358216 | N98: 0.1825606559 | O98: 0.180843565 | P98: 0.1692218552 | Q98: 0.1412112134 | R98: 0.288792261 | S98: 0.2877679241 | T98: 0.2875054208 | U98: 0.2867063986 | V98: 0.2876124792 | W98: 0.2903288693 | X98: 0.2932908498 | Y98: 0.2964272457 | Z98: 0.2996931733 | AA98: 0.3032349319 | AB98: 0.3066807887 | AC98: 0.3101877058 | AD98: 0.3137493473 | AE98: 0.317515537 | AF98: 0.3210920004 | AG98: 0.320768156 | AH98: 0.3206396195 | AI98: 0.3205356239 | AJ98: 0.32043542 | AK98: 0.3203533328
B99: ='Resultat - niveau I'!I15 -> 0 | E99: Batteri | F99: inkl. afgifter | G99: 0.3479409861 | H99: 0.3479409861 | I99: 0.3479409861 | J99: 0.3479409861 | K99: 0.3479409861 | L99: 0.3479409861 | M99: 0.3479409861 | N99: 0.3479409861 | O99: 0.3479409861 | P99: 0.3479409861 | Q99: 0.3479409861 | R99: 0.2754360075 | S99: 0.2689346543 | T99: 0.2651215132 | U99: 0.2626012988 | V99: 0.2608071946 | W99: 0.2594640021 | X99: 0.2584224009 | Y99: 0.2575945046 | Z99: 0.2569247549 | AA99: 0.2563755291 | AB99: 0.2559231114 | AC99: 0.2555444768 | AD99: 0.2552253265 | AE99: 0.2549452328 | AF99: 0.2546503141 | AG99: 0.2543039178 | AH99: 0.2542045474 | AI99: 0.2541241698 | AJ99: 0.254057971 | AK99: 0.2539587542
B100: ='Resultat - niveau I'!M15 -> 0.1038845192 | E100: Dæk | F100: inkl. afgifter | G100: 0.08198652144 | H100: 0.08198652144 | I100: 0.08198652144 | J100: 0.08198652144 | K100: 0.08198652144 | L100: 0.08198652144 | M100: 0.08198652144 | N100: 0.08198652144 | O100: 0.08198652144 | P100: 0.08198652144 | Q100: 0.08198652144 | R100: 0.1038845192 | S100: 0.1047490941 | T100: 0.1052574179 | U100: 0.1055952712 | V100: 0.1058371061 | W100: 0.1060196514 | X100: 0.1061626703 | Y100: 0.1062776539 | Z100: 0.1063719489 | AA100: 0.1064509027 | AB100: 0.1065163482 | AC100: 0.1065738603 | AD100: 0.1066223943 | AE100: 0.1066628629 | AF100: 0.1066958499 | AG100: 0.1067116689 | AH100: 0.1067439438 | AI100: 0.1067723525 | AJ100: 0.1068046934 | AK100: 0.1068223633
B101: ='Resultat - niveau I'!K15 -> 0.1386442224 | E101: Reparation og vedligeholdelse | F101: inkl. afgifter | G101: 0.59225 | H101: 0.59225 | I101: 0.59225 | J101: 0.59225 | K101: 0.59225 | L101: 0.59225 | M101: 0.59225 | N101: 0.59225 | O101: 0.59225 | P101: 0.59225 | Q101: 0.59225 | R101: 0.1386442224 | S101: 0.1468106779 | T101: 0.1572438694 | U101: 0.1685715826 | V101: 0.1802024588 | W101: 0.1918115551 | X101: 0.2031957498 | Y101: 0.2142138316 | Z101: 0.2247593196 | AA101: 0.2347470792 | AB101: 0.2441199446 | AC101: 0.2528092789 | AD101: 0.260777553 | AE101: 0.2679909919 | AF101: 0.2742704078 | AG101: 0.2795008872 | AH101: 0.2847270672 | AI101: 0.2892348222 | AJ101: 0.2929760721 | AK101: 0.2953134038
B102: ='Resultat - niveau I'!L15 -> 0.03922251247 | E102: Ejerafgift | G102: 0.05203660674 | H102: 0.05203660674 | I102: 0.05203660674 | J102: 0.05203660674 | K102: 0.05203660674 | L102: 0.05203660674 | M102: 0.05203660674 | N102: 0.05203660674 | O102: 0.05203660674 | P102: 0.05203660674 | Q102: 0.05203660674 | R102: 0.03922251247 | S102: 0.03938105038 | T102: 0.04130488892 | U102: 0.04352707695 | V102: 0.04601523159 | W102: 0.05035321453 | X102: 0.05012953537 | Y102: 0.04994983937 | Z102: 0.04980270868 | AA102: 0.04968030753 | AB102: 0.04957828652 | AC102: 0.0494910004 | AD102: 0.04941650895 | AE102: 0.04935298688 | AF102: 0.04929342547 | AG102: 0.04923676971 | AH102: 0.04920307639 | AI102: 0.04917385267 | AJ102: 0.04914423934 | AK102: 0.04911141841
B103: ='Resultat - niveau I'!J15 -> 1.353120571 | E103: Afskrivninger | F103: inkl. afgifter | G103: 1.36771231 | H103: 1.36771231 | I103: 1.36771231 | J103: 1.36771231 | K103: 1.36771231 | L103: 1.36771231 | M103: 1.36771231 | N103: 1.36771231 | O103: 1.36771231 | P103: 1.36771231 | Q103: 1.36771231 | R103: 1.353120571 | S103: 1.370492042 | T103: 1.382183579 | U103: 1.391203145 | V103: 1.399648655 | W103: 1.414911198 | X103: 1.438937901 | Y103: 1.471568162 | Z103: 1.511856661 | AA103: 1.559240145 | AB103: 1.606616887 | AC103: 1.654307632 | AD103: 1.702499792 | AE103: 1.751267507 | AF103: 1.800771029 | AG103: 1.846457271 | AH103: 1.888331799 | AI103: 1.926746641 | AJ103: 1.962052739 | AK103: 1.995375442
E106: Kørselsomkostninger for el-personbiler opgjort som marginale omkostninger med og uden afgifter | L106: =$L$16 -> 2021 | M106: priser
B107: =$B$17 -> 2021 | E107: kr./km | G107: 2010 | H107: 2011 | I107: 2012 | J107: 2013 | K107: 2014 | L107: 2015 | M107: 2016 | N107: 2017 | O107: 2018 | P107: 2019 | Q107: 2020 | R107: 2021 | S107: 2022 | T107: 2023 | U107: 2024 | V107: 2025 | W107: 2026 | X107: 2027 | Y107: 2028 | Z107: 2029 | AA107: 2030 | AB107: 2031 | AC107: 2032 | AD107: 2033 | AE107: 2034 | AF107: 2035 | AG107: 2036 | AH107: 2037 | AI107: 2038 | AJ107: 2039 | AK107: 2040
B108: ='Resultat - niveau I'!AA15 -> 0.09456803922 | E108: =CONCATENATE("Drivmiddel (", $G$123,"-priser)") -> Drivmiddel (-priser) | F108: ekskl. afgifter | G108: 0.1931592973 | H108: 0.185405775 | I108: 0.1712472412 | J108: 0.1714499061 | K108: 0.1626587088 | L108: 0.1533699733 | M108: 0.155358313 | N108: 0.1440837844 | O108: 0.1428626501 | P108: 0.1335949301 | Q108: 0.1122849284 | R108: 0.09456803922 | S108: 0.09640606751 | T108: 0.09775550497 | U108: 0.09814774953 | V108: 0.09960746753 | W108: 0.1023313102 | X108: 0.1051284714 | Y108: 0.1079778946 | Z108: 0.1108663816 | AA108: 0.1139264524 | AB108: 0.1168699931 | AC108: 0.1198324463 | AD108: 0.122812442 | AE108: 0.1259414014 | AF108: 0.1289211524 | AG108: 0.1287911262 | AH108: 0.1287395177 | AI108: 0.1286977625 | AJ108: 0.1286575298 | AK108: 0.1286245711
B109: ='Resultat - niveau I'!AB15 -> 0 | E109: Batteri | F109: ekskl. afgifter | G109: 0.1208048891 | H109: 0.1208048891 | I109: 0.1208048891 | J109: 0.1208048891 | K109: 0.1208048891 | L109: 0.1208048891 | M109: 0.1208048891 | N109: 0.1208048891 | O109: 0.1208048891 | P109: 0.1208048891 | Q109: 0.1208048891 | R109: 0.07582465188 | S109: 0.0730446738 | T109: 0.07017713492 | U109: 0.06739714924 | V109: 0.06488855864 | W109: 0.06281569605 | X109: 0.06105620168 | Y109: 0.05955143703 | Z109: 0.05821324946 | AA109: 0.05698246837 | AB109: 0.05586439951 | AC109: 0.0548840197 | AD109: 0.05407002911 | AE109: 0.0534124941 | AF109: 0.05288343465 | AG109: 0.05245664788 | AH109: 0.05211824204 | AI109: 0.05185183855 | AJ109: 0.05165093131 | AK109: 0.05153102718
B110: ='Resultat - niveau I'!AE15 -> 0.08310761536 | E110: Dæk | F110: ekskl. afgifter | G110: 0.06558921715 | H110: 0.06558921715 | I110: 0.06558921715 | J110: 0.06558921715 | K110: 0.06558921715 | L110: 0.06558921715 | M110: 0.06558921715 | N110: 0.06558921715 | O110: 0.06558921715 | P110: 0.06558921715 | Q110: 0.06558921715 | R110: 0.08310761536 | S110: 0.08379927529 | T110: 0.08420593432 | U110: 0.08447621698 | V110: 0.08466968486 | W110: 0.08481572112 | X110: 0.08493013622 | Y110: 0.08502212309 | Z110: 0.08509755911 | AA110: 0.08516072216 | AB110: 0.08521307858 | AC110: 0.08525908827 | AD110: 0.08529791547 | AE110: 0.08533029028 | AF110: 0.08535667992 | AG110: 0.08536933509 | AH110: 0.08539515501 | AI110: 0.08541788202 | AJ110: 0.08544375475 | AK110: 0.08545789062
B111: ='Resultat - niveau I'!AD15 -> 0.03543107229 | E111: Reparation og vedligeholdelse | F111: ekskl. afgifter | G111: 0.2032632128 | H111: 0.2032632128 | I111: 0.2032632128 | J111: 0.2032632128 | K111: 0.2032632128 | L111: 0.2032632128 | M111: 0.2032632128 | N111: 0.2032632128 | O111: 0.2032632128 | P111: 0.2032632128 | Q111: 0.2032632128 | R111: 0.03543107229 | S111: 0.03706759556 | T111: 0.03858219688 | U111: 0.03984152588 | V111: 0.04092941286 | W111: 0.04203419475 | X111: 0.04309556425 | Y111: 0.04410105024 | Z111: 0.04497728582 | AA111: 0.04566517394 | AB111: 0.04618967777 | AC111: 0.04660993932 | AD111: 0.04701438509 | AE111: 0.04743550614 | AF111: 0.04783660032 | AG111: 0.04818914759 | AH111: 0.04858269985 | AI111: 0.0489398102 | AJ111: 0.04925008926 | AK111: 0.04945615686
B112: ='Resultat - niveau I'!AC15 -> 0.290097659 | E112: Afskrivninger | F112: ekskl. afgifter | G112: 0.3029221782 | H112: 0.3029221782 | I112: 0.3029221782 | J112: 0.3029221782 | K112: 0.3029221782 | L112: 0.3029221782 | M112: 0.3029221782 | N112: 0.3029221782 | O112: 0.3029221782 | P112: 0.3029221782 | Q112: 0.3029221782 | R112: 0.290097659 | S112: 0.2842809771 | T112: 0.2762925427 | U112: 0.2674457478 | V112: 0.2582899186 | W112: 0.2490396567 | X112: 0.2397587943 | Y112: 0.2313653546 | Z112: 0.223255385 | AA112: 0.2155261101 | AB112: 0.2080300584 | AC112: 0.2009050857 | AD112: 0.1947091112 | AE112: 0.1897272803 | AF112: 0.1857904794 | AG112: 0.1827190478 | AH112: 0.1801129048 | AI112: 0.1780634994 | AJ112: 0.1765286094 | AK112: 0.1756604756
B113: ='Resultat - niveau I'!U15 -> 0.288792261 | E113: =CONCATENATE("Drivmiddel (", $G$123,"-priser)") -> Drivmiddel (-priser) | F113: inkl. afgifter | G113: 0.4402041809 | H113: 0.4448951424 | I113: 0.2335822802 | J113: 0.2339388946 | K113: 0.205925903 | L113: 0.194275393 | M113: 0.1967358216 | N113: 0.1825606559 | O113: 0.180843565 | P113: 0.1692218552 | Q113: 0.1412112134 | R113: 0.288792261 | S113: 0.2877679241 | T113: 0.2875054208 | U113: 0.2867063986 | V113: 0.2876124792 | W113: 0.2903288693 | X113: 0.2932908498 | Y113: 0.2964272457 | Z113: 0.2996931733 | AA113: 0.3032349319 | AB113: 0.3066807887 | AC113: 0.3101877058 | AD113: 0.3137493473 | AE113: 0.317515537 | AF113: 0.3210920004 | AG113: 0.320768156 | AH113: 0.3206396195 | AI113: 0.3205356239 | AJ113: 0.32043542 | AK113: 0.3203533328
B114: ='Resultat - niveau I'!V15 -> 0 | E114: Batteri | F114: inkl. afgifter | G114: 0.1510061113 | H114: 0.1510061113 | I114: 0.1510061113 | J114: 0.1510061113 | K114: 0.1510061113 | L114: 0.1510061113 | M114: 0.1510061113 | N114: 0.1510061113 | O114: 0.1510061113 | P114: 0.1510061113 | Q114: 0.1510061113 | R114: 0.09478081485 | S114: 0.09130584225 | T114: 0.08772141864 | U114: 0.08424643655 | V114: 0.08111069829 | W114: 0.07851962007 | X114: 0.0763202521 | Y114: 0.07443929629 | Z114: 0.07276656182 | AA114: 0.07122808546 | AB114: 0.06983049938 | AC114: 0.06860502462 | AD114: 0.06758753639 | AE114: 0.06676561763 | AF114: 0.06610429332 | AG114: 0.06557080985 | AH114: 0.06514780255 | AI114: 0.06481479818 | AJ114: 0.06456366414 | AK114: 0.06441378398
B115: ='Resultat - niveau I'!Y15 -> 0.1038845192 | E115: Dæk | F115: inkl. afgifter | G115: 0.08198652144 | H115: 0.08198652144 | I115: 0.08198652144 | J115: 0.08198652144 | K115: 0.08198652144 | L115: 0.08198652144 | M115: 0.08198652144 | N115: 0.08198652144 | O115: 0.08198652144 | P115: 0.08198652144 | Q115: 0.08198652144 | R115: 0.1038845192 | S115: 0.1047490941 | T115: 0.1052574179 | U115: 0.1055952712 | V115: 0.1058371061 | W115: 0.1060196514 | X115: 0.1061626703 | Y115: 0.1062776539 | Z115: 0.1063719489 | AA115: 0.1064509027 | AB115: 0.1065163482 | AC115: 0.1065738603 | AD115: 0.1066223943 | AE115: 0.1066628629 | AF115: 0.1066958499 | AG115: 0.1067116689 | AH115: 0.1067439438 | AI115: 0.1067723525 | AJ115: 0.1068046934 | AK115: 0.1068223633
B116: ='Resultat - niveau I'!X15 -> 0.04561750557 | E116: Reparation og vedligeholdelse | F116: inkl. afgifter | G116: 0.2617013865 | H116: 0.2617013865 | I116: 0.2617013865 | J116: 0.2617013865 | K116: 0.2617013865 | L116: 0.2617013865 | M116: 0.2617013865 | N116: 0.2617013865 | O116: 0.2617013865 | P116: 0.2617013865 | Q116: 0.2617013865 | R116: 0.04561750557 | S116: 0.04772452929 | T116: 0.04967457848 | U116: 0.05129596457 | V116: 0.05269661906 | W116: 0.05411902575 | X116: 0.05548553897 | Y116: 0.05678010219 | Z116: 0.05790825549 | AA116: 0.05879391145 | AB116: 0.05946921012 | AC116: 0.06001029687 | AD116: 0.06053102081 | AE116: 0.06107321415 | AF116: 0.06158962291 | AG116: 0.06204352753 | AH116: 0.06255022606 | AI116: 0.06301000563 | AJ116: 0.06340948993 | AK116: 0.06367480195
B117: ='Resultat - niveau I'!W15 -> 0.3539574291 | E117: Afskrivninger | F117: inkl. afgifter | G117: 0.3831244595 | H117: 0.3831244595 | I117: 0.3831244595 | J117: 0.3831244595 | K117: 0.3831244595 | L117: 0.3831244595 | M117: 0.3831244595 | N117: 0.3831244595 | O117: 0.3831244595 | P117: 0.3831244595 | Q117: 0.3831244595 | R117: 0.3539574291 | S117: 0.3518686369 | T117: 0.3452044853 | U117: 0.3365587451 | V117: 0.3272572386 | W117: 0.3197163931 | X117: 0.3145335723 | Y117: 0.3127024453 | Z117: 0.3129986924 | AA117: 0.3152227922 | AB117: 0.3169476213 | AC117: 0.3184848469 | AD117: 0.3206623451 | AE117: 0.3237468795 | AF117: 0.3278098671 | AG117: 0.3313270952 | AH117: 0.3338446831 | AI117: 0.3357295614 | AJ117: 0.3371689887 | AK117: 0.3387357966
A123: Varebiler
D124: Variable omkostninger
A125: ='Resultat - niveau I'!D27 -> Benzin | E125: Afstandsafhængige (variable) omkostninger, benzinbil | H125: =$L$16 -> 2021 | I125: priser
B126: =$B$17 -> 2021 | E126: kr. per km | G126: 2010 | H126: 2011 | I126: 2012 | J126: 2013 | K126: 2014 | L126: 2015 | M126: 2016 | N126: 2017 | O126: 2018 | P126: 2019 | Q126: 2020 | R126: 2021 | S126: 2022 | T126: 2023 | U126: 2024 | V126: 2025 | W126: 2026 | X126: 2027 | Y126: 2028 | Z126: 2029 | AA126: 2030 | AB126: 2031 | AC126: 2032 | AD126: 2033 | AE126: 2034 | AF126: 2035 | AG126: 2036 | AH126: 2037 | AI126: 2038 | AJ126: 2039 | AK126: 2040
B127: ='Resultat - niveau I'!M27 -> 0.07162192669 | E127: Kapitalomkostninger (afskrivninger) | G127: 0.1268858128 | H127: 0.1268858128 | I127: 0.1268858128 | J127: 0.1268858128 | K127: 0.1268858128 | L127: 0.1268858128 | M127: 0.1268858128 | N127: 0.1268858128 | O127: 0.1268858128 | P127: 0.1268858128 | Q127: 0.1268858128 | R127: 0.07162192669 | S127: 0.07436275454 | T127: 0.07693188492 | U127: 0.0797175022 | V127: 0.08321894596 | W127: 0.08693526804 | X127: 0.09002954655 | Y127: 0.09232071394 | Z127: 0.0932284351 | AA127: 0.09371968191 | AB127: 0.09420256113 | AC127: 0.09451234117 | AD127: 0.09483152204 | AE127: 0.09525055815 | AF127: 0.09569604802 | AG127: 0.09626233789 | AH127: 0.0967073965 | AI127: 0.09702129616 | AJ127: 0.09724023983 | AK127: 0.09743101562
B128: ='Resultat - niveau I'!N27 -> 0.3260619904 | E128: =CONCATENATE("Drivmiddel (", $D$65,"-priser)") -> Drivmiddel (-priser) | G128: 0.5477751926 | H128: 0.6576153311 | I128: 0.7152364689 | J128: 0.6752271408 | K128: 0.669056145 | L128: 0.5497819796 | M128: 0.473745558 | N128: 0.522070726 | O128: 0.4792176773 | P128: 0.4692581425 | Q128: 0.3615435495 | R128: 0.3260619904 | S128: 0.3192347399 | T128: 0.3119890122 | U128: 0.3030380776 | V128: 0.2914327119 | W128: 0.2785500832 | X128: 0.267525208 | Y128: 0.2598321958 | Z128: 0.2582852384 | AA128: 0.2592139063 | AB128: 0.2600876293 | AC128: 0.2608332691 | AD128: 0.2617065017 | AE128: 0.2629194481 | AF128: 0.2643451857 | AG128: 0.2636185112 | AH128: 0.2628380717 | AI128: 0.2620751232 | AJ128: 0.2614589825 | AK128: 0.2609908829
B129: ='Resultat - niveau I'!P27 -> 0.09608598495 | E129: Dæk | G129: 0.09662042024 | H129: 0.09662042024 | I129: 0.09662042024 | J129: 0.09662042024 | K129: 0.09662042024 | L129: 0.09662042024 | M129: 0.09662042024 | N129: 0.09662042024 | O129: 0.09662042024 | P129: 0.09662042024 | Q129: 0.09662042024 | R129: 0.09608598495 | S129: 0.09606778001 | T129: 0.09603967584 | U129: 0.09599102489 | V129: 0.09595745152 | W129: 0.09591451488 | X129: 0.09587632241 | Y129: 0.0958462145 | Z129: 0.09586137895 | AA129: 0.09587095361 | AB129: 0.09587664134 | AC129: 0.09588245977 | AD129: 0.09588297491 | AE129: 0.09588250978 | AF129: 0.09588546149 | AG129: 0.09589256819 | AH129: 0.09589651987 | AI129: 0.09589969992 | AJ129: 0.09589751416 | AK129: 0.09589604894
B130: ='Resultat - niveau I'!Q27 -> 0.1057635262 | E130: Reparation | G130: 0.4992452595 | H130: 0.4992452595 | I130: 0.4992452595 | J130: 0.4992452595 | K130: 0.4992452595 | L130: 0.4992452595 | M130: 0.4992452595 | N130: 0.4992452595 | O130: 0.4992452595 | P130: 0.4992452595 | Q130: 0.4992452595 | R130: 0.1613174043 | S130: 0.1619987477 | T130: 0.1621408883 | U130: 0.1611849986 | V130: 0.1582024168 | W130: 0.1541548396 | X130: 0.1504436828 | Y130: 0.1479526892 | Z130: 0.1473690894 | AA130: 0.1474591361 | AB130: 0.1476908986 | AC130: 0.148001778 | AD130: 0.1484657122 | AE130: 0.1486148106 | AF130: 0.1485563334 | AG130: 0.1481899144 | AH130: 0.1479234346 | AI130: 0.1477741754 | AJ130: 0.1476826025 | AK130: 0.1475459751
B131: ='Resultat - niveau I'!J27 -> 0.02402518091 | E131: Registreringsafgift | G131: 0.04993119416 | H131: 0.04993119416 | I131: 0.04993119416 | J131: 0.04993119416 | K131: 0.04993119416 | L131: 0.04993119416 | M131: 0.04993119416 | N131: 0.04993119416 | O131: 0.04993119416 | P131: 0.04993119416 | Q131: 0.04993119416 | R131: 0.02402518091 | S131: 0.02353301557 | T131: 0.02283896876 | U131: 0.02217288408 | V131: 0.02167863209 | W131: 0.02127431295 | X131: 0.02086392262 | Y131: 0.02047771904 | Z131: 0.01996803316 | AA131: 0.01966950004 | AB131: 0.01956648121 | AC131: 0.01961496189 | AD131: 0.01966237673 | AE131: 0.01973972331 | AF131: 0.0198253613 | AG131: 0.01993918545 | AH131: 0.02002661798 | AI131: 0.02006030761 | AJ131: 0.02008053045 | AK131: 0.02010002049
B132: ='Resultat - niveau I'!K27 -> 0.3278673838 | E132: =CONCATENATE("Brændstofafgift (", $D$65,"-priser)") -> Brændstofafgift (-priser) | G132: 0.544386945 | H132: 0.5386099857 | I132: 0.5268458629 | J132: 0.5318421375 | K132: 0.5682936405 | L132: 0.5740364059 | M132: 0.5710147334 | N132: 0.5387209788 | O132: 0.4539436889 | P132: 0.439768904 | Q132: 0.4293963474 | R132: 0.3278673838 | S132: 0.3127556747 | T132: 0.2982087302 | U132: 0.283147659 | V132: 0.2664999295 | W132: 0.2497292 | X132: 0.2355382126 | Y132: 0.2248712884 | Z132: 0.2199277974 | AA132: 0.21748123 | AB132: 0.2154492556 | AC132: 0.2137454327 | AD132: 0.2124321888 | AE132: 0.2115406303 | AF132: 0.2108343267 | AG132: 0.2102547514 | AH132: 0.2096322947 | AI132: 0.2090237884 | AJ132: 0.2085323717 | AK132: 0.2081590286
E133: Note: Brændstofomkostningerne er beregnet ud fra oplysningerne om brændstofpriser præsenteret under "Fælles forudsætninger".
A135: ='Resultat - niveau I'!D28 -> Diesel | E135: Afstandsafhængige (variable) omkostninger, dieselbil | H135: =H125 -> 2021 | I135: priser
B136: =$B$17 -> 2021 | E136: kr. per km | G136: 2010 | H136: 2011 | I136: 2012 | J136: 2013 | K136: 2014 | L136: 2015 | M136: 2016 | N136: 2017 | O136: 2018 | P136: 2019 | Q136: 2020 | R136: 2021 | S136: 2022 | T136: 2023 | U136: 2024 | V136: 2025 | W136: 2026 | X136: 2027 | Y136: 2028 | Z136: 2029 | AA136: 2030 | AB136: 2031 | AC136: 2032 | AD136: 2033 | AE136: 2034 | AF136: 2035 | AG136: 2036 | AH136: 2037 | AI136: 2038 | AJ136: 2039 | AK136: 2040
B137: ='Resultat - niveau I'!M28 -> 0.1885672515 | E137: Kapitalomkostninger (afskrivninger) | G137: 0.1451961716 | H137: 0.1451961716 | I137: 0.1451961716 | J137: 0.1451961716 | K137: 0.1451961716 | L137: 0.1451961716 | M137: 0.1451961716 | N137: 0.1451961716 | O137: 0.1451961716 | P137: 0.1451961716 | Q137: 0.1451961716 | R137: 0.1885672515 | S137: 0.1886684788 | T137: 0.1883149312 | U137: 0.1878036795 | V137: 0.1874668428 | W137: 0.1873964578 | X137: 0.1877587231 | Y137: 0.1877562586 | Z137: 0.1872803628 | AA137: 0.1864082206 | AB137: 0.1858447739 | AC137: 0.1856944474 | AD137: 0.1856695208 | AE137: 0.1856200959 | AF137: 0.1856551789 | AG137: 0.1857300294 | AH137: 0.1858816603 | AI137: 0.1860428297 | AJ137: 0.1862820804 | AK137: 0.1865060564
B138: ='Resultat - niveau I'!N28 -> 0.3743496336 | E138: =CONCATENATE("Drivmiddel (", $D$65,"-priser)") -> Drivmiddel (-priser) | G138: 0.4280480895 | H138: 0.5274192228 | I138: 0.5573303812 | J138: 0.5289222964 | K138: 0.5223419562 | L138: 0.4223799004 | M138: 0.3676716384 | N138: 0.4245168909 | O138: 0.5010417428 | P138: 0.5087750153 | Q138: 0.4105783436 | R138: 0.3743496336 | S138: 0.3800186598 | T138: 0.3856441739 | U138: 0.3911063545 | V138: 0.3960987935 | W138: 0.4008032156 | X138: 0.4050266025 | Y138: 0.4092856337 | Z138: 0.4140440934 | AA138: 0.4201651229 | AB138: 0.4253330616 | AC138: 0.429493434 | AD138: 0.4336558722 | AE138: 0.4373088682 | AF138: 0.4409918951 | AG138: 0.4409243814 | AH138: 0.4408292473 | AI138: 0.4406022656 | AJ138: 0.4403791151 | AK138: 0.4401912437
B139: ='Resultat - niveau I'!P28 -> 0.09194372105 | E139: Dæk | G139: 0.09364998653 | H139: 0.09364998653 | I139: 0.09364998653 | J139: 0.09364998653 | K139: 0.09364998653 | L139: 0.09364998653 | M139: 0.09364998653 | N139: 0.09364998653 | O139: 0.09364998653 | P139: 0.09364998653 | Q139: 0.09364998653 | R139: 0.09194372105 | S139: 0.09043585938 | T139: 0.08895943651 | U139: 0.08758560675 | V139: 0.08635152879 | W139: 0.08525390457 | X139: 0.08427409153 | Y139: 0.08341078637 | Z139: 0.08270564539 | AA139: 0.08214292676 | AB139: 0.08167039258 | AC139: 0.08125115477 | AD139: 0.08089757353 | AE139: 0.0806030047 | AF139: 0.0803477403 | AG139: 0.08012838351 | AH139: 0.07992708306 | AI139: 0.07974343132 | AJ139: 0.07957341779 | AK139: 0.07942857143
B140: ='Resultat - niveau I'!Q28 -> 0.1961443189 | E140: Reparation | G140: 0.6948075853 | H140: 0.6948075853 | I140: 0.6948075853 | J140: 0.6948075853 | K140: 0.6948075853 | L140: 0.6948075853 | M140: 0.6948075853 | N140: 0.6948075853 | O140: 0.6948075853 | P140: 0.6948075853 | Q140: 0.6948075853 | R140: 0.1517264664 | S140: 0.1515329148 | T140: 0.1506387074 | U140: 0.1493764196 | V140: 0.1474952705 | W140: 0.1451557571 | X140: 0.142436608 | Y140: 0.1406353278 | Z140: 0.1394097416 | AA140: 0.1385523134 | AB140: 0.1377968495 | AC140: 0.137128248 | AD140: 0.1365999567 | AE140: 0.1361225032 | AF140: 0.1356455403 | AG140: 0.1351855091 | AH140: 0.1347848436 | AI140: 0.1344659919 | AJ140: 0.1341755183 | AK140: 0.1338938526
B141: ='Resultat - niveau I'!J28 -> 0.04588113699 | E141: Registreringsafgift | G141: 0.05340368136 | H141: 0.05340368136 | I141: 0.05340368136 | J141: 0.05340368136 | K141: 0.05340368136 | L141: 0.05340368136 | M141: 0.05340368136 | N141: 0.05340368136 | O141: 0.05340368136 | P141: 0.05340368136 | Q141: 0.05340368136 | R141: 0.04588113699 | S141: 0.04644100793 | T141: 0.04674687902 | U141: 0.04693504985 | V141: 0.04710254575 | W141: 0.04723934739 | X141: 0.04739033619 | Y141: 0.04743925391 | Z141: 0.04732856736 | AA141: 0.04716410065 | AB141: 0.04707774892 | AC141: 0.0471069534 | AD141: 0.04712679563 | AE141: 0.0471238609 | AF141: 0.0471413754 | AG141: 0.04716792493 | AH141: 0.04721274591 | AI141: 0.04724604625 | AJ141: 0.04730040243 | AK141: 0.04735158942
B142: ='Resultat - niveau I'!K28 -> 0.2296935311 | E142: =CONCATENATE("Brændstofafgift (", $D$65,"-priser)") -> Brændstofafgift (-priser) | G142: 0.2728398772 | H142: 0.2699691631 | I142: 0.2656969359 | J142: 0.2678797233 | K142: 0.2863291898 | L142: 0.2937537464 | M142: 0.2963183518 | N142: 0.2977079271 | O142: 0.3013403192 | P142: 0.3039723835 | Q142: 0.3041912866 | R142: 0.2296935311 | S142: 0.2273119245 | T142: 0.2251750433 | U142: 0.2233418757 | V142: 0.2216141732 | W142: 0.2199378464 | X142: 0.2182028399 | Y142: 0.2168165961 | Z142: 0.2159987984 | AA142: 0.2159056921 | AB142: 0.2158429466 | AC142: 0.2157816301 | AD142: 0.2157225515 | AE142: 0.2156616467 | AF142: 0.2156164678 | AG142: 0.2155834579 | AH142: 0.2155369435 | AI142: 0.2154259642 | AJ142: 0.215316858 | AK142: 0.2152250011
E143: Note: Brændstofomkostningerne er beregnet ud fra oplysningerne om brændstofpriser præsenteret under "Fælles forudsætninger".
A145: ='Resultat - niveau I'!D30 -> Hybrid | E145: Afstandsafhængige (variable) omkostninger, opladningshybrid | H145: =H125 -> 2021 | I145: priser
B146: =$B$17 -> 2021 | E146: kr. per km | G146: 2010 | H146: 2011 | I146: 2012 | J146: 2013 | K146: 2014 | L146: 2015 | M146: 2016 | N146: 2017 | O146: 2018 | P146: 2019 | Q146: 2020 | R146: 2021 | S146: 2022 | T146: 2023 | U146: 2024 | V146: 2025 | W146: 2026 | X146: 2027 | Y146: 2028 | Z146: 2029 | AA146: 2030 | AB146: 2031 | AC146: 2032 | AD146: 2033 | AE146: 2034 | AF146: 2035 | AG146: 2036 | AH146: 2037 | AI146: 2038 | AJ146: 2039 | AK146: 2040
B147: ='Resultat - niveau I'!M30 -> 0.4140032753 | E147: Kapitalomkostninger (afskrivninger) | R147: 0.4140032753 | S147: 0.4122774574 | T147: 0.4045294375 | U147: 0.3943490556 | V147: 0.3833334094 | W147: 0.3722913537 | X147: 0.3612956025 | Y147: 0.3512675541 | Z147: 0.3422378632 | AA147: 0.3339130195 | AB147: 0.3262170057 | AC147: 0.3187475558 | AD147: 0.3117978554 | AE147: 0.3062070574 | AF147: 0.3016619285 | AG147: 0.2984310678 | AH147: 0.2956911473 | AI147: 0.2932337762 | AJ147: 0.2911910295 | AK147: 0.2895574209
B148: ='Resultat - niveau I'!N30 -> 0.1806784002 | E148: =CONCATENATE("Drivmiddel (", $D$63,"-priser)") -> Drivmiddel (-priser) | G148: 0.3885118064 | H148: 0.4388307957 | I148: 0.4592394353 | J148: 0.4393550363 | K148: 0.4308038147 | L148: 0.366518046 | M148: 0.3301355353 | N148: 0.3493633846 | O148: 0.333727181 | P148: 0.3233275977 | Q148: 0.2575853833 | R148: 0.1806784002 | S148: 0.1890725266 | T148: 0.1957544444 | U148: 0.2014386493 | V148: 0.2065641494 | W148: 0.2111587331 | X148: 0.2153126087 | Y148: 0.2192143327 | Z148: 0.2228986056 | AA148: 0.226259536 | AB148: 0.2291819551 | AC148: 0.2316773865 | AD148: 0.2338857614 | AE148: 0.2359428332 | AF148: 0.2379808289 | AG148: 0.2381324353 | AH148: 0.2382141267 | AI148: 0.2382544764 | AJ148: 0.2382927383 | AK148: 0.2383228184
B149: ='Resultat - niveau I'!P30 -> 0.07942857143 | E149: Dæk | R149: 0.07942857143 | S149: 0.07942857143 | T149: 0.07942857143 | U149: 0.07942857143 | V149: 0.07942857143 | W149: 0.07942857143 | X149: 0.07942857143 | Y149: 0.07942857143 | Z149: 0.07942857143 | AA149: 0.07942857143 | AB149: 0.07942857143 | AC149: 0.07942857143 | AD149: 0.07942857143 | AE149: 0.07942857143 | AF149: 0.07942857143 | AG149: 0.07942857143 | AH149: 0.07942857143 | AI149: 0.07942857143 | AJ149: 0.07942857143 | AK149: 0.07942857143
B150: ='Resultat - niveau I'!Q30 -> 0.08277546416 | E150: Reparation | R150: 0.08033422786 | S150: 0.1033490676 | T150: 0.126463085 | U150: 0.1479543548 | V150: 0.1678768222 | W150: 0.1870503171 | X150: 0.2054121737 | Y150: 0.223151976 | Z150: 0.2399514198 | AA150: 0.2553917602 | AB150: 0.2696968405 | AC150: 0.2831214451 | AD150: 0.2962528099 | AE150: 0.3096741918 | AF150: 0.3233272378 | AG150: 0.3373048462 | AH150: 0.3514232656 | AI150: 0.3655971593 | AJ150: 0.3798753736 | AK150: 0.3942810752
B151: ='Resultat - niveau I'!J30 -> 0.0220531901 | E151: Registreringsafgift | R151: 0.0220531901 | S151: 0.02228624982 | T151: 0.0220393708 | U151: 0.02158991006 | V151: 0.02105567261 | W151: 0.02049626438 | X151: 0.01992568214 | Y151: 0.01939377985 | Z151: 0.01891012947 | AA151: 0.01846189666 | AB151: 0.01804494469 | AC151: 0.01763541399 | AD151: 0.01724755822 | AE151: 0.01693554364 | AF151: 0.01668188359 | AG151: 0.01650173264 | AH151: 0.01634887574 | AI151: 0.01621172541 | AJ151: 0.01609772412 | AK151: 0.01600655506
B152: ='Resultat - niveau I'!K30 -> 0.168977007 | E152: =CONCATENATE("El- og brændstofafgift (", $D$65,"-priser)") -> El- og brændstofafgift (-priser) | G152: 0.3665493414 | H152: 0.3704889026 | I152: 0.2726912802 | J152: 0.2752384497 | K152: 0.2853791392 | L152: 0.2882431279 | M152: 0.2867261976 | N152: 0.2705649388 | O152: 0.2281657285 | P152: 0.2210679544 | Q152: 0.2151661239 | R152: 0.168977007 | S152: 0.1725947397 | T152: 0.1746302759 | U152: 0.1759285794 | V152: 0.1768057386 | W152: 0.1774199441 | X152: 0.1778621712 | Y152: 0.1781903438 | Z152: 0.1784382021 | AA152: 0.1786288862 | AB152: 0.1787771192 | AC152: 0.178894054 | AD152: 0.1789885368 | AE152: 0.179065518 | AF152: 0.1791268746 | AG152: 0.1792409879 | AH152: 0.1793024766 | AI152: 0.1793328476 | AJ152: 0.1793616471 | AK152: 0.1793842882
E153: Note: Drivmiddelomkostningerne er beregnet ud fra oplysningerne om drivmiddelpriser præsenteret under "Fælles forudsætninger".
A155: ='Resultat - niveau I'!D29 -> Elektricitet | E155: Afstandsafhængige (variable) omkostninger, elbil | H155: =H125 -> 2021 | I155: priser
B156: =$B$17 -> 2021 | E156: kr. per km | G156: 2010 | H156: 2011 | I156: 2012 | J156: 2013 | K156: 2014 | L156: 2015 | M156: 2016 | N156: 2017 | O156: 2018 | P156: 2019 | Q156: 2020 | R156: 2021 | S156: 2022 | T156: 2023 | U156: 2024 | V156: 2025 | W156: 2026 | X156: 2027 | Y156: 2028 | Z156: 2029 | AA156: 2030 | AB156: 2031 | AC156: 2032 | AD156: 2033 | AE156: 2034 | AF156: 2035 | AG156: 2036 | AH156: 2037 | AI156: 2038 | AJ156: 2039 | AK156: 2040
B157: ='Resultat - niveau I'!M29 -> 0.4312037773 | E157: Kapitalomkostninger (afskrivninger) | R157: 0.4312037773 | S157: 0.4152039509 | T157: 0.3994943204 | U157: 0.3843208323 | V157: 0.3700082443 | W157: 0.3567089311 | X157: 0.3444597646 | Y157: 0.3332301575 | Z157: 0.3229953892 | AA157: 0.313689839 | AB157: 0.3052005105 | AC157: 0.2972291659 | AD157: 0.2897105475 | AE157: 0.2836953634 | AF157: 0.2788409069 | AG157: 0.2748955982 | AH157: 0.2716708379 | AI157: 0.2690227238 | AJ157: 0.2668466814 | AK157: 0.2651328149
B158: ='Resultat - niveau I'!N29 -> 0.2033109465 | E158: =CONCATENATE("Drivmiddel (", $D$65,"-priser)") -> Drivmiddel (-priser) | G158: 0.2292484202 | H158: 0.2200462603 | I158: 0.2032424018 | J158: 0.2034829318 | K158: 0.1925514845 | L158: 0.1832541124 | M158: 0.1865255126 | N158: 0.1766560432 | O158: 0.1882366847 | P158: 0.1773970529 | Q158: 0.153627217 | R158: 0.2033109465 | S158: 0.2104452891 | T158: 0.2154947155 | U158: 0.2178105494 | V158: 0.2221258387 | W158: 0.2290456744 | X158: 0.2359940034 | Y158: 0.2429605218 | Z158: 0.2499405833 | AA158: 0.2572497841 | AB158: 0.2642471309 | AC158: 0.271250171 | AD158: 0.2782575112 | AE158: 0.2855876255 | AF158: 0.2926008953 | AG158: 0.2925890185 | AH158: 0.2925793109 | AI158: 0.2925713391 | AJ158: 0.2925636355 | AK158: 0.2925565457
B159: ='Resultat - niveau I'!P29 -> 0.07942857143 | E159: Dæk | R159: 0.07942857143 | S159: 0.07942857143 | T159: 0.07942857143 | U159: 0.07942857143 | V159: 0.07942857143 | W159: 0.07942857143 | X159: 0.07942857143 | Y159: 0.07942857143 | Z159: 0.07942857143 | AA159: 0.07942857143 | AB159: 0.07942857143 | AC159: 0.07942857143 | AD159: 0.07942857143 | AE159: 0.07942857143 | AF159: 0.07942857143 | AG159: 0.07942857143 | AH159: 0.07942857143 | AI159: 0.07942857143 | AJ159: 0.07942857143 | AK159: 0.07942857143
B160: ='Resultat - niveau I'!Q29 -> 0.0330435598 | E160: Reparation | R160: 0.07912370723 | S160: 0.08730555678 | T160: 0.09529701566 | U160: 0.1022106181 | V160: 0.1082965511 | W160: 0.1137810151 | X160: 0.1185287633 | Y160: 0.1224919872 | Z160: 0.1254974576 | AA160: 0.1273435077 | AB160: 0.1282643771 | AC160: 0.1284983146 | AD160: 0.1284341581 | AE160: 0.1285684889 | AF160: 0.1288300574 | AG160: 0.1291693851 | AH160: 0.129551897 | AI160: 0.1299534373 | AJ160: 0.130356531 | AK160: 0.1307278712
B161: ='Resultat - niveau I'!J29 -> 0 | E161: Registreringsafgift | R161: 0 | S161: 2.06070953e-05 | T161: 2.831028919e-05 | U161: 3.199937711e-05 | V161: 3.399300701e-05 | W161: 3.500463392e-05 | X161: 3.539843902e-05 | Y161: 3.539678372e-05 | Z161: 3.515986248e-05 | AA161: 3.477868024e-05 | AB161: 3.431855467e-05 | AC161: 3.381772297e-05 | AD161: 3.330550791e-05 | AE161: 3.262664057e-05 | AF161: 3.207877172e-05 | AG161: 3.163350835e-05 | AH161: 3.12695653e-05 | AI161: 3.097070192e-05 | AJ161: 3.072518768e-05 | AK161: 3.053253066e-05
B162: ='Resultat - niveau I'!K29 -> 0.2933864866 | E162: =CONCATENATE("Elafgift (", $D$65,"-priser)") -> Elafgift (-priser) | G162: 0.1887117378 | H162: 0.2023678195 | I162: 0.01853669751 | J162: 0.01863476183 | K162: 0.002464637849 | L162: 0.002449850022 | M162: 0.002437661714 | N162: 0.002408898743 | O162: 0.002387768053 | P162: 0.002367004852 | Q162: 0.0009359004399 | R162: 0.2933864866 | S162: 0.2920907488 | T162: 0.2915326801 | U162: 0.2911990081 | V162: 0.290977564 | W162: 0.2908231444 | X162: 0.2907130312 | Y162: 0.2906310513 | Z162: 0.2905694287 | AA162: 0.2905220046 | AB162: 0.2904856376 | AC162: 0.2904572519 | AD162: 0.2904347882 | AE162: 0.2904168165 | AF162: 0.2904023126 | AG162: 0.2903905251 | AH162: 0.2903808904 | AI162: 0.2903729785 | AJ162: 0.2903653328 | AK162: 0.2903582963
E163: Note: Drivmiddelomkostningerne er beregnet ud fra oplysningerne om drivmiddelpriser præsenteret under "Fælles forudsætninger".
D165: Faste omkostninger
E167: De faste omkostninger omfatter en del af afskrivningerne, løn, del af reparationer og kapacitetsomkostningerne. I den følgende tabel er de faste omkostninger opgjort per driftstime. Ved forsinkelsestid øges den tidsafhænge kørselsomkostning med 40%. Kapacitetsomkostninger omfatter udgifter til administration (løn (ej chauffør), kontor, husleje, reklame og annoncer, revisor, advokat, maskiner, telefon mv.)
A172: ='Resultat - niveau I'!D27 -> Benzin | E172: Tidsafhængige (faste) omkostninger, benzinbil | H172: 2019 | I172: priser
B173: =$B$17 -> 2021 | E173: kr. per driftstime | G173: 2010 | H173: 2011 | I173: 2012 | J173: 2013 | K173: 2014 | L173: 2015 | M173: 2016 | N173: 2017 | O173: 2018 | P173: 2019 | Q173: 2020 | R173: 2021 | S173: 2022 | T173: 2023 | U173: 2024 | V173: 2025 | W173: 2026 | X173: 2027 | Y173: 2028 | Z173: 2029 | AA173: 2030 | AB173: 2031 | AC173: 2032 | AD173: 2033 | AE173: 2034 | AF173: 2035 | AG173: 2036 | AH173: 2037 | AI173: 2038 | AJ173: 2039 | AK173: 2040
B174: ='Resultat - niveau I'!X27 -> 6.306164261 | E174: Kapitalomkostninger (afskrivninger) | G174: 4.772760842 | H174: 4.772760842 | I174: 4.772760842 | J174: 4.772760842 | K174: 4.772760842 | L174: 4.772760842 | M174: 4.772760842 | N174: 4.772760842 | O174: 4.772760842 | P174: 4.772760842 | Q174: 4.772760842 | R174: 6.306164261 | S174: 6.333945746 | T174: 6.362898746 | U174: 6.387198602 | V174: 6.422440674 | W174: 6.454610195 | X174: 6.481560246 | Y174: 6.495741654 | Z174: 6.526325974 | AA174: 6.54801793 | AB174: 6.563988556 | AC174: 6.579499143 | AD174: 6.587825293 | AE174: 6.596457015 | AF174: 6.605032673 | AG174: 6.613865653 | AH174: 6.620738865 | AI174: 6.630022835 | AJ174: 6.636656657 | AK174: 6.644982266
B175: ='Resultat - niveau I'!Y27 -> 260.82 | E175: Løn | G175: 282.2509038 | H175: 284.8475268 | I175: 284.4272216 | J175: 285.8926569 | K175: 289.0431714 | L175: 293.733 | M175: 300.9145559 | N175: 307.4141507 | O175: 311.982862 | P175: 317.440596 | Q175: 309.9918852 | R175: 260.82 | S175: 260.82 | T175: 260.82 | U175: 260.82 | V175: 260.82 | W175: 260.82 | X175: 260.82 | Y175: 260.82 | Z175: 260.82 | AA175: 260.82 | AB175: 260.82 | AC175: 260.82 | AD175: 260.82 | AE175: 260.82 | AF175: 260.82 | AG175: 260.82 | AH175: 260.82 | AI175: 260.82 | AJ175: 260.82 | AK175: 260.82
B176: ='Resultat - niveau I'!Z27 -> 1.959997209 | E176: Reparation | G176: 11.36378325 | H176: 11.36378325 | I176: 11.36378325 | J176: 11.36378325 | K176: 11.36378325 | L176: 11.36378325 | M176: 11.36378325 | N176: 11.36378325 | O176: 11.36378325 | P176: 11.36378325 | Q176: 11.36378325 | R176: 3.051721895 | S176: 3.076241453 | T176: 3.094308168 | U176: 3.08403833 | V176: 3.027415108 | W176: 2.943833977 | X176: 2.871548974 | Y176: 2.823090188 | Z176: 2.839481112 | AA176: 2.867378666 | AB176: 2.889505025 | AC176: 2.906240186 | AD176: 2.921749509 | AE176: 2.925237216 | AF176: 2.921595448 | AG176: 2.905381312 | AH176: 2.888644547 | AI176: 2.874181812 | AJ176: 2.86174698 | AK176: 2.849497952
B177: ='Resultat - niveau I'!AA27 -> 42.2 | E177: Kapacitetsomkostninger | G177: 40 | H177: 40 | I177: 40 | J177: 40 | K177: 40 | L177: 40 | M177: 40 | N177: 40 | O177: 40 | P177: 40 | Q177: 40 | R177: 42.2 | S177: 42.2 | T177: 42.2 | U177: 42.2 | V177: 42.2 | W177: 42.2 | X177: 42.2 | Y177: 42.2 | Z177: 42.2 | AA177: 42.2 | AB177: 42.2 | AC177: 42.2 | AD177: 42.2 | AE177: 42.2 | AF177: 42.2 | AG177: 42.2 | AH177: 42.2 | AI177: 42.2 | AJ177: 42.2 | AK177: 42.2
E178: Faktorpriser | G178: =SUM(G174:G177) -> 338.3874479 | H178: =SUM(H174:H177) -> 340.9840708 | I178: 340.5637657 | J178: 342.029201 | K178: 345.1797155 | L178: 349.8695441 | M178: 357.0511 | N178: 363.5506947 | O178: 368.1194061 | P178: 373.5771401 | Q178: 366.1284293
B179: ='Resultat - niveau I'!V27 -> 2.600412779 | E179: Vægtafgift mm. | G179: 1.235058677 | H179: 1.235058677 | I179: 1.235058677 | J179: 1.235058677 | K179: 1.235058677 | L179: 1.235058677 | M179: 1.235058677 | N179: 1.235058677 | O179: 1.235058677 | P179: 1.235058677 | Q179: 1.235058677 | R179: 2.600412779 | S179: 2.411949598 | T179: 2.290318645 | U179: 2.128542179 | V179: 1.902453233 | W179: 1.688198227 | X179: 1.340265703 | Y179: 1.072412342 | Z179: 0.9369218811 | AA179: 0.8622467342 | AB179: 0.7997311999 | AC179: 0.7470733489 | AD179: 0.7053198363 | AE179: 0.6730754404 | AF179: 0.6462463153 | AG179: 0.622935341 | AH179: 0.6009803673 | AI179: 0.5788220617 | AJ179: 0.5609217263 | AK179: 0.5468856601
B180: ='Resultat - niveau I'!U27 -> 2.550604032 | E180: Registreringsafgift | G180: 1.930935678 | H180: 1.930935678 | I180: 1.930935678 | J180: 1.930935678 | K180: 1.930935678 | L180: 1.930935678 | M180: 1.930935678 | N180: 1.930935678 | O180: 1.930935678 | P180: 1.930935678 | Q180: 1.930935678 | R180: 2.550604032 | S180: 2.416454139 | T180: 2.280752511 | U180: 2.136320935 | V180: 1.973782981 | W180: 1.809464615 | X180: 1.670365266 | Y180: 1.56910242 | Z180: 1.512460057 | AA180: 1.479467182 | AB180: 1.451588206 | AC180: 1.428070876 | AD180: 1.409066337 | AE180: 1.397478972 | AF180: 1.388387183 | AG180: 1.381740094 | AH180: 1.375211068 | AI180: 1.35423631 | AJ180: 1.336982785 | AK180: 1.324589805
E181: Afgifter i alt | G181: =G179+G180 -> 3.165994355 | H181: =H179+H180 -> 3.165994355 | I181: 3.165994355 | J181: 3.165994355 | K181: 3.165994355 | L181: 3.165994355 | M181: 3.165994355 | N181: 3.165994355 | O181: 3.165994355 | P181: 3.165994355 | Q181: 3.165994355
E182: Totale privatøkonomiske omk | G182: =G178+G181 -> 341.5534422 | H182: =H178+H181 -> 344.1500652 | I182: 343.7297601 | J182: 345.1951954 | K182: 348.3457098 | L182: 353.0355384 | M182: 360.2170944 | N182: 366.7166891 | O182: 371.2854004 | P182: 376.7431344 | Q182: 369.2944237
A184: ='Resultat - niveau I'!D28 -> Diesel | E184: Tidsafhængige (faste) omkostninger, dieselbil | H184: =H172 -> 2019 | I184: priser
B185: =$B$17 -> 2021 | E185: kr. per driftstime | G185: 2010 | H185: 2011 | I185: 2012 | J185: 2013 | K185: 2014 | L185: 2015 | M185: 2016 | N185: 2017 | O185: 2018 | P185: 2019 | Q185: 2020 | R185: 2021 | S185: 2022 | T185: 2023 | U185: 2024 | V185: 2025 | W185: 2026 | X185: 2027 | Y185: 2028 | Z185: 2029 | AA185: 2030 | AB185: 2031 | AC185: 2032 | AD185: 2033 | AE185: 2034 | AF185: 2035 | AG185: 2036 | AH185: 2037 | AI185: 2038 | AJ185: 2039 | AK185: 2040
B186: ='Resultat - niveau I'!X28 -> 8.097503099 | E186: Kapitalomkostninger (afskrivninger) | G186: 7.585600931 | H186: 7.585600931 | I186: 7.585600931 | J186: 7.585600931 | K186: 7.585600931 | L186: 7.585600931 | M186: 7.585600931 | N186: 7.585600931 | O186: 7.585600931 | P186: 7.585600931 | Q186: 7.585600931 | R186: 8.097503099 | S186: 8.13197556 | T186: 8.174665948 | U186: 8.221502136 | V186: 8.270393832 | W186: 8.315949784 | X186: 8.355275421 | Y186: 8.384547568 | Z186: 8.4151375 | AA186: 8.449230887 | AB186: 8.478174525 | AC186: 8.501314844 | AD186: 8.51983247 | AE186: 8.530673391 | AF186: 8.53915374 | AG186: 8.545968616 | AH186: 8.550066074 | AI186: 8.554666187 | AJ186: 8.556641613 | AK186: 8.558407749
B187: ='Resultat - niveau I'!Y28 -> 260.82 | E187: Løn | G187: 282.2509038 | H187: 284.8475268 | I187: 284.4272216 | J187: 285.8926569 | K187: 289.0431714 | L187: 293.733 | M187: 300.9145559 | N187: 307.4141507 | O187: 311.982862 | P187: 317.440596 | Q187: 309.9918852 | R187: 260.82 | S187: 260.82 | T187: 260.82 | U187: 260.82 | V187: 260.82 | W187: 260.82 | X187: 260.82 | Y187: 260.82 | Z187: 260.82 | AA187: 260.82 | AB187: 260.82 | AC187: 260.82 | AD187: 260.82 | AE187: 260.82 | AF187: 260.82 | AG187: 260.82 | AH187: 260.82 | AI187: 260.82 | AJ187: 260.82 | AK187: 260.82
B188: ='Resultat - niveau I'!Z28 -> 4.012966147 | E188: Reparation | G188: 11.38107101 | H188: 11.38107101 | I188: 11.38107101 | J188: 11.38107101 | K188: 11.38107101 | L188: 11.38107101 | M188: 11.38107101 | N188: 11.38107101 | O188: 11.38107101 | P188: 11.38107101 | Q188: 11.38107101 | R188: 2.915400207 | S188: 3.081229114 | T188: 3.251819614 | U188: 3.422469148 | V188: 3.581311289 | W188: 3.725675472 | X188: 3.84960127 | Y188: 3.968249453 | Z188: 4.088899672 | AA188: 4.209668542 | AB188: 4.313928835 | AC188: 4.396076699 | AD188: 4.466772005 | AE188: 4.528385697 | AF188: 4.57775077 | AG188: 4.617076261 | AH188: 4.644412912 | AI188: 4.662982621 | AJ188: 4.669908292 | AK188: 4.670899229
B189: ='Resultat - niveau I'!AA28 -> 42.2 | E189: Kapacitetsomkostninger | G189: 40 | H189: 40 | I189: 40 | J189: 40 | K189: 40 | L189: 40 | M189: 40 | N189: 40 | O189: 40 | P189: 40 | Q189: 40 | R189: 42.2 | S189: 42.2 | T189: 42.2 | U189: 42.2 | V189: 42.2 | W189: 42.2 | X189: 42.2 | Y189: 42.2 | Z189: 42.2 | AA189: 42.2 | AB189: 42.2 | AC189: 42.2 | AD189: 42.2 | AE189: 42.2 | AF189: 42.2 | AG189: 42.2 | AH189: 42.2 | AI189: 42.2 | AJ189: 42.2 | AK189: 42.2
E190: Faktorpriser | G190: =SUM(G186:G189) -> 341.2175757 | H190: =SUM(H186:H189) -> 343.8141987 | I190: 343.3938936 | J190: 344.8593289 | K190: 348.0098433 | L190: 352.6996719 | M190: 359.8812279 | N190: 366.3808226 | O190: 370.9495339 | P190: 376.4072679 | Q190: 368.9585572
B191: ='Resultat - niveau I'!V28 -> 5.120963314 | E191: Vægtafgift mm. | G191: 4.647506081 | H191: 4.647506081 | I191: 4.647506081 | J191: 4.647506081 | K191: 4.647506081 | L191: 4.647506081 | M191: 4.647506081 | N191: 4.647506081 | O191: 4.647506081 | P191: 4.647506081 | Q191: 4.647506081 | R191: 5.120963314 | S191: 4.714960928 | T191: 4.457056812 | U191: 4.160890255 | V191: 3.836349632 | W191: 3.596185484 | X191: 3.065159175 | Y191: 2.625811031 | Z191: 2.297185803 | AA191: 2.027784237 | AB191: 1.796225501 | AC191: 1.599098582 | AD191: 1.429184561 | AE191: 1.288592058 | AF191: 1.168559843 | AG191: 1.06591889 | AH191: 0.9820129026 | AI191: 0.9081249795 | AJ191: 0.8427728918 | AK191: 0.7925680064
B192: ='Resultat - niveau I'!U28 -> 2.166340535 | E192: Registreringsafgift | G192: 2.371103612 | H192: 2.371103612 | I192: 2.371103612 | J192: 2.371103612 | K192: 2.371103612 | L192: 2.371103612 | M192: 2.371103612 | N192: 2.371103612 | O192: 2.371103612 | P192: 2.371103612 | Q192: 2.371103612 | R192: 2.166340535 | S192: 2.148248442 | T192: 2.134822734 | U192: 2.12642769 | V192: 2.11732876 | W192: 2.10719191 | X192: 2.093742263 | Y192: 2.088819978 | Z192: 2.092800159 | AA192: 2.108600656 | AB192: 2.12194926 | AC192: 2.132994676 | AD192: 2.141967791 | AE192: 2.150651584 | AF192: 2.157932581 | AG192: 2.164036512 | AH192: 2.168787576 | AI192: 2.168929923 | AJ192: 2.168586041 | AK192: 2.168269076
E193: Afgifter i alt | G193: =G191+G192 -> 7.018609693 | H193: =H191+H192 -> 7.018609693 | I193: 7.018609693 | J193: 7.018609693 | K193: 7.018609693 | L193: 7.018609693 | M193: 7.018609693 | N193: 7.018609693 | O193: 7.018609693 | P193: 7.018609693 | Q193: 7.018609693
E194: Totale privatøkonomiske omk | G194: =G190+G193 -> 348.2361854 | H194: =H190+H193 -> 350.8328084 | I194: 350.4125033 | J194: 351.8779386 | K194: 355.028453 | L194: 359.7182816 | M194: 366.8998376 | N194: 373.3994323 | O194: 377.9681436 | P194: 383.4258776 | Q194: 375.9771668
A196: ='Resultat - niveau I'!D30 -> Hybrid | E196: Tidsafhængige (faste) omkostninger, opladningshybrid | H196: =H172 -> 2019 | I196: priser
B197: =$B$17 -> 2021 | E197: kr. per driftstime | G197: 2010 | H197: 2011 | I197: 2012 | J197: 2013 | K197: 2014 | L197: 2015 | M197: 2016 | N197: 2017 | O197: 2018 | P197: 2019 | Q197: 2020 | R197: 2021 | S197: 2022 | T197: 2023 | U197: 2024 | V197: 2025 | W197: 2026 | X197: 2027 | Y197: 2028 | Z197: 2029 | AA197: 2030 | AB197: 2031 | AC197: 2032 | AD197: 2033 | AE197: 2034 | AF197: 2035 | AG197: 2036 | AH197: 2037 | AI197: 2038 | AJ197: 2039 | AK197: 2040
B198: ='Resultat - niveau I'!X30 -> 17.43731577 | E198: Kapitalomkostninger (afskrivninger) | R198: 17.43731577 | S198: 17.58951126 | T198: 17.76056999 | U198: 17.93561462 | V198: 18.10583898 | W198: 18.26673241 | X198: 18.4195385 | Y198: 18.55737145 | Z198: 18.68054199 | AA198: 18.79258438 | AB198: 18.89487088 | AC198: 18.99263441 | AD198: 19.08343477 | AE198: 19.15654536 | AF198: 19.21590037 | AG198: 19.26279185 | AH198: 19.300191 | AI198: 19.33208985 | AJ198: 19.35885154 | AK198: 19.38022672
B199: ='Resultat - niveau I'!Y30 -> 260.82 | E199: Løn | G199: 282.2509038 | H199: 284.8475268 | I199: 284.4272216 | J199: 285.8926569 | K199: 289.0431714 | L199: 293.733 | M199: 300.9145559 | N199: 307.4141507 | O199: 311.982862 | P199: 317.440596 | Q199: 309.9918852 | R199: 260.82 | S199: 260.82 | T199: 260.82 | U199: 260.82 | V199: 260.82 | W199: 260.82 | X199: 260.82 | Y199: 260.82 | Z199: 260.82 | AA199: 260.82 | AB199: 260.82 | AC199: 260.82 | AD199: 260.82 | AE199: 260.82 | AF199: 260.82 | AG199: 260.82 | AH199: 260.82 | AI199: 260.82 | AJ199: 260.82 | AK199: 260.82
B200: ='Resultat - niveau I'!Z30 -> 2.411358075 | E200: Reparation | R200: 2.356444882 | S200: 3.047709073 | T200: 3.857135321 | U200: 4.737646066 | V200: 5.653964319 | W200: 6.574956566 | X200: 7.493085199 | Y200: 8.402071299 | Z200: 9.304595587 | AA200: 10.2070132 | AB200: 11.10612183 | AC200: 11.99920417 | AD200: 12.87822034 | AE200: 13.73460416 | AF200: 14.57078893 | AG200: 15.38069281 | AH200: 16.17316075 | AI200: 16.9556304 | AJ200: 17.72531101 | AK200: 18.47945784
B201: ='Resultat - niveau I'!AA30 -> 42.2 | E201: Kapacitetsomkostninger | R201: 42.2 | S201: 42.2 | T201: 42.2 | U201: 42.2 | V201: 42.2 | W201: 42.2 | X201: 42.2 | Y201: 42.2 | Z201: 42.2 | AA201: 42.2 | AB201: 42.2 | AC201: 42.2 | AD201: 42.2 | AE201: 42.2 | AF201: 42.2 | AG201: 42.2 | AH201: 42.2 | AI201: 42.2 | AJ201: 42.2 | AK201: 42.2
E202: Faktorpriser | G202: =SUM(G198:G201) -> 282.2509038 | H202: =SUM(H198:H201) -> 284.8475268 | I202: 284.4272216 | J202: 285.8926569 | K202: 289.0431714 | L202: 293.733 | M202: 300.9145559 | N202: 307.4141507 | O202: 311.982862 | P202: 317.440596 | Q202: 309.9918852
B203: ='Resultat - niveau I'!V30 -> 0.4113575851 | E203: Vægtafgift mm. | R203: 0.4113575851 | S203: 0.4189133736 | T203: 0.4431888378 | U203: 0.4696901931 | V203: 0.4985805838 | W203: 0.5473296904 | X203: 0.5463311318 | Y203: 0.5455711496 | Z203: 0.5449890739 | AA203: 0.5445356602 | AB203: 0.5441831876 | AC203: 0.5439051369 | AD203: 0.5436832779 | AE203: 0.5435046021 | AF203: 0.543359594 | AG203: 0.5432421841 | AH203: 0.5431075326 | AI203: 0.5430075256 | AJ203: 0.5429341832 | AK203: 0.5428566907
B204: ='Resultat - niveau I'!U30 -> 0.9339615993 | E204: Registreringsafgift | R204: 0.9339615993 | S204: 0.9582912089 | T204: 0.9767287154 | U204: 0.9921512084 | V204: 1.005458951 | W204: 1.017094888 | X204: 1.027497506 | Y204: 1.03661812 | Z204: 1.04458143 | AA204: 1.051664153 | AB204: 1.058016805 | AC204: 1.063988183 | AD204: 1.069517096 | AE204: 1.073973665 | AF204: 1.077585691 | AG204: 1.080787149 | AH204: 1.083183972 | AI204: 1.085111327 | AJ204: 1.08674587 | AK204: 1.088049479
E205: Afgifter i alt | G205: =G203+G204 -> 0 | H205: =H203+H204 -> 0 | I205: 0 | J205: 0 | K205: 0 | L205: 0 | M205: 0 | N205: 0 | O205: 0 | P205: 0 | Q205: 0
E206: Totale privatøkonomiske omk | G206: =G202+G205 -> 282.2509038 | H206: =H202+H205 -> 284.8475268 | I206: 284.4272216 | J206: 285.8926569 | K206: 289.0431714 | L206: 293.733 | M206: 300.9145559 | N206: 307.4141507 | O206: 311.982862 | P206: 317.440596 | Q206: 309.9918852
A208: ='Resultat - niveau I'!D29 -> Elektricitet | E208: Tidsafhængige (faste) omkostninger, elbil | H208: =H172 -> 2019 | I208: priser
B209: =$B$17 -> 2021 | E209: kr. per driftstime | G209: 2010 | H209: 2011 | I209: 2012 | J209: 2013 | K209: 2014 | L209: 2015 | M209: 2016 | N209: 2017 | O209: 2018 | P209: 2019 | Q209: 2020 | R209: 2021 | S209: 2022 | T209: 2023 | U209: 2024 | V209: 2025 | W209: 2026 | X209: 2027 | Y209: 2028 | Z209: 2029 | AA209: 2030 | AB209: 2031 | AC209: 2032 | AD209: 2033 | AE209: 2034 | AF209: 2035 | AG209: 2036 | AH209: 2037 | AI209: 2038 | AJ209: 2039 | AK209: 2040
B210: ='Resultat - niveau I'!X29 -> 18.1590932 | E210: Kapitalomkostninger (afskrivninger) | R210: 18.1590932 | S210: 18.08663297 | T210: 18.11654351 | U210: 18.17457506 | V210: 18.24255844 | W210: 18.31301307 | X210: 18.38244812 | Y210: 18.44879115 | Z210: 18.51110736 | AA210: 18.56897903 | AB210: 18.62272908 | AC210: 18.67400478 | AD210: 18.72307611 | AE210: 18.76233506 | AF210: 18.79401835 | AG210: 18.81976797 | AH210: 18.84081482 | AI210: 18.85809811 | AJ210: 18.87214591 | AK210: 18.88307196
B211: ='Resultat - niveau I'!Y29 -> 260.82 | E211: Løn | G211: 282.2509038 | H211: 284.8475268 | I211: 284.4272216 | J211: 285.8926569 | K211: 289.0431714 | L211: 293.733 | M211: 300.9145559 | N211: 307.4141507 | O211: 311.982862 | P211: 317.440596 | Q211: 309.9918852 | R211: 260.82 | S211: 260.82 | T211: 260.82 | U211: 260.82 | V211: 260.82 | W211: 260.82 | X211: 260.82 | Y211: 260.82 | Z211: 260.82 | AA211: 260.82 | AB211: 260.82 | AC211: 260.82 | AD211: 260.82 | AE211: 260.82 | AF211: 260.82 | AG211: 260.82 | AH211: 260.82 | AI211: 260.82 | AJ211: 260.82 | AK211: 260.82
B212: ='Resultat - niveau I'!Z29 -> 0.4870979271 | E212: Reparation | R212: 1.167363306 | S212: 1.395466474 | T212: 1.642888185 | U212: 1.895831616 | V212: 2.141498906 | W212: 2.372947608 | X212: 2.589958186 | Y212: 2.793090641 | Z212: 2.984223815 | AA212: 3.166292799 | AB212: 3.338279839 | AC212: 3.499620803 | AD212: 3.648143718 | AE212: 3.780424692 | AF212: 3.898281195 | AG212: 4.003252232 | AH212: 4.096673973 | AI212: 4.179727203 | AJ212: 4.253107055 | AK212: 4.314845218
B213: ='Resultat - niveau I'!AA29 -> 42.2 | E213: Kapacitetsomkostninger | R213: 42.2 | S213: 42.2 | T213: 42.2 | U213: 42.2 | V213: 42.2 | W213: 42.2 | X213: 42.2 | Y213: 42.2 | Z213: 42.2 | AA213: 42.2 | AB213: 42.2 | AC213: 42.2 | AD213: 42.2 | AE213: 42.2 | AF213: 42.2 | AG213: 42.2 | AH213: 42.2 | AI213: 42.2 | AJ213: 42.2 | AK213: 42.2
E214: Faktorpriser | G214: =SUM(G210:G213) -> 282.2509038 | H214: =SUM(H210:H213) -> 284.8475268 | I214: 284.4272216 | J214: 285.8926569 | K214: 289.0431714 | L214: 293.733 | M214: 300.9145559 | N214: 307.4141507 | O214: 311.982862 | P214: 317.440596 | Q214: 309.9918852
B215: ='Resultat - niveau I'!V29 -> 13.63969081 | E215: Vægtafgift mm. | R215: 13.63969081 | S215: 14.05461734 | T215: 14.97148081 | U215: 15.94213948 | V215: 16.98065439 | W215: 18.6878184 | X215: 18.68846626 | Y215: 18.6889486 | Z215: 18.68931116 | AA215: 18.68959019 | AB215: 18.68980416 | AC215: 18.68997117 | AD215: 18.69010334 | AE215: 18.69020907 | AF215: 18.69029441 | AG215: 18.69036376 | AH215: 18.69042045 | AI215: 18.690467 | AJ215: 18.69051198 | AK215: 18.69055338
B216: ='Resultat - niveau I'!U29 -> 0 | E216: Registreringsafgift | R216: 0 | S216: 0.000949530506 | T216: 0.001357713238 | U216: 0.001598725714 | V216: 0.0017697595 | W216: 0.001897418829 | X216: 0.001994610177 | Y216: 0.002069365628 | Z216: 0.002128364679 | AA216: 0.002175199347 | AB216: 0.002212937246 | AC216: 0.002243739629 | AD216: 0.002269055393 | AE216: 0.002289388272 | AF216: 0.002305849143 | AG216: 0.002319261207 | AH216: 0.00233024646 | AI216: 0.002339282635 | AJ216: 0.002346788262 | AK216: 0.002353726122
E217: Afgifter i alt | G217: =G215+G216 -> 0 | H217: =H215+H216 -> 0 | I217: 0 | J217: 0 | K217: 0 | L217: 0 | M217: 0 | N217: 0 | O217: 0 | P217: 0 | Q217: 0
E218: Totale privatøkonomiske omk | G218: =G214+G217 -> 282.2509038 | H218: =H214+H217 -> 284.8475268 | I218: 284.4272216 | J218: 285.8926569 | K218: 289.0431714 | L218: 293.733 | M218: 300.9145559 | N218: 307.4141507 | O218: 311.982862 | P218: 317.440596 | Q218: 309.9918852
A224: Lastbiler
D225: Variable omkostninger
E227: Afstandsafhængige (variable) omkostninger, dieselbil | G227: =H125 -> 2021 | H227: priser
B228: =$B$17 -> 2021 | E228: kr. per km | G228: 2010 | H228: 2011 | I228: 2012 | J228: 2013 | K228: 2014 | L228: 2015 | M228: 2016 | N228: 2017 | O228: 2018 | P228: 2019 | Q228: 2020 | R228: 2021 | S228: 2022 | T228: 2023 | U228: 2024 | V228: 2025 | W228: 2026 | X228: 2027 | Y228: 2028 | Z228: 2029 | AA228: 2030 | AB228: 2031 | AC228: 2032 | AD228: 2033 | AE228: 2034 | AF228: 2035 | AG228: 2036 | AH228: 2037 | AI228: 2038 | AJ228: 2039 | AK228: 2040
B229: ='Resultat - niveau I'!N40 -> 0.3682144854 | E229: Kapitalomkostninger (afskrivninger) | G229: 0.3256183035 | H229: 0.3256183035 | I229: 0.3256183035 | J229: 0.3256183035 | K229: 0.3256183035 | L229: 0.3256183035 | M229: 0.3256183035 | N229: 0.3256183035 | O229: 0.3256183035 | P229: 0.3256183035 | Q229: 0.3256183035 | R229: 0.3682144854 | S229: 0.3743193242 | T229: 0.3796853548 | U229: 0.3844653292 | V229: 0.3887696114 | W229: 0.3982577201 | X229: 0.4076921867 | Y229: 0.4171299264 | Z229: 0.4266111681 | AA229: 0.4294016999 | AB229: 0.4320313404 | AC229: 0.4345141653 | AD229: 0.4368632966 | AE229: 0.4368541467 | AF229: 0.4368362527 | AG229: 0.4368160761 | AH229: 0.4368008623 | AI229: 0.4367878465 | AJ229: 0.4367775271 | AK229: 0.436774616
B230: ='Resultat - niveau I'!O40 -> 1.506650749 | E230: =CONCATENATE("Drivmiddel (", $D$52,"-priser)") -> Drivmiddel (-priser) | G230: 1.615764209 | H230: 2.02490603 | I230: 2.149720137 | J230: 2.035655968 | K230: 1.632273358 | L230: 1.281647423 | M230: 1.089519815 | N230: 1.242894485 | O230: 1.45068891 | P230: 1.463495384 | Q230: 1.161532587 | R230: 1.506650749 | S230: 1.550693132 | T230: 1.594079842 | U230: 1.635571493 | V230: 1.675017574 | W230: 1.713415779 | X230: 1.750594136 | Y230: 1.785237451 | Z230: 1.817230313 | AA230: 1.848824603 | AB230: 1.875303846 | AC230: 1.896660858 | AD230: 1.917636238 | AE230: 1.935939749 | AF230: 1.953994142 | AG230: 1.954197734 | AH230: 1.954298906 | AI230: 1.954335631 | AJ230: 1.954338272 | AK230: 1.954342229
B231: ='Resultat - niveau I'!Q40 -> 0.2805316138 | E231: Dæk | G231: 0.2591193892 | H231: 0.2591193892 | I231: 0.2591193892 | J231: 0.2591193892 | K231: 0.2591193892 | L231: 0.2591193892 | M231: 0.2591193892 | N231: 0.2591193892 | O231: 0.2591193892 | P231: 0.2591193892 | Q231: 0.2591193892 | R231: 0.2805316138 | S231: 0.2808141551 | T231: 0.2810495001 | U231: 0.2812498793 | V231: 0.2814164816 | W231: 0.2815515744 | X231: 0.2816527984 | Y231: 0.2817224403 | Z231: 0.2817639426 | AA231: 0.281775912 | AB231: 0.2817698995 | AC231: 0.2817513262 | AD231: 0.2817252045 | AE231: 0.2816969911 | AF231: 0.281668928 | AG231: 0.2816444655 | AH231: 0.2816276808 | AI231: 0.2816150542 | AJ231: 0.2816058944 | AK231: 0.281603182
B232: ='Resultat - niveau I'!R40 -> 0.594935035 | E232: Reparation og vedligehold | G232: 0.6313558267 | H232: 0.6313558267 | I232: 0.6313558267 | J232: 0.6313558267 | K232: 0.6313558267 | L232: 0.6313558267 | M232: 0.6313558267 | N232: 0.6313558267 | O232: 0.6313558267 | P232: 0.6313558267 | Q232: 0.6313558267 | R232: 0.594935035 | S232: 0.5915726558 | T232: 0.5888344432 | U232: 0.5865874348 | V232: 0.5846987751 | W232: 0.5805937241 | X232: 0.5763712578 | Y232: 0.5719600812 | Z232: 0.5673136569 | AA232: 0.5678647753 | AB232: 0.5682627896 | AC232: 0.5685136088 | AD232: 0.5686337667 | AE232: 0.5688749911 | AF232: 0.5690241018 | AG232: 0.5691075029 | AH232: 0.5691511123 | AI232: 0.5691699192 | AJ232: 0.5691750736 | AK232: 0.5691777366
B233: ='Resultat - niveau I'!K40 -> 0 | E233: Registreringsafgift | G233: 0 | H233: 0 | I233: 0 | J233: 0 | K233: 0 | L233: 0 | M233: 0 | N233: 0 | O233: 0 | P233: 0 | Q233: 0 | R233: 0 | S233: 0 | T233: 0 | U233: 0 | V233: 0 | W233: 0 | X233: 0 | Y233: 0 | Z233: 0 | AA233: 0 | AB233: 0 | AC233: 0 | AD233: 0 | AE233: 0 | AF233: 0 | AG233: 0 | AH233: 0 | AI233: 0 | AJ233: 0 | AK233: 0
B234: ='Resultat - niveau I'!L40 -> 0.9911648295 | E234: =CONCATENATE("Brændstofafgift (", $D$52,"-priser)") -> Brændstofafgift (-priser) | G234: 1.105585264 | H234: 1.09726765 | I234: 1.081449401 | J234: 1.091125696 | K234: 0.9509182341 | L234: 0.9626211285 | M234: 0.9607915818 | N234: 0.943117517 | O234: 0.9333901977 | P234: 0.9348158254 | Q234: 0.9350935273 | R234: 0.9911648295 | S234: 0.9927003045 | T234: 0.9944701349 | U234: 0.9964140451 | V234: 0.9984384445 | W234: 1.000447233 | X234: 1.00234691 | Y234: 1.004066862 | Z234: 1.005559293 | AA234: 1.006787254 | AB234: 1.007756761 | AC234: 1.008481319 | AD234: 1.008989947 | AE234: 1.009323549 | AF234: 1.00952241 | AG234: 1.009627596 | AH234: 1.009679865 | AI234: 1.009698839 | AJ234: 1.009700204 | AK234: 1.009702248
E235: Note: Brændstofomkostningerne er beregnet ud fra oplysningerne om brændstofpriser præsenteret under "Fælles forudsætninger".
D237: Faste omkostninger
E239: De faste omkostninger omfatter en del af afskrivningerne, løn, del af reparationer og kapacitetsomkostningerne. I den følgende tabel er de faste omkostninger opgjort per driftstime. Ved forsinkelsestid øges den tidsafhænge kørselsomkostning med 40%. Kapacitetsomkostninger omfatter udgifter til administration (løn (ej chauffør), kontor, husleje, reklame og annoncer, revisor, advokat, maskiner, telefon mv.)
E244: Tidsafhængige (faste) omkostninger, dieselbil | G244: =G227 -> 2021 | H244: priser
B245: =$B$17 -> 2021 | E245: kr. per driftstime | G245: 2010 | H245: 2011 | I245: 2012 | J245: 2013 | K245: 2014 | L245: 2015 | M245: 2016 | N245: 2017 | O245: 2018 | P245: 2019 | Q245: 2020 | R245: 2021 | S245: 2022 | T245: 2023 | U245: 2024 | V245: 2025 | W245: 2026 | X245: 2027 | Y245: 2028 | Z245: 2029 | AA245: 2030 | AB245: 2031 | AC245: 2032 | AD245: 2033 | AE245: 2034 | AF245: 2035 | AG245: 2036 | AH245: 2037 | AI245: 2038 | AJ245: 2039 | AK245: 2040
B246: ='Resultat - niveau I'!Y40 -> 56.45808392 | E246: Kapitalomkostninger (afskrivninger) | G246: 57.6167774 | H246: 57.6167774 | I246: 57.6167774 | J246: 57.6167774 | K246: 57.6167774 | L246: 57.6167774 | M246: 57.6167774 | N246: 57.6167774 | O246: 57.6167774 | P246: 57.6167774 | Q246: 57.6167774 | R246: 56.45808392 | S246: 56.27758297 | T246: 56.12224192 | U246: 55.98756187 | V246: 55.86825709 | W246: 55.52499957 | X246: 55.18111819 | Y246: 54.83361921 | Z246: 54.48060067 | AA246: 54.37774418 | AB246: 54.27562323 | AC246: 54.17455466 | AD246: 54.07508875 | AE246: 54.07628986 | AF246: 54.07566541 | AG246: 54.0741863 | AH246: 54.07289773 | AI246: 54.07164471 | AJ246: 54.0705645 | AK246: 54.0702679
B247: ='Resultat - niveau I'!Z40 -> 260.82 | E247: Løn | G247: 245.8007142 | H247: 248.0620065 | I247: 247.69598 | J247: 248.9721674 | K247: 251.715821 | L247: 255.8 | M247: 262.054122 | N247: 267.7143519 | O247: 271.6930549 | P247: 276.4459712 | Q247: 269.959195 | R247: 260.82 | S247: 260.82 | T247: 260.82 | U247: 260.82 | V247: 260.82 | W247: 260.82 | X247: 260.82 | Y247: 260.82 | Z247: 260.82 | AA247: 260.82 | AB247: 260.82 | AC247: 260.82 | AD247: 260.82 | AE247: 260.82 | AF247: 260.82 | AG247: 260.82 | AH247: 260.82 | AI247: 260.82 | AJ247: 260.82 | AK247: 260.82
... 52 more rows

Sheet Til TE
A1: Overgangsark til TE
A2: Ret ikke i rækker og søjler
A3: Inkl. rettelser fra COWI jan/feb 2023
E6: kører årene 2021-2040 | F6: Kørt 13/6 '24 og indsat i TE 2.1 beta2
F7: Nu uden batteri i el-personbiler (de var allerede udeladt i for el-varebiler af ukendt årsag)
A10: Tal før 2021 er fra de gamle kørselsomkostninger
A11: Der er altså databrud 2020-2021
A13: Personbiler
A16: ='Resultat - niveau I'!D13 -> Benzin | E16: Kørselsomkostninger for benzin-personbiler opgjort som gennemsnitlige omkostninger med og uden afgifter | L16: =original_år -> 2021 | M16: priser
B17: =input_år -> 2021 | E17: kr./km | G17: 2021 | H17: 2022 | I17: 2023 | J17: 2024 | K17: 2025 | L17: 2015 | M17: 2016 | N17: 2017 | O17: 2018 | P17: 2019 | Q17: 2020 | R17: 2021 | S17: 2022 | T17: 2023 | U17: 2024 | V17: 2025 | W17: 2026 | X17: 2027 | Y17: 2028 | Z17: 2029 | AA17: 2030 | AB17: 2031 | AC17: 2032 | AD17: 2033 | AE17: 2034 | AF17: 2035 | AG17: 2036 | AH17: 2037 | AI17: 2038 | AJ17: 2039 | AK17: 2040
B18: ='Resultat - niveau I'!O13 -> 0.341706709 | E18: =CONCATENATE("Drivmiddel (", $G$123,"-priser)") -> Drivmiddel (-priser) | F18: ekskl. afgifter | G18: 0.4307056274 | H18: 0.5066590149 | I18: 0.5429606755 | J18: 0.5054310028 | K18: 0.4659125726 | L18: 0.3815229078 | M18: 0.3287209812 | N18: 0.3709187255 | O18: 0.3943133169 | P18: 0.3933783523 | Q18: 0.3144851473 | R18: 0.341706709 | S18: 0.3402537379 | T18: 0.3431593818 | U18: 0.3441457397 | V18: 0.3452495903 | W18: 0.3454897178 | X18: 0.3439362366 | Y18: 0.3430994266 | Z18: 0.3430958107 | AA18: 0.3435659487 | AB18: 0.3435940225 | AC18: 0.3433091484 | AD18: 0.3430179786 | AE18: 0.3431605798 | AF18: 0.3435098292 | AG18: 0.3412343898 | AH18: 0.339205923 | AI18: 0.3374964355 | AJ18: 0.3359223225 | AK18: 0.3345180288
B19: ='Resultat - niveau I'!S13 -> 0.06271617464 | E19: Dæk | F19: ekskl. afgifter | G19: 0.06636898489 | H19: 0.06636898489 | I19: 0.06636898489 | J19: 0.06636898489 | K19: 0.06636898489 | L19: 0.06636898489 | M19: 0.06636898489 | N19: 0.06636898489 | O19: 0.06636898489 | P19: 0.06636898489 | Q19: 0.06636898489 | R19: 0.06271617464 | S19: 0.06280127279 | T19: 0.06291573661 | U19: 0.06305364263 | V19: 0.06320300958 | W19: 0.063338344 | X19: 0.06342738689 | Y19: 0.06356187123 | Z19: 0.06375526921 | AA19: 0.06396265479 | AB19: 0.06416292295 | AC19: 0.06435070383 | AD19: 0.06454861515 | AE19: 0.06472270773 | AF19: 0.06486121806 | AG19: 0.06496331867 | AH19: 0.06503275628 | AI19: 0.06507892585 | AJ19: 0.06508373659 | AK19: 0.06507371613
B20: ='Resultat - niveau I'!R13 -> 0.3222454722 | E20: Reparation og vedligeholdelse | F20: ekskl. afgifter | G20: 0.7455846775 | H20: 0.7455846775 | I20: 0.7455846775 | J20: 0.7455846775 | K20: 0.7455846775 | L20: 0.7455846775 | M20: 0.7455846775 | N20: 0.7455846775 | O20: 0.7455846775 | P20: 0.7455846775 | Q20: 0.7455846775 | R20: 0.3222454722 | S20: 0.3291607964 | T20: 0.3356592041 | U20: 0.3416719426 | V20: 0.3469411082 | W20: 0.3503295046 | X20: 0.3492708033 | Y20: 0.3495273583 | Z20: 0.3512851224 | AA20: 0.3536908422 | AB20: 0.3551814507 | AC20: 0.3561917059 | AD20: 0.3568690171 | AE20: 0.3568375027 | AF20: 0.3564838204 | AG20: 0.3556834522 | AH20: 0.3546476488 | AI20: 0.3533932257 | AJ20: 0.3515958672 | AK20: 0.3495206785
B21: ='Resultat - niveau I'!Q13 -> 0.3861467255 | E21: Afskrivninger | F21: ekskl. afgifter | G21: 0.3725214066 | H21: 0.3725214066 | I21: 0.3725214066 | J21: 0.3725214066 | K21: 0.3725214066 | L21: 0.3725214066 | M21: 0.3725214066 | N21: 0.3725214066 | O21: 0.3725214066 | P21: 0.3725214066 | Q21: 0.3725214066 | R21: 0.3861467255 | S21: 0.3943757989 | T21: 0.4025768409 | U21: 0.4106923328 | V21: 0.4186316381 | W21: 0.4263558389 | X21: 0.4341426361 | Y21: 0.4415536919 | Z21: 0.448624765 | AA21: 0.4552476869 | AB21: 0.4614445544 | AC21: 0.4670667805 | AD21: 0.4722604973 | AE21: 0.4767917397 | AF21: 0.4806577597 | AG21: 0.4839224709 | AH21: 0.4865197293 | AI21: 0.4882721172 | AJ21: 0.4895729298 | AK21: 0.4906190394
B22: ='Resultat - niveau I'!H13 -> 0.8266040543 | E22: =CONCATENATE("Drivmiddel (", $G$123,"-priser)") -> Drivmiddel (-priser) | F22: inkl. afgifter | G22: 1.037192644 | H22: 1.122521364 | I22: 1.152393345 | J22: 1.101853613 | K22: 1.047917717 | L22: 0.9396375197 | M22: 0.8661436253 | N22: 0.9082865036 | O22: 0.9292257166 | P22: 0.9227615556 | Q22: 0.8226021073 | R22: 0.8266040543 | S22: 0.8135676918 | T22: 0.8116098721 | U22: 0.8058863362 | V22: 0.8009515274 | W22: 0.7947216742 | X22: 0.7850623271 | Y22: 0.7774886053 | Z22: 0.772195148 | AA22: 0.7685083541 | AB22: 0.7645251745 | AC22: 0.7605022103 | AD22: 0.7569042806 | AE22: 0.7544968864 | AF22: 0.7525847599 | AG22: 0.7475995721 | AH22: 0.7431554687 | AI22: 0.7394102069 | AJ22: 0.7359615326 | AK22: 0.7328849103
B23: ='Resultat - niveau I'!M13 -> 0.0783952183 | E23: Dæk | F23: inkl. afgifter | G23: 0.08296123111 | H23: 0.08296123111 | I23: 0.08296123111 | J23: 0.08296123111 | K23: 0.08296123111 | L23: 0.08296123111 | M23: 0.08296123111 | N23: 0.08296123111 | O23: 0.08296123111 | P23: 0.08296123111 | Q23: 0.08296123111 | R23: 0.0783952183 | S23: 0.07850159099 | T23: 0.07864467076 | U23: 0.07881705328 | V23: 0.07900376197 | W23: 0.07917293001 | X23: 0.07928423361 | Y23: 0.07945233903 | Z23: 0.07969408651 | AA23: 0.07995331849 | AB23: 0.08020365368 | AC23: 0.08043837979 | AD23: 0.08068576894 | AE23: 0.08090338466 | AF23: 0.08107652257 | AG23: 0.08120414834 | AH23: 0.08129094535 | AI23: 0.08134865731 | AJ23: 0.08135467074 | AK23: 0.08134214516
B24: ='Resultat - niveau I'!K13 -> 0.4148910455 | E24: Reparation og vedligeholdelse | F24: inkl. afgifter | G24: 0.9599402722 | H24: 0.9599402722 | I24: 0.9599402722 | J24: 0.9599402722 | K24: 0.9599402722 | L24: 0.9599402722 | M24: 0.9599402722 | N24: 0.9599402722 | O24: 0.9599402722 | P24: 0.9599402722 | Q24: 0.9599402722 | R24: 0.4148910455 | S24: 0.4237945254 | T24: 0.4321612253 | U24: 0.4399026261 | V24: 0.4466866769 | W24: 0.4510492372 | X24: 0.4496861592 | Y24: 0.4500164739 | Z24: 0.4522795951 | AA24: 0.4553769593 | AB24: 0.4572961178 | AC24: 0.4585968214 | AD24: 0.4594688596 | AE24: 0.4594282848 | AF24: 0.4589729188 | AG24: 0.4579424447 | AH24: 0.4566088478 | AI24: 0.4549937781 | AJ24: 0.452679679 | AK24: 0.4500078736
B25: ='Resultat - niveau I'!L13 -> 0.1808536261 | E25: Ejerafgift | G25: 0.2065078932 | H25: 0.2065078932 | I25: 0.2065078932 | J25: 0.2065078932 | K25: 0.2065078932 | L25: 0.2065078932 | M25: 0.2065078932 | N25: 0.2065078932 | O25: 0.2065078932 | P25: 0.2065078932 | Q25: 0.2065078932 | R25: 0.1808536261 | S25: 0.1753566889 | T25: 0.1758874509 | U25: 0.1764110295 | V25: 0.1769279033 | W25: 0.1825671212 | X25: 0.1687098623 | Y25: 0.1569285591 | Z25: 0.1473516283 | AA25: 0.1398542561 | AB25: 0.1328204997 | AC25: 0.1263966582 | AD25: 0.1207611997 | AE25: 0.1162358711 | AF25: 0.1121476163 | AG25: 0.1084829665 | AH25: 0.1050838662 | AI25: 0.1011697236 | AJ25: 0.09744190983 | AK25: 0.09430874836
B26: ='Resultat - niveau I'!J13 -> 0.8904561871 | E26: Afskrivninger | F26: inkl. afgifter | G26: 0.9059482241 | H26: 0.9059482241 | I26: 0.9059482241 | J26: 0.9059482241 | K26: 0.9059482241 | L26: 0.9059482241 | M26: 0.9059482241 | N26: 0.9059482241 | O26: 0.9059482241 | P26: 0.9059482241 | Q26: 0.9059482241 | R26: 0.8904561871 | S26: 0.8981865355 | T26: 0.9066133283 | U26: 0.9156523423 | V26: 0.9248271947 | W26: 0.9333440955 | X26: 0.9408812564 | Y26: 0.9487695501 | Z26: 0.9573259828 | AA26: 0.9662350336 | AB26: 0.9745363859 | AC26: 0.9819895078 | AD26: 0.9891095533 | AE26: 0.995504347 | AF26: 1.000720369 | AG26: 1.004871927 | AH26: 1.007671056 | AI26: 1.008104746 | AJ26: 1.007935247 | AK26: 1.007599366
E28: Kørselsomkostninger for benzin-personbiler opgjort som marginale omkostninger med og uden afgifter | L28: =$L$16 -> 2021 | M28: priser
B29: =$B$17 -> 2021 | E29: kr./km | G29: 2010 | H29: 2011 | I29: 2012 | J29: 2013 | K29: 2014 | L29: 2015 | M29: 2016 | N29: 2017 | O29: 2018 | P29: 2019 | Q29: 2020 | R29: 2021 | S29: 2022 | T29: 2023 | U29: 2024 | V29: 2025 | W29: 2026 | X29: 2027 | Y29: 2028 | Z29: 2029 | AA29: 2030 | AB29: 2031 | AC29: 2032 | AD29: 2033 | AE29: 2034 | AF29: 2035 | AG29: 2036 | AH29: 2037 | AI29: 2038 | AJ29: 2039 | AK29: 2040
B30: ='Resultat - niveau I'!AA13 -> 0.341706709 | E30: =CONCATENATE("Drivmiddel (", $G$123,"-priser)") -> Drivmiddel (-priser) | F30: ekskl. afgifter | G30: 0.4307056274 | H30: 0.5066590149 | I30: 0.5429606755 | J30: 0.5054310028 | K30: 0.4659125726 | L30: 0.3815229078 | M30: 0.3287209812 | N30: 0.3709187255 | O30: 0.3943133169 | P30: 0.3933783523 | Q30: 0.3144851473 | R30: 0.341706709 | S30: 0.3402537379 | T30: 0.3431593818 | U30: 0.3441457397 | V30: 0.3452495903 | W30: 0.3454897178 | X30: 0.3439362366 | Y30: 0.3430994266 | Z30: 0.3430958107 | AA30: 0.3435659487 | AB30: 0.3435940225 | AC30: 0.3433091484 | AD30: 0.3430179786 | AE30: 0.3431605798 | AF30: 0.3435098292 | AG30: 0.3412343898 | AH30: 0.339205923 | AI30: 0.3374964355 | AJ30: 0.3359223225 | AK30: 0.3345180288
B31: ='Resultat - niveau I'!AE13 -> 0.06271617464 | E31: Dæk | F31: ekskl. afgifter | G31: 0.06636898489 | H31: 0.06636898489 | I31: 0.06636898489 | J31: 0.06636898489 | K31: 0.06636898489 | L31: 0.06636898489 | M31: 0.06636898489 | N31: 0.06636898489 | O31: 0.06636898489 | P31: 0.06636898489 | Q31: 0.06636898489 | R31: 0.06271617464 | S31: 0.06280127279 | T31: 0.06291573661 | U31: 0.06305364263 | V31: 0.06320300958 | W31: 0.063338344 | X31: 0.06342738689 | Y31: 0.06356187123 | Z31: 0.06375526921 | AA31: 0.06396265479 | AB31: 0.06416292295 | AC31: 0.06435070383 | AD31: 0.06454861515 | AE31: 0.06472270773 | AF31: 0.06486121806 | AG31: 0.06496331867 | AH31: 0.06503275628 | AI31: 0.06507892585 | AJ31: 0.06508373659 | AK31: 0.06507371613
B32: ='Resultat - niveau I'!AD13 -> 0.07259822288 | E32: Reparation og vedligeholdelse | F32: ekskl. afgifter | G32: 0.1936490262 | H32: 0.1936490262 | I32: 0.1936490262 | J32: 0.1936490262 | K32: 0.1936490262 | L32: 0.1936490262 | M32: 0.1936490262 | N32: 0.1936490262 | O32: 0.1936490262 | P32: 0.1936490262 | Q32: 0.1936490262 | R32: 0.07259822288 | S32: 0.0728294585 | T32: 0.07296206076 | U32: 0.07316884847 | V32: 0.07342503072 | W32: 0.07357942299 | X32: 0.07331746856 | Y32: 0.07323134345 | Z32: 0.07335441711 | AA32: 0.07360826559 | AB32: 0.0738486938 | AC32: 0.07415405614 | AD32: 0.07448219366 | AE32: 0.07470174602 | AF32: 0.07484669453 | AG32: 0.07490557076 | AH32: 0.07490521458 | AI32: 0.07485475142 | AJ32: 0.07470731802 | AK32: 0.07450644369
B33: ='Resultat - niveau I'!AC13 -> 0.06493989763 | E33: Afskrivninger | F33: ekskl. afgifter | G33: 0.06040413968 | H33: 0.06040413968 | I33: 0.06040413968 | J33: 0.06040413968 | K33: 0.06040413968 | L33: 0.06040413968 | M33: 0.06040413968 | N33: 0.06040413968 | O33: 0.06040413968 | P33: 0.06040413968 | Q33: 0.06040413968 | R33: 0.06493989763 | S33: 0.06554479304 | T33: 0.06605729765 | U33: 0.06651572593 | V33: 0.06692270696 | W33: 0.06745248172 | X33: 0.068385357 | Y33: 0.06909647106 | Z33: 0.06958300559 | AA33: 0.06996647735 | AB33: 0.07048122217 | AC33: 0.07112356997 | AD33: 0.07174680819 | AE33: 0.07235959826 | AF33: 0.07288883365 | AG33: 0.07335987535 | AH33: 0.07375605203 | AI33: 0.07409825944 | AJ33: 0.07441993914 | AK33: 0.07473129697
B34: ='Resultat - niveau I'!U13 -> 0.8266040543 | E34: =CONCATENATE("Drivmiddel (", $G$123,"-priser)") -> Drivmiddel (-priser) | F34: inkl. afgifter | G34: 1.037192644 | H34: 1.122521364 | I34: 1.152393345 | J34: 1.101853613 | K34: 1.047917717 | L34: 0.9396375197 | M34: 0.8661436253 | N34: 0.9082865036 | O34: 0.9292257166 | P34: 0.9227615556 | Q34: 0.8226021073 | R34: 0.8266040543 | S34: 0.8135676918 | T34: 0.8116098721 | U34: 0.8058863362 | V34: 0.8009515274 | W34: 0.7947216742 | X34: 0.7850623271 | Y34: 0.7774886053 | Z34: 0.772195148 | AA34: 0.7685083541 | AB34: 0.7645251745 | AC34: 0.7605022103 | AD34: 0.7569042806 | AE34: 0.7544968864 | AF34: 0.7525847599 | AG34: 0.7475995721 | AH34: 0.7431554687 | AI34: 0.7394102069 | AJ34: 0.7359615326 | AK34: 0.7328849103
B35: ='Resultat - niveau I'!Y13 -> 0.0783952183 | E35: Dæk | F35: inkl. afgifter | G35: 0.08296123111 | H35: 0.08296123111 | I35: 0.08296123111 | J35: 0.08296123111 | K35: 0.08296123111 | L35: 0.08296123111 | M35: 0.08296123111 | N35: 0.08296123111 | O35: 0.08296123111 | P35: 0.08296123111 | Q35: 0.08296123111 | R35: 0.0783952183 | S35: 0.07850159099 | T35: 0.07864467076 | U35: 0.07881705328 | V35: 0.07900376197 | W35: 0.07917293001 | X35: 0.07928423361 | Y35: 0.07945233903 | Z35: 0.07969408651 | AA35: 0.07995331849 | AB35: 0.08020365368 | AC35: 0.08043837979 | AD35: 0.08068576894 | AE35: 0.08090338466 | AF35: 0.08107652257 | AG35: 0.08120414834 | AH35: 0.08129094535 | AI35: 0.08134865731 | AJ35: 0.08135467074 | AK35: 0.08134214516
B36: ='Resultat - niveau I'!X13 -> 0.09347021196 | E36: Reparation og vedligeholdelse | F36: inkl. afgifter | G36: 0.2493231213 | H36: 0.2493231213 | I36: 0.2493231213 | J36: 0.2493231213 | K36: 0.2493231213 | L36: 0.2493231213 | M36: 0.2493231213 | N36: 0.2493231213 | O36: 0.2493231213 | P36: 0.2493231213 | Q36: 0.2493231213 | R36: 0.09347021196 | S36: 0.09376792782 | T36: 0.09393865322 | U36: 0.09420489241 | V36: 0.09453472705 | W36: 0.09473350709 | X36: 0.09439624077 | Y36: 0.09428535469 | Z36: 0.09444381202 | AA36: 0.09477064195 | AB36: 0.09508019326 | AC36: 0.09547334728 | AD36: 0.09589582434 | AE36: 0.09617849801 | AF36: 0.09636511921 | AG36: 0.09644092235 | AH36: 0.09644046377 | AI36: 0.09637549245 | AJ36: 0.09618567195 | AK36: 0.09592704625
B37: ='Resultat - niveau I'!W13 -> 0.1475825665 | E37: Afskrivninger | F37: inkl. afgifter | G37: 0.1416333482 | H37: 0.1416333482 | I37: 0.1416333482 | J37: 0.1416333482 | K37: 0.1416333482 | L37: 0.1416333482 | M37: 0.1416333482 | N37: 0.1416333482 | O37: 0.1416333482 | P37: 0.1416333482 | Q37: 0.1416333482 | R37: 0.1475825665 | S37: 0.1468869998 | T37: 0.1461853998 | U37: 0.1455745785 | V37: 0.1449670806 | W37: 0.1446724252 | X37: 0.145281375 | Y37: 0.1455475592 | Z37: 0.1455742015 | AA37: 0.1456116879 | AB37: 0.1461555158 | AC37: 0.1471957562 | AD37: 0.1483637681 | AE37: 0.1494859066 | AF37: 0.1504489058 | AG37: 0.1513061596 | AH37: 0.1520193271 | AI37: 0.1526072507 | AJ37: 0.1531734209 | AK37: 0.1537361743
A39: ='Resultat - niveau I'!D14 -> Diesel | E39: Kørselsomkostninger for diesel-personbiler opgjort som gennemsnitlige omkostninger med og uden afgifter | L39: =$L$16 -> 2021 | M39: priser
B40: =$B$17 -> 2021 | E40: kr./km | G40: 2010 | H40: 2011 | I40: 2012 | J40: 2013 | K40: 2014 | L40: 2015 | M40: 2016 | N40: 2017 | O40: 2018 | P40: 2019 | Q40: 2020 | R40: 2021 | S40: 2022 | T40: 2023 | U40: 2024 | V40: 2025 | W40: 2026 | X40: 2027 | Y40: 2028 | Z40: 2029 | AA40: 2030 | AB40: 2031 | AC40: 2032 | AD40: 2033 | AE40: 2034 | AF40: 2035 | AG40: 2036 | AH40: 2037 | AI40: 2038 | AJ40: 2039 | AK40: 2040
B41: ='Resultat - niveau I'!O14 -> 0.3165501615 | E41: =CONCATENATE("Drivmiddel (", $G$123,"-priser)") -> Drivmiddel (-priser) | F41: ekskl. afgifter | G41: 0.3470523275 | H41: 0.4168368551 | I41: 0.4354578044 | J41: 0.4125050778 | K41: 0.385302488 | L41: 0.3106979645 | M41: 0.2688166196 | N41: 0.3009325432 | O41: 0.3444415306 | P41: 0.346576112 | Q41: 0.286007327 | R41: 0.3165501615 | S41: 0.3222473691 | T41: 0.3279005144 | U41: 0.3332792426 | V41: 0.3383867014 | W41: 0.3429193595 | X41: 0.3462837503 | Y41: 0.3484518525 | Z41: 0.3499408952 | AA41: 0.3520991562 | AB41: 0.3531099787 | AC41: 0.3530885392 | AD41: 0.3531819702 | AE41: 0.353682436 | AF41: 0.3541082328 | AG41: 0.351681607 | AH41: 0.3493478493 | AI41: 0.3470831484 | AJ41: 0.3450247092 | AK41: 0.3432425806
B42: ='Resultat - niveau I'!S14 -> 0.07865980823 | E42: Dæk | F42: ekskl. afgifter | G42: 0.07776387172 | H42: 0.07776387172 | I42: 0.07776387172 | J42: 0.07776387172 | K42: 0.07776387172 | L42: 0.07776387172 | M42: 0.07776387172 | N42: 0.07776387172 | O42: 0.07776387172 | P42: 0.07776387172 | Q42: 0.07776387172 | R42: 0.07865980823 | S42: 0.07862849416 | T42: 0.07859224032 | U42: 0.0785510726 | V42: 0.07850697303 | W42: 0.0784615628 | X42: 0.0784186555 | Y42: 0.07838691448 | Z42: 0.07836609447 | AA42: 0.07832708902 | AB42: 0.07828982305 | AC42: 0.0782436527 | AD42: 0.07819032268 | AE42: 0.07811845444 | AF42: 0.07804739392 | AG42: 0.07799303876 | AH42: 0.07796473542 | AI42: 0.07795329785 | AJ42: 0.07795857272 | AK42: 0.07797486275
B43: ='Resultat - niveau I'!R14 -> 0.4773282245 | E43: Reparation og vedligeholdelse | F43: ekskl. afgifter | G43: 1.012830937 | H43: 1.012830937 | I43: 1.012830937 | J43: 1.012830937 | K43: 1.012830937 | L43: 1.012830937 | M43: 1.012830937 | N43: 1.012830937 | O43: 1.012830937 | P43: 1.012830937 | Q43: 1.012830937 | R43: 0.4773282245 | S43: 0.5033514591 | T43: 0.5270428448 | U43: 0.5480586847 | V43: 0.5661724884 | W43: 0.5807188056 | X43: 0.5895268636 | Y43: 0.5936559079 | Z43: 0.5949242089 | AA43: 0.5944830961 | AB43: 0.5886156363 | AC43: 0.5791810444 | AD43: 0.5688586222 | AE43: 0.5581161773 | AF43: 0.5464253142 | AG43: 0.5340604934 | AH43: 0.5214440811 | AI43: 0.5094890286 | AJ43: 0.4988085677 | AK43: 0.4914264936
B44: ='Resultat - niveau I'!Q14 -> 0.3371996261 | E44: Afskrivninger | F44: ekskl. afgifter | G44: 0.3305239731 | H44: 0.3305239731 | I44: 0.3305239731 | J44: 0.3305239731 | K44: 0.3305239731 | L44: 0.3305239731 | M44: 0.3305239731 | N44: 0.3305239731 | O44: 0.3305239731 | P44: 0.3305239731 | Q44: 0.3305239731 | R44: 0.3371996261 | S44: 0.3472842058 | T44: 0.3579557773 | U44: 0.3692379452 | V44: 0.381141896 | W44: 0.3936946877 | X44: 0.4071362871 | Y44: 0.4214371147 | Z44: 0.4362578464 | AA44: 0.4510261417 | AB44: 0.4663774205 | AC44: 0.481580428 | AD44: 0.4956675706 | AE44: 0.5081058361 | AF44: 0.519503824 | AG44: 0.5299740472 | AH44: 0.5394910487 | AI44: 0.5474440356 | AJ44: 0.5542603183 | AK44: 0.5593859722
B45: ='Resultat - niveau I'!H14 -> 0.6231628583 | E45: =CONCATENATE("Drivmiddel (", $G$123,"-priser)") -> Drivmiddel (-priser) | F45: inkl. afgifter | G45: 0.6926137975 | H45: 0.7737543848 | I45: 0.7909098013 | J45: 0.7631376359 | K45: 0.7309156896 | L45: 0.6398557287 | M45: 0.5853651165 | N45: 0.6213774176 | O45: 0.6736359077 | P45: 0.6763339874 | Q45: 0.6028290735 | R45: 0.6231628583 | S45: 0.6289170492 | T45: 0.634792918 | U45: 0.6404743308 | V45: 0.6459544017 | W45: 0.6505120947 | X45: 0.6530371444 | Y45: 0.6536304716 | Z45: 0.6532706818 | AA45: 0.6542173794 | AB45: 0.6535659409 | AC45: 0.6515218565 | AD45: 0.6497268511 | AE45: 0.648939496 | AF45: 0.6480384487 | AG45: 0.6435975838 | AH45: 0.6393266729 | AI45: 0.6351821399 | AJ45: 0.6314150776 | AK45: 0.6281536797
B46: ='Resultat - niveau I'!M14 -> 0.09832476029 | E46: Dæk | F46: inkl. afgifter | G46: 0.09720483965 | H46: 0.09720483965 | I46: 0.09720483965 | J46: 0.09720483965 | K46: 0.09720483965 | L46: 0.09720483965 | M46: 0.09720483965 | N46: 0.09720483965 | O46: 0.09720483965 | P46: 0.09720483965 | Q46: 0.09720483965 | R46: 0.09832476029 | S46: 0.0982856177 | T46: 0.09824030041 | U46: 0.09818884075 | V46: 0.09813371629 | W46: 0.0980769535 | X46: 0.09802331938 | Y46: 0.09798364311 | Z46: 0.09795761808 | AA46: 0.09790886127 | AB46: 0.09786227881 | AC46: 0.09780456588 | AD46: 0.09773790335 | AE46: 0.09764806805 | AF46: 0.0975592424 | AG46: 0.09749129845 | AH46: 0.09745591927 | AI46: 0.09744162231 | AJ46: 0.0974482159 | AK46: 0.09746857843
B47: ='Resultat - niveau I'!K14 -> 0.6145600891 | E47: Reparation og vedligeholdelse | F47: inkl. afgifter | G47: 1.304019832 | H47: 1.304019832 | I47: 1.304019832 | J47: 1.304019832 | K47: 1.304019832 | L47: 1.304019832 | M47: 1.304019832 | N47: 1.304019832 | O47: 1.304019832 | P47: 1.304019832 | Q47: 1.304019832 | R47: 0.6145600891 | S47: 0.6480650036 | T47: 0.6785676627 | U47: 0.7056255565 | V47: 0.7289470788 | W47: 0.7476754622 | X47: 0.7590158369 | Y47: 0.7643319815 | Z47: 0.7659649189 | AA47: 0.7653969862 | AB47: 0.7578426318 | AC47: 0.7456955947 | AD47: 0.7324054761 | AE47: 0.7185745783 | AF47: 0.703522592 | AG47: 0.6876028853 | AH47: 0.6713592544 | AI47: 0.6559671243 | AJ47: 0.6422160309 | AK47: 0.6327116105
B48: ='Resultat - niveau I'!L14 -> 0.234969369 | E48: Ejerafgift | G48: 0.1846909111 | H48: 0.1846909111 | I48: 0.1846909111 | J48: 0.1846909111 | K48: 0.1846909111 | L48: 0.1846909111 | M48: 0.1846909111 | N48: 0.1846909111 | O48: 0.1846909111 | P48: 0.1846909111 | Q48: 0.1846909111 | R48: 0.234969369 | S48: 0.2354815043 | T48: 0.2443642824 | U48: 0.2532021087 | V48: 0.262505364 | W48: 0.2792744673 | X48: 0.2680780425 | Y48: 0.2560702386 | Z48: 0.2428626905 | AA48: 0.2320901487 | AB48: 0.2207780514 | AC48: 0.2092805482 | AD48: 0.1983343269 | AE48: 0.1889640716 | AF48: 0.180091718 | AG48: 0.1718811233 | AH48: 0.1640176826 | AI48: 0.1546913454 | AJ48: 0.1468956435 | AK48: 0.1411342593
B49: ='Resultat - niveau I'!J14 -> 0.8334306977 | E49: Afskrivninger | F49: inkl. afgifter | G49: 0.8192644223 | H49: 0.8192644223 | I49: 0.8192644223 | J49: 0.8192644223 | K49: 0.8192644223 | L49: 0.8192644223 | M49: 0.8192644223 | N49: 0.8192644223 | O49: 0.8192644223 | P49: 0.8192644223 | Q49: 0.8192644223 | R49: 0.8334306977 | S49: 0.8511490399 | T49: 0.8702180414 | U49: 0.890669724 | V49: 0.9125475366 | W49: 0.9357978151 | X49: 0.9604064388 | Y49: 0.9866878195 | Z49: 1.014629126 | AA49: 1.043953614 | AB49: 1.074393009 | AC49: 1.104482769 | AD49: 1.132602339 | AE49: 1.158327116 | AF49: 1.181855565 | AG49: 1.203534715 | AH49: 1.22339799 | AI49: 1.240192556 | AJ49: 1.254670708 | AK49: 1.265614138
E51: Kørselsomkostninger for diesel-personbiler opgjort som marginale omkostninger med og uden afgifter | L51: =$L$16 -> 2021 | M51: priser
B52: =$B$17 -> 2021 | E52: kr./km | G52: 2010 | H52: 2011 | I52: 2012 | J52: 2013 | K52: 2014 | L52: 2015 | M52: 2016 | N52: 2017 | O52: 2018 | P52: 2019 | Q52: 2020 | R52: 2021 | S52: 2022 | T52: 2023 | U52: 2024 | V52: 2025 | W52: 2026 | X52: 2027 | Y52: 2028 | Z52: 2029 | AA52: 2030 | AB52: 2031 | AC52: 2032 | AD52: 2033 | AE52: 2034 | AF52: 2035 | AG52: 2036 | AH52: 2037 | AI52: 2038 | AJ52: 2039 | AK52: 2040
B53: ='Resultat - niveau I'!AA14 -> 0.3165501615 | E53: =CONCATENATE("Drivmiddel (", $G$123,"-priser)") -> Drivmiddel (-priser) | F53: ekskl. afgifter | G53: 0.3470523275 | H53: 0.4168368551 | I53: 0.4354578044 | J53: 0.4125050778 | K53: 0.385302488 | L53: 0.3106979645 | M53: 0.2688166196 | N53: 0.3009325432 | O53: 0.3444415306 | P53: 0.346576112 | Q53: 0.286007327 | R53: 0.3165501615 | S53: 0.3222473691 | T53: 0.3279005144 | U53: 0.3332792426 | V53: 0.3383867014 | W53: 0.3429193595 | X53: 0.3462837503 | Y53: 0.3484518525 | Z53: 0.3499408952 | AA53: 0.3520991562 | AB53: 0.3531099787 | AC53: 0.3530885392 | AD53: 0.3531819702 | AE53: 0.353682436 | AF53: 0.3541082328 | AG53: 0.351681607 | AH53: 0.3493478493 | AI53: 0.3470831484 | AJ53: 0.3450247092 | AK53: 0.3432425806
B54: ='Resultat - niveau I'!AE14 -> 0.07865980823 | E54: Dæk | F54: ekskl. afgifter | G54: 0.07776387172 | H54: 0.07776387172 | I54: 0.07776387172 | J54: 0.07776387172 | K54: 0.07776387172 | L54: 0.07776387172 | M54: 0.07776387172 | N54: 0.07776387172 | O54: 0.07776387172 | P54: 0.07776387172 | Q54: 0.07776387172 | R54: 0.07865980823 | S54: 0.07862849416 | T54: 0.07859224032 | U54: 0.0785510726 | V54: 0.07850697303 | W54: 0.0784615628 | X54: 0.0784186555 | Y54: 0.07838691448 | Z54: 0.07836609447 | AA54: 0.07832708902 | AB54: 0.07828982305 | AC54: 0.0782436527 | AD54: 0.07819032268 | AE54: 0.07811845444 | AF54: 0.07804739392 | AG54: 0.07799303876 | AH54: 0.07796473542 | AI54: 0.07795329785 | AJ54: 0.07795857272 | AK54: 0.07797486275
B55: ='Resultat - niveau I'!AD14 -> 0.2088350294 | E55: Reparation og vedligeholdelse | F55: ekskl. afgifter | G55: 0.5462283264 | H55: 0.5462283264 | I55: 0.5462283264 | J55: 0.5462283264 | K55: 0.5462283264 | L55: 0.5462283264 | M55: 0.5462283264 | N55: 0.5462283264 | O55: 0.5462283264 | P55: 0.5462283264 | Q55: 0.5462283264 | R55: 0.2088350294 | S55: 0.2149942215 | T55: 0.2204798095 | U55: 0.2255092212 | V55: 0.2299775598 | W55: 0.2334883765 | X55: 0.2354940492 | Y55: 0.2363126542 | Z55: 0.2365444293 | AA55: 0.2367846948 | AB55: 0.2358500617 | AC55: 0.2342511852 | AD55: 0.2325835361 | AE55: 0.2307463334 | AF55: 0.2284651169 | AG55: 0.2257035953 | AH55: 0.222521976 | AI55: 0.2192798946 | AJ55: 0.216176899 | AK55: 0.2138886268
B56: ='Resultat - niveau I'!AC14 -> 0.1291181847 | E56: Afskrivninger | F56: ekskl. afgifter | G56: 0.1386692841 | H56: 0.1386692841 | I56: 0.1386692841 | J56: 0.1386692841 | K56: 0.1386692841 | L56: 0.1386692841 | M56: 0.1386692841 | N56: 0.1386692841 | O56: 0.1386692841 | P56: 0.1386692841 | Q56: 0.1386692841 | R56: 0.1291181847 | S56: 0.1279081367 | T56: 0.1275123183 | U56: 0.1281104842 | V56: 0.1295412622 | W56: 0.1318904728 | X56: 0.1355465787 | Y56: 0.1403433709 | Z56: 0.1457880217 | AA56: 0.1516398903 | AB56: 0.1587881214 | AC56: 0.1664645304 | AD56: 0.173233959 | AE56: 0.1792256034 | AF56: 0.1847200322 | AG56: 0.1897990204 | AH56: 0.1944851432 | AI56: 0.1985816053 | AJ56: 0.2020227674 | AK56: 0.204339588
B57: ='Resultat - niveau I'!U14 -> 0.6231628583 | E57: =CONCATENATE("Drivmiddel (", $G$123,"-priser)") -> Drivmiddel (-priser) | F57: inkl. afgifter | G57: 0.6926137975 | H57: 0.7737543848 | I57: 0.7909098013 | J57: 0.7631376359 | K57: 0.7309156896 | L57: 0.6398557287 | M57: 0.5853651165 | N57: 0.6213774176 | O57: 0.6736359077 | P57: 0.6763339874 | Q57: 0.6028290735 | R57: 0.6231628583 | S57: 0.6289170492 | T57: 0.634792918 | U57: 0.6404743308 | V57: 0.6459544017 | W57: 0.6505120947 | X57: 0.6530371444 | Y57: 0.6536304716 | Z57: 0.6532706818 | AA57: 0.6542173794 | AB57: 0.6535659409 | AC57: 0.6515218565 | AD57: 0.6497268511 | AE57: 0.648939496 | AF57: 0.6480384487 | AG57: 0.6435975838 | AH57: 0.6393266729 | AI57: 0.6351821399 | AJ57: 0.6314150776 | AK57: 0.6281536797
B58: ='Resultat - niveau I'!Y14 -> 0.09832476029 | E58: Dæk | F58: inkl. afgifter | G58: 0.09720483965 | H58: 0.09720483965 | I58: 0.09720483965 | J58: 0.09720483965 | K58: 0.09720483965 | L58: 0.09720483965 | M58: 0.09720483965 | N58: 0.09720483965 | O58: 0.09720483965 | P58: 0.09720483965 | Q58: 0.09720483965 | R58: 0.09832476029 | S58: 0.0982856177 | T58: 0.09824030041 | U58: 0.09818884075 | V58: 0.09813371629 | W58: 0.0980769535 | X58: 0.09802331938 | Y58: 0.09798364311 | Z58: 0.09795761808 | AA58: 0.09790886127 | AB58: 0.09786227881 | AC58: 0.09780456588 | AD58: 0.09773790335 | AE58: 0.09764806805 | AF58: 0.0975592424 | AG58: 0.09749129845 | AH58: 0.09745591927 | AI58: 0.09744162231 | AJ58: 0.0974482159 | AK58: 0.09746857843
B59: ='Resultat - niveau I'!X14 -> 0.2688751004 | E59: Reparation og vedligeholdelse | F59: inkl. afgifter | G59: 0.7032689703 | H59: 0.7032689703 | I59: 0.7032689703 | J59: 0.7032689703 | K59: 0.7032689703 | L59: 0.7032689703 | M59: 0.7032689703 | N59: 0.7032689703 | O59: 0.7032689703 | P59: 0.7032689703 | Q59: 0.7032689703 | R59: 0.2688751004 | S59: 0.2768050602 | T59: 0.2838677547 | U59: 0.2903431222 | V59: 0.2960961082 | W59: 0.3006162847 | X59: 0.3031985884 | Y59: 0.3042525423 | Z59: 0.3045509527 | AA59: 0.3048602945 | AB59: 0.3036569544 | AC59: 0.301598401 | AD59: 0.2994513027 | AE59: 0.2970859042 | AF59: 0.294148838 | AG59: 0.290593379 | AH59: 0.286497044 | AI59: 0.2823228643 | AJ59: 0.2783277575 | AK59: 0.275381607
B60: ='Resultat - niveau I'!W14 -> 0.3087459458 | E60: Afskrivninger | F60: inkl. afgifter | G60: 0.3278486011 | H60: 0.3278486011 | I60: 0.3278486011 | J60: 0.3278486011 | K60: 0.3278486011 | L60: 0.3278486011 | M60: 0.3278486011 | N60: 0.3278486011 | O60: 0.3278486011 | P60: 0.3278486011 | Q60: 0.3278486011 | R60: 0.3087459458 | S60: 0.3028628805 | T60: 0.2992167636 | U60: 0.2982871314 | V60: 0.2997642993 | W60: 0.3035262256 | X60: 0.3104432374 | Y60: 0.3201462759 | Z60: 0.3316286627 | AA60: 0.3442790868 | AB60: 0.3600138447 | AC60: 0.3770565887 | AD60: 0.3921297922 | AE60: 0.4055996571 | AF60: 0.4179464839 | AG60: 0.4293616326 | AH60: 0.4398990652 | AI60: 0.4491062796 | AJ60: 0.4568427423 | AK60: 0.4620498309
A62: ='Resultat - niveau I'!D16 -> Hybrid | E62: Kørselsomkostninger for opladningshybrid-personbiler opgjort som gennemsnitlige omkostninger med og uden afgifter | L62: =$L$16 -> 2021 | M62: priser
B63: =$B$17 -> 2021 | E63: kr./km | G63: 2010 | H63: 2011 | I63: 2012 | J63: 2013 | K63: 2014 | L63: 2015 | M63: 2016 | N63: 2017 | O63: 2018 | P63: 2019 | Q63: 2020 | R63: 2021 | S63: 2022 | T63: 2023 | U63: 2024 | V63: 2025 | W63: 2026 | X63: 2027 | Y63: 2028 | Z63: 2029 | AA63: 2030 | AB63: 2031 | AC63: 2032 | AD63: 2033 | AE63: 2034 | AF63: 2035 | AG63: 2036 | AH63: 2037 | AI63: 2038 | AJ63: 2039 | AK63: 2040
B64: ='Resultat - niveau I'!O16 -> 0.1178999589 | E64: =CONCATENATE("Drivmiddel (", $G$123,"-priser)") -> Drivmiddel (-priser) | F64: ekskl. afgifter | G64: 0.3090701743 | H64: 0.3426653526 | I64: 0.3534956705 | J64: 0.335081573 | K64: 0.3111893821 | L64: 0.2649110001 | M64: 0.239855106 | N64: 0.2550362854 | O64: 0.2659675434 | P64: 0.2667202804 | Q64: 0.2135625561 | R64: 0.1178999589 | S64: 0.1201787053 | T64: 0.1222858609 | U64: 0.1241826086 | V64: 0.1262172241 | W64: 0.1278551039 | X64: 0.1291985654 | Y64: 0.1303191683 | Z64: 0.1312394278 | AA64: 0.1318603467 | AB64: 0.1322416632 | AC64: 0.1324068293 | AD64: 0.1324404843 | AE64: 0.1324274563 | AF64: 0.1324961256 | AG64: 0.1315566873 | AH64: 0.1307027637 | AI64: 0.1299273312 | AJ64: 0.1292179971 | AK64: 0.12853991
B65: ='Resultat - niveau I'!P16 -> 0 | E65: Batteri | F65: ekskl. afgifter | G65: 0.07177205196 | H65: 0.07177205196 | I65: 0.07177205196 | J65: 0.07177205196 | K65: 0.07177205196 | L65: 0.07177205196 | M65: 0.07177205196 | N65: 0.07177205196 | O65: 0.07177205196 | P65: 0.07177205196 | Q65: 0.07177205196 | R65: 0 | S65: 0 | T65: 0 | U65: 0 | V65: 0 | W65: 0 | X65: 0 | Y65: 0 | Z65: 0 | AA65: 0 | AB65: 0 | AC65: 0 | AD65: 0 | AE65: 0 | AF65: 0 | AG65: 0 | AH65: 0 | AI65: 0 | AJ65: 0 | AK65: 0
B66: ='Resultat - niveau I'!S16 -> 0.05843413209 | E66: Dæk | F66: ekskl. afgifter | G66: 0.07617167224 | H66: 0.07617167224 | I66: 0.07617167224 | J66: 0.07617167224 | K66: 0.07617167224 | L66: 0.07617167224 | M66: 0.07617167224 | N66: 0.07617167224 | O66: 0.07617167224 | P66: 0.07617167224 | Q66: 0.07617167224 | R66: 0.05843413209 | S66: 0.05877475996 | T66: 0.05896563031 | U66: 0.05908855227 | V66: 0.05917469681 | W66: 0.05923852048 | X66: 0.05928764434 | Y66: 0.05932647082 | Z66: 0.05935772693 | AA66: 0.05938319999 | AB66: 0.05940411895 | AC66: 0.05942136734 | AD66: 0.05943559026 | AE66: 0.05944731343 | AF66: 0.05945791174 | AG66: 0.05946852459 | AH66: 0.05947737057 | AI66: 0.05948658993 | AJ66: 0.05949620918 | AK66: 0.05950734461
B67: ='Resultat - niveau I'!R16 -> 0.2139033569 | E67: Reparation og vedligeholdelse | F67: ekskl. afgifter | G67: 0.8746893678 | H67: 0.8746893678 | I67: 0.8746893678 | J67: 0.8746893678 | K67: 0.8746893678 | L67: 0.8746893678 | M67: 0.8746893678 | N67: 0.8746893678 | O67: 0.8746893678 | P67: 0.8746893678 | Q67: 0.8746893678 | R67: 0.2139033569 | S67: 0.2312318811 | T67: 0.2505500628 | U67: 0.2704415406 | V67: 0.2902990235 | W67: 0.3097854977 | X67: 0.328678455 | Y67: 0.34681399 | Z67: 0.3640640443 | AA67: 0.3803265799 | AB67: 0.3955213811 | AC67: 0.4095880503 | AD67: 0.4224831754 | AE67: 0.4341799582 | AF67: 0.4446639108 | AG67: 0.453910421 | AH67: 0.4619916843 | AI67: 0.4688998668 | AJ67: 0.47427602 | AK67: 0.4769008116
B68: ='Resultat - niveau I'!Q16 -> 0.9856236618 | E68: Afskrivninger | F68: ekskl. afgifter | G68: 0.5924419072 | H68: 0.5924419072 | I68: 0.5924419072 | J68: 0.5924419072 | K68: 0.5924419072 | L68: 0.5924419072 | M68: 0.5924419072 | N68: 0.5924419072 | O68: 0.5924419072 | P68: 0.5924419072 | Q68: 0.5924419072 | R68: 0.9856236618 | S68: 0.9861062913 | T68: 0.9829397562 | U68: 0.9780632536 | V68: 0.972195558 | W68: 0.965653924 | X68: 0.9585930653 | Y68: 0.9510929236 | Z68: 0.9431965452 | AA68: 0.9349286805 | AB68: 0.9263054293 | AC68: 0.9173393233 | AD68: 0.9080420889 | AE68: 0.8984248178 | AF68: 0.8884852284 | AG68: 0.878283816 | AH68: 0.8680745477 | AI68: 0.8578293825 | AJ68: 0.8475948308 | AK68: 0.837238677
B69: ='Resultat - niveau I'!H16 -> 0.2852053574 | E69: =CONCATENATE("Drivmiddel (", $G$123,"-priser)") -> Drivmiddel (-priser) | F69: inkl. afgifter | G69: 0.7318056675 | H69: 0.776248449 | I69: 0.6853294922 | J69: 0.6605737989 | K69: 0.6199577906 | L69: 0.5607120214 | M69: 0.5256836979 | N69: 0.5393874904 | O69: 0.5488593983 | P69: 0.5535769675 | Q69: 0.4823709967 | R69: 0.2852053574 | S69: 0.2873547033 | T69: 0.289219579 | U69: 0.2907985076 | V69: 0.2928138984 | W69: 0.2941020152 | X69: 0.2949061938 | Y69: 0.2953128469 | Z69: 0.2953765281 | AA69: 0.2949529149 | AB69: 0.2942486597 | AC69: 0.293309068 | AD69: 0.2922434849 | AE69: 0.2911642809 | AF69: 0.2902815477 | AG69: 0.2882233621 | AH69: 0.2863525282 | AI69: 0.2846536578 | AJ69: 0.2830996003 | AK69: 0.2816140008
B70: ='Resultat - niveau I'!I16 -> 0 | E70: Batteri | F70: inkl. afgifter | G70: 0.08971506495 | H70: 0.08971506495 | I70: 0.08971506495 | J70: 0.08971506495 | K70: 0.08971506495 | L70: 0.08971506495 | M70: 0.08971506495 | N70: 0.08971506495 | O70: 0.08971506495 | P70: 0.08971506495 | Q70: 0.08971506495 | R70: 0 | S70: 0 | T70: 0 | U70: 0 | V70: 0 | W70: 0 | X70: 0 | Y70: 0 | Z70: 0 | AA70: 0 | AB70: 0 | AC70: 0 | AD70: 0 | AE70: 0 | AF70: 0 | AG70: 0 | AH70: 0 | AI70: 0 | AJ70: 0 | AK70: 0
B71: ='Resultat - niveau I'!M16 -> 0.07304266511 | E71: Dæk | F71: inkl. afgifter | G71: 0.0952145903 | H71: 0.0952145903 | I71: 0.0952145903 | J71: 0.0952145903 | K71: 0.0952145903 | L71: 0.0952145903 | M71: 0.0952145903 | N71: 0.0952145903 | O71: 0.0952145903 | P71: 0.0952145903 | Q71: 0.0952145903 | R71: 0.07304266511 | S71: 0.07346844996 | T71: 0.07370703789 | U71: 0.07386069034 | V71: 0.07396837101 | W71: 0.07404815059 | X71: 0.07410955543 | Y71: 0.07415808852 | Z71: 0.07419715866 | AA71: 0.07422899999 | AB71: 0.07425514869 | AC71: 0.07427670918 | AD71: 0.07429448783 | AE71: 0.07430914179 | AF71: 0.07432238967 | AG71: 0.07433565574 | AH71: 0.07434671321 | AI71: 0.07435823741 | AJ71: 0.07437026147 | AK71: 0.07438418076
B72: ='Resultat - niveau I'!K16 -> 0.275400572 | E72: Reparation og vedligeholdelse | F72: inkl. afgifter | G72: 1.126162561 | H72: 1.126162561 | I72: 1.126162561 | J72: 1.126162561 | K72: 1.126162561 | L72: 1.126162561 | M72: 1.126162561 | N72: 1.126162561 | O72: 1.126162561 | P72: 1.126162561 | Q72: 1.126162561 | R72: 0.275400572 | S72: 0.2977110469 | T72: 0.3225832058 | U72: 0.3481934835 | V72: 0.3737599927 | W72: 0.3988488283 | X72: 0.4231735108 | Y72: 0.4465230122 | Z72: 0.4687324571 | AA72: 0.4896704716 | AB72: 0.5092337781 | AC72: 0.5273446148 | AD72: 0.5439470884 | AE72: 0.5590066962 | AF72: 0.5725047851 | AG72: 0.584409667 | AH72: 0.5948142935 | AI72: 0.6037085785 | AJ72: 0.6106303757 | AK72: 0.6140097949
B73: ='Resultat - niveau I'!L16 -> 0.03020572274 | E73: Ejerafgift | G73: 0.1038583811 | H73: 0.1038583811 | I73: 0.1038583811 | J73: 0.1038583811 | K73: 0.1038583811 | L73: 0.1038583811 | M73: 0.1038583811 | N73: 0.1038583811 | O73: 0.1038583811 | P73: 0.1038583811 | Q73: 0.1038583811 | R73: 0.03020572274 | S73: 0.03008062782 | T73: 0.03141820292 | U73: 0.03302319815 | V73: 0.03484806354 | W73: 0.03808122362 | X73: 0.03787043702 | Y73: 0.03769990377 | Z73: 0.03755893876 | AA73: 0.03744063351 | AB73: 0.03734032222 | AC73: 0.03725472347 | AD73: 0.0371814159 | AE73: 0.03711851942 | AF73: 0.03706420865 | AG73: 0.03701684874 | AH73: 0.03697687744 | AI73: 0.03694165637 | AJ73: 0.03690368098 | AK73: 0.03685792056
B74: ='Resultat - niveau I'!J16 -> 1.500595275 | E74: Afskrivninger | F74: inkl. afgifter | G74: 1.390149063 | H74: 1.390149063 | I74: 1.390149063 | J74: 1.390149063 | K74: 1.390149063 | L74: 1.390149063 | M74: 1.390149063 | N74: 1.390149063 | O74: 1.390149063 | P74: 1.390149063 | Q74: 1.390149063 | R74: 1.500595275 | S74: 1.513204875 | T74: 1.529052159 | U74: 1.546735208 | V74: 1.566593512 | W74: 1.576479111 | X74: 1.584647355 | Y74: 1.591503091 | Z74: 1.597288332 | AA74: 1.60214207 | AB74: 1.606172748 | AC74: 1.60946322 | AD74: 1.611988876 | AE74: 1.613715884 | AF74: 1.614603665 | AG74: 1.612159426 | AH74: 1.607207336 | AI74: 1.600004654 | AJ74: 1.590929705 | AK74: 1.580424308
E75: Note: Benzindreven
E77: Kørselsomkostninger for opladningshybrid-personbiler opgjort som marginale omkostninger med og uden afgifter | L77: =$L$16 -> 2021 | M77: priser
B78: =$B$17 -> 2021 | E78: kr./km | G78: 2010 | H78: 2011 | I78: 2012 | J78: 2013 | K78: 2014 | L78: 2015 | M78: 2016 | N78: 2017 | O78: 2018 | P78: 2019 | Q78: 2020 | R78: 2021 | S78: 2022 | T78: 2023 | U78: 2024 | V78: 2025 | W78: 2026 | X78: 2027 | Y78: 2028 | Z78: 2029 | AA78: 2030 | AB78: 2031 | AC78: 2032 | AD78: 2033 | AE78: 2034 | AF78: 2035 | AG78: 2036 | AH78: 2037 | AI78: 2038 | AJ78: 2039 | AK78: 2040
B79: ='Resultat - niveau I'!AA16 -> 0.1178999589 | E79: =CONCATENATE("Drivmiddel (", $G$123,"-priser)") -> Drivmiddel (-priser) | F79: ekskl. afgifter | G79: 0.3090701743 | H79: 0.3426653526 | I79: 0.3534956705 | J79: 0.335081573 | K79: 0.3111893821 | L79: 0.2649110001 | M79: 0.239855106 | N79: 0.2550362854 | O79: 0.2659675434 | P79: 0.2667202804 | Q79: 0.2135625561 | R79: 0.1178999589 | S79: 0.1201787053 | T79: 0.1222858609 | U79: 0.1241826086 | V79: 0.1262172241 | W79: 0.1278551039 | X79: 0.1291985654 | Y79: 0.1303191683 | Z79: 0.1312394278 | AA79: 0.1318603467 | AB79: 0.1322416632 | AC79: 0.1324068293 | AD79: 0.1324404843 | AE79: 0.1324274563 | AF79: 0.1324961256 | AG79: 0.1315566873 | AH79: 0.1307027637 | AI79: 0.1299273312 | AJ79: 0.1292179971 | AK79: 0.12853991
B80: ='Resultat - niveau I'!AB16 -> 0 | E80: Batteri | F80: ekskl. afgifter | G80: 0.02359038673 | H80: 0.02359038673 | I80: 0.02359038673 | J80: 0.02359038673 | K80: 0.02359038673 | L80: 0.02359038673 | M80: 0.02359038673 | N80: 0.02359038673 | O80: 0.02359038673 | P80: 0.02359038673 | Q80: 0.02359038673 | R80: 0 | S80: 0 | T80: 0 | U80: 0 | V80: 0 | W80: 0 | X80: 0 | Y80: 0 | Z80: 0 | AA80: 0 | AB80: 0 | AC80: 0 | AD80: 0 | AE80: 0 | AF80: 0 | AG80: 0 | AH80: 0 | AI80: 0 | AJ80: 0 | AK80: 0
B81: ='Resultat - niveau I'!AE16 -> 0.05843413209 | E81: Dæk | F81: ekskl. afgifter | G81: 0.07617167224 | H81: 0.07617167224 | I81: 0.07617167224 | J81: 0.07617167224 | K81: 0.07617167224 | L81: 0.07617167224 | M81: 0.07617167224 | N81: 0.07617167224 | O81: 0.07617167224 | P81: 0.07617167224 | Q81: 0.07617167224 | R81: 0.05843413209 | S81: 0.05877475996 | T81: 0.05896563031 | U81: 0.05908855227 | V81: 0.05917469681 | W81: 0.05923852048 | X81: 0.05928764434 | Y81: 0.05932647082 | Z81: 0.05935772693 | AA81: 0.05938319999 | AB81: 0.05940411895 | AC81: 0.05942136734 | AD81: 0.05943559026 | AE81: 0.05944731343 | AF81: 0.05945791174 | AG81: 0.05946852459 | AH81: 0.05947737057 | AI81: 0.05948658993 | AJ81: 0.05949620918 | AK81: 0.05950734461
B82: ='Resultat - niveau I'!AD16 -> 0.07278075392 | E82: Reparation og vedligeholdelse | F82: ekskl. afgifter | G82: 0.2874971509 | H82: 0.2874971509 | I82: 0.2874971509 | J82: 0.2874971509 | K82: 0.2874971509 | L82: 0.2874971509 | M82: 0.2874971509 | N82: 0.2874971509 | O82: 0.2874971509 | P82: 0.2874971509 | Q82: 0.2874971509 | R82: 0.07278075392 | S82: 0.07670228205 | T82: 0.0803029951 | U82: 0.08334514396 | V82: 0.08622564838 | W82: 0.08890867932 | X82: 0.09132338004 | Y82: 0.09349172403 | Z82: 0.09526503058 | AA82: 0.09663300901 | AB82: 0.09764667101 | AC82: 0.09851302706 | AD82: 0.09925529101 | AE82: 0.1000556457 | AF82: 0.100866195 | AG82: 0.1016486159 | AH82: 0.1023825989 | AI82: 0.1030471552 | AJ82: 0.1035923327 | AK82: 0.1038798967
B83: ='Resultat - niveau I'!AC16 -> 0.2677249377 | E83: Afskrivninger | F83: ekskl. afgifter | G83: 0.09126842553 | H83: 0.09126842553 | I83: 0.09126842553 | J83: 0.09126842553 | K83: 0.09126842553 | L83: 0.09126842553 | M83: 0.09126842553 | N83: 0.09126842553 | O83: 0.09126842553 | P83: 0.09126842553 | Q83: 0.09126842553 | R83: 0.2677249377 | S83: 0.2595944988 | T83: 0.2496057427 | U83: 0.2389729089 | V83: 0.2281841131 | W83: 0.2174830063 | X83: 0.2070033209 | Y83: 0.1969059899 | Z83: 0.1872301264 | AA83: 0.178035882 | AB83: 0.1691355028 | AC83: 0.1611306016 | AD83: 0.1536889828 | AE83: 0.1474157701 | AF83: 0.1420821928 | AG83: 0.1375344178 | AH83: 0.1336576676 | AI83: 0.1303468219 | AJ83: 0.1275684632 | AK83: 0.1254395628
B84: ='Resultat - niveau I'!U16 -> 0.2852053574 | E84: =CONCATENATE("Drivmiddel (", $G$123,"-priser)") -> Drivmiddel (-priser) | F84: inkl. afgifter | G84: 0.7318056675 | H84: 0.776248449 | I84: 0.6853294922 | J84: 0.6605737989 | K84: 0.6199577906 | L84: 0.5607120214 | M84: 0.5256836979 | N84: 0.5393874904 | O84: 0.5488593983 | P84: 0.5535769675 | Q84: 0.4823709967 | R84: 0.2852053574 | S84: 0.2873547033 | T84: 0.289219579 | U84: 0.2907985076 | V84: 0.2928138984 | W84: 0.2941020152 | X84: 0.2949061938 | Y84: 0.2953128469 | Z84: 0.2953765281 | AA84: 0.2949529149 | AB84: 0.2942486597 | AC84: 0.293309068 | AD84: 0.2922434849 | AE84: 0.2911642809 | AF84: 0.2902815477 | AG84: 0.2882233621 | AH84: 0.2863525282 | AI84: 0.2846536578 | AJ84: 0.2830996003 | AK84: 0.2816140008
B85: ='Resultat - niveau I'!V16 -> 0 | E85: Batteri | F85: inkl. afgifter | G85: 0.02948798341 | H85: 0.02948798341 | I85: 0.02948798341 | J85: 0.02948798341 | K85: 0.02948798341 | L85: 0.02948798341 | M85: 0.02948798341 | N85: 0.02948798341 | O85: 0.02948798341 | P85: 0.02948798341 | Q85: 0.02948798341 | R85: 0 | S85: 0 | T85: 0 | U85: 0 | V85: 0 | W85: 0 | X85: 0 | Y85: 0 | Z85: 0 | AA85: 0 | AB85: 0 | AC85: 0 | AD85: 0 | AE85: 0 | AF85: 0 | AG85: 0 | AH85: 0 | AI85: 0 | AJ85: 0 | AK85: 0
B86: ='Resultat - niveau I'!Y16 -> 0.07304266511 | E86: Dæk | F86: inkl. afgifter | G86: 0.0952145903 | H86: 0.0952145903 | I86: 0.0952145903 | J86: 0.0952145903 | K86: 0.0952145903 | L86: 0.0952145903 | M86: 0.0952145903 | N86: 0.0952145903 | O86: 0.0952145903 | P86: 0.0952145903 | Q86: 0.0952145903 | R86: 0.07304266511 | S86: 0.07346844996 | T86: 0.07370703789 | U86: 0.07386069034 | V86: 0.07396837101 | W86: 0.07404815059 | X86: 0.07410955543 | Y86: 0.07415808852 | Z86: 0.07419715866 | AA86: 0.07422899999 | AB86: 0.07425514869 | AC86: 0.07427670918 | AD86: 0.07429448783 | AE86: 0.07430914179 | AF86: 0.07432238967 | AG86: 0.07433565574 | AH86: 0.07434671321 | AI86: 0.07435823741 | AJ86: 0.07437026147 | AK86: 0.07438418076
B87: ='Resultat - niveau I'!X16 -> 0.09370522067 | E87: Reparation og vedligeholdelse | F87: inkl. afgifter | G87: 0.3701525818 | H87: 0.3701525818 | I87: 0.3701525818 | J87: 0.3701525818 | K87: 0.3701525818 | L87: 0.3701525818 | M87: 0.3701525818 | N87: 0.3701525818 | O87: 0.3701525818 | P87: 0.3701525818 | Q87: 0.3701525818 | R87: 0.09370522067 | S87: 0.09875418814 | T87: 0.1033901062 | U87: 0.1073068729 | V87: 0.1110155223 | W87: 0.1144699246 | X87: 0.1175788518 | Y87: 0.1203705947 | Z87: 0.1226537269 | AA87: 0.1244149991 | AB87: 0.1257200889 | AC87: 0.1268355223 | AD87: 0.1277911872 | AE87: 0.1288216438 | AF87: 0.129865226 | AG87: 0.1308725929 | AH87: 0.1318175961 | AI87: 0.1326732124 | AJ87: 0.1333751283 | AK87: 0.133745367
B88: ='Resultat - niveau I'!W16 -> 0.4082211071 | E88: Afskrivninger | F88: inkl. afgifter | G88: 0.2125192487 | H88: 0.2125192487 | I88: 0.2125192487 | J88: 0.2125192487 | K88: 0.2125192487 | L88: 0.2125192487 | M88: 0.2125192487 | N88: 0.2125192487 | O88: 0.2125192487 | P88: 0.2125192487 | Q88: 0.2125192487 | R88: 0.4082211071 | S88: 0.3988174308 | T88: 0.3892251724 | U88: 0.3797325605 | V88: 0.3707501263 | W88: 0.3588465402 | X88: 0.3467727177 | Y88: 0.3348723857 | Z88: 0.3232767636 | AA88: 0.312123457 | AB88: 0.3011649723 | AC88: 0.2913975928 | AD88: 0.2822804985 | AE88: 0.2746905574 | AF88: 0.2683386326 | AG88: 0.2622975712 | AH88: 0.2566331556 | AI88: 0.2514139285 | AJ88: 0.2466460956 | AK88: 0.2426736559
E89: Note: Benzindreven
A91: ='Resultat - niveau I'!D15 -> Elektricitet | E91: Kørselsomkostninger for el-personbiler opgjort som gennemsnitlige omkostninger med og uden afgifter | L91: =$L$16 -> 2021 | M91: priser
B92: =$B$17 -> 2021 | E92: kr./km | G92: 2010 | H92: 2011 | I92: 2012 | J92: 2013 | K92: 2014 | L92: 2015 | M92: 2016 | N92: 2017 | O92: 2018 | P92: 2019 | Q92: 2020 | R92: 2021 | S92: 2022 | T92: 2023 | U92: 2024 | V92: 2025 | W92: 2026 | X92: 2027 | Y92: 2028 | Z92: 2029 | AA92: 2030 | AB92: 2031 | AC92: 2032 | AD92: 2033 | AE92: 2034 | AF92: 2035 | AG92: 2036 | AH92: 2037 | AI92: 2038 | AJ92: 2039 | AK92: 2040
B93: ='Resultat - niveau I'!O15 -> 0.09456803922 | E93: =CONCATENATE("Drivmiddel (", $G$123,"-priser)") -> Drivmiddel (-priser) | F93: ekskl. afgifter | G93: 0.1931592973 | H93: 0.185405775 | I93: 0.1712472412 | J93: 0.1714499061 | K93: 0.1626587088 | L93: 0.1533699733 | M93: 0.155358313 | N93: 0.1440837844 | O93: 0.1428626501 | P93: 0.1335949301 | Q93: 0.1122849284 | R93: 0.09456803922 | S93: 0.09618139122 | T93: 0.09729366056 | U93: 0.09741437664 | V93: 0.09853117483 | W93: 0.1009053371 | X93: 0.1033459179 | Y93: 0.1058269085 | Z93: 0.1083286246 | AA93: 0.1109772778 | AB93: 0.1134994997 | AC93: 0.1160248905 | AD93: 0.1185503912 | AE93: 0.1212007691 | AF93: 0.1236866575 | AG93: 0.1232080971 | AH93: 0.1228445947 | AI93: 0.1225185388 | AJ93: 0.1222179158 | AK93: 0.1219373289
B94: ='Resultat - niveau I'!P15 -> 0 | E94: Batteri | F94: ekskl. afgifter | G94: 0.2783527889 | H94: 0.2783527889 | I94: 0.2783527889 | J94: 0.2783527889 | K94: 0.2783527889 | L94: 0.2783527889 | M94: 0.2783527889 | N94: 0.2783527889 | O94: 0.2783527889 | P94: 0.2783527889 | Q94: 0.2783527889 | R94: 0 | S94: 0 | T94: 0 | U94: 0 | V94: 0 | W94: 0 | X94: 0 | Y94: 0 | Z94: 0 | AA94: 0 | AB94: 0 | AC94: 0 | AD94: 0 | AE94: 0 | AF94: 0 | AG94: 0 | AH94: 0 | AI94: 0 | AJ94: 0 | AK94: 0
B95: ='Resultat - niveau I'!S15 -> 0.08310761536 | E95: Dæk | F95: ekskl. afgifter | G95: 0.06558921715 | H95: 0.06558921715 | I95: 0.06558921715 | J95: 0.06558921715 | K95: 0.06558921715 | L95: 0.06558921715 | M95: 0.06558921715 | N95: 0.06558921715 | O95: 0.06558921715 | P95: 0.06558921715 | Q95: 0.06558921715 | R95: 0.08310761536 | S95: 0.08379927529 | T95: 0.08420593432 | U95: 0.08447621698 | V95: 0.08466968486 | W95: 0.08481572112 | X95: 0.08493013622 | Y95: 0.08502212309 | Z95: 0.08509755911 | AA95: 0.08516072216 | AB95: 0.08521307858 | AC95: 0.08525908827 | AD95: 0.08529791547 | AE95: 0.08533029028 | AF95: 0.08535667992 | AG95: 0.08536933509 | AH95: 0.08539515501 | AI95: 0.08541788202 | AJ95: 0.08544375475 | AK95: 0.08545789062
B96: ='Resultat - niveau I'!R15 -> 0.1076848329 | E96: Reparation og vedligeholdelse | F96: ekskl. afgifter | G96: 0.46 | H96: 0.46 | I96: 0.46 | J96: 0.46 | K96: 0.46 | L96: 0.46 | M96: 0.46 | N96: 0.46 | O96: 0.46 | P96: 0.46 | Q96: 0.46 | R96: 0.1076848329 | S96: 0.114027711 | T96: 0.1221311607 | U96: 0.1309293846 | V96: 0.1399630748 | W96: 0.1489798486 | X96: 0.1578219416 | Y96: 0.166379675 | Z96: 0.1745703453 | AA96: 0.1823278285 | AB96: 0.189607724 | AC96: 0.1963567215 | AD96: 0.2025456722 | AE96: 0.2081483432 | AF96: 0.2130255594 | AG96: 0.2170880677 | AH96: 0.2211472367 | AI96: 0.2246484056 | AJ96: 0.2275542307 | AK96: 0.2293696341
B97: ='Resultat - niveau I'!Q15 -> 1.104703168 | E97: Afskrivninger | F97: ekskl. afgifter | G97: 1.085780818 | H97: 1.085780818 | I97: 1.085780818 | J97: 1.085780818 | K97: 1.085780818 | L97: 1.085780818 | M97: 1.085780818 | N97: 1.085780818 | O97: 1.085780818 | P97: 1.085780818 | Q97: 1.085780818 | R97: 1.104703168 | S97: 1.096882233 | T97: 1.085094309 | U97: 1.071364242 | V97: 1.056477954 | W97: 1.040786418 | X97: 1.024458791 | Y97: 1.007580755 | Z97: 0.9901978719 | AA97: 0.9723362143 | AB97: 0.9540208137 | AC97: 0.9352621592 | AD97: 0.9160874833 | AE97: 0.8965020223 | AF97: 0.8764275753 | AG97: 0.855837818 | AH97: 0.8355106514 | AI97: 0.8149845027 | AJ97: 0.7942202703 | AK97: 0.7729025652
B98: ='Resultat - niveau I'!H15 -> 0.288792261 | E98: =CONCATENATE("Drivmiddel (", $G$123,"-priser)") -> Drivmiddel (-priser) | F98: inkl. afgifter | G98: 0.4402041809 | H98: 0.4448951424 | I98: 0.2335822802 | J98: 0.2339388946 | K98: 0.205925903 | L98: 0.194275393 | M98: 0.1967358216 | N98: 0.1825606559 | O98: 0.180843565 | P98: 0.1692218552 | Q98: 0.1412112134 | R98: 0.288792261 | S98: 0.2870972751 | T98: 0.2861471058 | U98: 0.2845640907 | V98: 0.2845047281 | W98: 0.2862831754 | X98: 0.2883178237 | Y98: 0.2905222327 | Z98: 0.2928331276 | AA98: 0.2953851943 | AB98: 0.2978362125 | AC98: 0.3003318025 | AD98: 0.3028610723 | AE98: 0.3055637532 | AF98: 0.3080549275 | AG98: 0.3068630215 | AH98: 0.3059576796 | AI98: 0.3051456024 | AJ98: 0.3043968685 | AK98: 0.3036980365
B99: ='Resultat - niveau I'!I15 -> 0 | E99: Batteri | F99: inkl. afgifter | G99: 0.3479409861 | H99: 0.3479409861 | I99: 0.3479409861 | J99: 0.3479409861 | K99: 0.3479409861 | L99: 0.3479409861 | M99: 0.3479409861 | N99: 0.3479409861 | O99: 0.3479409861 | P99: 0.3479409861 | Q99: 0.3479409861 | R99: 0 | S99: 0 | T99: 0 | U99: 0 | V99: 0 | W99: 0 | X99: 0 | Y99: 0 | Z99: 0 | AA99: 0 | AB99: 0 | AC99: 0 | AD99: 0 | AE99: 0 | AF99: 0 | AG99: 0 | AH99: 0 | AI99: 0 | AJ99: 0 | AK99: 0
B100: ='Resultat - niveau I'!M15 -> 0.1038845192 | E100: Dæk | F100: inkl. afgifter | G100: 0.08198652144 | H100: 0.08198652144 | I100: 0.08198652144 | J100: 0.08198652144 | K100: 0.08198652144 | L100: 0.08198652144 | M100: 0.08198652144 | N100: 0.08198652144 | O100: 0.08198652144 | P100: 0.08198652144 | Q100: 0.08198652144 | R100: 0.1038845192 | S100: 0.1047490941 | T100: 0.1052574179 | U100: 0.1055952712 | V100: 0.1058371061 | W100: 0.1060196514 | X100: 0.1061626703 | Y100: 0.1062776539 | Z100: 0.1063719489 | AA100: 0.1064509027 | AB100: 0.1065163482 | AC100: 0.1065738603 | AD100: 0.1066223943 | AE100: 0.1066628629 | AF100: 0.1066958499 | AG100: 0.1067116689 | AH100: 0.1067439438 | AI100: 0.1067723525 | AJ100: 0.1068046934 | AK100: 0.1068223633
B101: ='Resultat - niveau I'!K15 -> 0.1386442224 | E101: Reparation og vedligeholdelse | F101: inkl. afgifter | G101: 0.59225 | H101: 0.59225 | I101: 0.59225 | J101: 0.59225 | K101: 0.59225 | L101: 0.59225 | M101: 0.59225 | N101: 0.59225 | O101: 0.59225 | P101: 0.59225 | Q101: 0.59225 | R101: 0.1386442224 | S101: 0.1468106779 | T101: 0.1572438694 | U101: 0.1685715826 | V101: 0.1802024588 | W101: 0.1918115551 | X101: 0.2031957498 | Y101: 0.2142138316 | Z101: 0.2247593196 | AA101: 0.2347470792 | AB101: 0.2441199446 | AC101: 0.2528092789 | AD101: 0.260777553 | AE101: 0.2679909919 | AF101: 0.2742704078 | AG101: 0.2795008872 | AH101: 0.2847270672 | AI101: 0.2892348222 | AJ101: 0.2929760721 | AK101: 0.2953134038
B102: ='Resultat - niveau I'!L15 -> 0.03922251247 | E102: Ejerafgift | G102: 0.05203660674 | H102: 0.05203660674 | I102: 0.05203660674 | J102: 0.05203660674 | K102: 0.05203660674 | L102: 0.05203660674 | M102: 0.05203660674 | N102: 0.05203660674 | O102: 0.05203660674 | P102: 0.05203660674 | Q102: 0.05203660674 | R102: 0.03922251247 | S102: 0.03938105038 | T102: 0.04130488892 | U102: 0.04352707695 | V102: 0.04601523159 | W102: 0.05035321453 | X102: 0.05012953537 | Y102: 0.04994983937 | Z102: 0.04980270868 | AA102: 0.04968030753 | AB102: 0.04957828652 | AC102: 0.0494910004 | AD102: 0.04941650895 | AE102: 0.04935298688 | AF102: 0.04929342547 | AG102: 0.04923676971 | AH102: 0.04920307639 | AI102: 0.04917385267 | AJ102: 0.04914423934 | AK102: 0.04911141841
B103: ='Resultat - niveau I'!J15 -> 1.353120571 | E103: Afskrivninger | F103: inkl. afgifter | G103: 1.36771231 | H103: 1.36771231 | I103: 1.36771231 | J103: 1.36771231 | K103: 1.36771231 | L103: 1.36771231 | M103: 1.36771231 | N103: 1.36771231 | O103: 1.36771231 | P103: 1.36771231 | Q103: 1.36771231 | R103: 1.353120571 | S103: 1.357611479 | T103: 1.351679033 | U103: 1.340526613 | V103: 1.326596681 | W103: 1.309985499 | X103: 1.294526674 | Y103: 1.281046825 | Z103: 1.269374511 | AA103: 1.258847979 | AB103: 1.249904507 | AC103: 1.238754125 | AD103: 1.225552251 | AE103: 1.210460398 | AF103: 1.193463656 | AG103: 1.173525503 | AH103: 1.151732038 | AI103: 1.127718759 | AJ103: 1.101616276 | AK103: 1.073535489
E106: Kørselsomkostninger for el-personbiler opgjort som marginale omkostninger med og uden afgifter | L106: =$L$16 -> 2021 | M106: priser
B107: =$B$17 -> 2021 | E107: kr./km | G107: 2010 | H107: 2011 | I107: 2012 | J107: 2013 | K107: 2014 | L107: 2015 | M107: 2016 | N107: 2017 | O107: 2018 | P107: 2019 | Q107: 2020 | R107: 2021 | S107: 2022 | T107: 2023 | U107: 2024 | V107: 2025 | W107: 2026 | X107: 2027 | Y107: 2028 | Z107: 2029 | AA107: 2030 | AB107: 2031 | AC107: 2032 | AD107: 2033 | AE107: 2034 | AF107: 2035 | AG107: 2036 | AH107: 2037 | AI107: 2038 | AJ107: 2039 | AK107: 2040
B108: ='Resultat - niveau I'!AA15 -> 0.09456803922 | E108: =CONCATENATE("Drivmiddel (", $G$123,"-priser)") -> Drivmiddel (-priser) | F108: ekskl. afgifter | G108: 0.1931592973 | H108: 0.185405775 | I108: 0.1712472412 | J108: 0.1714499061 | K108: 0.1626587088 | L108: 0.1533699733 | M108: 0.155358313 | N108: 0.1440837844 | O108: 0.1428626501 | P108: 0.1335949301 | Q108: 0.1122849284 | R108: 0.09456803922 | S108: 0.09618139122 | T108: 0.09729366056 | U108: 0.09741437664 | V108: 0.09853117483 | W108: 0.1009053371 | X108: 0.1033459179 | Y108: 0.1058269085 | Z108: 0.1083286246 | AA108: 0.1109772778 | AB108: 0.1134994997 | AC108: 0.1160248905 | AD108: 0.1185503912 | AE108: 0.1212007691 | AF108: 0.1236866575 | AG108: 0.1232080971 | AH108: 0.1228445947 | AI108: 0.1225185388 | AJ108: 0.1222179158 | AK108: 0.1219373289
B109: ='Resultat - niveau I'!AB15 -> 0 | E109: Batteri | F109: ekskl. afgifter | G109: 0.1208048891 | H109: 0.1208048891 | I109: 0.1208048891 | J109: 0.1208048891 | K109: 0.1208048891 | L109: 0.1208048891 | M109: 0.1208048891 | N109: 0.1208048891 | O109: 0.1208048891 | P109: 0.1208048891 | Q109: 0.1208048891 | R109: 0 | S109: 0 | T109: 0 | U109: 0 | V109: 0 | W109: 0 | X109: 0 | Y109: 0 | Z109: 0 | AA109: 0 | AB109: 0 | AC109: 0 | AD109: 0 | AE109: 0 | AF109: 0 | AG109: 0 | AH109: 0 | AI109: 0 | AJ109: 0 | AK109: 0
B110: ='Resultat - niveau I'!AE15 -> 0.08310761536 | E110: Dæk | F110: ekskl. afgifter | G110: 0.06558921715 | H110: 0.06558921715 | I110: 0.06558921715 | J110: 0.06558921715 | K110: 0.06558921715 | L110: 0.06558921715 | M110: 0.06558921715 | N110: 0.06558921715 | O110: 0.06558921715 | P110: 0.06558921715 | Q110: 0.06558921715 | R110: 0.08310761536 | S110: 0.08379927529 | T110: 0.08420593432 | U110: 0.08447621698 | V110: 0.08466968486 | W110: 0.08481572112 | X110: 0.08493013622 | Y110: 0.08502212309 | Z110: 0.08509755911 | AA110: 0.08516072216 | AB110: 0.08521307858 | AC110: 0.08525908827 | AD110: 0.08529791547 | AE110: 0.08533029028 | AF110: 0.08535667992 | AG110: 0.08536933509 | AH110: 0.08539515501 | AI110: 0.08541788202 | AJ110: 0.08544375475 | AK110: 0.08545789062
